Workbook

Sheet PRESENTACION

Sheet ESTADÍSTICAS BÁSICAS
B3: ESTADÍSTICAS BÁSICAS
C10: PRIMERA INFANCIA E INICIAL | F10: TERCIARIA NO UNIVERSITARIA
C12: PRIMARIA | F12: FORMACIÓN EN EDUCACIÓN
C14: MEDIA BÁSICA | F14: EDUCACIÓN UNIVERSITARIA
C16: MEDIA SUPERIOR | F16: EDUCACIÓN DE JÓVENES Y ADULTOS

Sheet PRIMERA INFANCIA E INICIAL
B7: ESTABLECIMIENTOS
A8: Cuadro Nº II-1.1.1 | B8: CANTIDAD DE ESTABLECIMIENTOS DE EDUCACIÓN EN LA PRIMERA INFANCIA E INICIAL DEL CEIP POR FORMA DE ADMINISTRACIÓN Y MODALIDAD SEGÚN DEPARTAMENTO. (Todo el país, 2017)
A10: Cuadro Nº II-1.1.2 | B10: CANTIDAD DE ESTABLECIMIENTOS DE PRIMERA INFANCIA E INICIAL DEL MEC E INAU POR FORMA DE ADMINISTRACIÓN SEGÚN DEPARTAMENTO. (Todo el país, 2017).
A13: Cuadro Nº II-1.2.1 | B13: ESTUDIANTES MATRICULADOS EN EDUCACIÓN EN LA PRIMERA INFANCIA E INICIAL POR FORMA DE ADMINISTRACIÓN, MODALIDAD Y SEXO SEGÚN DEPARTAMENTO. (Todo el país, 2017)
A15: Cuadro Nº II-1.2.2 | B15: ESTUDIANTES MATRICULADOS EN EDUCACIÓN PÚBLICA EN LA PRIMERA INFANCIA E INICIAL DEL CEIP POR MODALIDAD Y EDAD SEGÚN DEPARTAMENTO. (Todo el país, 2017)
A17: Cuadro Nº II-1.2.3 | B17: ESTUDIANTES MATRICULADOS EN EDUCACIÓN EN LA PRIMERA INFANCIA E INICIAL PRIVADA POR MODALIDAD Y NIVEL SEGÚN DEPARTAMENTO. (Todo el país, 2017).
A19: Cuadro Nº II-1.2.4 | B19: ESTUDIANTES MATRICULADOS EN EDUCACIÓN EN LA PRIMERA INFANCIA E INICIAL POR FORMA DE ADMINISTRACIÓN Y SEXO SEGÚN DEPARTAMENTO. (Todo el país, 2017).
A21: Cuadro Nº II-1.2.5 | B21: ESTUDIANTES MATRICULADOS EN EDUCACIÓN EN LA PRIMERA INFANCIA E INICIAL POR FORMA DE ADMINISTRACIÓN SEGÚN EDAD. (Todo el país, 2017).
A23: Cuadro Nº II-1.2.6 | B23: ESTUDIANTES MATRICULADOS EN EDUCACIÓN EN LA PRIMERA INFANCIA E INICIAL PÚBLICA DEL CEIP POR ÁREA DEMOGRÁFICA SEGÚN DEPARTAMENTO. (Todo el país, 2017).
A25: Cuadro Nº II-1.2.7 | B25: ESTUDIANTES MATRICULADOS EN EDUCACIÓN EN LA PRIMERA INFANCIA E INICIAL EN CENTROS PRIVADOS HABILITADOS POR EL MEC POR EDAD SEGÚN DEPARTAMENTO. (Todo el país, 2017).
A28: Cuadro Nº II-1.3.1 | B28: PERSONAL DOCENTE DE EDUCACIÓN EN LA PRIMERA INFANCIA E INICIAL PÚBLICA DEL CEIP SEGÚN DEPARTAMENTO. (Todo el país, 2017).
A30: Cuadro Nº II-1.3.2 | B30: PERSONAL DOCENTE DE EDUCACIÓN EN LA PRIMERA INFANCIA E INICIAL PRIVADA SEGÚN DEPARTAMENTO. (Todo el país, 2017).
A32: Cuadro Nº II-1.3.3 | B32: PERSONAL DOCENTE EN EDUCACIÓN EN LA PRIMERA INFANCIA PRIVADA SUPERVISADA POR EL MEC SEGÚN FUNCIÓN Y DEPARTAMENTO. (Todo el país, 2017).

Sheet II-1.1.1
A1: CONSEJO DE EDUCACIÓN INICIAL Y PRIMARIA | G1: ESTABLECIMIENTOS
A3: Cuadro Nº II-1.1.1 | I3: VOLVER
A5: CANTIDAD DE ESTABLECIMIENTOS DE EDUCACIÓN EN LA PRIMERA INFANCIA E INICIAL DEL CEIP POR FORMA DE ADMINISTRACIÓN Y MODALIDAD SEGÚN DEPARTAMENTO (Todo el país, 2017)
A6: DEPARTAMENTO | B6: TOTAL | C6: FORMA DE ADMINISTRACIÓN
C7: PÚBLICA | I7: PRIVADA
C8: Total Público | D8: Jardines de Infantes | E8: Aprender | F8: JICI | G8: Inicial | H8: Jardines de Tiempo Completo | I8: Jardines de Infantes
A11: TOTAL | B11: =+B12+B13 -> 233 | C11: =+C12+C13 -> 193 | D11: =SUM(D12:D13) -> 111 | E11: =E12+E13 -> 21 | F11: =SUM(F12:F13) -> 2 | G11: =SUM(G12:G13) -> 1 | H11: =SUM(H12:H13) -> 58 | I11: =SUM(I12:I13) -> 40
A12: MONTEVIDEO | B12: =+C12+I12 -> 88 | C12: =+D12++E12+F12+G12+H12 -> 63 | D12: 29 | E12: 13 | F12: 1 | G12: 0 | H12: 20 | I12: 25
A13: RESTO DEL PAÍS | B13: =+C13+I13 -> 145 | C13: =+D13+E13+F13+G13+H13 -> 130 | D13: =SUM(D15:D32) -> 82 | E13: 8 | F13: 1 | G13: 1 | H13: 38 | I13: 15
A15: Artigas | B15: =+C15+I15 -> 7 | C15: =+D15+E15+F15+G15+H15 -> 4 | D15: 2 | E15: 1 | F15: 0 | G15: 1 | H15: 0 | I15: 3
A16: Canelones | B16: =+C16+I16 -> 34 | C16: =+D16+E16+F16+G16+H16 -> 34 | D16: 26 | E16: 4 | F16: 0 | G16: 0 | H16: 4 | I16: 0
A17: Cerro Largo | B17: 7 | C17: 7 | D17: 2 | E17: 1 | F17: 1 | G17: 0 | H17: 3 | I17: 0
A18: Colonia | B18: 6 | C18: 6 | D18: 5 | E18: 0 | F18: 0 | G18: 0 | H18: 1 | I18: 0
A19: Durazno | B19: 5 | C19: 5 | D19: 3 | E19: 0 | F19: 0 | G19: 0 | H19: 2 | I19: 0
A20: Flores | B20: 3 | C20: 2 | D20: 1 | E20: 0 | F20: 0 | G20: 0 | H20: 1 | I20: 1
A21: Florida | B21: 4 | C21: 4 | D21: 2 | E21: 0 | F21: 0 | G21: 0 | H21: 2 | I21: 0
A22: Lavalleja | B22: 9 | C22: 7 | D22: 4 | E22: 0 | F22: 0 | G22: 0 | H22: 3 | I22: 2
A23: Maldonado | B23: 8 | C23: 7 | D23: 7 | E23: 0 | F23: 0 | G23: 0 | H23: 0 | I23: 1
A24: Paysandú | B24: 4 | C24: 4 | D24: 2 | E24: 0 | F24: 0 | G24: 0 | H24: 2 | I24: 0
A25: Río Negro | B25: 6 | C25: 6 | D25: 2 | E25: 0 | F25: 0 | G25: 0 | H25: 4 | I25: 0
A26: Rivera | B26: 7 | C26: 7 | D26: 3 | E26: 0 | F26: 0 | G26: 0 | H26: 4 | I26: 0
A27: Rocha | B27: 12 | C27: 7 | D27: 5 | E27: 0 | F27: 0 | G27: 0 | H27: 2 | I27: 5
A28: Salto | B28: 6 | C28: 5 | D28: 3 | E28: 1 | F28: 0 | G28: 0 | H28: 1 | I28: 1
A29: San José | B29: 6 | C29: 6 | D29: 3 | E29: 1 | F29: 0 | G29: 0 | H29: 2 | I29: 0
A30: Soriano | B30: 7 | C30: 5 | D30: 4 | E30: 0 | F30: 0 | G30: 0 | H30: 1 | I30: 2
A31: Tacuarembó | B31: =+C31+I31 -> 9 | C31: 9 | D31: 6 | E31: 0 | F31: 0 | G31: 0 | H31: 3 | I31: 0
A32: Treinta y Tres | B32: =+C32+I32 -> 5 | C32: 5 | D32: 2 | E32: 0 | F32: 0 | G32: 0 | H32: 3 | I32: 0
A33: Fuente: Procesamiento propio en base a datos proporcionados por el D.E.E. — C.E.I.P.

Sheet II-1.1.2
A1: MINISTERIO DE EDUCACIÓN Y CULTURA | E1: Establecimientos
A2: Dirección de Educación
A4: Cuadro Nº II-1.1.2
A6: CANTIDAD DE ESTABLECIMIENTOS DE PRIMERA INFANCIA E INICIAL DEL MEC E INAU POR FORMA DE ADMINISTRACIÓN SEGÚN DEPARTAMENTO(Todo el país, 2017)
A7: DEPARTAMENTO
B8: TOTAL | C8: CAIF | D8: DIURNOS-INAU | E8: PRIVADOS
A11: TOTAL | B11: =C11+D11+E11 -> 782 | C11: =C12+C13 -> 408 | D11: =D12+D13 -> 52 | E11: =E12+E13 -> 322
A12: MONTEVIDEO | B12: 308 | C12: 87 | D12: 26 | E12: 195
A13: RESTO DEL PAÍS | B13: =C13+D13+E13 -> 474 | C13: =SUM(C15:C32) -> 321 | D13: =SUM(D15:D32) -> 26 | E13: =SUM(E15:E32) -> 127
A15: Artigas | B15: =C15+D15+E15 -> 22 | C15: 17 | D15: 2 | E15: 3
A16: Canelones | B16: 122 | C16: 65 | D16: 2 | E16: 55
A17: Cerro Largo | B17: 21 | C17: 20 | D17: 0 | E17: 1
A18: Colonia | B18: 30 | C18: 15 | D18: 2 | E18: 13
A19: Durazno | B19: 20 | C19: 16 | D19: 2 | E19: 2
A20: Flores | B20: 9 | C20: 6 | D20: 2 | E20: 1
A21: Florida | B21: 18 | C21: 12 | D21: 2 | E21: 4
A22: Lavalleja | B22: 14 | C22: 8 | D22: 1 | E22: 5
A23: Maldonado | B23: 21 | C23: 12 | D23: 2 | E23: 7
A24: Paysandú | B24: 32 | C24: 25 | D24: 1 | E24: 6
A25: Río Negro | B25: 15 | C25: 12 | D25: 1 | E25: 2
A26: Rivera | B26: 22 | C26: 16 | D26: 1 | E26: 5
A27: Rocha | B27: 19 | C27: 15 | D27: 1 | E27: 3
A28: Salto | B28: 27 | C28: 24 | D28: 1 | E28: 2
A29: San José | B29: 22 | C29: 13 | D29: 2 | E29: 7
A30: Soriano | B30: 24 | C30: 15 | D30: 1 | E30: 8
A31: Tacuarembó | B31: 23 | C31: 18 | D31: 2 | E31: 3
A32: Treinta y Tres | B32: 13 | C32: 12 | D32: 1 | E32: 0
A33: Fuente: Procesamiento propio en base a datos proporcionados por:
A34: Registro Nacional de Centros Educativos en la Primera Infancia. MEC
A35: Nota: Privados supervisados por el MEC
A36: Dentro del total de Centros Diurnos, se suman 17 Centros correspondientes a Proyecto Nuestros Niños de la Intendencia Municipal de Montevideo.
A38: Para CAIF Y CENTROS DIURNOS: SIPI de INAU.

Sheet II-1.2.1
A1: CONSEJO DE EDUCACIÓN INICIAL Y PRIMARIA | AN1: ALUMNOS MATRICULADOS
A3: Cuadro Nº II-1.2.1
A5: ESTUDIANTES MATRICULADOS EN EDUCACIÓN EN LA PRIMERA INFANCIA E INICIAL POR FORMA DE ADMINISTRACIÓN, MODALIDAD Y SEXO SEGÚN DEPARTAMENTO (Todo el país, 2017)
A6: DEPARTAMENTO | B6: FORMA DE ADMINISTRACIÓN
B7: TOTAL | E7: PÚBLICA | AM7: PRIVADA
E8: Total Público | F8: Educación Inicial | Q8: Inicial en Escuelas | AM8: Total Privada | AN8: Jardines de Infantes | AP8: Inicial en Colegios
B9: TOTAL | F9: INICIAL | H9: JARDÍN APRENDER | J9: JARDÍN COMÚN | L9: JARDÍN DE CICLO INICIAL | N9: JARDÍN DE JORNADA COMPLETA | Q9: APRENDER | S9: APRENDER H. DE PRÁCTICA | U9: COMÚN | W9: CON MAESTRO A CARGO | Y9: DE PRÁCTICA | AA9: DE TIEMPO COMPLETO | AC9: HABILITADA DE PRÁCTICA | AE9: INTERNADO RURAL | AG9: T.EXTENDIDO-DE PRÁCTICA | AI9: TIEMPO EXTENDIDO | AK9: UNIDOCENTE
C10: SEXO | F10: SEXO | H10: SEXO | J10: SEXO | L10: SEXO | N10: SEXO | Q10: SEXO | S10: SEXO | U10: SEXO | W10: SEXO | Y10: SEXO | AA10: SEXO | AC10: SEXO | AE10: SEXO | AG10: SEXO | AI10: SEXO | AK10: SEXO | AN10: SEXO | AP10: SEXO
C11: VARÓN | D11: MUJER | F11: V | G11: M | H11: V | I11: M | J11: V | K11: M | L11: V | M11: M | N11: V | O11: M | Q11: V | R11: M | S11: V | T11: M | U11: V | V11: M | W11: V | X11: M | Y11: V | Z11: M | AA11: V | AB11: M | AC11: V | AD11: M | AE11: V | AF11: M | AG11: V | AH11: M | AI11: V | AJ11: M | AK11: V | AL11: M | AN11: V | AO11: M | AP11: V | AQ11: M
A12: TOTAL | B12: =+B13+B14 -> 115320 | C12: =+C13+C14 -> 58773 | D12: =+D13+D14 -> 56547 | E12: =+E13+E14 -> 86572 | F12: =F13+F14 -> 83 | G12: =G13+G14 -> 94 | H12: 2538 | I12: 2353 | J12: 11860 | K12: 11710 | L12: 291 | M12: 286 | N12: =N13+N14 -> 4434 | O12: =O13+O14 -> 4283 | Q12: =Q13+Q14 -> 6958 | R12: =R13+R14 -> 6525 | S12: =S13+S14 -> 295 | T12: =T13+T14 -> 300 | U12: =U13+U14 -> 6300 | V12: =V13+V14 -> 6181 | W12: =W13+W14 -> 1381 | X12: =X13+X14 -> 1320 | Y12: =Y13+Y14 -> 1417 | Z12: =Z13+Z14 -> 1295 | AA12: =AA13+AA14 -> 4778 | AB12: 4435 | AC12: 2269 | AD12: 2114 | AE12: =+AE13+AE14 -> 9 | AF12: =AF13+AF14 -> 13 | AG12: =AG14+AG13 -> 15 | AH12: =AH13+AH14 -> 13 | AI12: =AI13+AI14 -> 889 | AJ12: =AJ13+AJ14 -> 851 | AK12: =+AK13+AK14 -> 659 | AL12: =AL13+AL14 -> 623 | AM12: =+AM13+AM14 -> 28748 | AN12: =+AN13+AN14 -> 2089 | AO12: =+AO13+AO14 -> 1965 | AP12: =+AP13+AP14 -> 12508 | AQ12: =+AQ13+AQ14 -> 12186
A13: MONTEVIDEO | B13: =E13+AM13 -> 44312 | C13: =F13+H13+J13+L13+N13+Q13+S13+U13+W13+Y13+AA13+AC13+AE13+AG13+AI13+AK13+AN13+AP13 -> 22763 | D13: =G13+I13+K13+M13+O13+R13+T13+V13+X13+Z13+AB13+AD13+AF13+AH13+AJ13+AL13+AO13+AQ13 -> 21549 | E13: =SUM(F13:AL13) -> 26578 | F13: 0 | G13: 0 | H13: 1705 | I13: 1539 | J13: 3522 | K13: 3328 | L13: 175 | M13: 182 | N13: 1951 | O13: 1963 | Q13: 2624 | R13: 2368 | S13: 0 | T13: 0 | U13: 1518 | V13: 1462 | W13: 0 | X13: 0 | Y13: 392 | Z13: 330 | AA13: 1275 | AB13: 1152 | AC13: 275 | AD13: 240 | AE13: 0 | AF13: 0 | AG13: 0 | AH13: 0 | AI13: 291 | AJ13: 286 | AK13: 0 | AL13: 0 | AM13: =+AN13+AO13+AP13+AQ13 -> 17734 | AN13: 1565 | AO13: 1408 | AP13: 7470 | AQ13: 7291
A14: RESTO DEL PAÍS | B14: =SUM(B16:B33) -> 71008 | C14: =SUM(C16:C33) -> 36010 | D14: 34998 | E14: =SUM(F14:AL14) -> 59994 | F14: =SUM(F16:F33) -> 83 | G14: 94 | H14: 833 | I14: 814 | J14: 8338 | K14: 8382 | L14: 116 | M14: 104 | N14: 2483 | O14: 2320 | Q14: 4334 | R14: 4157 | S14: 295 | T14: 300 | U14: 4782 | V14: 4719 | W14: 1381 | X14: 1320 | Y14: 1025 | Z14: 965 | AA14: 3503 | AB14: 3283 | AC14: 1994 | AD14: 1874 | AE14: 9 | AF14: 13 | AG14: 15 | AH14: 13 | AI14: 598 | AJ14: =SUM(AJ16:AJ33) -> 565 | AK14: 659 | AL14: 623 | AM14: 11014 | AN14: =SUM(AN16:AN33) -> 524 | AO14: =SUM(AO16:AO33) -> 557 | AP14: 5038 | AQ14: 4895
A16: Artigas | B16: =E16+AM16 -> 2724 | C16: =F16+H16+J16+L16+N16+Q16+S16+U16+W16+Y16+AA16+AC16+AE16+AG16+AI16+AK16+AN16+AP16 -> 1363 | D16: =G16+I16+K16+M16+O16+R16+T16+V16+X16+Z16+AB16+AD16+AF16+AH16+AJ16+AL16+AO16+AQ16 -> 1361 | E16: =SUM(F16:AL16) -> 2507 | F16: 83 | G16: 94 | H16: 97 | I16: 89 | J16: 227 | K16: 199 | L16: 0 | M16: 0 | N16: 0 | O16: 0 | Q16: 294 | R16: 304 | S16: 0 | T16: 0 | U16: 93 | V16: 84 | W16: 68 | X16: 83 | Y16: 0 | Z16: 0 | AA16: 221 | AB16: 234 | AC16: 130 | AD16: 131 | AE16: 2 | AF16: 4 | AG16: 0 | AH16: 0 | AI16: 18 | AJ16: 13 | AK16: 28 | AL16: 11 | AM16: =+AN16+AO16+AP16+AQ16 -> 217 | AN16: 0 | AO16: 0 | AP16: 102 | AQ16: 115
A17: Canelones | B17: 18004 | C17: =F17+H17+J17+L17+N17+Q17+S17+U17+W17+Y17+AA17+AC17+AE17+AG17+AI17+AK17+AN17+AP17 -> 9143 | D17: 8861 | E17: =SUM(F17:AL17) -> 14466 | F17: 0 | G17: 0 | H17: 391 | I17: 376 | J17: 2947 | K17: 2962 | L17: 0 | M17: 0 | N17: 337 | O17: 320 | Q17: 1140 | R17: 1080 | S17: 0 | T17: 0 | U17: 913 | V17: 891 | W17: 252 | X17: 246 | Y17: 128 | Z17: 99 | AA17: 784 | AB17: 762 | AC17: 333 | AD17: 290 | AE17: 3 | AF17: 3 | AG17: 0 | AH17: 0 | AI17: 56 | AJ17: 60 | AK17: 50 | AL17: 43 | AM17: 3538 | AN17: 105 | AO17: 113 | AP17: 1704 | AQ17: 1616
A18: Cerro Largo | B18: 3026 | C18: 1496 | D18: 1530 | E18: =SUM(F18:AL18) -> 2787 | F18: 0 | G18: 0 | H18: 140 | I18: 155 | J18: 133 | K18: 152 | L18: 116 | M18: 104 | N18: 148 | O18: 154 | Q18: 213 | R18: 203 | S18: 42 | T18: 28 | U18: 92 | V18: 95 | W18: 60 | X18: 68 | Y18: 53 | Z18: 56 | AA18: 139 | AB18: 138 | AC18: 154 | AD18: 155 | AE18: 0 | AF18: 0 | AG18: 0 | AH18: 0 | AI18: 52 | AJ18: 47 | AK18: 41 | AL18: 49 | AM18: 239 | AN18: 0 | AO18: 0 | AP18: 113 | AQ18: 126
A19: Colonia | B19: 4465 | C19: 2258 | D19: 2207 | E19: =SUM(F19:AL19) -> 3865 | F19: 0 | G19: 0 | H19: 0 | I19: 0 | J19: 484 | K19: 444 | L19: 0 | M19: 0 | N19: 46 | O19: 56 | Q19: 29 | R19: 26 | S19: 0 | T19: 0 | U19: 701 | V19: 739 | W19: 87 | X19: 83 | Y19: 100 | Z19: 111 | AA19: 193 | AB19: 183 | AC19: 178 | AD19: 166 | AE19: 0 | AF19: 0 | AG19: 0 | AH19: 0 | AI19: 63 | AJ19: 51 | AK19: 70 | AL19: 55 | AM19: 600 | AN19: 0 | AO19: 0 | AP19: 307 | AQ19: 293
A20: Durazno | B20: 1991 | C20: 999 | D20: 992 | E20: 1752 | F20: 0 | G20: 0 | H20: 0 | I20: 0 | J20: 256 | K20: 263 | L20: 0 | M20: 0 | N20: 76 | O20: 70 | Q20: 80 | R20: 94 | S20: 0 | T20: 0 | U20: 103 | V20: 109 | W20: 23 | X20: 18 | Y20: 69 | Z20: 71 | AA20: 134 | AB20: 134 | AC20: 86 | AD20: 87 | AE20: 0 | AF20: 0 | AG20: 0 | AH20: 0 | AI20: 16 | AJ20: 12 | AK20: 30 | AL20: 21 | AM20: 239 | AN20: 0 | AO20: 0 | AP20: 126 | AQ20: 113
A21: Flores | B21: 872 | C21: 454 | D21: 418 | E21: 775 | F21: 0 | G21: 0 | H21: 0 | I21: 0 | J21: 77 | K21: 73 | L21: 0 | M21: 0 | N21: 49 | O21: 60 | Q21: 0 | R21: 0 | S21: 0 | T21: 0 | U21: 113 | V21: 84 | W21: 14 | X21: 19 | Y21: 29 | Z21: 23 | AA21: 71 | AB21: 58 | AC21: 19 | AD21: 18 | AE21: 0 | AF21: 0 | AG21: 0 | AH21: 0 | AI21: 14 | AJ21: 11 | AK21: 22 | AL21: 21 | AM21: 97 | AN21: 0 | AO21: 0 | AP21: 46 | AQ21: 51
A22: Florida | B22: 2175 | C22: 1075 | D22: 1100 | E22: 2013 | F22: 0 | G22: 0 | H22: 0 | I22: 0 | J22: 252 | K22: 271 | L22: 0 | M22: 0 | N22: 95 | O22: 76 | Q22: 53 | R22: 52 | S22: 0 | T22: 0 | U22: 197 | V22: 210 | W22: 78 | X22: 72 | Y22: 33 | Z22: 38 | AA22: 107 | AB22: 98 | AC22: 89 | AD22: 97 | AE22: 0 | AF22: 0 | AG22: 0 | AH22: 0 | AI22: 52 | AJ22: 58 | AK22: 39 | AL22: 46 | AM22: 162 | AN22: 16 | AO22: 15 | AP22: 64 | AQ22: 67
A23: Lavalleja | B23: 1901 | C23: 944 | D23: 957 | E23: 1577 | F23: 0 | G23: 0 | H23: 0 | I23: 0 | J23: 256 | K23: 305 | L23: 0 | M23: 0 | N23: 191 | O23: 136 | Q23: 0 | R23: 0 | S23: 17 | T23: 14 | U23: 128 | V23: 147 | W23: 20 | X23: 19 | Y23: 17 | Z23: 25 | AA23: 65 | AB23: 65 | AC23: 52 | AD23: 50 | AE23: 0 | AF23: 0 | AG23: 0 | AH23: 0 | AI23: 0 | AJ23: 0 | AK23: 34 | AL23: 36 | AM23: 324 | AN23: 0 | AO23: 0 | AP23: 164 | AQ23: 160
A24: Maldonado | B24: 6015 | C24: 3012 | D24: 3003 | E24: 4366 | F24: 0 | G24: 0 | H24: 0 | I24: 0 | J24: 819 | K24: 802 | L24: 0 | M24: 0 | N24: 0 | O24: 0 | Q24: 210 | R24: 287 | S24: 0 | T24: 0 | U24: 441 | V24: 480 | W24: 54 | X24: 50 | Y24: 70 | Z24: 65 | AA24: 233 | AB24: 226 | AC24: 272 | AD24: 241 | AE24: 0 | AF24: 0 | AG24: 0 | AH24: 0 | AI24: 33 | AJ24: 28 | AK24: 32 | AL24: 23 | AM24: 1649 | AN24: 58 | AO24: 56 | AP24: 790 | AQ24: 745
A25: Paysandú | B25: 3917 | C25: 2010 | D25: 1907 | E25: 3434 | F25: 0 | G25: 0 | H25: 0 | I25: 0 | J25: 264 | K25: 243 | L25: 0 | M25: 0 | N25: 161 | O25: 133 | Q25: 309 | R25: 301 | S25: 143 | T25: 159 | U25: 334 | V25: 328 | W25: 102 | X25: 69 | Y25: 97 | Z25: 81 | AA25: 213 | AB25: 176 | AC25: 79 | AD25: 72 | AE25: 1 | AF25: 3 | AG25: 0 | AH25: 0 | AI25: 38 | AJ25: 44 | AK25: 35 | AL25: 49 | AM25: 483 | AN25: 57 | AO25: 65 | AP25: 177 | AQ25: 184
A26: Río Negro | B26: 2150 | C26: 1133 | D26: 1017 | E26: 1866 | F26: 0 | G26: 0 | H26: 0 | I26: 0 | J26: 181 | K26: 208 | L26: 0 | M26: 0 | N26: 280 | O26: 258 | Q26: 26 | R26: 22 | S26: 0 | T26: 0 | U26: 202 | V26: 188 | W26: 47 | X26: 42 | Y26: 40 | Z26: 35 | AA26: 92 | AB26: 80 | AC26: 44 | AD26: 31 | AE26: 3 | AF26: 3 | AG26: 0 | AH26: 0 | AI26: 33 | AJ26: 16 | AK26: 16 | AL26: 19 | AM26: 284 | AN26: 0 | AO26: 0 | AP26: 169 | AQ26: 115
A27: Rivera | B27: 3709 | C27: 1864 | D27: 1845 | E27: 3429 | F27: 0 | G27: 0 | H27: 0 | I27: 0 | J27: 327 | K27: 348 | L27: 0 | M27: 0 | N27: 252 | O27: 257 | Q27: 464 | R27: 413 | S27: 93 | T27: 99 | U27: 122 | V27: 131 | W27: 91 | X27: 82 | Y27: 91 | Z27: 97 | AA27: 150 | AB27: 147 | AC27: 71 | AD27: 65 | AE27: 0 | AF27: 0 | AG27: 0 | AH27: 0 | AI27: 26 | AJ27: 26 | AK27: 38 | AL27: 39 | AM27: 280 | AN27: 0 | AO27: 0 | AP27: 139 | AQ27: 141
A28: Rocha | B28: 2508 | C28: 1246 | D28: 1262 | E28: 2225 | F28: 0 | G28: 0 | H28: 0 | I28: 0 | J28: 344 | K28: 363 | L28: 0 | M28: 0 | N28: 106 | O28: 125 | Q28: 126 | R28: 122 | S28: 0 | T28: 0 | U28: 246 | V28: 240 | W28: 25 | X28: 20 | Y28: 42 | Z28: 36 | AA28: 169 | AB28: 174 | AC28: 0 | AD28: 0 | AE28: 0 | AF28: 0 | AG28: 15 | AH28: 13 | AI28: 0 | AJ28: 0 | AK28: 24 | AL28: 35 | AM28: 283 | AN28: 0 | AO28: 0 | AP28: 149 | AQ28: 134
A29: Salto | B29: 5509 | C29: 2816 | D29: 2693 | E29: 4488 | F29: 0 | G29: 0 | H29: 69 | I29: 71 | J29: 395 | K29: 415 | L29: 0 | M29: 0 | N29: 181 | O29: 169 | Q29: 542 | R29: 480 | S29: 0 | T29: 0 | U29: 179 | V29: 152 | W29: 171 | X29: 158 | Y29: 34 | Z29: 26 | AA29: 411 | AB29: 374 | AC29: 251 | AD29: 268 | AE29: 0 | AF29: 0 | AG29: 0 | AH29: 0 | AI29: 45 | AJ29: 38 | AK29: 32 | AL29: 27 | AM29: 1021 | AN29: 188 | AO29: 167 | AP29: 318 | AQ29: 348
A30: San José | B30: 4117 | C30: 2120 | D30: 1997 | E30: 3566 | F30: 0 | G30: 0 | H30: 136 | I30: 123 | J30: 327 | K30: 313 | L30: 0 | M30: 0 | N30: 203 | O30: 193 | Q30: 394 | R30: 356 | S30: 0 | T30: 0 | U30: 293 | V30: 277 | W30: 123 | X30: 121 | Y30: 36 | Z30: 32 | AA30: 179 | AB30: 149 | AC30: 45 | AD30: 29 | AE30: 0 | AF30: 0 | AG30: 0 | AH30: 0 | AI30: 75 | AJ30: 79 | AK30: 34 | AL30: 49 | AM30: 551 | AN30: 45 | AO30: 70 | AP30: 230 | AQ30: 206
A31: Soriano | B31: 2689 | C31: 1372 | D31: 1317 | E31: 2439 | F31: 0 | G31: 0 | H31: 0 | I31: 0 | J31: 366 | K31: 373 | L31: 0 | M31: 0 | N31: 32 | O31: 42 | Q31: 160 | R31: 164 | S31: 0 | T31: 0 | U31: 277 | V31: 242 | W31: 34 | X31: 26 | Y31: 71 | Z31: 65 | AA31: 149 | AB31: 123 | AC31: 117 | AD31: 112 | AE31: 0 | AF31: 0 | AG31: 0 | AH31: 0 | AI31: 0 | AJ31: 0 | AK31: 48 | AL31: 38 | AM31: 250 | AN31: 0 | AO31: 0 | AP31: 118 | AQ31: 132
A32: Tacuarembó | B32: 3497 | C32: 1772 | D32: 1725 | E32: 2828 | F32: 0 | G32: 0 | H32: 0 | I32: 0 | J32: 456 | K32: 458 | L32: 0 | M32: 0 | N32: 133 | O32: 100 | Q32: 203 | R32: 192 | S32: 0 | T32: 0 | U32: 210 | V32: 204 | W32: 110 | X32: 118 | Y32: 65 | Z32: 51 | AA32: 133 | AB32: 109 | AC32: 43 | AD32: 32 | AE32: 0 | AF32: 0 | AG32: 0 | AH32: 0 | AI32: 59 | AJ32: 58 | AK32: 53 | AL32: 41 | AM32: 669 | AN32: 55 | AO32: 71 | AP32: 252 | AQ32: 291
A33: Treinta y Tres | B33: 1739 | C33: 933 | D33: 806 | E33: 1611 | F33: 0 | G33: 0 | H33: 0 | I33: 0 | J33: 227 | K33: 190 | L33: 0 | M33: 0 | N33: 193 | O33: 171 | Q33: 91 | R33: 61 | S33: 0 | T33: 0 | U33: 138 | V33: 118 | W33: 22 | X33: 26 | Y33: 50 | Z33: 54 | AA33: 60 | AB33: 53 | AC33: 31 | AD33: 30 | AE33: 0 | AF33: 0 | AG33: 0 | AH33: 0 | AI33: 18 | AJ33: 24 | AK33: 33 | AL33: 21 | AM33: 128 | AN33: 0 | AO33: 0 | AP33: 70 | AQ33: 58
A34: Fuente: Procesamiento propio en base a datos proporcionados por el D.E.E. — C.E.I.P.
A35: Privados habilitados o autorizados por ANEP

Sheet II-1.2.2
A1: CONSEJO DE EDUCACIÓN INICIAL Y PRIMARIA
I2: ESTUDIANTES MATRICULADOS
A3: Cuadro Nº II-1.2.2
CB4: VOLVER
A5: ESTUDIANTES MATRICULADOS EN EDUCACIÓN PÚBLICA EN LA PRIMERA INFANCIA E INICIAL DEL CEIP POR MODALIDAD Y EDAD SEGÚN DEPARTAMENTO (Todo el país, 2017)
A6: DEPARTAMENTO | B6: PÚBLICA
B7: Total Público | C7: EDUCACIÓN DE INICIAL | AB7: INICIAL EN ESCUELAS
C8: INICIAL | H8: JARDÍN APRENDER | M8: JARDÍN COMÚN | R8: JARDÍN DE CICLO INICIAL | W8: JARDÍN DE JORNADA COMPLETA | AB8: APRENDER | AG8: APRENDER H. DE PRÁCTICA | AL8: COMÚN | AQ8: CON MAESTRO A CARGO | AV8: DE PRÁCTICA | BA8: DE TIEMPO COMPLETO | BF8: HABILITADA DE PRÁCTICA | BK8: INTERNADO RURAL | BP8: T.EXTENDIDO-DE PRÁCTICA | BU8: TIEMPO EXTENDIDO | BY8: UNIDOCENTE
C9: AÑOS | H9: AÑOS | M9: AÑOS | R9: AÑOS | W9: AÑOS | AB9: AÑOS | AG9: AÑOS | AL9: AÑOS | AQ9: AÑOS | AV9: AÑOS | BA9: AÑOS | BF9: AÑOS | BK9: AÑOS | BP9: AÑOS | BU9: AÑOS | BY9: AÑOS
C10: <= 2 | D10: 3 | E10: 4 | F10: 5 | H10: <= 2 | I10: 3 | J10: 4 | K10: 5 | M10: <= 2 | N10: 3 | O10: 4 | P10: 5 | R10: <= 2 | S10: 3 | T10: 4 | U10: 5 | W10: <= 2 | X10: 3 | Y10: 4 | Z10: 5 | AB10: <= 2 | AC10: 3 | AD10: 4 | AE10: 5 | AG10: <= 2 | AH10: 3 | AI10: 4 | AJ10: 5 | AL10: <= 2 | AM10: 3 | AN10: 4 | AO10: 5 | AQ10: <= 2 | AR10: 3 | AS10: 4 | AT10: 5 | AV10: <= 2 | AW10: 3 | AX10: 4 | AY10: 5 | BA10: <= 2 | BB10: 3 | BC10: 4 | BD10: 5 | BF10: <= 2 | BG10: 3 | BH10: 4 | BI10: 5 | BK10: <= 2 | BL10: 3 | BM10: 4 | BN10: 5 | BP10: <= 2 | BQ10: 3 | BR10: 4 | BS10: 5 | BU10: <= 2 | BV10: 3 | BW10: 4 | BX10: 5 | BZ10: <= 2 | CA10: 3 | CB10: 4 | CC10: 5
A11: TOTAL | B11: =+B12+B13 -> 86572 | C11: =C12+C13 -> 0 | D11: =D12+D13 -> 52 | E11: =E12+E13 -> 51 | F11: =F12+F13 -> 74 | H11: =H12+H13 -> 0 | I11: =I12+I13 -> 1040 | J11: =J12+J13 -> 1966 | K11: =K12+K13 -> 1885 | M11: =M12+M13 -> 2 | N11: =N12+N13 -> 7428 | O11: =O12+O13 -> 8920 | P11: =P12+P13 -> 7220 | R11: =R12+R13 -> 0 | S11: =S12+S13 -> 161 | T11: =T12+T13 -> 217 | U11: =U12+U13 -> 199 | W11: =W12+W13 -> 101 | X11: =X12+X13 -> 2493 | Y11: =Y12+Y13 -> 3253 | Z11: =Z12+Z13 -> 2870 | AB11: =AB12+AB13 -> 1 | AC11: =AC12+AC13 -> 470 | AD11: =AD12+AD13 -> 6432 | AE11: =AE12+AE13 -> 6580 | AG11: =AG12+AG13 -> 0 | AH11: =AH12+AH13 -> 46 | AI11: =AI12+AI13 -> 276 | AJ11: =AJ12+AJ13 -> 273 | AL11: =AL12+AL13 -> 0 | AM11: =AM12+AM13 -> 720 | AN11: =AN12+AN13 -> 5345 | AO11: =AO12+AO13 -> 6416 | AQ11: =AQ12+AQ13 -> 1 | AR11: =AR12+AR13 -> 301 | AS11: =AS12+AS13 -> 1186 | AT11: =AT12+AT13 -> 1213 | AV11: =AV12+AV13 -> 0 | AW11: =AW12+AW13 -> 49 | AX11: =AX12+AX13 -> 1119 | AY11: =AY12+AY13 -> 1544 | BA11: =BA12+BA13 -> 0 | BB11: =BB12+BB13 -> 228 | BC11: =BC12+BC13 -> 4281 | BD11: =BD12+BD13 -> 4704 | BF11: =BF12+BF13 -> 1 | BG11: =BG12+BG13 -> 241 | BH11: =BH12+BH13 -> 1981 | BI11: =BI12+BI13 -> 2160 | BK11: =BK12+BK13 -> 0 | BL11: =BL12+BL13 -> 0 | BM11: =BM12+BM13 -> 10 | BN11: =BN12+BN13 -> 12 | BP11: =+BP12+BP13 -> 0 | BQ11: =BQ12+BQ13 -> 0 | BR11: =BR12+BR13 -> 247 | BS11: =BS12+BS13 -> 290 | BU11: =BU13+BU12 -> 0 | BV11: =BV13+BV12 -> 64 | BW11: =BW13+BW12 -> 533 | BX11: =BX13+BX12 -> 634 | BZ11: =BZ12+BZ13 -> 0 | CA11: =CA12+CA13 -> 151 | CB11: =CB12+CB13 -> 571 | CC11: =CC12+CC13 -> 560
A12: MONTEVIDEO | B12: =SUM(C12:CC12) -> 26578 | C12: 0 | D12: 0 | E12: 0 | F12: 0 | H12: 0 | I12: 708 | J12: 1309 | K12: 1227 | M12: 0 | N12: 1990 | O12: 2548 | P12: 2312 | R12: 0 | S12: 88 | T12: 136 | U12: 133 | W12: 101 | X12: 1098 | Y12: 1410 | Z12: 1305 | AB12: 1 | AC12: 96 | AD12: 2403 | AE12: 2492 | AG12: 0 | AH12: 0 | AI12: 0 | AJ12: 0 | AL12: 0 | AM12: 117 | AN12: 1232 | AO12: 1631 | AQ12: 0 | AR12: 0 | AS12: 0 | AT12: 0 | AV12: 0 | AW12: 25 | AX12: 308 | AY12: 389 | BA12: 0 | BB12: 23 | BC12: 1070 | BD12: 1334 | BF12: 0 | BG12: 65 | BH12: 222 | BI12: 228 | BK12: 0 | BL12: 0 | BM12: 0 | BN12: 0 | BP12: 0 | BQ12: 0 | BR12: 137 | BS12: 160 | BU12: 0 | BV12: 0 | BW12: 95 | BX12: 185 | BZ12: 0 | CA12: 0 | CB12: 0 | CC12: 0
A13: RESTO DEL PAÍS | B13: =SUM(B15:B32) -> 59994 | C13: =SUM(C15:C32) -> 0 | D13: =SUM(D15:D32) -> 52 | E13: =SUM(E15:E32) -> 51 | F13: =SUM(F15:F32) -> 74 | H13: =SUM(H15:H32) -> 0 | I13: =SUM(I15:I32) -> 332 | J13: =SUM(J15:J32) -> 657 | K13: =SUM(K15:K32) -> 658 | M13: =SUM(M15:M32) -> 2 | N13: =SUM(N15:N32) -> 5438 | O13: =SUM(O15:O32) -> 6372 | P13: =SUM(P15:P32) -> 4908 | R13: =SUM(R15:R32) -> 0 | S13: =SUM(S15:S32) -> 73 | T13: =SUM(T15:T32) -> 81 | U13: =SUM(U15:U32) -> 66 | W13: =SUM(W15:W32) -> 0 | X13: =SUM(X15:X32) -> 1395 | Y13: =SUM(Y15:Y32) -> 1843 | Z13: =SUM(Z15:Z32) -> 1565 | AB13: =SUM(AB15:AB32) -> 0 | AC13: =SUM(AC15:AC32) -> 374 | AD13: =SUM(AD15:AD32) -> 4029 | AE13: =SUM(AE15:AE32) -> 4088 | AG13: =SUM(AG15:AG32) -> 0 | AH13: =SUM(AH15:AH32) -> 46 | AI13: =SUM(AI15:AI32) -> 276 | AJ13: =SUM(AJ15:AJ32) -> 273 | AL13: =SUM(AL15:AL32) -> 0 | AM13: =SUM(AM15:AM32) -> 603 | AN13: =SUM(AN15:AN32) -> 4113 | AO13: =SUM(AO15:AO32) -> 4785 | AQ13: =SUM(AQ15:AQ32) -> 1 | AR13: =SUM(AR15:AR32) -> 301 | AS13: =SUM(AS15:AS32) -> 1186 | AT13: =SUM(AT15:AT32) -> 1213 | AV13: =SUM(AV15:AV32) -> 0 | AW13: =SUM(AW15:AW32) -> 24 | AX13: =SUM(AX15:AX32) -> 811 | AY13: =SUM(AY15:AY32) -> 1155 | BA13: =SUM(BA15:BA32) -> 0 | BB13: =SUM(BB15:BB32) -> 205 | BC13: =SUM(BC15:BC32) -> 3211 | BD13: =SUM(BD15:BD32) -> 3370 | BF13: =SUM(BF15:BF32) -> 1 | BG13: =SUM(BG15:BG32) -> 176 | BH13: =SUM(BH15:BH32) -> 1759 | BI13: =SUM(BI15:BI32) -> 1932 | BK13: =SUM(BK15:BK32) -> 0 | BL13: =SUM(BL15:BL32) -> 0 | BM13: =SUM(BM15:BM32) -> 10 | BN13: =SUM(BN15:BN32) -> 12 | BP13: =SUM(BP15:BP32) -> 0 | BQ13: =SUM(BQ15:BQ32) -> 0 | BR13: 110 | BS13: 130 | BU13: =SUM(BU15:BU32) -> 0 | BV13: =SUM(BV15:BV32) -> 64 | BW13: 438 | BX13: 449 | BZ13: 0 | CA13: =SUM(CA15:CA32) -> 151 | CB13: =SUM(CB15:CB32) -> 571 | CC13: =SUM(CC15:CC32) -> 560
A15: Artigas | B15: =SUM(C15:CC15) -> 2507 | C15: 0 | D15: 52 | E15: 51 | F15: 74 | H15: 0 | I15: 47 | J15: 76 | K15: 63 | M15: 0 | N15: 119 | O15: 156 | P15: 151 | R15: 0 | S15: 0 | T15: 0 | U15: 0 | W15: 0 | X15: 0 | Y15: 0 | Z15: 0 | AB15: 0 | AC15: 15 | AD15: 315 | AE15: 268 | AG15: 0 | AH15: 0 | AI15: 0 | AJ15: 0 | AL15: 0 | AM15: 0 | AN15: 86 | AO15: 91 | AQ15: 0 | AR15: 12 | AS15: 67 | AT15: 72 | AV15: 0 | AW15: 0 | AX15: 0 | AY15: 0 | BA15: 0 | BB15: 0 | BC15: 212 | BD15: 243 | BF15: 1 | BG15: 0 | BH15: 131 | BI15: 129 | BK15: 0 | BL15: 0 | BM15: 3 | BN15: 3 | BP15: 0 | BQ15: 0 | BR15: 0 | BS15: 0 | BU15: 0 | BV15: 0 | BW15: 11 | BX15: 20 | BZ15: 0 | CA15: 9 | CB15: 20 | CC15: 10
A16: Canelones | B16: =SUM(C16:CC16) -> 14466 | C16: 0 | D16: 0 | E16: 0 | F16: 0 | H16: 0 | I16: 140 | J16: 303 | K16: 324 | M16: 2 | N16: 1725 | O16: 2229 | P16: 1953 | R16: 0 | S16: 0 | T16: 0 | U16: 0 | W16: 0 | X16: 181 | Y16: 242 | Z16: 234 | AB16: 0 | AC16: 23 | AD16: 1104 | AE16: 1093 | AG16: 0 | AH16: 0 | AI16: 0 | AJ16: 0 | AL16: 0 | AM16: 0 | AN16: 874 | AO16: 930 | AQ16: 0 | AR16: 19 | AS16: 247 | AT16: 232 | AV16: 0 | AW16: 0 | AX16: 103 | AY16: 124 | BA16: 0 | BB16: 25 | BC16: 745 | BD16: 776 | BF16: 0 | BG16: 65 | BH16: 258 | BI16: 300 | BK16: 0 | BL16: 0 | BM16: 1 | BN16: 5 | BP16: 0 | BQ16: 0 | BR16: 0 | BS16: 0 | BU16: 0 | BV16: 0 | BW16: 51 | BX16: 65 | BZ16: 0 | CA16: 22 | CB16: 38 | CC16: 33
A17: Cerro Largo | B17: 2787 | C17: 0 | D17: 0 | E17: 0 | F17: 0 | H17: 0 | I17: 71 | J17: 107 | K17: 117 | M17: 0 | N17: 71 | O17: 107 | P17: 107 | R17: 0 | S17: 73 | T17: 81 | U17: 66 | W17: 0 | X17: 82 | Y17: 130 | Z17: 90 | AB17: 0 | AC17: 62 | AD17: 180 | AE17: 174 | AG17: 0 | AH17: 0 | AI17: 30 | AJ17: 40 | AL17: 0 | AM17: 0 | AN17: 85 | AO17: 102 | AQ17: 0 | AR17: 21 | AS17: 62 | AT17: 45 | AV17: 0 | AW17: 0 | AX17: 50 | AY17: 59 | BA17: 0 | BB17: 33 | BC17: 113 | BD17: 131 | BF17: 0 | BG17: 0 | BH17: 149 | BI17: 160 | BK17: 0 | BL17: 0 | BM17: 0 | BN17: 0 | BP17: 0 | BQ17: 0 | BR17: 0 | BS17: 0 | BU17: 0 | BV17: 5 | BW17: 42 | BX17: 52 | BZ17: 0 | CA17: 11 | CB17: 38 | CC17: 41
A18: Colonia | B18: 3865 | C18: 0 | D18: 0 | E18: 0 | F18: 0 | H18: 0 | I18: 0 | J18: 0 | K18: 0 | M18: 0 | N18: 426 | O18: 320 | P18: 182 | R18: 0 | S18: 0 | T18: 0 | U18: 0 | W18: 0 | X18: 40 | Y18: 37 | Z18: 25 | AB18: 0 | AC18: 12 | AD18: 20 | AE18: 23 | AG18: 0 | AH18: 0 | AI18: 0 | AJ18: 0 | AL18: 0 | AM18: 196 | AN18: 605 | AO18: 639 | AQ18: 0 | AR18: 18 | AS18: 74 | AT18: 78 | AV18: 0 | AW18: 0 | AX18: 81 | AY18: 130 | BA18: 0 | BB18: 0 | BC18: 189 | BD18: 187 | BF18: 0 | BG18: 0 | BH18: 174 | BI18: 170 | BK18: 0 | BL18: 0 | BM18: 0 | BN18: 0 | BP18: 0 | BQ18: 0 | BR18: 17 | BS18: 23 | BU18: 0 | BV18: 0 | BW18: 37 | BX18: 37 | BZ18: 0 | CA18: 9 | CB18: 56 | CC18: 60
A19: Durazno | B19: 1752 | C19: 0 | D19: 0 | E19: 0 | F19: 0 | H19: 0 | I19: 0 | J19: 0 | K19: 0 | M19: 0 | N19: 142 | O19: 220 | P19: 157 | R19: 0 | S19: 0 | T19: 0 | U19: 0 | W19: 0 | X19: 28 | Y19: 71 | Z19: 47 | AB19: 0 | AC19: 1 | AD19: 89 | AE19: 84 | AG19: 0 | AH19: 0 | AI19: 0 | AJ19: 0 | AL19: 0 | AM19: 18 | AN19: 109 | AO19: 85 | AQ19: 0 | AR19: 0 | AS19: 26 | AT19: 15 | AV19: 0 | AW19: 0 | AX19: 54 | AY19: 86 | BA19: 0 | BB19: 28 | BC19: 117 | BD19: 123 | BF19: 0 | BG19: 15 | BH19: 84 | BI19: 74 | BK19: 0 | BL19: 0 | BM19: 0 | BN19: 0 | BP19: 0 | BQ19: 0 | BR19: 0 | BS19: 0 | BU19: 0 | BV19: 0 | BW19: 13 | BX19: 15 | BZ19: 0 | CA19: 0 | CB19: 29 | CC19: 22
A20: Flores | B20: 775 | C20: 0 | D20: 0 | E20: 0 | F20: 0 | H20: 0 | I20: 0 | J20: 0 | K20: 0 | M20: 0 | N20: 49 | O20: 50 | P20: 51 | R20: 0 | S20: 0 | T20: 0 | U20: 0 | W20: 0 | X20: 41 | Y20: 50 | Z20: 18 | AB20: 0 | AC20: 0 | AD20: 0 | AE20: 0 | AG20: 0 | AH20: 0 | AI20: 0 | AJ20: 0 | AL20: 0 | AM20: 42 | AN20: 68 | AO20: 87 | AQ20: 0 | AR20: 8 | AS20: 12 | AT20: 13 | AV20: 0 | AW20: 0 | AX20: 25 | AY20: 27 | BA20: 0 | BB20: 17 | BC20: 61 | BD20: 51 | BF20: 0 | BG20: 0 | BH20: 21 | BI20: 16 | BK20: 0 | BL20: 0 | BM20: 0 | BN20: 0 | BP20: 0 | BQ20: 0 | BR20: 0 | BS20: 0 | BU20: 0 | BV20: 0 | BW20: 16 | BX20: 9 | BZ20: 0 | CA20: 14 | CB20: 17 | CC20: 12
A21: Florida | B21: 2013 | C21: 0 | D21: 0 | E21: 0 | F21: 0 | H21: 0 | I21: 0 | J21: 0 | K21: 0 | M21: 0 | N21: 224 | O21: 231 | P21: 68 | R21: 0 | S21: 0 | T21: 0 | U21: 0 | W21: 0 | X21: 52 | Y21: 56 | Z21: 63 | AB21: 0 | AC21: 0 | AD21: 45 | AE21: 60 | AG21: 0 | AH21: 0 | AI21: 0 | AJ21: 0 | AL21: 0 | AM21: 25 | AN21: 142 | AO21: 240 | AQ21: 0 | AR21: 26 | AS21: 69 | AT21: 55 | AV21: 0 | AW21: 0 | AX21: 0 | AY21: 71 | BA21: 0 | BB21: 10 | BC21: 97 | BD21: 98 | BF21: 0 | BG21: 25 | BH21: 65 | BI21: 96 | BK21: 0 | BL21: 0 | BM21: 0 | BN21: 0 | BP21: 0 | BQ21: 0 | BR21: 0 | BS21: 0 | BU21: 0 | BV21: 0 | BW21: 53 | BX21: 57 | BZ21: 0 | CA21: 5 | CB21: 44 | CC21: 36
A22: Lavalleja | B22: 1577 | C22: 0 | D22: 0 | E22: 0 | F22: 0 | H22: 0 | I22: 0 | J22: 0 | K22: 0 | M22: 0 | N22: 175 | O22: 206 | P22: 180 | R22: 0 | S22: 0 | T22: 0 | U22: 0 | W22: 0 | X22: 90 | Y22: 123 | Z22: 114 | AB22: 0 | AC22: 0 | AD22: 0 | AE22: 0 | AG22: 0 | AH22: 12 | AI22: 10 | AJ22: 9 | AL22: 0 | AM22: 40 | AN22: 116 | AO22: 119 | AQ22: 0 | AR22: 3 | AS22: 20 | AT22: 16 | AV22: 0 | AW22: 0 | AX22: 14 | AY22: 28 | BA22: 0 | BB22: 6 | BC22: 65 | BD22: 59 | BF22: 0 | BG22: 0 | BH22: 47 | BI22: 55 | BK22: 0 | BL22: 0 | BM22: 0 | BN22: 0 | BP22: 0 | BQ22: 0 | BR22: 0 | BS22: 0 | BU22: 0 | BV22: 0 | BW22: 0 | BX22: 0 | BZ22: 0 | CA22: 5 | CB22: 28 | CC22: 37
A23: Maldonado | B23: 4366 | C23: 0 | D23: 0 | E23: 0 | F23: 0 | H23: 0 | I23: 0 | J23: 0 | K23: 0 | M23: 0 | N23: 526 | O23: 610 | P23: 485 | R23: 0 | S23: 0 | T23: 0 | U23: 0 | W23: 0 | X23: 0 | Y23: 0 | Z23: 0 | AB23: 0 | AC23: 0 | AD23: 223 | AE23: 274 | AG23: 0 | AH23: 0 | AI23: 0 | AJ23: 0 | AL23: 0 | AM23: 50 | AN23: 425 | AO23: 446 | AQ23: 1 | AR23: 2 | AS23: 48 | AT23: 53 | AV23: 0 | AW23: 0 | AX23: 71 | AY23: 64 | BA23: 0 | BB23: 3 | BC23: 216 | BD23: 240 | BF23: 0 | BG23: 0 | BH23: 260 | BI23: 253 | BK23: 0 | BL23: 0 | BM23: 0 | BN23: 0 | BP23: 0 | BQ23: 0 | BR23: 0 | BS23: 0 | BU23: 0 | BV23: 0 | BW23: 31 | BX23: 30 | BZ23: 0 | CA23: 1 | CB23: 25 | CC23: 29
A24: Paysandú | B24: 3434 | C24: 0 | D24: 0 | E24: 0 | F24: 0 | H24: 0 | I24: 0 | J24: 0 | K24: 0 | M24: 0 | N24: 126 | O24: 195 | P24: 186 | R24: 0 | S24: 0 | T24: 0 | U24: 0 | W24: 0 | X24: 105 | Y24: 98 | Z24: 91 | AB24: 0 | AC24: 106 | AD24: 263 | AE24: 241 | AG24: 0 | AH24: 34 | AI24: 131 | AJ24: 137 | AL24: 0 | AM24: 79 | AN24: 298 | AO24: 285 | AQ24: 0 | AR24: 23 | AS24: 78 | AT24: 70 | AV24: 0 | AW24: 0 | AX24: 89 | AY24: 89 | BA24: 0 | BB24: 44 | BC24: 188 | BD24: 157 | BF24: 0 | BG24: 24 | BH24: 71 | BI24: 56 | BK24: 0 | BL24: 0 | BM24: 3 | BN24: 1 | BP24: 0 | BQ24: 0 | BR24: 47 | BS24: 35 | BU24: 0 | BV24: 0 | BW24: 0 | BX24: 0 | BZ24: 0 | CA24: 14 | CB24: 34 | CC24: 36
A25: Río Negro | B25: 1866 | C25: 0 | D25: 0 | E25: 0 | F25: 0 | H25: 0 | I25: 0 | J25: 0 | K25: 0 | M25: 0 | N25: 117 | O25: 171 | P25: 101 | R25: 0 | S25: 0 | T25: 0 | U25: 0 | W25: 0 | X25: 138 | Y25: 207 | Z25: 193 | AB25: 0 | AC25: 0 | AD25: 23 | AE25: 25 | AG25: 0 | AH25: 0 | AI25: 0 | AJ25: 0 | AL25: 0 | AM25: 21 | AN25: 176 | AO25: 193 | AQ25: 0 | AR25: 3 | AS25: 46 | AT25: 40 | AV25: 0 | AW25: 0 | AX25: 33 | AY25: 42 | BA25: 0 | BB25: 13 | BC25: 75 | BD25: 84 | BF25: 0 | BG25: 0 | BH25: 25 | BI25: 50 | BK25: 0 | BL25: 0 | BM25: 3 | BN25: 3 | BP25: 0 | BQ25: 0 | BR25: 22 | BS25: 27 | BU25: 0 | BV25: 0 | BW25: 0 | BX25: 0 | BZ25: 0 | CA25: 1 | CB25: 15 | CC25: 19
A26: Rivera | B26: 3429 | C26: 0 | D26: 0 | E26: 0 | F26: 0 | H26: 0 | I26: 0 | J26: 0 | K26: 0 | M26: 0 | N26: 229 | O26: 248 | P26: 198 | R26: 0 | S26: 0 | T26: 0 | U26: 0 | W26: 0 | X26: 128 | Y26: 188 | Z26: 193 | AB26: 0 | AC26: 0 | AD26: 435 | AE26: 442 | AG26: 0 | AH26: 0 | AI26: 105 | AJ26: 87 | AL26: 0 | AM26: 0 | AN26: 75 | AO26: 178 | AQ26: 0 | AR26: 27 | AS26: 61 | AT26: 85 | AV26: 0 | AW26: 0 | AX26: 90 | AY26: 98 | BA26: 0 | BB26: 0 | BC26: 131 | BD26: 166 | BF26: 0 | BG26: 0 | BH26: 59 | BI26: 77 | BK26: 0 | BL26: 0 | BM26: 0 | BN26: 0 | BP26: 0 | BQ26: 0 | BR26: 0 | BS26: 0 | BU26: 0 | BV26: 0 | BW26: 23 | BX26: 29 | BZ26: 0 | CA26: 6 | CB26: 35 | CC26: 36
A27: Rocha | B27: 2225 | C27: 0 | D27: 0 | E27: 0 | F27: 0 | H27: 0 | I27: 0 | J27: 0 | K27: 0 | M27: 0 | N27: 195 | O27: 324 | P27: 188 | R27: 0 | S27: 0 | T27: 0 | U27: 0 | W27: 0 | X27: 40 | Y27: 125 | Z27: 66 | AB27: 0 | AC27: 0 | AD27: 118 | AE27: 130 | AG27: 0 | AH27: 0 | AI27: 0 | AJ27: 0 | AL27: 0 | AM27: 3 | AN27: 180 | AO27: 303 | AQ27: 0 | AR27: 6 | AS27: 17 | AT27: 22 | AV27: 0 | AW27: 0 | AX27: 25 | AY27: 53 | BA27: 0 | BB27: 0 | BC27: 160 | BD27: 183 | BF27: 0 | BG27: 0 | BH27: 0 | BI27: 0 | BK27: 0 | BL27: 0 | BM27: 0 | BN27: 0 | BP27: 0 | BQ27: 0 | BR27: 0 | BS27: 28 | BU27: 0 | BV27: 0 | BW27: 0 | BX27: 0 | BZ27: 0 | CA27: 12 | CB27: 28 | CC27: 19
A28: Salto | B28: 4488 | C28: 0 | D28: 0 | E28: 0 | F28: 0 | H28: 0 | I28: 17 | J28: 59 | K28: 64 | M28: 0 | N28: 311 | O28: 316 | P28: 183 | R28: 0 | S28: 0 | T28: 0 | U28: 0 | W28: 0 | X28: 118 | Y28: 127 | Z28: 105 | AB28: 0 | AC28: 86 | AD28: 477 | AE28: 459 | AG28: 0 | AH28: 0 | AI28: 0 | AJ28: 0 | AL28: 0 | AM28: 36 | AN28: 108 | AO28: 187 | AQ28: 0 | AR28: 68 | AS28: 120 | AT28: 141 | AV28: 0 | AW28: 0 | AX28: 0 | AY28: 60 | BA28: 0 | BB28: 0 | BC28: 411 | BD28: 374 | BF28: 0 | BG28: 26 | BH28: 240 | BI28: 253 | BK28: 0 | BL28: 0 | BM28: 0 | BN28: 0 | BP28: 0 | BQ28: 0 | BR28: 0 | BS28: 0 | BU28: 0 | BV28: 26 | BW28: 23 | BX28: 34 | BZ28: 0 | CA28: 8 | CB28: 23 | CC28: 28
A29: San José | B29: 3566 | C29: 0 | D29: 0 | E29: 0 | F29: 0 | H29: 0 | I29: 57 | J29: 112 | K29: 90 | M29: 0 | N29: 248 | O29: 201 | P29: 191 | R29: 0 | S29: 0 | T29: 0 | U29: 0 | W29: 0 | X29: 158 | Y29: 123 | Z29: 115 | AB29: 0 | AC29: 34 | AD29: 345 | AE29: 371 | AG29: 0 | AH29: 0 | AI29: 0 | AJ29: 0 | AL29: 0 | AM29: 41 | AN29: 263 | AO29: 266 | AQ29: 0 | AR29: 17 | AS29: 103 | AT29: 124 | AV29: 0 | AW29: 24 | AX29: 23 | AY29: 21 | BA29: 0 | BB29: 0 | BC29: 151 | BD29: 177 | BF29: 0 | BG29: 21 | BH29: 25 | BI29: 28 | BK29: 0 | BL29: 0 | BM29: 0 | BN29: 0 | BP29: 0 | BQ29: 0 | BR29: 24 | BS29: 17 | BU29: 0 | BV29: 33 | BW29: 54 | BX29: 26 | BZ29: 0 | CA29: 0 | CB29: 46 | CC29: 37
A30: Soriano | B30: 2439 | C30: 0 | D30: 0 | E30: 0 | F30: 0 | H30: 0 | I30: 0 | J30: 0 | K30: 0 | M30: 0 | N30: 293 | O30: 254 | P30: 192 | R30: 0 | S30: 0 | T30: 0 | U30: 0 | W30: 0 | X30: 21 | Y30: 30 | Z30: 23 | AB30: 0 | AC30: 0 | AD30: 165 | AE30: 159 | AG30: 0 | AH30: 0 | AI30: 0 | AJ30: 0 | AL30: 0 | AM30: 33 | AN30: 228 | AO30: 258 | AQ30: 0 | AR30: 4 | AS30: 30 | AT30: 26 | AV30: 0 | AW30: 0 | AX30: 56 | AY30: 80 | BA30: 0 | BB30: 0 | BC30: 128 | BD30: 144 | BF30: 0 | BG30: 0 | BH30: 102 | BI30: 127 | BK30: 0 | BL30: 0 | BM30: 0 | BN30: 0 | BP30: 0 | BQ30: 0 | BR30: 0 | BS30: 0 | BU30: 0 | BV30: 0 | BW30: 0 | BX30: 0 | BZ30: 0 | CA30: 7 | CB30: 43 | CC30: 36
A31: Tacuarembó | B31: 2828 | C31: 0 | D31: 0 | E31: 0 | F31: 0 | H31: 0 | I31: 0 | J31: 0 | K31: 0 | M31: 0 | N31: 330 | O31: 382 | P31: 202 | R31: 0 | S31: 0 | T31: 0 | U31: 0 | W31: 0 | X31: 75 | Y31: 99 | Z31: 59 | AB31: 0 | AC31: 5 | AD31: 170 | AE31: 220 | AG31: 0 | AH31: 0 | AI31: 0 | AJ31: 0 | AL31: 0 | AM31: 9 | AN31: 148 | AO31: 257 | AQ31: 0 | AR31: 31 | AS31: 86 | AT31: 111 | AV31: 0 | AW31: 0 | AX31: 50 | AY31: 66 | BA31: 0 | BB31: 18 | BC31: 104 | BD31: 120 | BF31: 0 | BG31: 0 | BH31: 23 | BI31: 52 | BK31: 0 | BL31: 0 | BM31: 0 | BN31: 0 | BP31: 0 | BQ31: 0 | BR31: 0 | BS31: 0 | BU31: 0 | BV31: 0 | BW31: 61 | BX31: 56 | BZ31: 0 | CA31: 15 | CB31: 31 | CC31: 48
A32: Treinta y Tres | B32: 1611 | C32: 0 | D32: 0 | E32: 0 | F32: 0 | H32: 0 | I32: 0 | J32: 0 | K32: 0 | M32: 0 | N32: 132 | O32: 152 | P32: 133 | R32: 0 | S32: 0 | T32: 0 | U32: 0 | W32: 0 | X32: 98 | Y32: 137 | Z32: 129 | AB32: 0 | AC32: 30 | AD32: 57 | AE32: 65 | AG32: 0 | AH32: 0 | AI32: 0 | AJ32: 0 | AL32: 0 | AM32: 10 | AN32: 127 | AO32: 119 | AQ32: 0 | AR32: 13 | AS32: 20 | AT32: 15 | AV32: 0 | AW32: 0 | AX32: 47 | AY32: 57 | BA32: 0 | BB32: 8 | BC32: 48 | BD32: 57 | BF32: 0 | BG32: 0 | BH32: 25 | BI32: 36 | BK32: 0 | BL32: 0 | BM32: 0 | BN32: 0 | BP32: 0 | BQ32: 0 | BR32: 0 | BS32: 0 | BU32: 0 | BV32: 0 | BW32: 23 | BX32: 19 | BZ32: 0 | CA32: 12 | CB32: 21 | CC32: 21
A33: Fuente: Procesamiento propio en base a datos proporcionados por el D.E.E. — C.E.I.P.

Sheet II-1.2.3
A1: CONSEJO DE EDUCACIÓN INICIAL Y PRIMARIA | L1: ESTUDIANTES MATRICULADOS
A3: Cuadro Nº II-1.2.3
A5: ESTUDIANTES MATRICULADOS EN EDUCACIÓN EN LA PRIMERA INFANCIA E INICIAL PRIVADA POR MODALIDAD Y NIVEL SEGÚN DEPARTAMENTO (Todo el país, 2017)
A6: DEPARTAMENTO | D6: MODALIDAD
D7: JARDINES PRIVADOS | J7: INICIAL EN COLEGIOS
B8: TOTAL | D8: NIVEL | J8: NIVEL
C9: Total | D9: Nursery | E9: 2 años | F9: 3 años | G9: 4 años | H9: 5 años | I9: Total | J9: Nursery | K9: 2 años | L9: 3 años | M9: 4 años | N9: 5 años
A11: TOTAL | B11: =+B12+B13 -> 28748 | C11: =+C12+C13 -> 4054 | D11: =SUM(D12:D13) -> 784 | E11: 1028 | F11: 953 | G11: 728 | H11: 561 | I11: =+I12+I13 -> 24694 | J11: =SUM(J12:J13) -> 1499 | K11: =SUM(K12:K13) -> 3625 | L11: =SUM(L12:L13) -> 5097 | M11: =SUM(M12:M13) -> 6828 | N11: =SUM(N12:N13) -> 7645
A12: MONTEVIDEO | B12: =+C12+I12 -> 17734 | C12: =SUM(D12:H12) -> 2973 | D12: 585 | E12: 729 | F12: 688 | G12: 536 | H12: 435 | I12: =SUM(J12:N12) -> 14761 | J12: 871 | K12: 2058 | L12: 2911 | M12: 4142 | N12: 4779
A13: RESTO DEL PAÍS | B13: =SUM(B15:B32) -> 11014 | C13: =SUM(C15:C32) -> 1081 | D13: 199 | E13: 299 | F13: 265 | G13: 192 | H13: 126 | I13: 9933 | J13: 628 | K13: 1567 | L13: 2186 | M13: 2686 | N13: 2866
A15: Artigas | B15: =+C15+I15 -> 217 | C15: =SUM(D15:H15) -> 0 | D15: 0 | E15: 0 | F15: 0 | G15: 0 | H15: 0 | I15: =+J15+K15+L15+M15+N15 -> 217 | J15: 38 | K15: 48 | L15: 38 | M15: 44 | N15: 49
A16: Canelones | B16: 3538 | C16: 218 | D16: 21 | E16: 82 | F16: 38 | G16: 47 | H16: 30 | I16: 3320 | J16: 201 | K16: 490 | L16: 758 | M16: 877 | N16: 994
A17: Cerro Largo | B17: 239 | C17: 0 | D17: 0 | E17: 0 | F17: 0 | G17: 0 | H17: 0 | I17: 239 | J17: 0 | K17: 25 | L17: 28 | M17: 88 | N17: 98
A18: Colonia | B18: 600 | C18: 0 | D18: 0 | E18: 0 | F18: 0 | G18: 0 | H18: 0 | I18: 600 | J18: 60 | K18: 84 | L18: 154 | M18: 167 | N18: 135
A19: Durazno | B19: 239 | C19: 0 | D19: 0 | E19: 0 | F19: 0 | G19: 0 | H19: 0 | I19: 239 | J19: 11 | K19: 35 | L19: 51 | M19: 74 | N19: 68
A20: Flores | B20: 97 | C20: 0 | D20: 0 | E20: 0 | F20: 0 | G20: 0 | H20: 0 | I20: 97 | J20: 0 | K20: 27 | L20: 25 | M20: 18 | N20: 27
A21: Florida | B21: 162 | C21: 31 | D21: 19 | E21: 6 | F21: 6 | G21: 0 | H21: 0 | I21: 131 | J21: 2 | K21: 20 | L21: 29 | M21: 39 | N21: 41
A22: Lavalleja | B22: 324 | C22: 0 | D22: 0 | E22: 0 | F22: 0 | G22: 0 | H22: 0 | I22: 324 | J22: 37 | K22: 62 | L22: 78 | M22: 66 | N22: 81
A23: Maldonado | B23: 1649 | C23: 114 | D23: 7 | E23: 20 | F23: 29 | G23: 32 | H23: 26 | I23: 1535 | J23: 51 | K23: 241 | L23: 356 | M23: 422 | N23: 465
A24: Paysandú | B24: 483 | C24: 122 | D24: 19 | E24: 22 | F24: 37 | G24: 24 | H24: 20 | I24: 361 | J24: 12 | K24: 19 | L24: 38 | M24: 148 | N24: 144
A25: Río Negro | B25: 284 | C25: 0 | D25: 0 | E25: 0 | F25: 0 | G25: 0 | H25: 0 | I25: 284 | J25: 25 | K25: 45 | L25: 43 | M25: 94 | N25: 77
A26: Rivera | B26: 280 | C26: 0 | D26: 0 | E26: 0 | F26: 0 | G26: 0 | H26: 0 | I26: 280 | J26: 10 | K26: 38 | L26: 76 | M26: 76 | N26: 80
A27: Rocha | B27: 283 | C27: 0 | D27: 0 | E27: 0 | F27: 0 | G27: 0 | H27: 0 | I27: 283 | J27: 23 | K27: 60 | L27: 58 | M27: 71 | N27: 71
A28: Salto | B28: 1021 | C28: 355 | D28: 91 | E28: 110 | F28: 90 | G28: 52 | H28: 12 | I28: 666 | J28: 54 | K28: 121 | L28: 130 | M28: 167 | N28: 194
A29: San José | B29: 551 | C29: 115 | D29: 23 | E29: 24 | F29: 37 | G29: 14 | H29: 17 | I29: 436 | J29: 33 | K29: 48 | L29: 115 | M29: 120 | N29: 120
A30: Soriano | B30: 250 | C30: 0 | D30: 0 | E30: 0 | F30: 0 | G30: 0 | H30: 0 | I30: 250 | J30: 0 | K30: 63 | L30: 60 | M30: 55 | N30: 72
A31: Tacuarembó | B31: 669 | C31: 126 | D31: 19 | E31: 35 | F31: 28 | G31: 23 | H31: 21 | I31: 543 | J31: 71 | K31: 126 | L31: 115 | M31: 124 | N31: 107
A32: Treinta y Tres | B32: 128 | C32: 0 | D32: 0 | E32: 0 | F32: 0 | G32: 0 | H32: 0 | I32: 128 | J32: 0 | K32: 15 | L32: 34 | M32: 36 | N32: 43
A33: Fuente: Procesamiento propio en base a datos proporcionados por el D.E.E. — C.E.I.P.

Sheet II-1.2.4
A1: MINISTERIO DE EDUCACIÓN Y CULTURA | I1: ESTUDIANTES MATRICULADOS
A2: Dirección de Educación – Área de Educación en la Primera Infancia
A3: INAU-CAIF
A6: Cuadro Nº II-1.2.4
A8: ESTUDIANTES MATRICULADOS EN EDUCACIÓN EN LA PRIMERA INFANCIA E INICIAL POR FORMA DE ADMINISTRACIÓN Y SEXO SEGÚN DEPARTAMENTO (Todo el país, 2017)
A9: DEPARTAMENTO | E9: FORMA DE ADMINISTRACIÓN
B10: TOTAL | E10: CAIF,CAPI Y NUESTROS NIÑOS | G10: Centros Privados
B12: TOTAL | C12: SEXO | E12: SEXO
C13: VARÓN | D13: MUJER | E13: V | F13: M | G13: V | H13: M
A14: TOTAL | B14: =+B15+B16 -> 72532 | C14: =E14+G14 -> 37097 | D14: =F14+H14 -> 35435 | E14: =E15+E16 -> 28380 | F14: =F15+F16 -> 27148 | G14: =G15+G16 -> 8717 | H14: =H15+H16 -> 8287
A15: MONTEVIDEO | B15: =+C15+D15 -> 24345 | C15: 12536 | D15: 11809 | E15: =6458+659 -> 7117 | F15: =6149+636 -> 6785 | G15: 5419 | H15: 5024
A16: RESTO DEL PAÍS | B16: =+C16+D16 -> 48187 | C16: 24561 | D16: 23626 | E16: =SUM(E17:E35) -> 21263 | F16: =SUM(F17:F35) -> 20363 | G16: =SUM(G17:G35) -> 3298 | H16: =SUM(H17:H35) -> 3263
A18: Artigas | B18: =+C18+D18 -> 2534 | C18: =E18+G18 -> 1290 | D18: =F18+H18 -> 1244 | E18: 1220 | F18: 1169 | G18: 70 | H18: 75
A19: Canelones | B19: 10963 | C19: 5606 | D19: 5357 | E19: 4241 | F19: 4043 | G19: 1365 | H19: 1314
A20: Cerro Largo | B20: 2926 | C20: 1511 | D20: 1415 | E20: 1486 | F20: 1386 | G20: 25 | H20: 29
A21: Colonia | B21: 2512 | C21: 1291 | D21: 1221 | E21: 1006 | F21: 958 | G21: 285 | H21: 263
A22: Durazno | B22: 2247 | C22: 1174 | D22: 1073 | E22: 1040 | F22: 960 | G22: 134 | H22: 113
A23: Flores | B23: 946 | C23: 478 | D23: 468 | E23: 435 | F23: 414 | G23: 43 | H23: 54
A24: Florida | B24: 1691 | C24: 859 | D24: 832 | E24: 717 | F24: 678 | G24: 142 | H24: 154
A25: Lavalleja | B25: 1139 | C25: 574 | D25: 565 | E25: 495 | F25: 493 | G25: 79 | H25: 72
A26: Maldonado | B26: 2091 | C26: 1021 | D26: 1070 | E26: 808 | F26: 822 | G26: 213 | H26: 248
A27: Paysandú | B27: 3735 | C27: 1910 | D27: 1825 | E27: 1730 | F27: 1644 | G27: 180 | H27: 181
A28: Río Negro | B28: 1547 | C28: 768 | D28: 779 | E28: 707 | F28: 724 | G28: 61 | H28: 55
A29: Rivera | B29: 2876 | C29: 1424 | D29: 1452 | E29: 1241 | F29: 1257 | G29: 183 | H29: 195
A30: Rocha | B30: 2015 | C30: 1021 | D30: 994 | E30: 954 | F30: 941 | G30: 67 | H30: 53
A31: Salto | B31: 3427 | C31: 1750 | D31: 1677 | E31: 1669 | F31: 1617 | G31: 81 | H31: 60
A32: San José | B32: 1980 | C32: 1025 | D32: 955 | E32: 892 | F32: 813 | G32: 133 | H32: 142
A33: Soriano | B33: 2017 | C33: 1049 | D33: 968 | E33: 847 | F33: 756 | G33: 202 | H33: 212
A34: Tacuarembó | B34: 2297 | C34: 1173 | D34: 1124 | E34: 1138 | F34: 1081 | G34: 35 | H34: 43
A35: Treinta y Tres | B35: 1244 | C35: 637 | D35: 607 | E35: 637 | F35: 607 | G35: 0 | H35: 0
A36: Fuente: Procesamiento propio en base a datos proporcionados por:
A37: Registro Nacional de Centros de Educación Infantil Privados. MEC
A38: Para CAIF Y CENTROS DIURNOS: SIPI de INAU.
A39: Nota: Privados supervisados por el MEC
A40: CAIF y Centros Diurnos incluyen para este año la matrícula de Experiencia Oportuna (0 a 1 año) que en el anuario 2012 solo se incluía en el cuadro II.

Sheet II-1.2.5
A1: MINISTERIO DE EDUCACIÓN Y CULTURA | O1: ESTUDIANTES MATRICULADOS
A2: Dirección de Educación – Área de Educación en la Primera Infancia
A4: Cuadro Nº II-1.2.5
A5: ESTUDIANTES MATRICULADOS EN EDUCACIÓN EN LA PRIMERA INFANCIA E INICIAL POR FORMA DE ADMINISTRACIÓN SEGÚN EDAD (Todo el país, 2017)
E6: FORMA DE ADMINISTRACIÓN
A7: EDAD | B7: TOTAL | C7: SEXO | E7: CEIP- PÚBLICOS | G7: CEIP-PRIVADOS (Habilitados y Autorizados) | I7: CAIF | K7: CAPI | M7: NUESTROS NIÑOS | O7: PRIVADOS MEC
E9: SEXO
C10: V | D10: M | E10: V | F10: M | G10: V | H10: M | I10: V | J10: M | K10: V | L10: M | M10: V | N10: M | O10: V | P10: M
A12: TOTAL | B12: =SUM(B13:B19) -> 187852 | C12: =E12+G12+I12+K12+M12+O12 -> 95870 | D12: =F12+H12+J12+L12+N12+P12 -> 91982 | E12: =SUM(E13:E19) -> 44176 | F12: =SUM(F13:F19) -> 42396 | G12: 14597 | H12: 14151 | I12: =SUM(I13:I19) -> 26876 | J12: 25676 | K12: 845 | L12: 836 | M12: 659 | N12: 636 | O12: =SUM(O13:O19) -> 8717 | P12: =SUM(P13:P19) -> 8287
A13: 0 a 11 meses | B13: =C13+D13 -> 10598 | C13: =E13+G13+I13+K13+M13+O13 -> 5473 | D13: =F13+H13+J13+L13+N13+P13 -> 5125 | E13: 9 | F13: 6 | G13: 1186 | H13: 1097 | I13: 3778 | J13: 3521 | K13: 49 | L13: 53 | M13: 5 | N13: 3 | O13: 446 | P13: 445
A14: 1 año | B14: =C14+D14 -> 19130 | C14: 9867 | D14: 9263 | E14: 23 | F14: 21 | G14: 0 | H14: 0 | I14: 7675 | J14: 7225 | K14: 269 | L14: 281 | M14: 62 | N14: 66 | O14: 1838 | P14: 1670
A15: 2 años | B15: 25544 | C15: 12983 | D15: 12561 | E15: 28 | F15: 19 | G15: 2371 | H15: 2282 | I15: 7612 | J15: 7377 | K15: 342 | L15: 323 | M15: 237 | N15: 220 | O15: 2393 | P15: 2340
A16: 3 años | B16: 37848 | C16: 19170 | D16: 18678 | E16: 6730 | F16: 6714 | G16: 3062 | H16: 2988 | I16: 6691 | J16: 6431 | K16: 159 | L16: 150 | M16: 289 | N16: 271 | O16: 2239 | P16: 2124
A17: 4 años | B17: 48696 | C17: 24863 | D17: 23833 | E17: 18646 | F17: 17742 | G17: 3830 | H17: 3726 | I17: 1120 | J17: 1122 | K17: 26 | L17: 29 | M17: 66 | N17: 76 | O17: 1175 | P17: 1138
A18: 5 años | B18: =C18+D18 -> 45882 | C18: =E18+G18+I18+K18+M18+O18 -> 23437 | D18: =F18+H18+J18+L18+N18+P18 -> 22445 | E18: 18719 | F18: 17873 | G18: 4148 | H18: 4058 | I18: 0 | J18: 0 | K18: 0 | L18: 0 | M18: 0 | N18: 0 | O18: 570 | P18: 514
A19: 6 años | B19: 154 | C19: 77 | D19: 77 | E19: 21 | F19: 21 | G19: 0 | H19: 0 | I19: 0 | J19: 0 | K19: 0 | L19: 0 | M19: 0 | N19: 0 | O19: 56 | P19: 56
A20: Fuente: Procesamiento propio en base a datos proporcionados por:
A21: Registro Nacional de Centros de Educación Infantil Privados. MEC; SIPI de INAU; Departamento de Estadística del CEIP.
A22: La denomicación de Centros Diurnos pasó a ser CAPI (Centros de Atención a la Primera Infancia)
A23: Para CAIF las edades de 0 y 1 año corresponden a la modalidad Experiencia Oportuna.

Sheet II-1.2.6
A1: CONSEJO DE EDUCACIÓN INICIAL Y PRIMARIA | F1: ESTUDIANTES MATRICULADOS
A3: Cuadro Nº II-1.2.6
A5: ESTUDIANTES MATRICULADOS EN EDUCACIÓN EN LA PRIMERA INFANCIA E INICIAL PÚBLICA DEL CEIP POR ÁREA DEMOGRÁFICA SEGÚN DEPARTAMENTO (Todo el país, 2017)
A6: DEPARTAMENTO | B6: TOTAL | C6: NIVEL
C7: Educación Inicial | E7: Inicial en Escuelas
C8: ÁREA DEMOGRÁFICA
C9: RURAL | D9: URBANA | E9: RURAL | F9: URBANA
A10: TOTAL | B10: =SUM(C10:F10) -> 86572 | C10: =SUM(C11:C12) -> 0 | D10: =SUM(D11:D12) -> 37932 | E10: 3999 | F10: 44641
A11: MONTEVIDEO | B11: =SUM(C11:F11) -> 26578 | C11: 0 | D11: 14365 | E11: 0 | F11: 12213
A12: RESTO DEL PAÍS | B12: 59994 | C12: =SUM(C14:C31) -> 0 | D12: =SUM(D14:D31) -> 23567 | E12: 3999 | F12: 32428
A14: Artigas | B14: =SUM(C14:F14) -> 2507 | C14: 0 | D14: 789 | E14: 196 | F14: 1522
A15: Canelones | B15: 14466 | C15: 0 | D15: 7333 | E15: 597 | F15: 6536
A16: Cerro Largo | B16: 2787 | C16: 0 | D16: 1102 | E16: 218 | F16: 1467
A17: Colonia | B17: 3865 | C17: 0 | D17: 1030 | E17: 295 | F17: 2540
A18: Durazno | B18: 1752 | C18: 0 | D18: 665 | E18: 92 | F18: 995
A19: Flores | B19: 775 | C19: 0 | D19: 259 | E19: 76 | F19: 440
A20: Florida | B20: 2013 | C20: 0 | D20: 694 | E20: 235 | F20: 1084
A21: Lavalleja | B21: 1577 | C21: 0 | D21: 888 | E21: 103 | F21: 586
A22: Maldonado | B22: 4366 | C22: 0 | D22: 1621 | E22: 159 | F22: 2586
A23: Paysandú | B23: 3434 | C23: 0 | D23: 801 | E23: 259 | F23: 2374
A24: Río Negro | B24: 1866 | C24: 0 | D24: 927 | E24: 130 | F24: 809
A25: Rivera | B25: 3429 | C25: 0 | D25: 1184 | E25: 250 | F25: 1995
A26: Rocha | B26: 2225 | C26: 0 | D26: 938 | E26: 104 | F26: 1183
A27: Salto | B27: 4488 | C27: 0 | D27: 1300 | E27: 388 | F27: 2800
A28: San José | B28: 3566 | C28: 0 | D28: 1295 | E28: 327 | F28: 1944
A29: Soriano | B29: 2439 | C29: 0 | D29: 813 | E29: 146 | F29: 1480
A30: Tacuarembó | B30: 2828 | C30: 0 | D30: 1147 | E30: 322 | F30: 1359
A31: Treinta y Tres | B31: 1611 | C31: 0 | D31: 781 | E31: 102 | F31: 728
A32: Fuente: Procesamiento propio en base a datos proporcionados
A33: por el D.E.E. — C.E.I.P.

Sheet II-1.2.7
A1: MINISTERIO DE EDUCACIÓN Y CULTURA | J1: ESTUDIANTES MATRICULADOS
A2: Dirección de Educación – Área de Educación en la Primera Infancia
A4: Cuadro Nº II-1.2.7
A6: ESTUDIANTES MATRICULADOS EN EDUCACIÓN EN LA PRIMERA INFANCIA E INICIAL EN CENTROS PRIVADOS HABILITADOS POR EL MEC, POR EDAD SEGÚN DEPARTAMENTO (Todo el país, 2017)
A7: DEPARTAMENTO | C7: E D A D
B8: TOTAL | C8: 0 a 11 meses | D8: 1 año | E8: 2 años | F8: 3 años | G8: 4 años | H8: 5 años | I8: 6 años
A10: TOTAL | B10: =+B11+B12 -> 17004 | C10: =+C11+C12 -> 891 | D10: =+D11+D12 -> 3508 | E10: 4733 | F10: 4363 | G10: 2313 | H10: 1084 | I10: 112
A11: MONTEVIDEO | B11: =+C11+D11+E11+F11+G11+H11+I11 -> 10443 | C11: 685 | D11: 2195 | E11: 2873 | F11: 2641 | G11: 1374 | H11: 616 | I11: 59
A12: RESTO DEL PAÍS | B12: =SUM(B14:B31) -> 6561 | C12: =SUM(C14:C31) -> 206 | D12: =SUM(D14:D31) -> 1313 | E12: 1860 | F12: 1722 | G12: 939 | H12: 468 | I12: 53
A14: Artigas | B14: =+C14+D14+E14+F14+G14+H14+I14 -> 145 | C14: 3 | D14: 24 | E14: 35 | F14: 37 | G14: 39 | H14: 2 | I14: 5
A15: Canelones | B15: =+C15+D15+E15+F15+G15+H15+I15 -> 2679 | C15: 97 | D15: 507 | E15: 699 | F15: 695 | G15: 432 | H15: 241 | I15: 8
A16: Cerro Largo | B16: 54 | C16: 6 | D16: 22 | E16: 15 | F16: 6 | G16: 5 | H16: 0 | I16: 0
A17: Colonia | B17: 548 | C17: 21 | D17: 137 | E17: 207 | F17: 174 | G17: 9 | H17: 0 | I17: 0
A18: Durazno | B18: 247 | C18: 0 | D18: 43 | E18: 67 | F18: 51 | G18: 39 | H18: 47 | I18: 0
A19: Flores | B19: 97 | C19: 0 | D19: 15 | E19: 26 | F19: 15 | G19: 18 | H19: 15 | I19: 8
A20: Florida | B20: 296 | C20: 6 | D20: 74 | E20: 65 | F20: 70 | G20: 62 | H20: 13 | I20: 6
A21: Lavalleja | B21: 151 | C21: 13 | D21: 39 | E21: 62 | F21: 35 | G21: 2 | H21: 0 | I21: 0
A22: Maldonado | B22: 461 | C22: 12 | D22: 69 | E22: 133 | F22: 139 | G22: 75 | H22: 33 | I22: 0
A23: Paysandú | B23: 361 | C23: 23 | D23: 92 | E23: 104 | F23: 66 | G23: 55 | H23: 21 | I23: 0
A24: Río Negro | B24: 116 | C24: 0 | D24: 40 | E24: 32 | F24: 39 | G24: 3 | H24: 2 | I24: 0
A25: Rivera | B25: 378 | C25: 2 | D25: 67 | E25: 92 | F25: 110 | G25: 70 | H25: 37 | I25: 0
A26: Rocha | B26: 120 | C26: 0 | D26: 16 | E26: 29 | F26: 23 | G26: 13 | H26: 14 | I26: 25
A27: Salto | B27: 141 | C27: 0 | D27: 37 | E27: 40 | F27: 40 | G27: 19 | H27: 5 | I27: 0
A28: San José | B28: 275 | C28: 10 | D28: 43 | E28: 99 | F28: 84 | G28: 24 | H28: 14 | I28: 1
A29: Soriano | B29: 414 | C29: 13 | D29: 76 | E29: 132 | F29: 113 | G29: 59 | H29: 21 | I29: 0
A30: Tacuarembó | B30: 78 | C30: 0 | D30: 12 | E30: 23 | F30: 25 | G30: 15 | H30: 3 | I30: 0
A31: Treinta y Tres | B31: 0 | C31: 0 | D31: 0 | E31: 0 | F31: 0 | G31: 0 | H31: 0 | I31: 0
A32: Fuente: Procesamiento propio en base a datos proporcionados por:
A33: Registro Nacional de Centros de Educación Infantil Privados. MEC

Sheet II-1.3.1
A1: CONSEJO DE EDUCACIÓN INICIAL Y PRIMARIA | D1: PERSONAL DOCENTE
A3: Cuadro Nº II-1.3.1
A5: PERSONAL DOCENTE DE EDUCACIÓN EN LA PRIMERA INFANCIA E INICIAL PÚBLICA DEL CEIP SEGÚN DEPARTAMENTO (Todo el país, 2017)
A6: DEPARTAMENTO | B6: DOCENTES
A8: TOTAL | B8: =SUM(B9:B10) -> 3019
A9: MONTEVIDEO | B9: 1012
A10: RESTO DEL PAÍS | B10: =SUM(B12:B29) -> 2007
A12: Artigas | B12: 83
A13: Canelones | B13: 486
A14: Cerro Largo | B14: 89
A15: Colonia | B15: 109
A16: Durazno | B16: 55
A17: Flores | B17: 27
A18: Florida | B18: 73
A19: Lavalleja | B19: 61
A20: Maldonado | B20: 164
A21: Paysandú | B21: 100
A22: Río Negro | B22: 71
A23: Rivera | B23: 113
A24: Rocha | B24: 81
A25: Salto | B25: 133
A26: San José | B26: 118
A27: Soriano | B27: 85
A28: Tacuarembó | B28: 99
A29: Treinta y Tres | B29: 60
A30: Fuente: D.E.E. - C.E.I.P
A31: Nota: Personal docente solo considera maestro/a de clase.

Sheet II-1.3.2
A1: CONSEJO DE EDUCACIÓN INICIAL Y PRIMARIA | E1: PERSONAL DOCENTE
A3: Cuadro Nº II-1.3.2.
A5: PERSONAL DOCENTE DE EDUCACIÓN EN LA PRIMERA INFANCIA E INICIAL PRIVADA SEGÚN DEPARTAMENTO (Todo el país, 2017)
A6: DEPARTAMENTO | C6: DOCENTES
B8: TOTAL | C8: Colegios Habilitados | D8: Colegios Autorizados | E8: Jardines de Infantes Autorizados
A10: TOTAL | B10: =SUM(B11:B12) -> 1959 | C10: =SUM(C11:C12) -> 1577 | D10: =SUM(D11:D12) -> 74 | E10: =SUM(E11:E12) -> 308
A11: MONTEVIDEO | B11: =+C11+D11+E11 -> 1184 | C11: 895 | D11: 65 | E11: 224
A12: RESTO DEL PAÍS | B12: =+C12+D12+E12 -> 775 | C12: =SUM(C14:C31) -> 682 | D12: =SUM(D14:D31) -> 9 | E12: =SUM(E14:E31) -> 84
A14: Artigas | B14: =+C14+D14+E14 -> 29 | C14: 29 | D14: 0 | E14: 0
A15: Canelones | B15: =+C15+D15+E15 -> 239 | C15: 205 | D15: 7 | E15: 27
A16: Cerro Largo | B16: 13 | C16: 13 | D16: 0 | E16: 0
A17: Colonia | B17: 41 | C17: 41 | D17: 0 | E17: 0
A18: Durazno | B18: 11 | C18: 11 | D18: 0 | E18: 0
A19: Flores | B19: 8 | C19: 8 | D19: 0 | E19: 0
A20: Florida | B20: 13 | C20: 10 | D20: 0 | E20: 3
A21: Lavalleja | B21: 19 | C21: 19 | D21: 0 | E21: 0
A22: Maldonado | B22: 129 | C22: 120 | D22: 0 | E22: 9
A23: Paysandú | B23: 34 | C23: 28 | D23: 0 | E23: 6
A24: Río Negro | B24: 24 | C24: 22 | D24: 2 | E24: 0
A25: Rivera | B25: 25 | C25: 25 | D25: 0 | E25: 0
A26: Rocha | B26: 17 | C26: 17 | D26: 0 | E26: 0
A27: Salto | B27: 63 | C27: 39 | D27: 0 | E27: 24
A28: San José | B28: 27 | C28: 23 | D28: 0 | E28: 4
A29: Soriano | B29: 25 | C29: 24 | D29: 0 | E29: 1
A30: Tacuarembó | B30: 51 | C30: 41 | D30: 0 | E30: 10
A31: Treinta y Tres | B31: 7 | C31: 7 | D31: 0 | E31: 0
A32: Fuente: D.E.E. — C.E.P. | B32: C.E.I.P
A33: Nota: Personal docente solo considera maestro/a de clase.
A34: Centros privados habilitados o autorizados por ANEP.

Sheet II-1.3.3
A1: CONSEJO DE EDUCACIÓN INICIAL Y PRIMARIA | E1: PERSONAL DOCENTE
A3: Cuadro Nº II-1.3.3.
A5: PERSONAL DOCENTE EN EDUCACIÓN EN LA PRIMERA INFANCIA PRIVADA SUPERVISADA POR EL MEC SEGÚN FUNCIÓN Y DEPARTAMENTO (Todo el país, 2017)
C7: FUNCIÓN
A8: DEPARTAMENTO | B8: TOTAL | C8: Director responsable técnico | D8: Educadores | E8: Otros especialistas | F8: Profesores especiales | G8: Responsable legal
A10: TOTAL | B10: =SUM(C10:G10) -> 3758 | C10: =C12+C11 -> 334 | D10: =D11+D12 -> 2430 | E10: 236 | F10: 409 | G10: =G11+G12 -> 349
A11: MONTEVIDEO | B11: =SUM(C11:G11) -> 2421 | C11: 202 | D11: 1567 | E11: 172 | F11: 273 | G11: 207
A12: RESTO DEL PAIS | B12: =SUM(C12:G12) -> 1337 | C12: =SUM(C14:C31) -> 132 | D12: =SUM(D14:D31) -> 863 | E12: =SUM(E14:E31) -> 64 | F12: =SUM(F14:F31) -> 136 | G12: =SUM(G14:G31) -> 142
A14: Artigas | B14: =SUM(C14:G14) -> 29 | C14: 3 | D14: 22 | E14: 1 | F14: 0 | G14: 3
A15: Canelones | B15: =SUM(C15:G15) -> 528 | C15: 56 | D15: 342 | E15: 23 | F15: 49 | G15: 58
A16: Cerro Largo | B16: 13 | C16: 1 | D16: 8 | E16: 3 | F16: 0 | G16: 1
A17: Colonia | B17: 105 | C17: 14 | D17: 66 | E17: 3 | F17: 8 | G17: 14
A18: Durazno | B18: 46 | C18: 3 | D18: 32 | E18: 2 | F18: 7 | G18: 2
A19: Flores | B19: 14 | C19: 1 | D19: 10 | E19: 1 | F19: 1 | G19: 1
A20: Florida | B20: 62 | C20: 4 | D20: 40 | E20: 5 | F20: 8 | G20: 5
A21: Lavalleja | B21: 44 | C21: 5 | D21: 27 | E21: 4 | F21: 3 | G21: 5
A22: Maldonado | B22: 115 | C22: 8 | D22: 67 | E22: 9 | F22: 20 | G22: 11
A23: Paysandú | B23: 66 | C23: 6 | D23: 46 | E23: 2 | F23: 6 | G23: 6
A24: Rio Negro | B24: 62 | C24: 2 | D24: 46 | E24: 2 | F24: 6 | G24: 6
A25: Rivera | B25: 72 | C25: 5 | D25: 49 | E25: 1 | F25: 12 | G25: 5
A26: Rocha | B26: 19 | C26: 3 | D26: 10 | E26: 1 | F26: 2 | G26: 3
A27: Salto | B27: 25 | C27: 3 | D27: 18 | E27: 0 | F27: 1 | G27: 3
A28: San José | B28: 46 | C28: 7 | D28: 25 | E28: 2 | F28: 4 | G28: 8
A29: Soriano | B29: 70 | C29: 8 | D29: 44 | E29: 3 | F29: 7 | G29: 8
A30: Tacuarembó | B30: 21 | C30: 3 | D30: 11 | E30: 2 | F30: 2 | G30: 3
A31: Treinta y Tres | B31: 0 | C31: 0 | D31: 0 | E31: 0 | F31: 0 | G31: 0
A32: Fuente: Procesamiento propio en base a datos proporcionados por Registro Nacional de Centros de Educación Infantil Privados - MEC.
A33: Nota:
A34: Director responsable técnico: art 4. 268/014
A35: Educadores: Son aquellos que la tarea de docencia es directa, ya sea de carácter de docente propiamente dicho o de auxiliar. Informe Primer censo nacional de centros de Educaciòn Infanti Privados.
A36: Otros especialistas: Se refiere a profesionales que apoyan la tarea de los educadores sin ejercer educación directa. En esta categoría entran psicólogo, psicomotricistas, trabajadores sociales, nutricionistas, médico pediatra y otros especialistas.
A37: Profesores especiales: Son docentes que se especializan en un área en particular. Esta categoría incluye profesores de computación, inglés, plástica, eduación musical u artística.

Sheet PRIMARIA
A7: Cuadro Nº II-2.1.1 | B7: ESTABLECIMIENTOS DE EDUCACIÓN PRIMARIA POR FORMA DE ADMINISTRACIÓN Y TIPO DE EDUCACIÓN SEGÚN DEPARTAMENTO. (Todo el país, 2017).
A9: Cuadro Nº II-2.1.2 | B9: ESTABLECIMIENTOS DE EDUCACIÓN PRIMARIA PÚBLICA COMÚN POR ÁREA DEMOGRÁFICA Y CATEGORÍA SEGÚN DEPARTAMENTO. (Todo el país, 2017).
A11: Cuadro Nº II-2.1.3 | B11: ESTABLECIMIENTOS DE EDUCACIÓN PRIMARIA PÚBLICA ESPECIAL POR TIPO DE DISCAPACIDAD SEGÚN DEPARTAMENTO. (Todo el país, 2017).
A13: Cuadro Nº II-2.1.4 | B13: ESTABLECIMIENTOS DE EDUCACIÓN PRIMARIA PRIVADA POR TIPO DE EDUCACIÓN SEGÚN DEPARTAMENTO. (Todo el país, 2017).
A16: Cuadro Nº II-2.2.1 | B16: ESTUDIANTES MATRICULADOS EN EDUCACIÓN PRIMARIA COMÚN POR FORMA DE ADMINISTRACIÓN Y SEXO SEGÚN DEPARTAMENTO. (Todo el país, 2017).
A18: Cuadro Nº II-2.2.2 | B18: ESTUDIANTES MATRICULADOS EN EDUCACIÓN PRIMARIA PÚBLICA POR TIPO DE EDUCACIÓN Y SEXO SEGÚN DEPARTAMENTO. (Todo el país, 2017).
A20: Cuadro Nº II-2.2.3 | B20: ESTUDIANTES MATRICULADOS EN EDUCACIÓN PRIMARIA PÚBLICA COMÚN POR ÁREA DEMOGRÁFICA Y CATEGORÍA SEGÚN DEPARTAMENTO. (Todo el país, 2017).
A22: Cuadro Nº II-2.2.4 | B22: ESTUDIANTES MATRICULADOS EN EDUCACIÓN PRIMARIA PÚBLICA ESPECIAL POR TIPO DE DISCAPACIDAD SEGÚN DEPARTAMENTO. (Todo el país, 2017).
A24: Cuadro Nº II-2.2.5 | B24: ESTUDIANTES MATRICULADOS EN EDUCACIÓN ESPECIAL PÚBLICA POR EDADES SIMPLES Y SEXO SEGÚN DEPARTAMENTO. (Todo el país, 2017).
A26: Cuadro Nº II-2.2.6 | B26: ESTUDIANTES MATRICULADOS EN EDUCACIÓN PRIMARIA PRIVADA POR TIPO DE EDUCACIÓN SEGÚN DEPARTAMENTO. (Todo el país, 2017).
A28: Cuadro Nº II-2.2.7 | B28: ESTUDIANTES MATRICULADOS EN EDUCACIÓN ESPECIAL PRIVADA POR EDADES SIMPLES Y SEXO SEGÚN DEPARTAMENTO. (Todo el país, 2017).
A30: Cuadro Nº II-2.2.8 | B30: ESTUDIANTES MATRICULADOS EN EDUCACIÓN PRIMARIA COMÚN POR GRADO Y FORMA DE ADMINISTRACIÓN SEGÚN EDAD. (Todo el país, 2017).
A32: Cuadro Nº II-2.2.9 | B32: ESTUDIANTES MATRICULADOS EN EDUCACIÓN PRIMARIA COMÚN PÚBLICA POR GRADO Y SEXO SEGÚN EDAD. (Todo el país, 2017).
A34: Cuadro Nº II-2.2.10 | B34: ESTUDIANTES MATRICULADOS EN EDUCACIÓN PRIMARIA COMÚN PRIVADA POR GRADO Y SEXO SEGÚN EDAD. (Todo el país, 2017)
A36: Cuadro Nº II-2.2.11 | B36: ESTUDIANTES MATRICULADOS EN EDUCACIÓN PRIMARIA COMÚN POR GRADO Y FORMA DE ADMINISTRACIÓN SEGÚN DEPARTAMENTO. (Todo el país, 2017).
A38: Cuadro Nº II-2.2.12 | B38: RENDIMIENTO ESCOLAR EN EDUCACIÓN PRIMARIA COMÚN PÚBLICA POR ÁREA DEMOGRÁFICA SEGÚN GRADO. (Todo el país, 2017).
A40: Cuadro Nº II-2.2.13 | B40: RENDIMIENTO ESCOLAR EN EDUCACIÓN PRIMARIA COMÚN PÚBLICA POR ÁREA DEMOGRÁFICA SEGÚN DEPARTAMENTO. (Todo el país, 2017).
A42: Cuadro Nº II-2.2.14 | B42: RENDIMIENTO ESCOLAR EN EDUCACIÓN PRIMARIA COMÚN PÚBLICA POR SEXO SEGÚN DEPARTAMENTO. (Todo el país, 2017).
A44: Cuadro Nº II-2.2.15 | B44: RENDIMIENTO ESCOLAR EN EDUCACIÓN PRIMARIA COMÚN PRIVADA POR SEXO SEGÚN DEPARTAMENTO. (Todo el país, 2017).
A46: Cuadro Nº II-2.2.16 | B46: ESTUDIANTES MATRICULADOS EGRESADOS DE EDUCACIÓN PRIMARIA COMÚN PÚBLICA POR ÁREA DEMOGRÁFICA SEGÚN DEPARTAMENTO (Todo el país, 2017)
A48: Cuadro Nº II-2.2.17 | B48: ESTUDIANTES MATRICULADOS EGRESADOS DE EDUCACIÓN PRIMARIA COMÚN POR FORMA DE ADMINISTRACIÓN SEGÚN DEPARTAMENTO (Todo el país, 2017)
A50: Cuadro Nº II-2.2.18 | B50: ASISTENCIA INSUFICIENTE Y ABANDONO INTERMITENTE DE 1º GRADO Y 1º A 6º GRADO EN EDUCACIÓN COMÚN PÚBLICA SEGÚN DEPARTAMENTO. (Todo el país, 2017).
A53: Cuadro Nº II-2.3.1 | B53: PERSONAL DOCENTE DE EDUCACIÓN PRIMARIA PÚBLICA POR TIPO DE DESEMPEÑO DOCENTE SEGÚN DEPARTAMENTO. (Todo el país, 2017).
A55: Cuadro Nº II-2.3.2 | B55: PERSONAL DOCENTE DE EDUCACIÓN PRIMARIA PRIVADA POR TIPO DE ESTABLECIMIENTO Y TIPO DE DESEMPEÑO DOCENTE SEGÚN DEPARTAMENTO. (Todo el país, 2017).
A151: =MID(B101, 1,20) -> 
A186: =MID(B136, 1,20) -> 

Sheet II-2.1.1
A1: CONSEJO DE EDUCACIÓN PRIMARIA | E1: ESTABLECIMIENTOS
A3: Cuadro Nº II-2.1.1
A4: ESTABLECIMIENTOS DE EDUCACIÓN PRIMARIA POR FORMA DE ADMINISTRACIÓN Y TIPO DE EDUCACIÓN SEGÚN DEPARTAMENTO (Todo el país, 2017)
A5: DEPARTAMENTO | C5: FORMA DE ADMINISTRACIÓN
B6: TOTAL | C6: TIPO DE EDUCACIÓN
C7: PÚBLICA | E7: PRIVADA
C8: Común | D8: Especial | E8: Común | F8: Especial
A10: TOTAL | B10: =+C10+D10+E10+F10 -> 2505 | C10: =SUM(C11:C12) -> 2004 | D10: =SUM(D11:D12) -> 80 | E10: =SUM(E11,E12) -> 352 | F10: =SUM(F11:F12) -> 69
A11: MONTEVIDEO | B11: =+C11+D11+E11+F11 -> 483 | C11: 246 | D11: 26 | E11: 173 | F11: 38
A12: RESTO DEL PAÍS | B12: 2022 | C12: =SUM(C13:C30) -> 1758 | D12: =SUM(D13:D30) -> 54 | E12: =SUM(E13:E30) -> 179 | F12: =SUM(F13:F30) -> 31
A13: Artigas | B13: 82 | C13: 76 | D13: 2 | E13: 2 | F13: 2
A14: Canelones | B14: 311 | C14: 231 | D14: 11 | E14: 64 | F14: 5
A15: Cerro Largo | B15: 118 | C15: 109 | D15: 3 | E15: 6 | F15: 0
A16: Colonia | B16: 139 | C16: 123 | D16: 4 | E16: 10 | F16: 2
A17: Durazno | B17: 86 | C17: 79 | D17: 2 | E17: 5 | F17: 0
A18: Flores | B18: 37 | C18: 33 | D18: 1 | E18: 3 | F18: 0
A19: Florida | B19: 102 | C19: 95 | D19: 2 | E19: 4 | F19: 1
A20: Lavalleja | B20: 92 | C20: 84 | D20: 2 | E20: 6 | F20: 0
A21: Maldonado | B21: 111 | C21: 79 | D21: 4 | E21: 25 | F21: 3
A22: Paysandú | B22: 120 | C22: 103 | D22: 2 | E22: 10 | F22: 5
A23: Río Negro | B23: 68 | C23: 58 | D23: 2 | E23: 7 | F23: 1
A24: Rivera | B24: 131 | C24: 118 | D24: 4 | E24: 7 | F24: 2
A25: Rocha | B25: 78 | C25: 69 | D25: 3 | E25: 4 | F25: 2
A26: Salto | B26: 112 | C26: 98 | D26: 3 | E26: 7 | F26: 4
A27: San José | B27: 116 | C27: 106 | D27: 3 | E27: 7 | F27: 0
A28: Soriano | B28: 108 | C28: 97 | D28: 3 | E28: 4 | F28: 4
A29: Tacuarembó | B29: 139 | C29: 130 | D29: 2 | E29: 7 | F29: 0
A30: Treinta y Tres | B30: 72 | C30: 70 | D30: 1 | E30: 1 | F30: 0
A31: Fuente: Procesamiento propio en base a datos proporcionados por el D.E.E. — C.E.I.P.
A32: Nota: Pública no incluye JICI

Sheet II-2.1.2
A1: CONSEJO DE EDUCACIÓN PRIMARIA | P1: ESTABLECIMIENTOS
A3: Cuadro Nº II-2.1.2
A5: ESTABLECIMIENTOS DE EDUCACIÓN PRIMARIA PÚBLICA COMÚN POR ÁREA DEMOGRÁFICA Y CATEGORÍA SEGÚN DEPARTAMENTO (Todo el país, 2017)
A6: DEPARTAMENTO | B6: TOTAL | C6: ÁREA DEMOGRÁFICA
D7: URBANA | P7: RURAL
C8: Total Urbana | D8: CATEGORÍA | O8: Total Rural | P8: CATEGORÍA
D9: Aprender | E9: Aprender H. de Práctica | F9: Común | G9: Práctica | H9: Tiempo Completo | I9: Habilitada de Práctica | J9: Tiempo Extendido H. de Práctica | K9: Tiempo Extendido de Práctica | L9: Tiempo Extendido | M9: Unidocente | N9: JICI | P9: Con Maestro a cargo | Q9: Internado Rural | R9: Unidocente
A11: TOTAL | B11: =+C11+O11 -> 2005 | C11: =SUM(D11:N11) -> 929 | D11: =SUM(D12:D13) -> 241 | E11: =SUM(E12:E13) -> 10 | F11: 287 | G11: 55 | H11: 217 | I11: 69 | J11: 2 | K11: =K12+K13 -> 8 | L11: 37 | M11: 2 | N11: 1 | O11: =SUM(O12:O13) -> 1076 | P11: 322 | Q11: 8 | R11: 746
A12: MONTEVIDEO | B12: 247 | C12: =SUM(D12:N12) -> 247 | D12: 93 | E12: 0 | F12: 70 | G12: 14 | H12: 51 | I12: 7 | J12: 1 | K12: 4 | L12: 6 | M12: 0 | N12: 1 | O12: 0 | P12: 0 | Q12: 0 | R12: 0
A13: RESTO DEL PAÍS | B13: 1758 | C13: =SUM(D13:N13) -> 682 | D13: =SUM(D14:D31) -> 148 | E13: 10 | F13: 217 | G13: 41 | H13: 166 | I13: 62 | J13: 1 | K13: =SUM(K14:K31) -> 4 | L13: 31 | M13: 2 | N13: 0 | O13: =SUM(O14:O31) -> 1076 | P13: 322 | Q13: 8 | R13: 746
A14: Artigas | B14: 76 | C14: =SUM(D14:N14) -> 31 | D14: 10 | E14: 0 | F14: 4 | G14: 2 | H14: 10 | I14: 4 | J14: 0 | K14: 0 | L14: 1 | M14: 0 | N14: 0 | O14: =+P14+Q14+R14 -> 45 | P14: 17 | Q14: 1 | R14: 27
A15: Canelones | B15: 231 | C15: =SUM(D15:N15) -> 137 | D15: 39 | E15: 2 | F15: 42 | G15: 7 | H15: 30 | I15: 11 | J15: 0 | K15: 0 | L15: 6 | M15: 0 | N15: 0 | O15: =+P15+Q15+R15 -> 94 | P15: 54 | Q15: 1 | R15: 39
A16: Cerro Largo | B16: 109 | C16: 28 | D16: 6 | E16: 1 | F16: 3 | G16: 2 | H16: 9 | I16: 4 | J16: 0 | K16: 0 | L16: 3 | M16: 0 | N16: 0 | O16: 81 | P16: 17 | Q16: 0 | R16: 64
A17: Colonia | B17: 123 | C17: 42 | D17: 3 | E17: 0 | F17: 22 | G17: 3 | H17: 7 | I17: 4 | J17: 0 | K17: 1 | L17: 2 | M17: 0 | N17: 0 | O17: 81 | P17: 21 | Q17: 0 | R17: 60
A18: Durazno | B18: 79 | C18: 24 | D18: 4 | E18: 0 | F18: 6 | G18: 2 | H18: 7 | I18: 4 | J18: 0 | K18: 0 | L18: 1 | M18: 0 | N18: 0 | O18: 55 | P18: 6 | Q18: 0 | R18: 49
A19: Flores | B19: 33 | C19: 10 | D19: 0 | E19: 0 | F19: 3 | G19: 1 | H19: 4 | I19: 1 | J19: 0 | K19: 0 | L19: 1 | M19: 0 | N19: 0 | O19: 23 | P19: 3 | Q19: 1 | R19: 19
A20: Florida | B20: 95 | C20: 28 | D20: 1 | E20: 0 | F20: 10 | G20: 2 | H20: 8 | I20: 3 | J20: 0 | K20: 0 | L20: 4 | M20: 0 | N20: 0 | O20: 67 | P20: 21 | Q20: 0 | R20: 46
A21: Lavalleja | B21: 84 | C21: 24 | D21: 0 | E21: 1 | F21: 10 | G21: 2 | H21: 6 | I21: 2 | J21: 0 | K21: 0 | L21: 1 | M21: 2 | N21: 0 | O21: 60 | P21: 10 | Q21: 0 | R21: 50
A22: Maldonado | B22: 79 | C22: 43 | D22: 7 | E22: 0 | F22: 13 | G22: 2 | H22: 13 | I22: 7 | J22: 0 | K22: 0 | L22: 1 | M22: 0 | N22: 0 | O22: 36 | P22: 11 | Q22: 1 | R22: 24
A23: Paysandú | B23: 103 | C23: 46 | D23: 10 | E23: 4 | F23: 17 | G23: 2 | H23: 10 | I23: 2 | J23: 0 | K23: 1 | L23: 0 | M23: 0 | N23: 0 | O23: 57 | P23: 18 | Q23: 2 | R23: 37
A24: Río Negro | B24: 58 | C24: 21 | D24: 1 | E24: 0 | F24: 10 | G24: 1 | H24: 6 | I24: 2 | J24: 0 | K24: 1 | L24: 0 | M24: 0 | N24: 0 | O24: 37 | P24: 13 | Q24: 1 | R24: 23
A25: Rivera | B25: 118 | C25: 41 | D25: 17 | E25: 2 | F25: 7 | G25: 3 | H25: 9 | I25: 2 | J25: 0 | K25: 0 | L25: 1 | M25: 0 | N25: 0 | O25: 77 | P25: 22 | Q25: 0 | R25: 55
A26: Rocha | B26: 69 | C26: 32 | D26: 6 | E26: 0 | F26: 14 | G26: 2 | H26: 9 | I26: 0 | J26: 1 | K26: 0 | L26: 0 | M26: 0 | N26: 0 | O26: 37 | P26: 4 | Q26: 0 | R26: 33
A27: Salto | B27: 98 | C27: 40 | D27: 12 | E27: 0 | F27: 6 | G27: 3 | H27: 12 | I27: 5 | J27: 0 | K27: 0 | L27: 2 | M27: 0 | N27: 0 | O27: 58 | P27: 28 | Q27: 1 | R27: 29
A28: San José | B28: 106 | C28: 36 | D28: 9 | E28: 0 | F28: 14 | G28: 1 | H28: 6 | I28: 2 | J28: 0 | K28: 1 | L28: 3 | M28: 0 | N28: 0 | O28: 70 | P28: 31 | Q28: 0 | R28: 39
A29: Soriano | B29: 97 | C29: 35 | D29: 6 | E29: 0 | F29: 16 | G29: 2 | H29: 8 | I29: 3 | J29: 0 | K29: 0 | L29: 0 | M29: 0 | N29: 0 | O29: 62 | P29: 11 | Q29: 0 | R29: 51
A30: Tacuarembó | B30: 130 | C30: 42 | D30: 13 | E30: 0 | F30: 13 | G30: 2 | H30: 7 | I30: 3 | J30: 0 | K30: 0 | L30: 4 | M30: 0 | N30: 0 | O30: 88 | P30: 27 | Q30: 0 | R30: 61
A31: Treinta y Tres | B31: 70 | C31: 22 | D31: 4 | E31: 0 | F31: 7 | G31: 2 | H31: 5 | I31: 3 | J31: 0 | K31: 0 | L31: 1 | M31: 0 | N31: 0 | O31: 48 | P31: 8 | Q31: 0 | R31: 40
A32: Fuente: Procesamiento propio en base a datos proporcionados por el DEE — CEIP | F32: D.E.E.-C.E.I.P.

Sheet II-2.1.3
A1: CONSEJO DE EDUCACIÓN PRIMARIA | D1: Establecimientos
A3: Cuadro Nº II-2.1.3
A5: ESTABLECIMIENTOS DE EDUCACIÓN PRIMARIA PÚBLICA ESPECIAL POR TIPO DE DISCAPACIDAD SEGÚN DEPARTAMENTO (Todo el país, 2017)
A6: DEPARTAMENTO | B6: TOTAL | C6: DISCAPACIDAD
C7: Intelectual | D7: Auditiva | E7: Visual
A9: TOTAL | B9: =+B10+B11 -> 80 | C9: =SUM(C10:C11) -> 74 | D9: =SUM(D10:D11) -> 4 | E9: =SUM(E10:E11) -> 2
A10: MONTEVIDEO | B10: =+C10+D10+E10 -> 26 | C10: 23 | D10: 1 | E10: 2
A11: RESTO DEL PAÍS | B11: =SUM(B12:B29) -> 54 | C11: =SUM(C12:C29) -> 51 | D11: =SUM(D12:D29) -> 3 | E11: =SUM(E12:E29) -> 0
A12: Artigas | B12: =+C12+D12+E12 -> 2 | C12: 2 | D12: 0 | E12: 0
A13: Canelones | B13: 11 | C13: 11 | D13: 0 | E13: 0
A14: Cerro Largo | B14: 3 | C14: 3 | D14: 0 | E14: 0
A15: Colonia | B15: 4 | C15: 4 | D15: 0 | E15: 0
A16: Durazno | B16: 2 | C16: 2 | D16: 0 | E16: 0
A17: Flores | B17: 1 | C17: 1 | D17: 0 | E17: 0
A18: Florida | B18: 2 | C18: 2 | D18: 0 | E18: 0
A19: Lavalleja | B19: 2 | C19: 2 | D19: 0 | E19: 0
A20: Maldonado | B20: 4 | C20: 3 | D20: 1 | E20: 0
A21: Paysandú | B21: 2 | C21: 2 | D21: 0 | E21: 0
A22: Río Negro | B22: 2 | C22: 2 | D22: 0 | E22: 0
A23: Rivera | B23: 4 | C23: 3 | D23: 1 | E23: 0
A24: Rocha | B24: 3 | C24: 3 | D24: 0 | E24: 0
A25: Salto | B25: 3 | C25: 2 | D25: 1 | E25: 0
A26: San José | B26: 3 | C26: 3 | D26: 0 | E26: 0
A27: Soriano | B27: 3 | C27: 3 | D27: 0 | E27: 0
A28: Tacuarembó | B28: 2 | C28: 2 | D28: 0 | E28: 0
A29: Treinta y Tres | B29: 1 | C29: 1 | D29: 0 | E29: 0
A30: Fuente: DEE — CEIP
A31: Nota: Los establecimientos que atienden discapacidades intelectuales, además de atender niños con disfunciones clásicamente tipificadas como “Intelectuales”, atienden a los niños con discapacidades de orden motriz o de carácter, lo que implica que la matrícula correspondiente los agrupa.

Sheet II-2.1.4
A1: CONSEJO DE EDUCACIÓN PRIMARIA | E1: ESTABLECIMIENTOS
A3: Cuadro Nº II-2.1.4
A5: ESTABLECIMIENTOS DE EDUCACIÓN PRIMARIA PRIVADA POR TIPO DE EDUCACIÓN SEGÚN DEPARTAMENTO (Todo el país, 2017)
A6: DEPARTAMENTO | B6: TOTAL | D6: TIPO DE EDUCACIÓN
C7: Total | D7: EDUCACIÓN COMÚN | F7: EDUCACIÓN ESPECIAL
D8: Habilitados | E8: Autorizados
A10: TOTAL DEL PAÍS | B10: =+C10+F10 -> 421 | C10: =+D10+E10 -> 352 | D10: =SUM(D11:D12) -> 334 | E10: =SUM(E11:E12) -> 18 | F10: =SUM(F11:F12) -> 69
A11: MONTEVIDEO | B11: =+C11+F11 -> 211 | C11: =+D11+E11 -> 173 | D11: 163 | E11: 10 | F11: 38
A12: RESTO DEL PAÍS | B12: 210 | C12: 179 | D12: =SUM(D13:D30) -> 171 | E12: =SUM(E13:E30) -> 8 | F12: =SUM(F13:F30) -> 31
A13: Artigas | B13: 4 | C13: 2 | D13: 2 | E13: 0 | F13: 2
A14: Canelones | B14: 69 | C14: 64 | D14: 60 | E14: 4 | F14: 5
A15: Cerro Largo | B15: 6 | C15: 6 | D15: 6 | E15: 0 | F15: 0
A16: Colonia | B16: 12 | C16: 10 | D16: 10 | E16: 0 | F16: 2
A17: Durazno | B17: 5 | C17: 5 | D17: 5 | E17: 0 | F17: 0
A18: Flores | B18: 3 | C18: 3 | D18: 3 | E18: 0 | F18: 0
A19: Florida | B19: 5 | C19: 4 | D19: 4 | E19: 0 | F19: 1
A20: Lavalleja | B20: 6 | C20: 6 | D20: 6 | E20: 0 | F20: 0
A21: Maldonado | B21: 28 | C21: 25 | D21: 25 | E21: 0 | F21: 3
A22: Paysandú | B22: 15 | C22: 10 | D22: 9 | E22: 1 | F22: 5
A23: Río Negro | B23: 8 | C23: 7 | D23: 5 | E23: 2 | F23: 1
A24: Rivera | B24: 9 | C24: 7 | D24: 7 | E24: 0 | F24: 2
A25: Rocha | B25: 6 | C25: 4 | D25: 4 | E25: 0 | F25: 2
A26: Salto | B26: 11 | C26: 7 | D26: 7 | E26: 0 | F26: 4
A27: San José | B27: 7 | C27: 7 | D27: 6 | E27: 1 | F27: 0
A28: Soriano | B28: 8 | C28: 4 | D28: 4 | E28: 0 | F28: 4
A29: Tacuarembó | B29: 7 | C29: 7 | D29: 7 | E29: 0 | F29: 0
A30: Treinta y Tres | B30: 1 | C30: 1 | D30: 1 | E30: 0 | F30: 0
A31: Fuente: Procesamiento propio en base a datos proporcionados por el D.E.E. — C.E.I.P.

Sheet II-2.2.1
A1: CONSEJO DE EDUCACIÓN PRIMARIA | H1: ESTUDIANTES MATRICULADOS
A3: Cuadro Nº II-2.2.1
A4: ESTUDIANTES MATRICULADOS EN EDUCACIÓN PRIMARIA COMÚN POR FORMA DE ADMINISTRACIÓN Y SEXO SEGÚN DEPARTAMENTO (Todo el país, 2017)
A5: DEPARTAMENTO | B5: TOTAL | C5: FORMA DE ADMINISTRACIÓN
C6: TOTAL | E6: PÚBLICA | H6: PRIVADA
E7: TOTAL | F7: SEXO | H7: TOTAL | I7: SEXO
C8: VARÓN | D8: MUJER | F8: V | G8: M | I8: V | J8: M
A9: TOTAL | B9: =E9+H9 -> 295674 | C9: =+F9+I9 -> 151736 | D9: =+G9+J9 -> 143938 | E9: =+F9+G9 -> 243841 | F9: =SUM(F10:F11) -> 125288 | G9: =SUM(G10:G11) -> 118553 | H9: =+I9+J9 -> 51833 | I9: =SUM(I10:I11) -> 26448 | J9: =SUM(J10:J11) -> 25385
A10: MONTEVIDEO | B10: =E10+H10 -> 108443 | C10: =+F10+I10 -> 55823 | D10: =+G10+J10 -> 52620 | E10: =+F10+G10 -> 76483 | F10: 39540 | G10: 36943 | H10: =+I10+J10 -> 31960 | I10: 16283 | J10: 15677
A11: RESTO DEL PAÍS | B11: 187231 | C11: 95913 | D11: 91318 | E11: =SUM(E12:E29) -> 167358 | F11: =SUM(F12:F29) -> 85748 | G11: =SUM(G12:G29) -> 81610 | H11: =+I11+J11 -> 19873 | I11: =SUM(I12:I29) -> 10165 | J11: =SUM(J12:J29) -> 9708
A12: Artigas | B12: 7420 | C12: 3884 | D12: 3536 | E12: =+F12+G12 -> 7235 | F12: 3778 | G12: 3457 | H12: =+I12+J12 -> 185 | I12: 106 | J12: 79
A13: Canelones | B13: 49404 | C13: 25330 | D13: 24074 | E13: =+F13+G13 -> 41786 | F13: 21416 | G13: 20370 | H13: 7618 | I13: 3914 | J13: 3704
A14: Cerro Largo | B14: 8212 | C14: 4260 | D14: 3952 | E14: 7597 | F14: 3954 | G14: 3643 | H14: 615 | I14: 306 | J14: 309
A15: Colonia | B15: 10859 | C15: 5510 | D15: 5349 | E15: 10116 | F15: 5134 | G15: 4982 | H15: 743 | I15: 376 | J15: 367
A16: Durazno | B16: 5203 | C16: 2675 | D16: 2528 | E16: 4653 | F16: 2400 | G16: 2253 | H16: 550 | I16: 275 | J16: 275
A17: Flores | B17: 2132 | C17: 1050 | D17: 1082 | E17: 1880 | F17: 929 | G17: 951 | H17: 252 | I17: 121 | J17: 131
A18: Florida | B18: 5702 | C18: 2950 | D18: 2752 | E18: 5454 | F18: 2820 | G18: 2634 | H18: 248 | I18: 130 | J18: 118
A19: Lavalleja | B19: 4686 | C19: 2356 | D19: 2330 | E19: 4131 | F19: 2079 | G19: 2052 | H19: 555 | I19: 277 | J19: 278
A20: Maldonado | B20: 15791 | C20: 7982 | D20: 7809 | E20: 12415 | F20: 6230 | G20: 6185 | H20: 3376 | I20: 1752 | J20: 1624
A21: Paysandú | B21: 11217 | C21: 5711 | D21: 5506 | E21: 10089 | F21: 5139 | G21: 4950 | H21: 1128 | I21: 572 | J21: 556
A22: Río Negro | B22: 5722 | C22: 2937 | D22: 2785 | E22: 5230 | F22: 2660 | G22: 2570 | H22: 492 | I22: 277 | J22: 215
A23: Rivera | B23: 10617 | C23: 5453 | D23: 5164 | E23: 10050 | F23: 5180 | G23: 4870 | H23: 567 | I23: 273 | J23: 294
A24: Rocha | B24: 6596 | C24: 3376 | D24: 3220 | E24: 6313 | F24: 3232 | G24: 3081 | H24: 283 | I24: 144 | J24: 139
A25: Salto | B25: 13298 | C25: 6872 | D25: 6426 | E25: 12135 | F25: 6278 | G25: 5857 | H25: 1163 | I25: 594 | J25: 569
A26: San José | B26: 10173 | C26: 5207 | D26: 4966 | E26: 9435 | F26: 4851 | G26: 4584 | H26: 738 | I26: 356 | J26: 382
A27: Soriano | B27: 7739 | C27: 4011 | D27: 3728 | E27: 7284 | F27: 3764 | G27: 3520 | H27: 455 | I27: 247 | J27: 208
A28: Tacuarembó | B28: 8324 | C28: 4202 | D28: 4122 | E28: 7611 | F28: 3857 | G28: 3754 | H28: 713 | I28: 345 | J28: 368
A29: Treinta y Tres | B29: 4136 | C29: 2147 | D29: 1989 | E29: 3944 | F29: 2047 | G29: 1897 | H29: 192 | I29: 100 | J29: 92
A30: Fuente: Procesamiento propio en base a datos proporcionados por el DEE — CEIP.
A31: Nota: Pública no incluye JICI.

Sheet II-2.2.2
A1: CONSEJO DE EDUCACIÓN PRIMARIA | H1: ESTUDIANTES MATRICULADOS
A3: Cuadro Nº II-2.2.2
A5: ESTUDIANTES MATRICULADOS EN EDUCACIÓN PRIMARIA PÚBLICA POR TIPO DE EDUCACIÓN Y SEXO SEGÚN DEPARTAMENTO (Todo el país, 2017)
A6: DEPARTAMENTO | B6: TOTAL | C6: TOTAL SEXO | E6: TIPO DE EDUCACIÓN
E7: COMÚN | H7: ESPECIAL
H8: Total | I8: ESCUELAS ESPECIALES | K8: CLASES ESPECIALES EN ESCUELAS COMUNES
E9: Total | F9: SEXO | I9: SEXO | K9: SEXO
C10: VARÓN | D10: MUJER | F10: V | G10: M | I10: V | J10: M | K10: V | L10: M
A11: TOTAL | B11: =+C11+D11 -> 250046 | C11: =+F11+I11+K11 -> 129160 | D11: =+G11+J11+L11 -> 120886 | E11: =+F11+G11 -> 243841 | F11: =SUM(F12:F13) -> 125288 | G11: =SUM(G12:G13) -> 118553 | H11: =+I11+J11+K11+L11 -> 6205 | I11: =SUM(I12:I13) -> 3780 | J11: =SUM(J12:J13) -> 2270 | K11: =SUM(K12:K13) -> 92 | L11: =SUM(L12:L13) -> 63
A12: MONTEVIDEO | B12: =+C12+D12 -> 79041 | C12: =+F12+I12+K12 -> 41124 | D12: 37917 | E12: =+F12+G12 -> 76483 | F12: 39540 | G12: 36943 | H12: =+I12+J12+K12+L12 -> 2558 | I12: 1584 | J12: 974 | K12: 0 | L12: 0
A13: RESTO DEL PAÍS | B13: 171005 | C13: 88036 | D13: 82969 | E13: =+F13+G13 -> 167358 | F13: =SUM(F14:F31) -> 85748 | G13: 81610 | H13: 3647 | I13: 2196 | J13: 1296 | K13: 92 | L13: 63
A14: Artigas | B14: 7410 | C14: 3891 | D14: 3519 | E14: =+F14+G14 -> 7235 | F14: 3778 | G14: 3457 | H14: 175 | I14: 108 | J14: 58 | K14: 5 | L14: 4
A15: Canelones | B15: 42490 | C15: 21859 | D15: 20631 | E15: 41786 | F15: 21416 | G15: 20370 | H15: 704 | I15: 409 | J15: 245 | K15: 34 | L15: 16
A16: Cerro Largo | B16: 7812 | C16: 4085 | D16: 3727 | E16: 7597 | F16: 3954 | G16: 3643 | H16: 215 | I16: 125 | J16: 81 | K16: 6 | L16: 3
A17: Colonia | B17: 10320 | C17: 5252 | D17: 5068 | E17: 10116 | F17: 5134 | G17: 4982 | H17: 204 | I17: 117 | J17: 83 | K17: 1 | L17: 3
A18: Durazno | B18: 4786 | C18: 2490 | D18: 2296 | E18: 4653 | F18: 2400 | G18: 2253 | H18: 133 | I18: 88 | J18: 39 | K18: 2 | L18: 4
A19: Flores | B19: 1906 | C19: 947 | D19: 959 | E19: 1880 | F19: 929 | G19: 951 | H19: 26 | I19: 18 | J19: 7 | K19: 0 | L19: 1
A20: Florida | B20: 5594 | C20: 2908 | D20: 2686 | E20: 5454 | F20: 2820 | G20: 2634 | H20: 140 | I20: 83 | J20: 50 | K20: 5 | L20: 2
A21: Lavalleja | B21: 4272 | C21: 2173 | D21: 2099 | E21: 4131 | F21: 2079 | G21: 2052 | H21: 141 | I21: 92 | J21: 44 | K21: 2 | L21: 3
A22: Maldonado | B22: 12722 | C22: 6411 | D22: 6311 | E22: 12415 | F22: 6230 | G22: 6185 | H22: 307 | I22: 181 | J22: 126 | K22: 0 | L22: 0
A23: Paysandú | B23: 10266 | C23: 5261 | D23: 5005 | E23: 10089 | F23: 5139 | G23: 4950 | H23: 177 | I23: 112 | J23: 48 | K23: 10 | L23: 7
A24: Río Negro | B24: 5383 | C24: 2761 | D24: 2622 | E24: 5230 | F24: 2660 | G24: 2570 | H24: 153 | I24: 100 | J24: 49 | K24: 1 | L24: 3
A25: Rivera | B25: 10171 | C25: 5245 | D25: 4926 | E25: 10050 | F25: 5180 | G25: 4870 | H25: 121 | I25: 65 | J25: 56 | K25: 0 | L25: 0
A26: Rocha | B26: 6541 | C26: 3374 | D26: 3167 | E26: 6313 | F26: 3232 | G26: 3081 | H26: 228 | I26: 128 | J26: 76 | K26: 14 | L26: 10
A27: Salto | B27: 12437 | C27: 6464 | D27: 5973 | E27: 12135 | F27: 6278 | G27: 5857 | H27: 302 | I27: 186 | J27: 116 | K27: 0 | L27: 0
A28: San José | B28: 9650 | C28: 4996 | D28: 4654 | E28: 9435 | F28: 4851 | G28: 4584 | H28: 215 | I28: 139 | J28: 69 | K28: 6 | L28: 1
A29: Soriano | B29: 7459 | C29: 3881 | D29: 3578 | E29: 7284 | F29: 3764 | G29: 3520 | H29: 175 | I29: 115 | J29: 58 | K29: 2 | L29: 0
A30: Tacuarembó | B30: 7788 | C30: 3965 | D30: 3823 | E30: 7611 | F30: 3857 | G30: 3754 | H30: 177 | I30: 105 | J30: 66 | K30: 3 | L30: 3
A31: Treinta y Tres | B31: 3998 | C31: 2073 | D31: 1925 | E31: 3944 | F31: 2047 | G31: 1897 | H31: 54 | I31: 25 | J31: 25 | K31: 1 | L31: 3
A32: Fuente: Procesamiento propio en base a datos proporcionados por el D.E.E. — C.E.I.P.

Sheet II-2.2.3
A1: CONSEJO DE EDUCACIÓN PRIMARIA | O1: ESTUDIANTES MATRICULADOS
A3: Cuadro Nº II-2.2.3
A5: ESTUDIANTES MATRICULADOS EN EDUCACIÓN PRIMARIA PÚBLICA COMÚN POR ÁREA DEMOGRÁFICA Y CATEGORÍA SEGÚN DEPARTAMENTO (Todo el país, 2017) | T5: VOLVER
A6: DEPARTAMENTO | B6: TOTAL | C6: ÁREA DEMOGRÁFICA
C7: URBANA | P7: RURAL
C8: Total Urbana | D8: CATEGORÍA | O8: Total Rural | P8: CATEGORÍA
D9: Aprender | E9: Aprender H. de Práctica | F9: Común | G9: Práctica | H9: Tiempo Completo | I9: Habilitada de Práctica | J9: Tiempo Extendido H. de Práctica | K9: Tiempo Extendido de Práctica | L9: Tiempo Extendido | M9: Unidocente | N9: JICI | P9: con Maestro a cargo | Q9: Internado Rural | R9: Unidocente
A11: TOTAL | B11: =+C11+O11 -> 243955 | C11: =SUM(D11:N11) -> 230690 | D11: =SUM(D12:D13) -> 70032 | E11: 2801 | F11: 72474 | G11: 17876 | H11: 38049 | I11: 21592 | J11: 458 | K11: 2095 | L11: 5173 | M11: 26 | N11: 114 | O11: =SUM(P11:R11) -> 13265 | P11: =SUM(P12:P13) -> 8915 | Q11: =SUM(Q12:Q13) -> 164 | R11: =SUM(R12:R13) -> 4186
A12: MONTEVIDEO | B12: =+C12+O12 -> 76597 | C12: =SUM(D12:N12) -> 76597 | D12: 32249 | E12: 0 | F12: 23464 | G12: 4232 | H12: 11726 | I12: 1851 | J12: 288 | K12: 1273 | L12: 1400 | M12: 0 | N12: 114 | O12: 0 | P12: 0 | Q12: 0 | R12: 0
A13: RESTO DEL PAÍS | B13: =+C13+O13 -> 167358 | C13: 154093 | D13: =SUM(D14:D31) -> 37783 | E13: 2801 | F13: 49010 | G13: 13644 | H13: 26323 | I13: 19741 | J13: 170 | K13: 822 | L13: 3773 | M13: 26 | N13: 0 | O13: 13265 | P13: =SUM(P14:P31) -> 8915 | Q13: =SUM(Q14:Q31) -> 164 | R13: =SUM(R14:R31) -> 4186
A14: Artigas | B14: =C14+O14 -> 7235 | C14: 6690 | D14: 2311 | E14: 0 | F14: 1041 | G14: 597 | H14: 1526 | I14: 1121 | J14: 0 | K14: 0 | L14: 94 | M14: 0 | N14: 0 | O14: 545 | P14: 403 | Q14: 30 | R14: 112
A15: Canelones | B15: 41786 | C15: 39377 | D15: 12543 | E15: 907 | F15: 13712 | G15: 2126 | H15: 5716 | I15: 3838 | J15: 0 | K15: 0 | L15: 535 | M15: 0 | N15: 0 | O15: 2409 | P15: 2049 | Q15: 27 | R15: 333
A16: Cerro Largo | B16: 7597 | C16: 6868 | D16: 1751 | E16: 205 | F16: 912 | G16: 737 | H16: 1473 | I16: 1220 | J16: 0 | K16: 0 | L16: 570 | M16: 0 | N16: 0 | O16: 729 | P16: 417 | Q16: 0 | R16: 312
A17: Colonia | B17: 10116 | C17: 9158 | D17: 156 | E17: 0 | F17: 4695 | G17: 983 | H17: 1327 | I17: 1425 | J17: 0 | K17: 185 | L17: 387 | M17: 0 | N17: 0 | O17: 958 | P17: 549 | Q17: 0 | R17: 409
A18: Durazno | B18: 4653 | C18: 4253 | D18: 729 | E18: 0 | F18: 828 | G18: 750 | H18: 875 | I18: 977 | J18: 0 | K18: 0 | L18: 94 | M18: 0 | N18: 0 | O18: 400 | P18: 139 | Q18: 0 | R18: 261
A19: Flores | B19: 1880 | C19: 1705 | D19: 0 | E19: 0 | F19: 648 | G19: 267 | H19: 438 | I19: 263 | J19: 0 | K19: 0 | L19: 89 | M19: 0 | N19: 0 | O19: 175 | P19: 55 | Q19: 21 | R19: 99
A20: Florida | B20: 5454 | C20: 4732 | D20: 332 | E20: 0 | F20: 1746 | G20: 587 | H20: 905 | I20: 808 | J20: 0 | K20: 0 | L20: 354 | M20: 0 | N20: 0 | O20: 722 | P20: 442 | Q20: 0 | R20: 280
A21: Lavalleja | B21: 4131 | C21: 3731 | D21: 0 | E21: 53 | F21: 1654 | G21: 524 | H21: 813 | I21: 568 | J21: 0 | K21: 0 | L21: 93 | M21: 26 | N21: 0 | O21: 400 | P21: 189 | Q21: 0 | R21: 211
A22: Maldonado | B22: 12415 | C22: 11926 | D22: 2779 | E22: 0 | F22: 3677 | G22: 877 | H22: 1685 | I22: 2652 | J22: 0 | K22: 0 | L22: 256 | M22: 0 | N22: 0 | O22: 489 | P22: 332 | Q22: 17 | R22: 140
A23: Paysandú | B23: 10089 | C23: 9274 | D23: 1853 | E23: 1003 | F23: 3146 | G23: 938 | H23: 1583 | I23: 518 | J23: 0 | K23: 233 | L23: 0 | M23: 0 | N23: 0 | O23: 815 | P23: 532 | Q23: 30 | R23: 253
A24: Río Negro | B24: 5230 | C24: 4768 | D24: 211 | E24: 0 | F24: 2256 | G24: 441 | H24: 881 | I24: 759 | J24: 0 | K24: 220 | L24: 0 | M24: 0 | N24: 0 | O24: 462 | P24: 302 | Q24: 34 | R24: 126
A25: Rivera | B25: 10050 | C25: 9262 | D25: 3682 | E25: 633 | F25: 1799 | G25: 780 | H25: 1651 | I25: 555 | J25: 0 | K25: 0 | L25: 162 | M25: 0 | N25: 0 | O25: 788 | P25: 547 | Q25: 0 | R25: 241
A26: Rocha | B26: 6313 | C26: 6043 | D26: 1185 | E26: 0 | F26: 2783 | G26: 680 | H26: 1225 | I26: 0 | J26: 170 | K26: 0 | L26: 0 | M26: 0 | N26: 0 | O26: 270 | P26: 77 | Q26: 0 | R26: 193
A27: Salto | B27: 12135 | C27: 10997 | D27: 3630 | E27: 0 | F27: 1630 | G27: 1313 | H27: 2430 | I27: 1798 | J27: 0 | K27: 0 | L27: 196 | M27: 0 | N27: 0 | O27: 1138 | P27: 964 | Q27: 5 | R27: 169
A28: San José | B28: 9435 | C28: 8279 | D28: 3156 | E28: 0 | F28: 2671 | G28: 85 | H28: 1244 | I28: 664 | J28: 0 | K28: 184 | L28: 275 | M28: 0 | N28: 0 | O28: 1156 | P28: 874 | Q28: 0 | R28: 282
A29: Soriano | B29: 7284 | C29: 6713 | D29: 1308 | E29: 0 | F29: 2494 | G29: 812 | H29: 1084 | I29: 1015 | J29: 0 | K29: 0 | L29: 0 | M29: 0 | N29: 0 | O29: 571 | P29: 267 | Q29: 0 | R29: 304
A30: Tacuarembó | B30: 7611 | C30: 6666 | D30: 1795 | E30: 0 | F30: 2231 | G30: 511 | H30: 897 | I30: 737 | J30: 0 | K30: 0 | L30: 495 | M30: 0 | N30: 0 | O30: 945 | P30: 651 | Q30: 0 | R30: 294
A31: Treinta y Tres | B31: 3944 | C31: 3651 | D31: 362 | E31: 0 | F31: 1087 | G31: 636 | H31: 570 | I31: 823 | J31: 0 | K31: 0 | L31: 173 | M31: 0 | N31: 0 | O31: 293 | P31: 126 | Q31: 0 | R31: 167
A32: Fuente: Procesamiento propio en base a datos proporcionados por el D.E.E .— C.E.I.P.

Sheet II-2.2.4
A1: CONSEJO DE EDUCACIÓN PRIMARIA | H1: ESTUDIANTES MATRICULADOS
A3: Cuadro Nº II-2.2.4
A5: ESTUDIANTES MATRICULADOS EN EDUCACIÓN PRIMARIA PÚBLICA ESPECIAL POR TIPO DE DISCAPACIDAD SEGÚN DEPARTAMENTO (Todo el país, 2017)
A6: DEPARTAMENTO | C6: TOTAL | D6: DISCAPACIDAD
D7: Auditiva | E7: Intelectual | F7: Motriz | G7: Visual | H7: Problemas de conducta | I7: Problemas de personalidad | J7: Trastornos generalizados del desarrollo | K7: Común
A9: TOTAL | C9: =SUM(D9:K9) -> 6205 | D9: =SUM(D11:D12) -> 201 | E9: =SUM(E11:E12) -> 5488 | F9: 103 | G9: 98 | H9: 35 | I9: 81 | J9: 44 | K9: =SUM(K11:K12) -> 155
A11: MONTEVIDEO | C11: =SUM(D11:K11) -> 2558 | D11: 105 | E11: 2136 | F11: 103 | G11: 98 | H11: 35 | I11: 81 | J11: 0 | K11: 0
A12: RESTO DEL PAÍS | C12: =SUM(D12:K12) -> 3647 | D12: =SUM(D13:D30) -> 96 | E12: =SUM(E13:E30) -> 3352 | F12: 0 | G12: 0 | H12: 0 | I12: 0 | J12: 44 | K12: 155
A13: Artigas | C13: =SUM(D13:K13) -> 175 | D13: 0 | E13: 166 | F13: 0 | G13: 0 | H13: 0 | I13: 0 | J13: 0 | K13: 9
A14: Canelones | C14: 704 | D14: 0 | E14: 654 | F14: 0 | G14: 0 | H14: 0 | I14: 0 | J14: 0 | K14: 50
A15: Cerro Largo | C15: 215 | D15: 0 | E15: 206 | F15: 0 | G15: 0 | H15: 0 | I15: 0 | J15: 0 | K15: 9
A16: Colonia | C16: 204 | D16: 0 | E16: 200 | F16: 0 | G16: 0 | H16: 0 | I16: 0 | J16: 0 | K16: 4
A17: Durazno | C17: 133 | D17: 0 | E17: 127 | F17: 0 | G17: 0 | H17: 0 | I17: 0 | J17: 0 | K17: 6
A18: Flores | C18: 26 | D18: 0 | E18: 25 | F18: 0 | G18: 0 | H18: 0 | I18: 0 | J18: 0 | K18: 1
A19: Florida | C19: 140 | D19: 0 | E19: 133 | F19: 0 | G19: 0 | H19: 0 | I19: 0 | J19: 0 | K19: 7
A20: Lavalleja | C20: 141 | D20: 0 | E20: 136 | F20: 0 | G20: 0 | H20: 0 | I20: 0 | J20: 0 | K20: 5
A21: Maldonado | C21: 307 | D21: 26 | E21: 281 | F21: 0 | G21: 0 | H21: 0 | I21: 0 | J21: 0 | K21: 0
A22: Paysandú | C22: 177 | D22: 0 | E22: 160 | F22: 0 | G22: 0 | H22: 0 | I22: 0 | J22: 0 | K22: 17
A23: Río Negro | C23: 153 | D23: 0 | E23: 149 | F23: 0 | G23: 0 | H23: 0 | I23: 0 | J23: 0 | K23: 4
A24: Rivera | C24: 121 | D24: 21 | E24: 100 | F24: 0 | G24: 0 | H24: 0 | I24: 0 | J24: 0 | K24: 0
A25: Rocha | C25: 228 | D25: 0 | E25: 204 | F25: 0 | G25: 0 | H25: 0 | I25: 0 | J25: 0 | K25: 24
A26: Salto | C26: 302 | D26: 49 | E26: 209 | F26: 0 | G26: 0 | H26: 0 | I26: 0 | J26: 44 | K26: 0
A27: San José | C27: 215 | D27: 0 | E27: 208 | F27: 0 | G27: 0 | H27: 0 | I27: 0 | J27: 0 | K27: 7
A28: Soriano | C28: 175 | D28: 0 | E28: 173 | F28: 0 | G28: 0 | H28: 0 | I28: 0 | J28: 0 | K28: 2
A29: Tacuarembó | C29: 177 | D29: 0 | E29: 171 | F29: 0 | G29: 0 | H29: 0 | I29: 0 | J29: 0 | K29: 6
A30: Treinta y Tres | C30: 54 | D30: 0 | E30: 50 | F30: 0 | G30: 0 | H30: 0 | I30: 0 | J30: 0 | K30: 4
A31: Fuente: D.E.E. — C.E.P.
A32: Nota: No incluye Clases Especiales en Escuelas Comunes

Sheet II-2.2.5
A1: CONSEJO DE EDUCACIÓN PRIMARIA | M1: ESTUDIANTES MATRICULADOS
A3: Cuadro Nº II-2.2.5
A5: ESTUDIANTES MATRICULADOS EN EDUCACIÓN ESPECIAL PÚBLICA POR EDADES SIMPLES Y SEXO, SEGÚN DEPARTAMENTO (Todo el país, 2017)
A6: DEPARTAMENTO | B6: TOTAL GENERAL | C6: TOTAL MUJERES | D6: TOTAL VARONES | E6: EDAD
E7: Menos de 3 años | G7: 3 años | I7: 4 años | K7: 5 años | M7: 6 años | O7: 7 años | Q7: 8 años | S7: 9 años | U7: 10 años | W7: 11 años | Y7: 12 años | AA7: 13 años | AC7: 14 años | AE7: 15 años | AG7: 16 años | AI7: 17 años | AK7: 18 años | AM7: 19 años | AO7: 20 años | AQ7: 21 años | AS7: Más de 21 años
E8: SEXO
E9: M | F9: V | G9: M | H9: V | I9: M | J9: V | K9: M | L9: V | M9: M | N9: V | O9: M | P9: V | Q9: M | R9: V | S9: M | T9: V | U9: M | V9: V | W9: M | X9: V | Y9: M | Z9: V | AA9: M | AB9: V | AC9: M | AD9: V | AE9: M | AF9: V | AG9: M | AH9: V | AI9: M | AJ9: V | AK9: M | AL9: V | AM9: M | AN9: V | AO9: M | AP9: V | AQ9: M | AR9: V | AS9: M | AT9: V
A11: TOTAL | B11: =C11+D11 -> 6205 | C11: =E11+G11+I11+K11+M11+O11+Q11+S11+U11+W11+Y11+AA11+AC11+AE11+AG11+AI11+AK11+AM11+AO11+AQ11+AS11 -> 2333 | D11: =F11+H11+J11+L11+N11+P11+R11+T11+V11+X11+Z11+AB11+AD11+AF11+AH11+AJ11+AL11+AN11+AP11+AR11+AT11 -> 3872 | E11: =SUM(E12:E13) -> 2 | F11: 3 | G11: 6 | H11: 13 | I11: 18 | J11: 29 | K11: 35 | L11: 65 | M11: 62 | N11: 148 | O11: 123 | P11: 206 | Q11: =SUM(Q12:Q13) -> 168 | R11: 290 | S11: 204 | T11: 358 | U11: 239 | V11: 423 | W11: 241 | X11: 400 | Y11: 274 | Z11: 490 | AA11: 290 | AB11: 435 | AC11: 238 | AD11: 387 | AE11: 156 | AF11: 247 | AG11: 125 | AH11: 175 | AI11: 69 | AJ11: 89 | AK11: 42 | AL11: 53 | AM11: 16 | AN11: 32 | AO11: 12 | AP11: 12 | AQ11: 7 | AR11: 5 | AS11: 6 | AT11: 12
A12: MONTEVIDEO | B12: =C12+D12 -> 2558 | C12: 974 | D12: 1584 | E12: 1 | F12: 2 | G12: 2 | H12: 10 | I12: 12 | J12: 13 | K12: 17 | L12: 29 | M12: 24 | N12: 51 | O12: 52 | P12: 67 | Q12: 70 | R12: 111 | S12: 73 | T12: 123 | U12: 98 | V12: 177 | W12: 95 | X12: 152 | Y12: 108 | Z12: 200 | AA12: 120 | AB12: 171 | AC12: 104 | AD12: 160 | AE12: 58 | AF12: 114 | AG12: 55 | AH12: 81 | AI12: 36 | AJ12: 54 | AK12: 29 | AL12: 33 | AM12: 10 | AN12: 19 | AO12: 6 | AP12: 8 | AQ12: 3 | AR12: 5 | AS12: 1 | AT12: 4
A13: RESTO DEL PAÍS | B13: 3647 | C13: 1359 | D13: 2288 | E13: =SUM(E14:E31) -> 1 | F13: 1 | G13: 4 | H13: 3 | I13: 6 | J13: 16 | K13: 18 | L13: 36 | M13: 38 | N13: 97 | O13: 71 | P13: 139 | Q13: 98 | R13: 179 | S13: 131 | T13: 235 | U13: 141 | V13: 246 | W13: 146 | X13: 248 | Y13: 166 | Z13: 290 | AA13: 170 | AB13: 264 | AC13: 134 | AD13: 227 | AE13: 98 | AF13: 133 | AG13: 70 | AH13: 94 | AI13: 33 | AJ13: 35 | AK13: 13 | AL13: 20 | AM13: 6 | AN13: 13 | AO13: 6 | AP13: 4 | AQ13: 4 | AR13: 0 | AS13: 5 | AT13: 8
A14: Artigas | B14: =C14+D14 -> 175 | C14: =E14+G14+I14+K14+M14+O14+Q14+S14+U14+W14+Y14+AA14+AC14+AE14+AG14+AI14+AK14+AM14+AO14+AQ14+AS14 -> 62 | D14: =F14+H14+J14+L14+N14+P14+R14+T14+V14+X14+Z14+AB14+AD14+AF14+AH14+AJ14+AL14+AN14+AP14+AR14+AT14 -> 113 | E14: 0 | F14: 0 | G14: 0 | H14: 0 | I14: 0 | J14: 1 | K14: 0 | L14: 1 | M14: 1 | N14: 4 | O14: 2 | P14: 8 | Q14: 4 | R14: 9 | S14: 7 | T14: 8 | U14: 2 | V14: 14 | W14: 7 | X14: 8 | Y14: 12 | Z14: 18 | AA14: 8 | AB14: 11 | AC14: 2 | AD14: 13 | AE14: 9 | AF14: 5 | AG14: 5 | AH14: 9 | AI14: 2 | AJ14: 1 | AK14: 1 | AL14: 2 | AM14: 0 | AN14: 1 | AO14: 0 | AP14: 0 | AQ14: 0 | AR14: 0 | AS14: 0 | AT14: 0
A15: Canelones | B15: 704 | C15: =E15+G15+I15+K15+M15+O15+Q15+S15+U15+W15+Y15+AA15+AC15+AE15+AG15+AI15+AK15+AM15+AO15+AQ15+AS15 -> 261 | D15: =F15+H15+J15+L15+N15+P15+R15+T15+V15+X15+Z15+AB15+AD15+AF15+AH15+AJ15+AL15+AN15+AP15+AR15+AT15 -> 443 | E15: 0 | F15: 0 | G15: 0 | H15: 1 | I15: 0 | J15: 2 | K15: 2 | L15: 6 | M15: 9 | N15: 25 | O15: 15 | P15: 19 | Q15: 22 | R15: 38 | S15: 31 | T15: 44 | U15: 26 | V15: 48 | W15: 27 | X15: 47 | Y15: 39 | Z15: 72 | AA15: 30 | AB15: 62 | AC15: 31 | AD15: 42 | AE15: 13 | AF15: 21 | AG15: 6 | AH15: 11 | AI15: 6 | AJ15: 1 | AK15: 2 | AL15: 2 | AM15: 1 | AN15: 1 | AO15: 0 | AP15: 0 | AQ15: 0 | AR15: 0 | AS15: 1 | AT15: 1
A16: Cerro Largo | B16: 215 | C16: 84 | D16: 131 | E16: 0 | F16: 0 | G16: 0 | H16: 0 | I16: 0 | J16: 1 | K16: 1 | L16: 0 | M16: 3 | N16: 8 | O16: 3 | P16: 5 | Q16: 6 | R16: 10 | S16: 6 | T16: 14 | U16: 12 | V16: 8 | W16: 7 | X16: 14 | Y16: 8 | Z16: 21 | AA16: 9 | AB16: 15 | AC16: 7 | AD16: 14 | AE16: 10 | AF16: 8 | AG16: 5 | AH16: 4 | AI16: 2 | AJ16: 3 | AK16: 3 | AL16: 4 | AM16: 0 | AN16: 0 | AO16: 1 | AP16: 1 | AQ16: 1 | AR16: 0 | AS16: 0 | AT16: 1
A17: Colonia | B17: 204 | C17: 86 | D17: 118 | E17: 0 | F17: 0 | G17: 0 | H17: 1 | I17: 1 | J17: 2 | K17: 4 | L17: 1 | M17: 2 | N17: 6 | O17: 5 | P17: 8 | Q17: 12 | R17: 9 | S17: 10 | T17: 9 | U17: 10 | V17: 9 | W17: 6 | X17: 14 | Y17: 8 | Z17: 10 | AA17: 7 | AB17: 15 | AC17: 9 | AD17: 12 | AE17: 6 | AF17: 10 | AG17: 3 | AH17: 8 | AI17: 1 | AJ17: 4 | AK17: 1 | AL17: 0 | AM17: 0 | AN17: 0 | AO17: 1 | AP17: 0 | AQ17: 0 | AR17: 0 | AS17: 0 | AT17: 0
A18: Durazno | B18: 133 | C18: 43 | D18: 90 | E18: 0 | F18: 0 | G18: 0 | H18: 0 | I18: 0 | J18: 0 | K18: 0 | L18: 1 | M18: 0 | N18: 1 | O18: 2 | P18: 5 | Q18: 1 | R18: 4 | S18: 3 | T18: 12 | U18: 4 | V18: 9 | W18: 6 | X18: 6 | Y18: 4 | Z18: 11 | AA18: 5 | AB18: 10 | AC18: 9 | AD18: 6 | AE18: 1 | AF18: 8 | AG18: 5 | AH18: 5 | AI18: 2 | AJ18: 3 | AK18: 0 | AL18: 3 | AM18: 1 | AN18: 4 | AO18: 0 | AP18: 0 | AQ18: 0 | AR18: 0 | AS18: 0 | AT18: 2
A19: Flores | B19: 26 | C19: 8 | D19: 18 | E19: 0 | F19: 0 | G19: 0 | H19: 0 | I19: 0 | J19: 0 | K19: 0 | L19: 0 | M19: 0 | N19: 0 | O19: 0 | P19: 3 | Q19: 0 | R19: 0 | S19: 0 | T19: 2 | U19: 2 | V19: 1 | W19: 2 | X19: 3 | Y19: 2 | Z19: 1 | AA19: 1 | AB19: 1 | AC19: 0 | AD19: 1 | AE19: 0 | AF19: 1 | AG19: 0 | AH19: 2 | AI19: 1 | AJ19: 0 | AK19: 0 | AL19: 1 | AM19: 0 | AN19: 1 | AO19: 0 | AP19: 1 | AQ19: 0 | AR19: 0 | AS19: 0 | AT19: 0
A20: Florida | B20: 140 | C20: 52 | D20: 88 | E20: 0 | F20: 0 | G20: 0 | H20: 0 | I20: 0 | J20: 0 | K20: 0 | L20: 2 | M20: 2 | N20: 1 | O20: 0 | P20: 5 | Q20: 1 | R20: 10 | S20: 5 | T20: 8 | U20: 3 | V20: 7 | W20: 7 | X20: 6 | Y20: 9 | Z20: 12 | AA20: 7 | AB20: 16 | AC20: 9 | AD20: 7 | AE20: 3 | AF20: 8 | AG20: 1 | AH20: 4 | AI20: 1 | AJ20: 1 | AK20: 2 | AL20: 0 | AM20: 1 | AN20: 0 | AO20: 0 | AP20: 1 | AQ20: 0 | AR20: 0 | AS20: 1 | AT20: 0
A21: Lavalleja | B21: 141 | C21: 47 | D21: 94 | E21: 0 | F21: 0 | G21: 1 | H21: 0 | I21: 1 | J21: 1 | K21: 1 | L21: 3 | M21: 1 | N21: 6 | O21: 4 | P21: 11 | Q21: 1 | R21: 4 | S21: 1 | T21: 7 | U21: 1 | V21: 11 | W21: 10 | X21: 8 | Y21: 4 | Z21: 9 | AA21: 8 | AB21: 6 | AC21: 4 | AD21: 10 | AE21: 3 | AF21: 8 | AG21: 6 | AH21: 9 | AI21: 1 | AJ21: 1 | AK21: 0 | AL21: 0 | AM21: 0 | AN21: 0 | AO21: 0 | AP21: 0 | AQ21: 0 | AR21: 0 | AS21: 0 | AT21: 0
A22: Maldonado | B22: 307 | C22: 126 | D22: 181 | E22: 0 | F22: 0 | G22: 1 | H22: 1 | I22: 1 | J22: 3 | K22: 3 | L22: 8 | M22: 1 | N22: 8 | O22: 8 | P22: 13 | Q22: 10 | R22: 14 | S22: 9 | T22: 19 | U22: 12 | V22: 20 | W22: 14 | X22: 24 | Y22: 23 | Z22: 17 | AA22: 16 | AB22: 16 | AC22: 10 | AD22: 20 | AE22: 6 | AF22: 9 | AG22: 5 | AH22: 3 | AI22: 3 | AJ22: 2 | AK22: 1 | AL22: 2 | AM22: 1 | AN22: 2 | AO22: 1 | AP22: 0 | AQ22: 0 | AR22: 0 | AS22: 1 | AT22: 0
A23: Paysandú | B23: 177 | C23: 55 | D23: 122 | E23: 0 | F23: 0 | G23: 0 | H23: 0 | I23: 0 | J23: 0 | K23: 2 | L23: 3 | M23: 1 | N23: 7 | O23: 4 | P23: 7 | Q23: 5 | R23: 17 | S23: 5 | T23: 11 | U23: 9 | V23: 18 | W23: 6 | X23: 18 | Y23: 5 | Z23: 12 | AA23: 9 | AB23: 13 | AC23: 6 | AD23: 13 | AE23: 1 | AF23: 1 | AG23: 0 | AH23: 0 | AI23: 1 | AJ23: 1 | AK23: 0 | AL23: 0 | AM23: 0 | AN23: 0 | AO23: 0 | AP23: 0 | AQ23: 0 | AR23: 0 | AS23: 1 | AT23: 1
A24: Río Negro | B24: 153 | C24: 52 | D24: 101 | E24: 0 | F24: 0 | G24: 0 | H24: 0 | I24: 1 | J24: 0 | K24: 1 | L24: 1 | M24: 2 | N24: 7 | O24: 2 | P24: 6 | Q24: 6 | R24: 9 | S24: 7 | T24: 13 | U24: 4 | V24: 17 | W24: 5 | X24: 11 | Y24: 3 | Z24: 17 | AA24: 8 | AB24: 6 | AC24: 4 | AD24: 5 | AE24: 4 | AF24: 4 | AG24: 2 | AH24: 4 | AI24: 2 | AJ24: 1 | AK24: 1 | AL24: 0 | AM24: 0 | AN24: 0 | AO24: 0 | AP24: 0 | AQ24: 0 | AR24: 0 | AS24: 0 | AT24: 0
A25: Rivera | B25: 121 | C25: 56 | D25: 65 | E25: 0 | F25: 0 | G25: 0 | H25: 0 | I25: 0 | J25: 0 | K25: 0 | L25: 0 | M25: 3 | N25: 1 | O25: 1 | P25: 3 | Q25: 3 | R25: 4 | S25: 5 | T25: 7 | U25: 10 | V25: 5 | W25: 6 | X25: 11 | Y25: 8 | Z25: 6 | AA25: 8 | AB25: 11 | AC25: 4 | AD25: 9 | AE25: 4 | AF25: 3 | AG25: 2 | AH25: 5 | AI25: 0 | AJ25: 0 | AK25: 0 | AL25: 0 | AM25: 0 | AN25: 0 | AO25: 0 | AP25: 0 | AQ25: 2 | AR25: 0 | AS25: 0 | AT25: 0
A26: Rocha | B26: 228 | C26: 86 | D26: 142 | E26: 0 | F26: 1 | G26: 0 | H26: 0 | I26: 0 | J26: 1 | K26: 2 | L26: 3 | M26: 3 | N26: 6 | O26: 4 | P26: 12 | Q26: 6 | R26: 13 | S26: 10 | T26: 20 | U26: 11 | V26: 15 | W26: 10 | X26: 13 | Y26: 9 | Z26: 17 | AA26: 16 | AB26: 14 | AC26: 2 | AD26: 12 | AE26: 3 | AF26: 4 | AG26: 4 | AH26: 5 | AI26: 2 | AJ26: 0 | AK26: 1 | AL26: 2 | AM26: 0 | AN26: 1 | AO26: 2 | AP26: 0 | AQ26: 1 | AR26: 0 | AS26: 0 | AT26: 3
A27: Salto | B27: 302 | C27: 116 | D27: 186 | E27: 0 | F27: 0 | G27: 2 | H27: 0 | I27: 1 | J27: 4 | K27: 2 | L27: 4 | M27: 4 | N27: 7 | O27: 10 | P27: 8 | Q27: 8 | R27: 6 | S27: 13 | T27: 21 | U27: 8 | V27: 22 | W27: 8 | X27: 23 | Y27: 8 | Z27: 22 | AA27: 9 | AB27: 22 | AC27: 13 | AD27: 20 | AE27: 12 | AF27: 16 | AG27: 11 | AH27: 8 | AI27: 7 | AJ27: 2 | AK27: 0 | AL27: 0 | AM27: 0 | AN27: 1 | AO27: 0 | AP27: 0 | AQ27: 0 | AR27: 0 | AS27: 0 | AT27: 0
A28: San José | B28: 215 | C28: 70 | D28: 145 | E28: 0 | F28: 0 | G28: 0 | H28: 0 | I28: 0 | J28: 0 | K28: 0 | L28: 1 | M28: 1 | N28: 4 | O28: 4 | P28: 7 | Q28: 3 | R28: 7 | S28: 5 | T28: 14 | U28: 10 | V28: 13 | W28: 10 | X28: 17 | Y28: 6 | Z28: 21 | AA28: 8 | AB28: 17 | AC28: 8 | AD28: 18 | AE28: 9 | AF28: 15 | AG28: 5 | AH28: 6 | AI28: 1 | AJ28: 4 | AK28: 0 | AL28: 0 | AM28: 0 | AN28: 1 | AO28: 0 | AP28: 0 | AQ28: 0 | AR28: 0 | AS28: 0 | AT28: 0
A29: Soriano | B29: 175 | C29: 58 | D29: 117 | E29: 0 | F29: 0 | G29: 0 | H29: 0 | I29: 0 | J29: 0 | K29: 0 | L29: 2 | M29: 4 | N29: 4 | O29: 2 | P29: 9 | Q29: 3 | R29: 12 | S29: 4 | T29: 10 | U29: 4 | V29: 15 | W29: 4 | X29: 13 | Y29: 4 | Z29: 13 | AA29: 13 | AB29: 13 | AC29: 7 | AD29: 14 | AE29: 5 | AF29: 4 | AG29: 6 | AH29: 5 | AI29: 0 | AJ29: 1 | AK29: 0 | AL29: 0 | AM29: 0 | AN29: 1 | AO29: 1 | AP29: 1 | AQ29: 0 | AR29: 0 | AS29: 1 | AT29: 0
A30: Tacuarembó | B30: 177 | C30: 69 | D30: 108 | E30: 1 | F30: 0 | G30: 0 | H30: 0 | I30: 1 | J30: 1 | K30: 0 | L30: 0 | M30: 1 | N30: 2 | O30: 3 | P30: 9 | Q30: 6 | R30: 11 | S30: 6 | T30: 13 | U30: 9 | V30: 11 | W30: 10 | X30: 10 | Y30: 5 | Z30: 8 | AA30: 5 | AB30: 11 | AC30: 9 | AD30: 9 | AE30: 8 | AF30: 5 | AG30: 2 | AH30: 5 | AI30: 0 | AJ30: 9 | AK30: 1 | AL30: 4 | AM30: 2 | AN30: 0 | AO30: 0 | AP30: 0 | AQ30: 0 | AR30: 0 | AS30: 0 | AT30: 0
A31: Treinta y Tres | B31: 54 | C31: 28 | D31: 26 | E31: 0 | F31: 0 | G31: 0 | H31: 0 | I31: 0 | J31: 0 | K31: 0 | L31: 0 | M31: 0 | N31: 0 | O31: 2 | P31: 1 | Q31: 1 | R31: 2 | S31: 4 | T31: 3 | U31: 4 | V31: 3 | W31: 1 | X31: 2 | Y31: 9 | Z31: 3 | AA31: 3 | AB31: 5 | AC31: 0 | AD31: 2 | AE31: 1 | AF31: 3 | AG31: 2 | AH31: 1 | AI31: 1 | AJ31: 1 | AK31: 0 | AL31: 0 | AM31: 0 | AN31: 0 | AO31: 0 | AP31: 0 | AQ31: 0 | AR31: 0 | AS31: 0 | AT31: 0
A32: Fuente: Procesamiento propio en base a datos proporcionados por el DEE — CEIP

Sheet II-2.2.6
A1: CONSEJO DE EDUCACIÓN PRIMARIA | D1: ESTUDIANTES MATRICULADOS
A3: Cuadro Nº II-2.2.6
A5: ESTUDIANTES MATRICULADOS EN EDUCACIÓN PRIMARIA PRIVADA POR TIPO DE EDUCACIÓN SEGÚN DEPARTAMENTO (Todo el país, 2017)
A6: DEPARTAMENTO | B6: TIPO DE EDUCACIÓN
B7: TOTAL | C7: EDUCACIÓN COMÚN | F7: EDUCACIÓN ESPECIAL
C8: Total | D8: Habilitados | E8: Autorizados
A10: TOTAL DEL PAÍS | B10: =SUM(B11:B12) -> 54263 | C10: =+D10+E10 -> 51833 | D10: =D11+D12 -> 49166 | E10: =E11+E12 -> 2667 | F10: =F11+F12 -> 2430
A11: MONTEVIDEO | B11: =+C11+F11 -> 33393 | C11: =+D11+E11 -> 31960 | D11: 29754 | E11: 2206 | F11: 1433 | AT11: MONTEVIDEO
A12: RESTO DEL PAÍS | B12: =+C12+F12 -> 20870 | C12: =+D12+E12 -> 19873 | D12: =SUM(D13:D30) -> 19412 | E12: =SUM(E13:E30) -> 461 | F12: =SUM(F13:F30) -> 997 | AT12: RESTO DEL PAÍS
A13: Artigas | B13: =+C13+F13 -> 329 | C13: =+D13+E13 -> 185 | D13: 185 | E13: 0 | F13: 144 | AT13: Artigas
A14: Canelones | B14: 7741 | C14: =+D14+E14 -> 7618 | D14: 7183 | E14: 435 | F14: 123 | AT14: Canelones
A15: Cerro Largo | B15: 615 | C15: 615 | D15: 615 | E15: 0 | F15: 0 | AT15: Cerro Largo
A16: Colonia | B16: 771 | C16: 743 | D16: 743 | E16: 0 | F16: 28 | AT16: Colonia
A17: Durazno | B17: 550 | C17: 550 | D17: 550 | E17: 0 | F17: 0 | AT17: Durazno
A18: Flores | B18: 252 | C18: 252 | D18: 252 | E18: 0 | F18: 0 | AT18: Flores
A19: Florida | B19: 298 | C19: 248 | D19: 248 | E19: 0 | F19: 50 | AT19: Florida
A20: Lavalleja | B20: 555 | C20: 555 | D20: 555 | E20: 0 | F20: 0 | AT20: Lavalleja
A21: Maldonado | B21: 3468 | C21: 3376 | D21: 3376 | E21: 0 | F21: 92 | AT21: Maldonado
A22: Paysandú | B22: 1242 | C22: 1128 | D22: 1128 | E22: 0 | F22: 114 | AT22: Paysandú
A23: Río Negro | B23: 492 | C23: 492 | D23: 476 | E23: 16 | F23: 0 | AT23: Río Negro
A24: Rivera | B24: 567 | C24: 567 | D24: 567 | E24: 0 | F24: 0 | AT24: Rivera
A25: Rocha | B25: 283 | C25: 283 | D25: 283 | E25: 0 | F25: 0 | AT25: Rocha
A26: Salto | B26: 1362 | C26: 1163 | D26: 1163 | E26: 0 | F26: 199 | AT26: Salto
A27: San José | B27: 738 | C27: 738 | D27: 728 | E27: 10 | F27: 0 | AT27: San José
A28: Soriano | B28: 702 | C28: 455 | D28: 455 | E28: 0 | F28: 247 | AT28: Soriano
A29: Tacuarembó | B29: 713 | C29: 713 | D29: 713 | E29: 0 | F29: 0 | AT29: Tacuarembó
A30: Treinta y Tres | B30: 192 | C30: 192 | D30: 192 | E30: 0 | F30: 0 | AT30: Treinta y Tres
A31: Fuente: Procesamiento propio en base a datos proporcionados por el D.E.E. — C.E.I.P.
A32: Nota: Especial incluye la matrícula de clases especiales en escuelas comunes,
A33: Instrucción Temprana, Educación Inicial, Preparatorio y Talleres
A107: 30025 | B107: 2163 | C107: 2209
A108: 19484 | B108: 397 | C108: 1758
A109: 92 | B109: 0 | C109: 162
A110: 6669 | B110: 344 | C110: 0
A111: 615 | B111: 0 | C111: 0
A112: 724 | B112: 0 | C112: 0
A113: 634 | B113: 0 | C113: 0
A114: 361 | B114: 0 | C114: 7
A115: 296 | B115: 0 | C115: 62
A116: 615 | B116: 0 | C116: 0
A117: 3879 | B117: 0 | C117: 141
A118: 1175 | B118: 0 | C118: 276
A119: 428 | B119: 33 | C119: 149
A120: 673 | B120: 0 | C120: 7
A121: 413 | B121: 0 | C121: 87
A122: 1089 | B122: 0 | C122: 208
A123: 556 | B123: 20 | C123: 0
A124: 435 | B124: 0 | C124: 659
A125: 643 | B125: 0 | C125: 0
A126: 187 | B126: 0 | C126: 0

Sheet II-2.2.7
A1: CONSEJO DE EDUCACIÓN PRIMARIA | N1: ESTUDIANTES MATRICULADOS
A3: Cuadro Nº II-2.2.7
A5: ESTUDIANTES MATRICULADOS EN EDUCACIÓN ESPECIAL PRIVADA POR EDADES SIMPLES Y SEXO SEGÚN DEPARTAMENTO (Todo el país, 2017)
A6: DEPARTAMENTO | B6: TOTAL GENERAL | C6: TOTAL VARONES | D6: TOTAL MUJERES | E6: EDAD
E7: Menos de 3 años | G7: 3 años | I7: 4 años | K7: 5 años | M7: 6 años | O7: 7 años | Q7: 8 años | S7: 9 años | U7: 10 años | W7: 11 años | Y7: 12 años | AA7: 13 años | AC7: 14 años | AE7: 15 años | AG7: 16 años | AI7: 17 años | AK7: 18 años | AM7: 19 años | AO7: 20 años | AQ7: 21 años
E8: SEXO
E9: V | F9: M | G9: V | H9: M | I9: V | J9: M | K9: V | L9: M | M9: V | N9: M | O9: V | P9: M | Q9: V | R9: M | S9: V | T9: M | U9: V | V9: M | W9: V | X9: M | Y9: V | Z9: M | AA9: V | AB9: M | AC9: V | AD9: M | AE9: V | AF9: M | AG9: V | AH9: M | AI9: V | AJ9: M | AK9: V | AL9: M | AM9: V | AN9: M | AO9: V | AP9: M | AQ9: V | AR9: M
A11: TOTAL | B11: =C11+D11 -> 2430 | C11: =E11+G11+I11+K11+M11+O11+Q11+S11+U11+W11+Y11+AA11+AC11+AE11+AG11+AI11+AK11+AM11+AO11+AQ11 -> 1259 | D11: =F11+H11+J11+L11+N11+P11+R11+T11+V11+X11+Z11+AB11+AD11+AF11+AH11+AJ11+AL11+AN11+AP11+AR11 -> 1171 | E11: =SUM(E12:E13) -> 4 | F11: 5 | G11: 2 | H11: 1 | I11: 7 | J11: 3 | K11: 22 | L11: 13 | M11: 54 | N11: 32 | O11: 51 | P11: 24 | Q11: 55 | R11: 14 | S11: 57 | T11: 42 | U11: 65 | V11: 25 | W11: 43 | X11: 28 | Y11: 68 | Z11: 32 | AA11: 43 | AB11: 34 | AC11: 39 | AD11: 33 | AE11: 45 | AF11: 48 | AG11: 47 | AH11: 50 | AI11: 50 | AJ11: 38 | AK11: 59 | AL11: 60 | AM11: 40 | AN11: 91 | AO11: 44 | AP11: 119 | AQ11: 464 | AR11: 479
A12: MONTEVIDEO | B12: =C12+D12 -> 1433 | C12: =E12+G12+I12+K12+M12+O12+Q12+S12+U12+W12+Y12+AA12+AC12+AE12+AG12+AI12+AK12+AM12+AO12+AQ12 -> 701 | D12: =F12+H12+J12+L12+N12+P12+R12+T12+V12+X12+Z12+AB12+AD12+AF12+AH12+AJ12+AL12+AN12+AP12+AR12 -> 732 | E12: 0 | F12: 2 | G12: 0 | H12: 0 | I12: 2 | J12: 1 | K12: 15 | L12: 10 | M12: 32 | N12: 15 | O12: 24 | P12: 17 | Q12: 41 | R12: 10 | S12: 27 | T12: 24 | U12: 36 | V12: 11 | W12: 33 | X12: 20 | Y12: 46 | Z12: 22 | AA12: 23 | AB12: 22 | AC12: 17 | AD12: 17 | AE12: 21 | AF12: 28 | AG12: 30 | AH12: 33 | AI12: 30 | AJ12: 22 | AK12: 28 | AL12: 28 | AM12: 25 | AN12: 74 | AO12: 15 | AP12: 96 | AQ12: 256 | AR12: 280
A13: RESTO DEL PAÍS | B13: 997 | C13: 558 | D13: 439 | E13: =SUM(E14:E31) -> 4 | F13: =SUM(F14:F31) -> 3 | G13: 2 | H13: 1 | I13: 5 | J13: 2 | K13: 7 | L13: 3 | M13: 22 | N13: 17 | O13: 27 | P13: 7 | Q13: 14 | R13: 4 | S13: 30 | T13: 18 | U13: 29 | V13: 14 | W13: 10 | X13: 8 | Y13: 22 | Z13: 10 | AA13: 20 | AB13: 12 | AC13: 22 | AD13: 16 | AE13: 24 | AF13: 20 | AG13: 17 | AH13: 17 | AI13: 20 | AJ13: 16 | AK13: 31 | AL13: 32 | AM13: 15 | AN13: 17 | AO13: 29 | AP13: 23 | AQ13: 208 | AR13: 199
A14: Artigas | B14: 144 | C14: 73 | D14: 71 | E14: 0 | F14: 0 | G14: 0 | H14: 0 | I14: 0 | J14: 0 | K14: 0 | L14: 0 | M14: 4 | N14: 3 | O14: 1 | P14: 2 | Q14: 3 | R14: 0 | S14: 0 | T14: 0 | U14: 0 | V14: 0 | W14: 2 | X14: 0 | Y14: 0 | Z14: 0 | AA14: 5 | AB14: 0 | AC14: 1 | AD14: 3 | AE14: 2 | AF14: 2 | AG14: 6 | AH14: 5 | AI14: 2 | AJ14: 1 | AK14: 7 | AL14: 1 | AM14: 5 | AN14: 4 | AO14: 3 | AP14: 2 | AQ14: 32 | AR14: 48
A15: Canelones | B15: 123 | C15: 76 | D15: 47 | E15: 0 | F15: 0 | G15: 0 | H15: 0 | I15: 0 | J15: 0 | K15: 0 | L15: 0 | M15: 0 | N15: 0 | O15: 0 | P15: 0 | Q15: 1 | R15: 0 | S15: 1 | T15: 0 | U15: 1 | V15: 0 | W15: 0 | X15: 1 | Y15: 0 | Z15: 1 | AA15: 0 | AB15: 1 | AC15: 3 | AD15: 0 | AE15: 3 | AF15: 1 | AG15: 2 | AH15: 3 | AI15: 4 | AJ15: 0 | AK15: 2 | AL15: 1 | AM15: 4 | AN15: 0 | AO15: 14 | AP15: 8 | AQ15: 41 | AR15: 31
A16: Cerro Largo | B16: 0 | C16: 0 | D16: 0 | E16: 0 | F16: 0 | G16: 0 | H16: 0 | I16: 0 | J16: 0 | K16: 0 | L16: 0 | M16: 0 | N16: 0 | O16: 0 | P16: 0 | Q16: 0 | R16: 0 | S16: 0 | T16: 0 | U16: 0 | V16: 0 | W16: 0 | X16: 0 | Y16: 0 | Z16: 0 | AA16: 0 | AB16: 0 | AC16: 0 | AD16: 0 | AE16: 0 | AF16: 0 | AG16: 0 | AH16: 0 | AI16: 0 | AJ16: 0 | AK16: 0 | AL16: 0 | AM16: 0 | AN16: 0 | AO16: 0 | AP16: 0 | AQ16: 0 | AR16: 0
A17: Colonia | B17: 28 | C17: 17 | D17: 11 | E17: 0 | F17: 0 | G17: 0 | H17: 0 | I17: 0 | J17: 0 | K17: 0 | L17: 0 | M17: 0 | N17: 0 | O17: 0 | P17: 0 | Q17: 0 | R17: 0 | S17: 0 | T17: 0 | U17: 0 | V17: 0 | W17: 0 | X17: 0 | Y17: 0 | Z17: 1 | AA17: 3 | AB17: 0 | AC17: 2 | AD17: 3 | AE17: 2 | AF17: 1 | AG17: 5 | AH17: 1 | AI17: 1 | AJ17: 2 | AK17: 0 | AL17: 1 | AM17: 0 | AN17: 0 | AO17: 1 | AP17: 0 | AQ17: 3 | AR17: 2
A18: Durazno | B18: 0 | C18: 0 | D18: 0 | E18: 0 | F18: 0 | G18: 0 | H18: 0 | I18: 0 | J18: 0 | K18: 0 | L18: 0 | M18: 0 | N18: 0 | O18: 0 | P18: 0 | Q18: 0 | R18: 0 | S18: 0 | T18: 0 | U18: 0 | V18: 0 | W18: 0 | X18: 0 | Y18: 0 | Z18: 0 | AA18: 0 | AB18: 0 | AC18: 0 | AD18: 0 | AE18: 0 | AF18: 0 | AG18: 0 | AH18: 0 | AI18: 0 | AJ18: 0 | AK18: 0 | AL18: 0 | AM18: 0 | AN18: 0 | AO18: 0 | AP18: 0 | AQ18: 0 | AR18: 0
A19: Flores | B19: 0 | C19: 0 | D19: 0 | E19: 0 | F19: 0 | G19: 0 | H19: 0 | I19: 0 | J19: 0 | K19: 0 | L19: 0 | M19: 0 | N19: 0 | O19: 0 | P19: 0 | Q19: 0 | R19: 0 | S19: 0 | T19: 0 | U19: 0 | V19: 0 | W19: 0 | X19: 0 | Y19: 0 | Z19: 0 | AA19: 0 | AB19: 0 | AC19: 0 | AD19: 0 | AE19: 0 | AF19: 0 | AG19: 0 | AH19: 0 | AI19: 0 | AJ19: 0 | AK19: 0 | AL19: 0 | AM19: 0 | AN19: 0 | AO19: 0 | AP19: 0 | AQ19: 0 | AR19: 0
A20: Florida | B20: 50 | C20: 24 | D20: 26 | E20: 0 | F20: 3 | G20: 1 | H20: 1 | I20: 1 | J20: 1 | K20: 3 | L20: 0 | M20: 0 | N20: 0 | O20: 0 | P20: 0 | Q20: 0 | R20: 0 | S20: 0 | T20: 0 | U20: 0 | V20: 0 | W20: 0 | X20: 0 | Y20: 0 | Z20: 0 | AA20: 1 | AB20: 1 | AC20: 2 | AD20: 1 | AE20: 2 | AF20: 1 | AG20: 0 | AH20: 1 | AI20: 0 | AJ20: 1 | AK20: 1 | AL20: 1 | AM20: 1 | AN20: 0 | AO20: 1 | AP20: 1 | AQ20: 11 | AR20: 14
A21: Lavalleja | B21: 0 | C21: 0 | D21: 0 | E21: 0 | F21: 0 | G21: 0 | H21: 0 | I21: 0 | J21: 0 | K21: 0 | L21: 0 | M21: 0 | N21: 0 | O21: 0 | P21: 0 | Q21: 0 | R21: 0 | S21: 0 | T21: 0 | U21: 0 | V21: 0 | W21: 0 | X21: 0 | Y21: 0 | Z21: 0 | AA21: 0 | AB21: 0 | AC21: 0 | AD21: 0 | AE21: 0 | AF21: 0 | AG21: 0 | AH21: 0 | AI21: 0 | AJ21: 0 | AK21: 0 | AL21: 0 | AM21: 0 | AN21: 0 | AO21: 0 | AP21: 0 | AQ21: 0 | AR21: 0
A22: Maldonado | B22: 92 | C22: 47 | D22: 45 | E22: 0 | F22: 0 | G22: 0 | H22: 0 | I22: 1 | J22: 0 | K22: 0 | L22: 0 | M22: 0 | N22: 1 | O22: 0 | P22: 0 | Q22: 0 | R22: 1 | S22: 0 | T22: 2 | U22: 1 | V22: 0 | W22: 1 | X22: 2 | Y22: 1 | Z22: 2 | AA22: 0 | AB22: 0 | AC22: 6 | AD22: 3 | AE22: 2 | AF22: 2 | AG22: 2 | AH22: 1 | AI22: 0 | AJ22: 2 | AK22: 7 | AL22: 6 | AM22: 0 | AN22: 5 | AO22: 7 | AP22: 7 | AQ22: 19 | AR22: 11
A23: Paysandú | B23: 114 | C23: 60 | D23: 54 | E23: 3 | F23: 0 | G23: 0 | H23: 0 | I23: 0 | J23: 1 | K23: 1 | L23: 3 | M23: 2 | N23: 0 | O23: 1 | P23: 0 | Q23: 0 | R23: 0 | S23: 0 | T23: 0 | U23: 0 | V23: 0 | W23: 0 | X23: 0 | Y23: 0 | Z23: 0 | AA23: 0 | AB23: 1 | AC23: 1 | AD23: 0 | AE23: 1 | AF23: 4 | AG23: 0 | AH23: 2 | AI23: 6 | AJ23: 3 | AK23: 6 | AL23: 12 | AM23: 1 | AN23: 3 | AO23: 3 | AP23: 5 | AQ23: 35 | AR23: 20
A24: Río Negro | B24: 0 | C24: 0 | D24: 0 | E24: 0 | F24: 0 | G24: 0 | H24: 0 | I24: 0 | J24: 0 | K24: 0 | L24: 0 | M24: 0 | N24: 0 | O24: 0 | P24: 0 | Q24: 0 | R24: 0 | S24: 0 | T24: 0 | U24: 0 | V24: 0 | W24: 0 | X24: 0 | Y24: 0 | Z24: 0 | AA24: 0 | AB24: 0 | AC24: 0 | AD24: 0 | AE24: 0 | AF24: 0 | AG24: 0 | AH24: 0 | AI24: 0 | AJ24: 0 | AK24: 0 | AL24: 0 | AM24: 0 | AN24: 0 | AO24: 0 | AP24: 0 | AQ24: 0 | AR24: 0
A25: Rivera | B25: 0 | C25: 0 | D25: 0 | E25: 0 | F25: 0 | G25: 0 | H25: 0 | I25: 0 | J25: 0 | K25: 0 | L25: 0 | M25: 0 | N25: 0 | O25: 0 | P25: 0 | Q25: 0 | R25: 0 | S25: 0 | T25: 0 | U25: 0 | V25: 0 | W25: 0 | X25: 0 | Y25: 0 | Z25: 0 | AA25: 0 | AB25: 0 | AC25: 0 | AD25: 0 | AE25: 0 | AF25: 0 | AG25: 0 | AH25: 0 | AI25: 0 | AJ25: 0 | AK25: 0 | AL25: 0 | AM25: 0 | AN25: 0 | AO25: 0 | AP25: 0 | AQ25: 0 | AR25: 0
A26: Rocha | B26: 0 | C26: 0 | D26: 0 | E26: 0 | F26: 0 | G26: 0 | H26: 0 | I26: 0 | J26: 0 | K26: 0 | L26: 0 | M26: 0 | N26: 0 | O26: 0 | P26: 0 | Q26: 0 | R26: 0 | S26: 0 | T26: 0 | U26: 0 | V26: 0 | W26: 0 | X26: 0 | Y26: 0 | Z26: 0 | AA26: 0 | AB26: 0 | AC26: 0 | AD26: 0 | AE26: 0 | AF26: 0 | AG26: 0 | AH26: 0 | AI26: 0 | AJ26: 0 | AK26: 0 | AL26: 0 | AM26: 0 | AN26: 0 | AO26: 0 | AP26: 0 | AQ26: 0 | AR26: 0
A27: Salto | B27: 199 | C27: 127 | D27: 72 | E27: 0 | F27: 0 | G27: 0 | H27: 0 | I27: 0 | J27: 0 | K27: 1 | L27: 0 | M27: 15 | N27: 11 | O27: 15 | P27: 5 | Q27: 6 | R27: 2 | S27: 25 | T27: 11 | U27: 20 | V27: 12 | W27: 2 | X27: 3 | Y27: 16 | Z27: 4 | AA27: 7 | AB27: 8 | AC27: 2 | AD27: 1 | AE27: 3 | AF27: 2 | AG27: 1 | AH27: 1 | AI27: 5 | AJ27: 1 | AK27: 1 | AL27: 4 | AM27: 1 | AN27: 2 | AO27: 0 | AP27: 0 | AQ27: 7 | AR27: 5
A28: San José | B28: 0 | C28: 0 | D28: 0 | E28: 0 | F28: 0 | G28: 0 | H28: 0 | I28: 0 | J28: 0 | K28: 0 | L28: 0 | M28: 0 | N28: 0 | O28: 0 | P28: 0 | Q28: 0 | R28: 0 | S28: 0 | T28: 0 | U28: 0 | V28: 0 | W28: 0 | X28: 0 | Y28: 0 | Z28: 0 | AA28: 0 | AB28: 0 | AC28: 0 | AD28: 0 | AE28: 0 | AF28: 0 | AG28: 0 | AH28: 0 | AI28: 0 | AJ28: 0 | AK28: 0 | AL28: 0 | AM28: 0 | AN28: 0 | AO28: 0 | AP28: 0 | AQ28: 0 | AR28: 0
A29: Soriano | B29: 247 | C29: 134 | D29: 113 | E29: 1 | F29: 0 | G29: 1 | H29: 0 | I29: 3 | J29: 0 | K29: 2 | L29: 0 | M29: 1 | N29: 2 | O29: 10 | P29: 0 | Q29: 4 | R29: 1 | S29: 4 | T29: 5 | U29: 7 | V29: 2 | W29: 5 | X29: 2 | Y29: 5 | Z29: 2 | AA29: 4 | AB29: 1 | AC29: 5 | AD29: 5 | AE29: 9 | AF29: 7 | AG29: 1 | AH29: 3 | AI29: 2 | AJ29: 6 | AK29: 7 | AL29: 6 | AM29: 3 | AN29: 3 | AO29: 0 | AP29: 0 | AQ29: 60 | AR29: 68
A30: Tacuarembó | B30: 0 | C30: 0 | D30: 0 | E30: 0 | F30: 0 | G30: 0 | H30: 0 | I30: 0 | J30: 0 | K30: 0 | L30: 0 | M30: 0 | N30: 0 | O30: 0 | P30: 0 | Q30: 0 | R30: 0 | S30: 0 | T30: 0 | U30: 0 | V30: 0 | W30: 0 | X30: 0 | Y30: 0 | Z30: 0 | AA30: 0 | AB30: 0 | AC30: 0 | AD30: 0 | AE30: 0 | AF30: 0 | AG30: 0 | AH30: 0 | AI30: 0 | AJ30: 0 | AK30: 0 | AL30: 0 | AM30: 0 | AN30: 0 | AO30: 0 | AP30: 0 | AQ30: 0 | AR30: 0
A31: Treinta y Tres | B31: 0 | C31: 0 | D31: 0 | E31: 0 | F31: 0 | G31: 0 | H31: 0 | I31: 0 | J31: 0 | K31: 0 | L31: 0 | M31: 0 | N31: 0 | O31: 0 | P31: 0 | Q31: 0 | R31: 0 | S31: 0 | T31: 0 | U31: 0 | V31: 0 | W31: 0 | X31: 0 | Y31: 0 | Z31: 0 | AA31: 0 | AB31: 0 | AC31: 0 | AD31: 0 | AE31: 0 | AF31: 0 | AG31: 0 | AH31: 0 | AI31: 0 | AJ31: 0 | AK31: 0 | AL31: 0 | AM31: 0 | AN31: 0 | AO31: 0 | AP31: 0 | AQ31: 0 | AR31: 0
A32: Fuente: Procesamiento propio en base a datos proporcionados por el DEE — CEIP

Sheet II-2.2.8
A1: CONSEJO DE EDUCACIÓN PRIMARIA | M1: ESTUDIANTES MATRICULADOS
A3: Cuadro Nº II-2.2.8
A5: ESTUDIANTES MATRICULADOS EN EDUCACIÓN PRIMARIA COMÚN POR GRADO Y FORMA DE ADMINISTRACIÓN SEGÚN EDAD(Todo el país, 2017)
A6: EDAD | D6: GRADO
B7: TOTAL | D7: Primero | F7: Segundo | H7: Tercero | J7: Cuarto | L7: Quinto | N7: Sexto
D9: FORMA DE ADMINISTRACIÓN
B10: Pública | C10: Privada | D10: Pública | E10: Privada | F10: Pública | G10: Privada | H10: Pública | I10: Privada | J10: Pública | K10: Privada | L10: Pública | M10: Privada | N10: Pública | O10: Privada
A11: TOTAL | B11: =SUM(B13:B22) -> 243841 | C11: =SUM(C13:C22) -> 0 | D11: =SUM(D13:D22) -> 43075 | E11: =SUM(E13:E22) -> 0 | F11: =SUM(F13:F22) -> 40505 | G11: 0 | H11: =SUM(H13:H22) -> 40239 | I11: 0 | J11: =SUM(J13:J22) -> 39984 | K11: 0 | L11: =SUM(L13:L22) -> 40155 | M11: 0 | N11: =SUM(N13:N22) -> 39883 | O11: 0
A13: 5 años | B13: =+D13+F13+H13+J13+L13+N13 -> 45 | C13: =+E13+G13+I13+K13+M13+O13 -> 0 | D13: 45 | F13: 0 | H13: 0 | J13: 0 | L13: 0 | N13: 0
A14: 6 años | B14: 37807 | C14: =+E14+G14+I14+K14+M14+O14 -> 0 | D14: 37737 | F14: 70 | H14: 0 | J14: 0 | L14: 0 | N14: 0
A15: 7 años | B15: 37835 | C15: 0 | D15: 5000 | F15: 32701 | H15: 134 | J15: 0 | L15: 0 | N15: 0
A16: 8 años | B16: 38043 | C16: 0 | D16: 257 | F16: 6743 | H16: 30944 | J16: 99 | L16: 0 | N16: 0
A17: 9 años | B17: 38559 | C17: 0 | D17: 18 | F17: 912 | H17: 7556 | J17: 29971 | L17: 102 | N17: 0
A18: 10 años | B18: 39502 | C18: 0 | D18: 3 | F18: 61 | H18: 1418 | J18: 7826 | L18: 30060 | N18: 134
A19: 11 años | B19: 38544 | C19: 0 | D19: 3 | F19: 10 | H19: 149 | J19: 1811 | L19: 7656 | N19: 28915
A20: 12 años | B20: 10529 | C20: 0 | D20: 0 | F20: 3 | H20: 22 | J20: 232 | L20: 2028 | N20: 8244
A21: 13 años | B21: 2563 | C21: 0 | D21: 2 | F21: 0 | H21: 8 | J21: 31 | L21: 264 | N21: 2258
A22: 14 años y más | B22: 414 | C22: 0 | D22: 10 | F22: 5 | H22: 8 | J22: 14 | L22: 45 | N22: 332
A23: Fuente: Procesamiento propio en base a datos proporcionados por el D.E.E .— C.E.I.P.
A24: Nota: Primaria Pública no incluye la matrícula correspondiente a JICI

Sheet II-2.2.9
A1: CONSEJO DE EDUCACIÓN PRIMARIA | M1: ESTUDIANTES MATRICULADOS
A3: Cuadro Nº II-2.2.9
A4: ESTUDIANTES MATRICULADOS EN EDUCACIÓN PRIMARIA COMÚN PÚBLICA POR GRADO Y SEXO SEGÚN EDAD (Todo el país, 2017)
A5: EDAD | E5: GRADO
C6: TOTAL SEXO | E6: Primero | G6: Segundo | I6: Tercero | K6: Cuarto | M6: Quinto | O6: Sexto
E7: SEXO
B8: TOTAL | C8: VARÓN | D8: MUJER | E8: V | F8: M | G8: V | H8: M | I8: V | J8: M | K8: V | L8: M | M8: V | N8: M | O8: V | P8: M
A9: TOTAL | B9: =+C9+D9 -> 243841 | C9: =SUM(E9+G9+I9+K9+M9+O9) -> 125288 | D9: =+F9+H9+J9+L9+N9+P9 -> 118553 | E9: =SUM(E11:E20) -> 22354 | F9: =SUM(F11:F20) -> 20721 | G9: 20954 | H9: 19551 | I9: 20750 | J9: 19489 | K9: 20301 | L9: 19683 | M9: 20472 | N9: 19683 | O9: 20457 | P9: 19426
A11: 5 años | B11: =+C11+D11 -> 62 | C11: =SUM(E11+G11+I11+K11+M11+O11) -> 34 | D11: =+F11+H11+J11+L11+N11+P11 -> 28 | E11: 25 | F11: 20 | G11: 0 | H11: 0 | I11: 2 | J11: 1 | K11: 1 | L11: 1 | M11: 3 | N11: 2 | O11: 3 | P11: 4
A12: 6 años | B12: =+C12+D12 -> 37809 | C12: =SUM(E12+G12+I12+K12+M12+O12) -> 19144 | D12: =+F12+H12+J12+L12+N12+P12 -> 18665 | E12: 19116 | F12: 18621 | G12: 28 | H12: 42 | I12: 0 | J12: 2 | K12: 0 | L12: 0 | M12: 0 | N12: 0 | O12: 0 | P12: 0
A13: 7 años | B13: =+C13+D13 -> 37833 | C13: =SUM(E13+G13+I13+K13+M13+O13) -> 19281 | D13: =+F13+H13+J13+L13+N13+P13 -> 18552 | E13: 3034 | F13: 1966 | G13: 16195 | H13: 16506 | I13: 50 | J13: 79 | K13: 2 | L13: 0 | M13: 0 | N13: 1 | O13: 0 | P13: 0
A14: 8 años | B14: 38040 | C14: 19452 | D14: 18588 | E14: 160 | F14: 97 | G14: 4115 | H14: 2628 | I14: 15126 | J14: 15818 | K14: 51 | L14: 44 | M14: 0 | N14: 0 | O14: 0 | P14: 1
A15: 9 años | B15: =+C15+D15 -> 38553 | C15: =SUM(E15+G15+I15+M15+K15+O15) -> 19590 | D15: =+F15+H15+J15+N15+L15+P15 -> 18963 | E15: 13 | F15: 5 | G15: 573 | H15: 339 | I15: 4577 | J15: 2979 | K15: 14381 | L15: 15590 | M15: 46 | N15: 50 | O15: 0 | P15: 0
A16: 10 años | B16: 39494 | C16: =SUM(E16+G16+I16+M16+K16+O16) -> 19992 | D16: =+F16+H16+J16+N16+L16+P16 -> 19502 | E16: 1 | F16: 2 | G16: 33 | H16: 28 | I16: 884 | J16: 534 | K16: 4570 | L16: 3256 | M16: 14443 | N16: 15617 | O16: 61 | P16: 65
A17: 11 años | B17: 38544 | C17: 19632 | D17: =+F17+H17+J17+N17+L17+P17 -> 18912 | E17: 0 | F17: 3 | G17: 6 | H17: 4 | I17: 87 | J17: 62 | K17: 1121 | L17: 690 | M17: 4475 | N17: 3181 | O17: 13943 | P17: 14972
A18: 12 años | B18: 10529 | C18: 6301 | D18: 4228 | E18: 0 | F18: 0 | G18: 2 | H18: 1 | I18: 17 | J18: 5 | K18: 146 | L18: 86 | M18: 1313 | N18: 715 | O18: 4823 | P18: 3421
A19: 13 años | B19: 2563 | C19: 1602 | D19: 961 | E19: 1 | F19: 1 | G19: 0 | H19: 0 | I19: 3 | J19: 5 | K19: 23 | L19: 8 | M19: 163 | N19: 101 | O19: 1412 | P19: 846
A20: 14 años y más | B20: 414 | C20: 260 | D20: 154 | E20: 4 | F20: 6 | G20: 2 | H20: 3 | I20: 4 | J20: 4 | K20: 6 | L20: 8 | M20: 29 | N20: 16 | O20: 215 | P20: 117
A21: Fuente: Procesamiento propio en base a datos proporcionados por el D.E.E. — C.E.I.P.
A22: Nota: Primaria Pública no incluye la matrícula correspondiente a JICI

Sheet II-2.2.10
A1: CONSEJO DE EDUCACIÓN PRIMARIA | M1: ESTUDIANTES MATRICULADOS
A3: Cuadro Nº II-2.2.10
A4: ESTUDIANTES MATRICULADOS EN EDUCACIÓN PRIMARIA COMÚN PRIVADA POR GRADO Y SEXO SEGÚN EDAD (Todo el país, 2017)
A5: EDAD | E5: GRADO
B6: TOTAL SEXO | E6: Primero | G6: Segundo | I6: Tercero | K6: Cuarto | M6: Quinto | O6: Sexto
E7: SEXO
B8: TOTAL | C8: VARÓN | D8: MUJER | E8: V | F8: M | G8: V | H8: M | I8: V | J8: M | K8: V | L8: M | M8: V | N8: M | O8: V | P8: M
A9: TOTAL | B9: 53526 | C9: 27145 | D9: 26381 | E9: 4771 | F9: 4563 | G9: 4682 | H9: 4425 | I9: 4403 | J9: 4304 | K9: 4535 | L9: 4426 | M9: 4398 | N9: 4233 | O9: 4356 | P9: 4430
A10: 6 años | B10: 8113 | C10: 4113 | D10: 4000 | E10: 4113 | F10: 4000 | G10: 0 | H10: 0 | I10: 0 | J10: 0 | K10: 0 | L10: 0 | M10: 0 | N10: 0 | O10: 0 | P10: 0
A11: 7 años | B11: 8966 | C11: 4593 | D11: 4373 | E11: 638 | F11: 546 | G11: 3955 | H11: 3827 | I11: 0 | J11: 0 | K11: 0 | L11: 0 | M11: 0 | N11: 0 | O11: 0 | P11: 0
A12: 8 años | B12: 8712 | C12: 4422 | D12: 4290 | E12: 20 | F12: 15 | G12: 694 | H12: 577 | I12: 3708 | J12: 3698 | K12: 0 | L12: 0 | M12: 0 | N12: 0 | O12: 0 | P12: 0
A13: 9 años | B13: 8789 | C13: 4456 | D13: 4333 | E13: 0 | F13: 2 | G13: 28 | H13: 17 | I13: 656 | J13: 584 | K13: 3772 | L13: 3730 | M13: 0 | N13: 0 | O13: 0 | P13: 0
A14: 10 años | B14: 8474 | C14: 4268 | D14: 4206 | E14: 0 | F14: 0 | G14: 4 | H14: 2 | I14: 37 | J14: 19 | K14: 707 | L14: 668 | M14: 3520 | N14: 3517 | O14: 0 | P14: 0
A15: 11 años | B15: 8818 | C15: 4421 | D15: 4397 | E15: 0 | F15: 0 | G15: 1 | H15: 2 | I15: 1 | J15: 0 | K15: 46 | L15: 19 | M15: 806 | N15: 682 | O15: 3567 | P15: 3694
A16: 12 años | B16: 1528 | C16: 799 | D16: 729 | E16: 0 | F16: 0 | G16: 0 | H16: 0 | I16: 1 | J16: 2 | K16: 10 | L16: 8 | M16: 63 | N16: 28 | O16: 725 | P16: 691
A17: 13 años | B17: 97 | C17: 57 | D17: 40 | E17: 0 | F17: 0 | G17: 0 | H17: 0 | I17: 0 | J17: 1 | K17: 0 | L17: 0 | M17: 6 | N17: 4 | O17: 51 | P17: 35
A18: 14 años y más | B18: 29 | C18: 16 | D18: 13 | E18: 0 | F18: 0 | G18: 0 | H18: 0 | I18: 0 | J18: 0 | K18: 0 | L18: 1 | M18: 3 | N18: 2 | O18: 13 | P18: 10
A19: Fuente: Procesamiento propio en base a datos proporcionados por el D.E.E. — C.E.I.P.
A20: Debido a dificultades con los sistemas de información, se reporta 2016 como último año válido.

Sheet II-2.2.11
A1: CONSEJO DE EDUCACIÓN PRIMARIA | L1: ESTUDIANTES MATRICULADOS
A3: Cuadro Nº II-2.2.11
A5: ESTUDIANTES MATRICULADOS EN EDUCACIÓN PRIMARIA COMÚN POR GRADO Y FORMA DE ADMINISTRACIÓN SEGÚN DEPARTAMENTO (Todo el país, 2017)
A6: DEPARTAMENTO | B6: GRADO
B7: TOTAL | D7: Primero | F7: Segundo | H7: Tercero | J7: Cuarto | L7: Quinto | N7: Sexto
D8: FORMA DE ADMINISTRACIÓN
B9: Pública | C9: Privada | D9: Pública | E9: Privada | F9: Pública | G9: Privada | H9: Pública | I9: Privada | J9: Pública | K9: Privada | L9: Pública | M9: Privada | N9: Pública | O9: Privada
A11: TOTAL | B11: =SUM(B12:B13) -> 243841 | C11: 51833 | D11: 43075 | E11: 8894 | F11: 40505 | G11: 8843 | H11: 40239 | I11: 8654 | J11: 39984 | K11: 8319 | L11: 40155 | M11: 8689 | N11: 39883 | O11: 8434
A12: MONTEVIDEO | B12: =+D12+F12+H12+J12+L12+N12 -> 76483 | C12: =+E12+G12+I12+K12+M12+O12 -> 31960 | D12: 14287 | E12: 5535 | F12: 12960 | G12: 5446 | H12: 12570 | I12: 5338 | J12: 12445 | K12: 5128 | L12: 12333 | M12: 5308 | N12: 11888 | O12: 5205
A13: RESTO DEL PAÍS | B13: =SUM(B14:B31) -> 167358 | C13: =SUM(C14:C31) -> 19873 | D13: 28788 | E13: 3359 | F13: 27545 | G13: 3397 | H13: 27669 | I13: 3316 | J13: 27539 | K13: 3191 | L13: 27822 | M13: 3381 | N13: 27995 | O13: 3229
A14: Artigas | B14: =+D14+F14+H14+J14+L14+N14 -> 7235 | C14: =+E14+G14+I14+K14+M14+O14 -> 185 | D14: 1157 | E14: 33 | F14: 1245 | G14: 29 | H14: 1246 | I14: 35 | J14: 1237 | K14: 31 | L14: 1126 | M14: 32 | N14: 1224 | O14: 25
A15: Canelones | B15: =+D15+F15+H15+J15+L15+N15 -> 41786 | C15: =+E15+G15+I15+K15+M15+O15 -> 7618 | D15: 7395 | E15: 1335 | F15: 6841 | G15: 1284 | H15: 6771 | I15: 1285 | J15: 6891 | K15: 1238 | L15: 6981 | M15: 1248 | N15: 6907 | O15: 1228
A16: Cerro Largo | B16: =+D16+F16+H16+J16+L16+N16 -> 7597 | C16: 615 | D16: 1259 | E16: 105 | F16: 1228 | G16: 98 | H16: 1283 | I16: 109 | J16: 1247 | K16: 88 | L16: 1268 | M16: 118 | N16: 1312 | O16: 97
A17: Colonia | B17: =+D17+F17+H17+J17+L17+N17 -> 10116 | C17: 743 | D17: 1757 | E17: 116 | F17: 1671 | G17: 133 | H17: 1697 | I17: 127 | J17: 1616 | K17: 120 | L17: 1668 | M17: 126 | N17: 1707 | O17: 121
A18: Durazno | B18: 4653 | C18: 550 | D18: 738 | E18: 86 | F18: 815 | G18: 94 | H18: 749 | I18: 86 | J18: 783 | K18: 95 | L18: 769 | M18: 109 | N18: 799 | O18: 80
A19: Flores | B19: 1880 | C19: 252 | D19: 313 | E19: 41 | F19: 316 | G19: 37 | H19: 314 | I19: 40 | J19: 318 | K19: 36 | L19: 304 | M19: 40 | N19: 315 | O19: 58
A20: Florida | B20: 5454 | C20: 248 | D20: 970 | E20: 42 | F20: 851 | G20: 54 | H20: 882 | I20: 44 | J20: 920 | K20: 27 | L20: 905 | M20: 44 | N20: 926 | O20: 37
A21: Lavalleja | B21: 4131 | C21: 555 | D21: 654 | E21: 95 | F21: 682 | G21: 82 | H21: 619 | I21: 105 | J21: 684 | K21: 79 | L21: 746 | M21: 92 | N21: 746 | O21: 102
A22: Maldonado | B22: 12415 | C22: 3376 | D22: 2072 | E22: 533 | F22: 2000 | G22: 551 | H22: 2076 | I22: 544 | J22: 2054 | K22: 562 | L22: 2092 | M22: 602 | N22: 2121 | O22: 584
A23: Paysandú | B23: 10089 | C23: 1128 | D23: 1691 | E23: 195 | F23: 1584 | G23: 187 | H23: 1633 | I23: 201 | J23: 1684 | K23: 193 | L23: 1776 | M23: 185 | N23: 1721 | O23: 167
A24: Río Negro | B24: 5230 | C24: 492 | D24: 890 | E24: 74 | F24: 935 | G24: 87 | H24: 882 | I24: 102 | J24: 824 | K24: 72 | L24: 883 | M24: 82 | N24: 816 | O24: 75
A25: Rivera | B25: 10050 | C25: 567 | D25: 1723 | E25: 102 | F25: 1704 | G25: 107 | H25: 1729 | I25: 90 | J25: 1569 | K25: 93 | L25: 1658 | M25: 91 | N25: 1667 | O25: 84
A26: Rocha | B26: 6313 | C26: 283 | D26: 1129 | E26: 53 | F26: 1075 | G26: 56 | H26: 1042 | I26: 45 | J26: 1049 | K26: 37 | L26: 995 | M26: 46 | N26: 1023 | O26: 46
A27: Salto | B27: 12135 | C27: 1163 | D27: 2186 | E27: 196 | F27: 1974 | G27: 206 | H27: 2063 | I27: 195 | J27: 1958 | K27: 168 | L27: 1986 | M27: 181 | N27: 1968 | O27: 217
A28: San José | B28: 9435 | C28: 738 | D28: 1627 | E28: 126 | F28: 1564 | G28: 148 | H28: 1567 | I28: 114 | J28: 1596 | K28: 120 | L28: 1535 | M28: 126 | N28: 1546 | O28: 104
A29: Soriano | B29: 7284 | C29: 455 | D29: 1207 | E29: 75 | F29: 1167 | G29: 85 | H29: 1212 | I29: 69 | J29: 1257 | K29: 66 | L29: 1222 | M29: 86 | N29: 1219 | O29: 74
A30: Tacuarembó | B30: 7611 | C30: 713 | D30: 1325 | E30: 117 | F30: 1227 | G30: 123 | H30: 1252 | I30: 103 | J30: 1249 | K30: 139 | L30: 1255 | M30: 129 | N30: 1303 | O30: 102
A31: Treinta y Tres | B31: 3944 | C31: 192 | D31: 695 | E31: 35 | F31: 666 | G31: 36 | H31: 652 | I31: 22 | J31: 603 | K31: 27 | L31: 653 | M31: 44 | N31: 675 | O31: 28
A32: Fuente: Procesamiento propio en base a datos proporcionados por el DEE — CEIP
A33: Nota: Primaria Pública no incluye la matrícula correspondiente a JICI

Sheet II-2.2.12
A1: CONSEJO DE EDUCACIÓN PRIMARIA | F1: RENDIMIENTO ESCOLAR
A3: Cuadro Nº II-2.2.12
A5: RENDIMIENTO ESCOLAR EN EDUCACIÓN PRIMARIA COMÚN PÚBLICA POR ÁREA DEMOGRÁFICA SEGÚN GRADO (Todo el país, 2017)
A6: GRADO | B6: RENDIMIENTO ESCOLAR
B7: PROMOVIDOS | E7: NO PROMOVIDOS
B8: TOTAL | C8: ÁREA DEMOGRÁFICA | E8: TOTAL | F8: ÁREA DEMOGRÁFICA
C9: Urbana | D9: Rural | F9: Urbana | G9: Rural
A11: TOTAL | B11: =+C11+D11 -> 232953 | C11: =SUM(C12:C17) -> 220067 | D11: =SUM(D12:D17) -> 12886 | E11: =+F11+G11 -> 10888 | F11: =SUM(F12:F17) -> 10509 | G11: =SUM(G12:G17) -> 379
A12: Primero | B12: =+C12+D12 -> 38051 | C12: 36053 | D12: 1998 | E12: =+F12+G12 -> 5024 | F12: 4862 | G12: 162
A13: Segundo | B13: 38263 | C13: 36223 | D13: 2040 | E13: 2242 | F13: 2171 | G13: 71
A14: Tercero | B14: 38639 | C14: 36484 | D14: 2155 | E14: 1600 | F14: 1540 | G14: 60
A15: Cuarto | B15: 38987 | C15: 36821 | D15: 2166 | E15: 997 | F15: 962 | G15: 35
A16: Quinto | B16: 39454 | C16: 37200 | D16: 2254 | E16: 701 | F16: 672 | G16: 29
A17: Sexto | B17: 39559 | C17: 37286 | D17: 2273 | E17: 324 | F17: 302 | G17: 22
A19: Fuente: Procesamiento propio en base a datos proporcionados por el D.E.E .— C.E.I.P.
A20: Notas: - No incluye datos correspondientes a JICI - No se presenta información para la Educación Primaria Privada porque no existen establecimientos privados en el área demográfica rural

Sheet II-2.2.13
A1: CONSEJO DE EDUCACIÓN PRIMARIA | F1: RENDIMIENTO ESCOLAR
A3: Cuadro Nº II-2.2.13
A5: RENDIMIENTO ESCOLAR EN EDUCACIÓN PRIMARIA COMÚN PÚBLICA POR ÁREA DEMOGRÁFICA SEGÚN DEPARTAMENTO (Todo el país, 2017)
A6: DEPARTAMENTO | B6: RENDIMIENTO ESCOLAR
B7: PROMOVIDOS | F7: NO PROMOVIDOS
B8: TOTAL | C8: ÁREA DEMOGRÁFICA | E8: TOTAL | F8: ÁREA DEMOGRÁFICA
C9: Urbana | D9: Rural | F9: Urbana | G9: Rural
A11: TOTAL | B11: =+C11+D11 -> 232953 | C11: =SUM(C12:C13) -> 220067 | D11: =SUM(D12:D13) -> 12886 | E11: =+F11+G11 -> 10888 | F11: =SUM(F12:F13) -> 10509 | G11: =SUM(G12:G13) -> 379
A12: MONTEVIDEO | B12: =+C12+D12 -> 70999 | C12: 70999 | D12: 0 | E12: =+F12+G12 -> 5484 | F12: 5484 | G12: 0
A13: RESTO DEL PAÍS | B13: =+C13+D13 -> 161954 | C13: =SUM(C14:C31) -> 149068 | D13: =SUM(D14:D31) -> 12886 | E13: =+F13+G13 -> 5404 | F13: =SUM(F14:F31) -> 5025 | G13: =SUM(G14:G31) -> 379
A14: Artigas | B14: =+C14+D14 -> 7189 | C14: 6649 | D14: 540 | E14: =+F14+G14 -> 46 | F14: 41 | G14: 5
A15: Canelones | B15: 39502 | C15: 37185 | D15: 2317 | E15: 2284 | F15: 2192 | G15: 92
A16: Cerro Largo | B16: 7416 | C16: 6701 | D16: 715 | E16: 181 | F16: 167 | G16: 14
A17: Colonia | B17: 9841 | C17: 8902 | D17: 939 | E17: 275 | F17: 256 | G17: 19
A18: Durazno | B18: 4645 | C18: 4246 | D18: 399 | E18: 8 | F18: 7 | G18: 1
A19: Flores | B19: 1869 | C19: 1694 | D19: 175 | E19: 11 | F19: 11 | G19: 0
A20: Florida | B20: 5280 | C20: 4578 | D20: 702 | E20: 174 | F20: 154 | G20: 20
A21: Lavalleja | B21: 4034 | C21: 3641 | D21: 393 | E21: 97 | F21: 90 | G21: 7
A22: Maldonado | B22: 12050 | C22: 11577 | D22: 473 | E22: 365 | F22: 349 | G22: 16
A23: Paysandú | B23: 9810 | C23: 9022 | D23: 788 | E23: 279 | F23: 252 | G23: 27
A24: Río Negro | B24: 5060 | C24: 4626 | D24: 434 | E24: 170 | F24: 142 | G24: 28
A25: Rivera | B25: 9849 | C25: 9084 | D25: 765 | E25: 201 | F25: 178 | G25: 23
A26: Rocha | B26: 6194 | C26: 5928 | D26: 266 | E26: 119 | F26: 115 | G26: 4
A27: Salto | B27: 11654 | C27: 10566 | D27: 1088 | E27: 481 | F27: 431 | G27: 50
A28: San José | B28: 9154 | C28: 8029 | D28: 1125 | E28: 281 | F28: 250 | G28: 31
A29: Soriano | B29: 7038 | C29: 6487 | D29: 551 | E29: 246 | F29: 226 | G29: 20
A30: Tacuarembó | B30: 7475 | C30: 6549 | D30: 926 | E30: 136 | F30: 117 | G30: 19
A31: Treinta y Tres | B31: 3894 | C31: 3604 | D31: 290 | E31: 50 | F31: 47 | G31: 3
A32: Fuente: Procesamiento propio en base a datos proporcionados por el D.E.E .— C.E.I.P.
A33: Notas: No incluye datos correspondientes a JICI
A34: No se presenta información para la Educación Primaria Privada porque no existen establecimientos privados en el área demográfica rural

Sheet II-2.2.14
A1: CONSEJO DE EDUCACIÓN PRIMARIA | F1: RENDIMIENTOS ESCOLAR
A3: Cuadro Nº II-2.2.14
A5: RENDIMIENTO ESCOLAR EN EDUCACIÓN PRIMARIA COMÚN PÚBLICA POR SEXO SEGÚN DEPARTAMENTO (Todo el país, 2017)
A6: DEPARTAMENTO | B6: RENDIMIENTO ESCOLAR
B7: PROMOVIDOS | E7: NO PROMOVIDOS
B8: TOTAL | C8: SEXO | E8: TOTAL | F8: SEXO
C9: Varón | D9: Mujer | F9: Varón | G9: Mujer
A10: TOTAL | B10: =+C10+D10 -> 232953 | C10: =SUM(C11:C12) -> 118641 | D10: =SUM(D11:D12) -> 114312 | E10: =+F10+G10 -> 10888 | F10: =SUM(F11:F12) -> 6647 | G10: =SUM(G11:G12) -> 4241
A11: MONTEVIDEO | B11: =+C11+D11 -> 70999 | C11: 36284 | D11: 34715 | E11: =+F11+G11 -> 5484 | F11: 3256 | G11: 2228
A12: RESTO DEL PAÍS | B12: 161954 | C12: =SUM(C13:C30) -> 82357 | D12: =SUM(D13:D30) -> 79597 | E12: 5404 | F12: =SUM(F13:F30) -> 3391 | G12: =SUM(G13:G30) -> 2013
A13: Artigas | B13: 7189 | C13: 3749 | D13: 3440 | E13: 46 | F13: 29 | G13: 17
A14: Canelones | B14: 39502 | C14: 20013 | D14: 19489 | E14: 2284 | F14: 1403 | G14: 881
A15: Cerro Largo | B15: 7416 | C15: 3835 | D15: 3581 | E15: 181 | F15: 119 | G15: 62
A16: Colonia | B16: 9841 | C16: 4969 | D16: 4872 | E16: 275 | F16: 165 | G16: 110
A17: Durazno | B17: 4645 | C17: 2394 | D17: 2251 | E17: 8 | F17: 6 | G17: 2
A18: Flores | B18: 1869 | C18: 920 | D18: 949 | E18: 11 | F18: 9 | G18: 2
A19: Florida | B19: 5280 | C19: 2710 | D19: 2570 | E19: 174 | F19: 110 | G19: 64
A20: Lavalleja | B20: 4034 | C20: 2016 | D20: 2018 | E20: 97 | F20: 63 | G20: 34
A21: Maldonado | B21: 12050 | C21: 6019 | D21: 6031 | E21: 365 | F21: 211 | G21: 154
A22: Paysandú | B22: 9810 | C22: 4957 | D22: 4853 | E22: 279 | F22: 182 | G22: 97
A23: Río Negro | B23: 5060 | C23: 2545 | D23: 2515 | E23: 170 | F23: 115 | G23: 55
A24: Rivera | B24: 9849 | C24: 5043 | D24: 4806 | E24: 201 | F24: 137 | G24: 64
A25: Rocha | B25: 6194 | C25: 3150 | D25: 3044 | E25: 119 | F25: 82 | G25: 37
A26: Salto | B26: 11654 | C26: 5978 | D26: 5676 | E26: 481 | F26: 300 | G26: 181
A27: San José | B27: 9154 | C27: 4673 | D27: 4481 | E27: 281 | F27: 178 | G27: 103
A28: Soriano | B28: 7038 | C28: 3605 | D28: 3433 | E28: 246 | F28: 159 | G28: 87
A29: Tacuarembó | B29: 7475 | C29: 3769 | D29: 3706 | E29: 136 | F29: 88 | G29: 48
A30: Treinta y Tres | B30: 3894 | C30: 2012 | D30: 1882 | E30: 50 | F30: 35 | G30: 15
A31: Fuente: Procesamiento propio en base a datos proporcionados por el D.E.E. — C.E.I.P.
A32: Nota: No incluye datos correspondientes a JICI .

Sheet II-2.2.15
A1: CONSEJO DE EDUCACIÓN PRIMARIA | F1: RENDIMIENTO ESCOLAR
A3: Cuadro Nº II-2.2.15
A5: RENDIMIENTO ESCOLAR EN EDUCACIÓN PRIMARIA COMÚN PRIVADA POR SEXO SEGÚN DEPARTAMENTO (Todo el país, 2017)
A6: DEPARTAMENTO | B6: RENDIMIENTO ESCOLAR
B7: PROMOVIDOS | E7: NO PROMOVIDOS
B8: TOTAL | C8: SEXO | E8: TOTAL | F8: SEXO
C9: V | D9: M | F9: V | G9: M
A10: TOTAL | B10: =+C10+D10 -> 51337 | C10: =SUM(C11:C12) -> 26149 | D10: =SUM(D11:D12) -> 25188 | E10: =+F10+G10 -> 496 | F10: =SUM(F11:F12) -> 299 | G10: =SUM(G11:G12) -> 197
A11: MONTEVIDEO | B11: =+C11+D11 -> 31618 | C11: 16086 | D11: 15532 | E11: =+F11+G11 -> 342 | F11: 197 | G11: 145
A12: RESTO DEL PAÍS | B12: 19719 | C12: =SUM(C13:C30) -> 10063 | D12: =SUM(D13:D30) -> 9656 | E12: 154 | F12: =SUM(F13:F30) -> 102 | G12: =SUM(G13:G30) -> 52
A13: Artigas | B13: 185 | C13: 106 | D13: 79 | E13: 0 | F13: 0 | G13: 0
A14: Canelones | B14: 7538 | C14: 3860 | D14: 3678 | E14: 80 | F14: 54 | G14: 26
A15: Cerro Largo | B15: 610 | C15: 301 | D15: 309 | E15: 5 | F15: 5 | G15: 0
A16: Colonia | B16: 742 | C16: 375 | D16: 367 | E16: 1 | F16: 1 | G16: 0
A17: Durazno | B17: 549 | C17: 274 | D17: 275 | E17: 1 | F17: 1 | G17: 0
A18: Flores | B18: 244 | C18: 117 | D18: 127 | E18: 8 | F18: 4 | G18: 4
A19: Florida | B19: 246 | C19: 128 | D19: 118 | E19: 2 | F19: 2 | G19: 0
A20: Lavalleja | B20: 553 | C20: 275 | D20: 278 | E20: 2 | F20: 2 | G20: 0
A21: Maldonado | B21: 3352 | C21: 1736 | D21: 1616 | E21: 24 | F21: 16 | G21: 8
A22: Paysandú | B22: 1124 | C22: 570 | D22: 554 | E22: 4 | F22: 2 | G22: 2
A23: Río Negro | B23: 486 | C23: 273 | D23: 213 | E23: 6 | F23: 4 | G23: 2
A24: Rivera | B24: 561 | C24: 269 | D24: 292 | E24: 6 | F24: 4 | G24: 2
A25: Rocha | B25: 281 | C25: 143 | D25: 138 | E25: 2 | F25: 1 | G25: 1
A26: Salto | B26: 1158 | C26: 591 | D26: 567 | E26: 5 | F26: 3 | G26: 2
A27: San José | B27: 735 | C27: 354 | D27: 381 | E27: 3 | F27: 2 | G27: 1
A28: Soriano | B28: 452 | C28: 247 | D28: 205 | E28: 3 | F28: 0 | G28: 3
A29: Tacuarembó | B29: 711 | C29: 344 | D29: 367 | E29: 2 | F29: 1 | G29: 1
A30: Treinta y Tres | B30: 192 | C30: 100 | D30: 92 | E30: 0 | F30: 0 | G30: 0
A31: Fuente: Procesamiento propio en base a datos proporcionados por el D.E.E. — C.E.I.P.

Sheet II-2.2.16
A1: CONSEJO DE EDUCACIÓN PRIMARIA | E1: RENDIMIENTO ESCOLAR
A3: Cuadro Nº II-2.2.16
A5: ESTUDIANTES MATRICULADOS EGRESADOS DE EDUCACIÓN PRIMARIA COMÚN PÚBLICA POR ÁREA DEMOGRÁFICA SEGÚN DEPARTAMENTO (Todo el país, 2017)
A7: DEPARTAMENTO | C7: ÁREA DEMOGRÁFICA
B8: TOTAL
C9: Urbana | D9: Rural
A11: TOTAL | B11: =+C11+D11 -> 39559 | C11: =SUM(C12:C13) -> 37286 | D11: =SUM(D12:D13) -> 2273
A12: MONTEVIDEO | B12: =C12+D12 -> 11744 | C12: 11744 | D12: 0
A13: RESTO DEL PAÍS | B13: =+C13+D13 -> 27815 | C13: =SUM(C14:C31) -> 25542 | D13: =SUM(D14:D31) -> 2273
A14: Artigas | B14: =+C14+D14 -> 1224 | C14: 1115 | D14: 109
A15: Canelones | B15: 6824 | C15: 6405 | D15: 419
A16: Cerro Largo | B16: 1307 | C16: 1167 | D16: 140
A17: Colonia | B17: 1704 | C17: 1535 | D17: 169
A18: Durazno | B18: 796 | C18: 719 | D18: 77
A19: Flores | B19: 315 | C19: 283 | D19: 32
A20: Florida | B20: 921 | C20: 812 | D20: 109
A21: Lavalleja | B21: 742 | C21: 666 | D21: 76
A22: Maldonado | B22: 2118 | C22: 2034 | D22: 84
A23: Paysandú | B23: 1712 | C23: 1570 | D23: 142
A24: Río Negro | B24: 815 | C24: 752 | D24: 63
A25: Rivera | B25: 1655 | C25: 1523 | D25: 132
A26: Rocha | B26: 1019 | C26: 976 | D26: 43
A27: Salto | B27: 1952 | C27: 1772 | D27: 180
A28: San José | B28: 1537 | C28: 1341 | D28: 196
A29: Soriano | B29: 1207 | C29: 1117 | D29: 90
A30: Tacuarembó | B30: 1294 | C30: 1128 | D30: 166
A31: Treinta y Tres | B31: 673 | C31: 627 | D31: 46
A32: Fuente: Procesamiento propio en base a datos proporcionados por el D.E.E .— C.E.I.P.
A33: Nota: No se presenta información para Montevideo Rural por que no existen establecimientos en el área demográfica rural.

Sheet II-2.2.17
A1: CONSEJO DE EDUCACIÓN PRIMARIA | G1: RENDIMIENTO ESCOLAR
A3: Cuadro Nº II-2.2.17
A5: ESTUDIANTES MATRICULADOS EGRESADOS DE EDUCACIÓN PRIMARIA COMÚN POR FORMA DE ADMINISTRACIÓN SEGÚN DEPARTAMENTO (Todo el país, 2017)
A6: DEPARTAMENTO | B6: TOTAL | C6: PÚBLICA | G6: PRIVADA
C7: Total | D7: SEXO | G7: Total | H7: SEXO
D8: M | E8: Varón | F8: Mujer | H8: Varón | I8: Mujer
A9: TOTAL | B9: =+C9+G9 -> 47967 | C9: =+E9+F9 -> 39559 | E9: =SUM(E10:E11) -> 20268 | F9: =SUM(F10:F11) -> 19291 | G9: =+H9+I9 -> 8408 | H9: =SUM(H10,H11) -> 4285 | I9: =SUM(I10,I11) -> 4123
A10: MONTEVIDEO | B10: =+C10+G10 -> 16938 | C10: =+E10+F10 -> 11744 | D10: 6560 | E10: 6073 | F10: 5671 | G10: =+H10+I10 -> 5194 | H10: 2657 | I10: 2537
A11: RESTO DEL PAÍS | B11: =+C11+G11 -> 31029 | C11: 27815 | E11: =SUM(E12:E29) -> 14195 | F11: =SUM(F12:F29) -> 13620 | G11: 3214 | H11: =SUM(H12:H29) -> 1628 | I11: =SUM(I12:I29) -> 1586
A12: Artigas | B12: =+C12+G12 -> 1249 | C12: 1224 | D12: 765 | E12: 636 | F12: 588 | G12: 25 | H12: 17 | I12: 8
A13: Canelones | B13: 8047 | C13: 6824 | D13: 3826 | E13: 3420 | F13: 3404 | G13: 1223 | H13: 613 | I13: 610
A14: Cerro Largo | B14: 1404 | C14: 1307 | D14: 802 | E14: 660 | F14: 647 | G14: 97 | H14: 43 | I14: 54
A15: Colonia | B15: 1825 | C15: 1704 | D15: 891 | E15: 851 | F15: 853 | G15: 121 | H15: 62 | I15: 59
A16: Durazno | B16: 876 | C16: 796 | D16: 502 | E16: 386 | F16: 410 | G16: 80 | H16: 41 | I16: 39
A17: Flores | B17: 367 | C17: 315 | D17: 192 | E17: 159 | F17: 156 | G17: 52 | H17: 23 | I17: 29
A18: Florida | B18: 958 | C18: 921 | D18: 502 | E18: 479 | F18: 442 | G18: 37 | H18: 21 | I18: 16
A19: Lavalleja | B19: 844 | C19: 742 | D19: 426 | E19: 387 | F19: 355 | G19: 102 | H19: 59 | I19: 43
A20: Maldonado | B20: 2700 | C20: 2118 | D20: 1183 | E20: 1083 | F20: 1035 | G20: 582 | H20: 305 | I20: 277
A21: Paysandú | B21: 1879 | C21: 1712 | D21: 976 | E21: 872 | F21: 840 | G21: 167 | H21: 85 | I21: 82
A22: Río Negro | B22: 889 | C22: 815 | D22: 501 | E22: 441 | F22: 374 | G22: 74 | H22: 44 | I22: 30
A23: Rivera | B23: 1739 | C23: 1655 | D23: 995 | E23: 874 | F23: 781 | G23: 84 | H23: 38 | I23: 46
A24: Rocha | B24: 1065 | C24: 1019 | D24: 603 | E24: 513 | F24: 506 | G24: 46 | H24: 22 | I24: 24
A25: Salto | B25: 2169 | C25: 1952 | D25: 1191 | E25: 1004 | F25: 948 | G25: 217 | H25: 100 | I25: 117
A26: San José | B26: 1641 | C26: 1537 | D26: 824 | E26: 798 | F26: 739 | G26: 104 | H26: 46 | I26: 58
A27: Soriano | B27: 1280 | C27: 1207 | D27: 717 | E27: 611 | F27: 596 | G27: 73 | H27: 40 | I27: 33
A28: Tacuarembó | B28: 1396 | C28: 1294 | D28: 845 | E28: 679 | F28: 615 | G28: 102 | H28: 55 | I28: 47
A29: Treinta y Tres | B29: 701 | C29: 673 | D29: 443 | E29: 342 | F29: 331 | G29: 28 | H29: 14 | I29: 14
A30: Fuente: Procesamiento propio en base a datos proporcionados por el D.E.E. — C.E.I.P.

Sheet II-2.2.18
A1: CONSEJO DE EDUCACIÓN PRIMARIA | D1: RENDIMIENTO ESCOLAR
A3: Cuadro Nº II-2.2.18
A5: ASISTENCIA INSUFICIENTE Y ABANDONO INTERMITENTE DE 1º GRADO Y 1º A 6º GRADO EN EDUCACIÓN COMÚN PÚBLICA SEGÚN DEPARTAMENTO (Todo el país, 2017)
A6: DEPARTAMENTO | B6: ASISTENCIA INSUFICIENTE | D6: ABANDONO INTERMITENTE
B7: Sólo 1.er año | C7: 1.º a 6.º años | D7: Sólo 1.er año | E7: 1.º a 6.º años
A8: TOTAL | B8: =SUM(B9:B10) -> 7388 | C8: =SUM(C9:C10) -> 30741 | D8: =SUM(D9:D10) -> 338 | E8: =SUM(E9:E10) -> 1251
A9: MONTEVIDEO | B9: 3490 | C9: 14286 | D9: 189 | E9: 655
A10: RESTO DEL PAÍS | B10: =SUM(B11:B28) -> 3898 | C10: =SUM(C11:C28) -> 16455 | D10: =SUM(D11:D28) -> 149 | E10: =SUM(E11:E28) -> 596
A11: Artigas | B11: 231 | C11: 1044 | D11: 3 | E11: 25
A12: Canelones | B12: 1314 | C12: 5407 | D12: 64 | E12: 250
A13: Cerro Largo | B13: 163 | C13: 649 | D13: 5 | E13: 13
A14: Colonia | B14: 105 | C14: 444 | D14: 6 | E14: 22
A15: Durazno | B15: 83 | C15: 432 | D15: 2 | E15: 6
A16: Flores | B16: 24 | C16: 106 | D16: 2 | E16: 3
A17: Florida | B17: 77 | C17: 335 | D17: 1 | E17: 12
A18: Lavalleja | B18: 52 | C18: 282 | D18: 1 | E18: 15
A19: Maldonado | B19: 315 | C19: 1327 | D19: 12 | E19: 49
A20: Paysandú | B20: 245 | C20: 978 | D20: 5 | E20: 20
A21: Río Negro | B21: 91 | C21: 392 | D21: 6 | E21: 11
A22: Rivera | B22: 239 | C22: 1063 | D22: 11 | E22: 36
A23: Rocha | B23: 134 | C23: 513 | D23: 8 | E23: 23
A24: Salto | B24: 367 | C24: 1546 | D24: 11 | E24: 48
A25: San José | B25: 167 | C25: 718 | D25: 5 | E25: 25
A26: Soriano | B26: 133 | C26: 622 | D26: 1 | E26: 12
A27: Tacuarembó | B27: 110 | C27: 392 | D27: 5 | E27: 18
A28: Treinta y Tres | B28: 48 | C28: 205 | D28: 1 | E28: 8
A29: Fuente: Procesamiento propio en base a datos proporcionados por el D.E.E. — C.E.I.P.
A30: Nota: No incluye datos correspondientes a JICI .

Sheet II-2.3.1
A1: CONSEJO DE EDUCACIÓN PRIMARIA | G1: PERSONAL DOCENTE
A3: Cuadro Nº II-2.3.1
A5: PERSONAL DOCENTE DE EDUCACIÓN PRIMARIA PÚBLICA POR TIPO DE DESEMPEÑO DOCENTE SEGÚN DEPARTAMENTO (Todo el país, 2017)
A6: DEPARTAMENTO | C6: TIPO DE DESEMPEÑO DOCENTE
B7: TOTAL | C7: Inspección | D7: Educación Común | E7: Educación en Colonias | F7: Educación Especial | G7: Servicios Docentes Especiales | H7: Profesores Especiales | I7: Coordinación Apoyo
A9: TOTAL | B9: =SUM(B11:B12) -> 19861 | C9: 284 | D9: 15167 | E9: 41 | F9: 988 | G9: 207 | H9: 3077 | I9: 97
A11: MONTEVIDEO | B11: =SUM(C11:I11) -> 5805 | C11: 103 | D11: 4150 | E11: 15 | F11: 393 | G11: 158 | H11: 970 | I11: 16
A12: RESTO DEL PAÍS | B12: =SUM(B14:B31) -> 14056 | C12: 181 | D12: 11017 | E12: 26 | F12: 595 | G12: =SUM(G14:G31) -> 49 | H12: 2107 | I12: 81
A14: Artigas | B14: =SUM(C14:I14) -> 671 | C14: 7 | D14: 513 | E14: 0 | F14: 23 | G14: 0 | H14: 124 | I14: 4
A15: Canelones | B15: 2863 | C15: 35 | D15: 2304 | E15: 6 | F15: 123 | G15: 12 | H15: 370 | I15: 13
A16: Cerro Largo | B16: 733 | C16: 11 | D16: 559 | E16: 0 | F16: 33 | G16: 4 | H16: 122 | I16: 4
A17: Colonia | B17: 839 | C17: 11 | D17: 667 | E17: 0 | F17: 39 | G17: 3 | H17: 115 | I17: 4
A18: Durazno | B18: 470 | C18: 7 | D18: 373 | E18: 0 | F18: 21 | G18: 0 | H18: 65 | I18: 4
A19: Flores | B19: 215 | C19: 4 | D19: 159 | E19: 0 | F19: 9 | G19: 0 | H19: 40 | I19: 3
A20: Florida | B20: 546 | C20: 7 | D20: 409 | E20: 1 | F20: 28 | G20: 3 | H20: 94 | I20: 4
A21: Lavalleja | B21: 433 | C21: 6 | D21: 329 | E21: 0 | F21: 21 | G21: 4 | H21: 69 | I21: 4
A22: Maldonado | B22: 878 | C22: 12 | D22: 677 | E22: 8 | F22: 42 | G22: 8 | H22: 127 | I22: 4
A23: Paysandú | B23: 852 | C23: 10 | D23: 690 | E23: 0 | F23: 39 | G23: 4 | H23: 104 | I23: 5
A24: Río Negro | B24: 471 | C24: 7 | D24: 362 | E24: 0 | F24: 22 | G24: 0 | H24: 76 | I24: 4
A25: Rivera | B25: 891 | C25: 11 | D25: 671 | E25: 0 | F25: 30 | G25: 1 | H25: 174 | I25: 4
A26: Rocha | B26: 551 | C26: 7 | D26: 414 | E26: 1 | F26: 31 | G26: 1 | H26: 93 | I26: 4
A27: Salto | B27: 959 | C27: 12 | D27: 752 | E27: 8 | F27: 38 | G27: 2 | H27: 142 | I27: 5
A28: San José | B28: 775 | C28: 8 | D28: 632 | E28: 1 | F28: 30 | G28: 0 | H28: 100 | I28: 4
A29: Soriano | B29: 660 | C29: 9 | D29: 526 | E29: 0 | F29: 28 | G29: 2 | H29: 91 | I29: 4
A30: Tacuarembó | B30: 823 | C30: 11 | D30: 652 | E30: 1 | F30: 23 | G30: 4 | H30: 129 | I30: 3
A31: Treinta y Tres | B31: 426 | C31: 6 | D31: 328 | E31: 0 | F31: 15 | G31: 1 | H31: 72 | I31: 4
A32: Fuente: DEE — CEIP Listado de cargos de la División Hacienda a Julio 2016
A74: =SUM(A76:A77) -> 147
A76: 92
A77: =SUM(A79:A96) -> 55
A79: 0
A80: 14
A81: 4
A82: 3
A83: 0
A84: 0
A85: 5
A86: 4
A87: 7
A88: 5
A89: 0
A90: 1
A91: 3
A92: 2
A93: 0
A94: 2
A95: 5
A96: 0

Sheet II-2.3.2
A1: CONSEJO DE EDUCACIÓN PRIMARIA | J1: PERSONAL DOCENTE
A3: Cuadro Nº II-2.3.2
A5: PERSONAL DOCENTE DE EDUCACIÓN PRIMARIA PRIVADA POR TIPO DE ESTABLECIMIENTO Y TIPO DE DESEMPEÑO DOCENTE SEGÚN DEPARTAMENTO (Todo el país, 2017)
A6: DEPARTAMENTO | C6: TOTAL | D6: MAESTROS | E6: PROFESORES | F6: ESTABLECIMIENTOS
F7: HABILITADOS | I7: AUTORIZADOS
F8: Total | G8: Maestros | H8: Profesores | I8: Total | J8: Maestros | K8: Profesores
A10: TOTAL | C10: =+D10+E10 -> 7755 | D10: =+G10+J10 -> 2679 | E10: =+H10+K10 -> 5076 | F10: =+G10+H10 -> 7287 | G10: =SUM(G11:G12) -> 2552 | H10: =SUM(H11:H12) -> 4735 | I10: =+J10+K10 -> 468 | J10: =SUM(J11:J12) -> 127 | K10: =SUM(K11:K12) -> 341
A11: MONTEVIDEO | C11: =+D11+E11 -> 4679 | D11: =G11+J11 -> 1547 | E11: =H11+K11 -> 3132 | F11: =+G11+H11 -> 4269 | G11: 1440 | H11: 2829 | I11: =+J11+K11 -> 410 | J11: 107 | K11: 303
A12: RESTO DEL PAÍS | C12: =+D12+E12 -> 3076 | D12: =G12+J12 -> 1132 | E12: =H12+K12 -> 1944 | F12: =+G12+H12 -> 3018 | G12: =SUM(G13:G30) -> 1112 | H12: =SUM(H13:H30) -> 1906 | I12: =+J12+K12 -> 58 | J12: =SUM(J13:J30) -> 20 | K12: =SUM(K13:K30) -> 38
A13: Artigas | C13: =+F13+I13 -> 45 | D13: 12 | E13: 33 | F13: =+G13+H13 -> 45 | G13: 12 | H13: 33 | I13: 0 | J13: 0 | K13: 0
A14: Canelones | C14: 1053 | D14: 422 | E14: 631 | F14: 1004 | G14: 406 | H14: 598 | I14: 49 | J14: 16 | K14: 33
A15: Cerro Largo | C15: 80 | D15: 33 | E15: 47 | F15: 80 | G15: 33 | H15: 47 | I15: 0 | J15: 0 | K15: 0
A16: Colonia | C16: 161 | D16: 48 | E16: 113 | F16: 161 | G16: 48 | H16: 113 | I16: 0 | J16: 0 | K16: 0
A17: Durazno | C17: 70 | D17: 30 | E17: 40 | F17: 70 | G17: 30 | H17: 40 | I17: 0 | J17: 0 | K17: 0
A18: Flores | C18: 52 | D18: 20 | E18: 32 | F18: 52 | G18: 20 | H18: 32 | I18: 0 | J18: 0 | K18: 0
A19: Florida | C19: 43 | D19: 16 | E19: 27 | F19: 43 | G19: 16 | H19: 27 | I19: 0 | J19: 0 | K19: 0
A20: Lavalleja | C20: 86 | D20: 36 | E20: 50 | F20: 86 | G20: 36 | H20: 50 | I20: 0 | J20: 0 | K20: 0
A21: Maldonado | C21: 482 | D21: 185 | E21: 297 | F21: 482 | G21: 185 | H21: 297 | I21: 0 | J21: 0 | K21: 0
A22: Paysandú | C22: 177 | D22: 61 | E22: 116 | F22: 177 | G22: 61 | H22: 116 | I22: 0 | J22: 0 | K22: 0
A23: Río Negro | C23: 111 | D23: 32 | E23: 79 | F23: 104 | G23: 28 | H23: 76 | I23: 7 | J23: 4 | K23: 3
A24: Rivera | C24: 98 | D24: 35 | E24: 63 | F24: 98 | G24: 35 | H24: 63 | I24: 0 | J24: 0 | K24: 0
A25: Rocha | C25: 64 | D25: 22 | E25: 42 | F25: 64 | G25: 22 | H25: 42 | I25: 0 | J25: 0 | K25: 0
A26: Salto | C26: 148 | D26: 52 | E26: 96 | F26: 148 | G26: 52 | H26: 96 | I26: 0 | J26: 0 | K26: 0
A27: San José | C27: 124 | D27: 42 | E27: 82 | F27: 122 | G27: 42 | H27: 80 | I27: 2 | J27: 0 | K27: 2
A28: Soriano | C28: 94 | D28: 30 | E28: 64 | F28: 94 | G28: 30 | H28: 64 | I28: 0 | J28: 0 | K28: 0
A29: Tacuarembó | C29: 166 | D29: 47 | E29: 119 | F29: 166 | G29: 47 | H29: 119 | I29: 0 | J29: 0 | K29: 0
A30: Treinta y Tres | C30: 22 | D30: 9 | E30: 13 | F30: 22 | G30: 9 | H30: 13 | I30: 0 | J30: 0 | K30: 0
A31: Fuente: DEE — CEIP Planillas enviadas por las Inspecciones Departamentales a abril de 2011.
A32: NOTA: El personal docente incluye exclusivamente docencia directa

Sheet MEDIA BASICA
A6: Cuadro Nº II-3.1.1 | B6: ESTABLECIMIENTOS DE EDUCACIÓN MEDIA BÁSICA POR MODALIDAD Y FORMA DE ADMINISTRACIÓN SEGÚN DEPARTAMENTO. (Todo el país, 2017).
A8: Cuadro Nº II-3.1.2 | B8: ESTABLECIMIENTOS FÍSICOS DE EDUCACIÓN MEDIA POR FORMA DE ADMINISTRACIÓN SEGÚN DEPARTAMENTO. (Todo el país, 2017).
A11: Cuadro Nº II-3.2.1 | B11: ESTUDIANTES MATRICULADOS EN EDUCACION MEDIA BÁSICA GENERAL POR GRADO SEGÚN GRANDES ÁREAS Y FORMA DE ADMINISTRACIÓN. (Todo el país, 2017).
A13: Cuadro Nº II-3.2.2 | B13: ESTUDIANTES MATRICULADOS EN EL CETP EN EDUCACIÓN MEDIA BÁSICA TECNOLÓGICA POR TIPO DE CURSO SEGÚN GRANDES ÁREAS, DEPARTAMENTO Y SEXO. (Todo el país, 2017).
A15: Cuadro Nº II-3.2.3 | B15: ESTUDIANTES MATRICULADOS EN SÉPTIMO, OCTAVO Y NOVENO GRADO DE CICLO BÁSICO RURAL POR SEXO SEGÚN DEPARTAMENTO. (Todo el país, 2017).
A17: Cuadro Nº II-3.2.4 | B17: ESTUDIANTES MATRICULADOS DE EDUCACIÓN MEDIA BÁSICA GENERAL POR GRADO Y FORMA DE ADMINISTRACIÓN SEGÚN DEPARTAMENTO. (Todo el país, 2017).
A19: Cuadro Nº II-3.2.5 | B19: ESTUDIANTES MATRICULADOS DE EDUCACIÓN MEDIA BÁSICA PRIVADA POR GRADO Y SEXO SEGÚN DEPARTAMENTO. (Todo el país, 2017).
A21: Cuadro Nº II-3.2.6 | B21: ESTUDIANTES MATRICULADOS DE EDUCACIÓN MEDIA BÁSICA PÚBLICA POR GRADO Y SEXO SEGÚN DEPARTAMENTO. (Todo el país, 2017).
A23: Cuadro Nº II-3.2.7 | B23: ESTUDIANTES MATRICULADOS EN EDUCACIÓN TÉCNICA MEDIA BÁSICA POR TIPO DE CURSO SEGÚN EDAD. (Todo el país, 2017).
A25: Cuadro Nº II-3.2.8 | B25: ESTUDIANTES MATRICULADOS EN EL CETP EN EDUCACIÓN MEDIA BÁSICA POR TIPO DE CURSO SEGÚN SECTORES DE ESTUDIO. (Todo el país, 2017).
A28: Cuadro Nº II-3.3.1 | B28: PERSONAL DOCENTE Y HORAS DOCENTES DEL CES EN EDUCACIÓN MEDIA BÁSICA GENERAL POR TITULACIÓN SEGÚN ASIGNATURAS. (Todo el país, 2017).
A30: Cuadro Nº II-3.3.2 | B30: PERSONAL DOCENTE DEL CETP EN EDUCACIÓN MEDIA BÁSICA TECNOLÓGICA POR TIPO DE CURSO. (Todo el país, 2017).
A33: Cuadro Nº II-3.4.1 | B33: GRUPOS DEL CES EN EDUCACIÓN MEDIA BÁSICA GENERAL COMPARADOS CON EL TOTAL DE GRUPOS EN EDUCACIÓN MEDIA GENERAL SEGÚN GRANDES ÁREAS Y FORMA DE ADMINISTRACIÓN. (Todo el país, 2017).
A91: =MID(B63,1,20) -> 
A100: =MID(B72,1,20) -> 

Sheet II-3.1.1
A1: CONSEJO DE EDUCACIÓN INICIAL Y PRIMARIA (CEIP), | J1: ESTABLECIMIENTOS
A2: CONSEJO DE EDUCACIÓN SECUNDARIA (CES) Y CONSEJO DE EDUCACIÓN TÉCNICO PROFESIONAL (UTU)
A4: Cuadro Nº II-3.1.1
A6: ESTABLECIMIENTOS DE EDUCACIÓN MEDIA BÁSICA POR MODALIDAD Y FORMA DE ADMINISTRACIÓN SEGÚN DEPARTAMENTO (Todo el país, 2017)
A7: DEPARTAMENTO | D7: MODALIDAD
B8: TOTAL GENERAL | C8: TOTAL LICEOS PÚBLICOS | D8: CES | K8: CEIP | M8: CETP
D9: FORMA DE ADMINISTRACIÓN
D10: LICEOS PÚBLICOS | H10: TOTAL LICEOS PRIVADOS | I10: Liceos Privados | K10: Escuelas con Ciclo Básico Rural | L10: TOTAL ESCUELAS DE CBT Y TÈCNICA
M11: Escuelas de CBT y Técnica
D12: Diurnos Oficiales | F12: Extra Edad Oficiales (Nocturno Y Diurno)
D15: Ciclo Básico | E15: C.Básico y Bachillerato | F15: Ciclo Básico | G15: C.Básico y Bachillerato | I15: Ciclo Básico | J15: C.Básico y Bachillerato | M15: Escuelas de CBT y Técnica | N15: Reparticiones
A16: TOTAL | B16: =C16+H16+K16+L16 -> 792 | C16: =SUM(C17,C18) -> 338 | D16: =D17+D18 -> 98 | E16: =E17+E18 -> 157 | F16: =F17+F18 -> 19 | G16: =G17+G18 -> 64 | H16: =SUM(I16:J16) -> 179 | I16: =I17+I18 -> 28 | J16: =J17+J18 -> 151 | K16: =K17+K18 -> 56 | L16: =M16+N16 -> 219 | M16: =M17+M18 -> 112 | N16: =N17+N18 -> 107
A17: MONTEVIDEO | B17: =C17+H17+K17+L17 -> 218 | C17: =SUM(D17:G17) -> 75 | D17: 42 | E17: 13 | F17: 4 | G17: 16 | H17: =SUM(I17:J17) -> 101 | I17: 12 | J17: 89 | K17: 0 | L17: =M17+N17 -> 42 | M17: 22 | N17: 20
A18: RESTO DEL PAÍS | B18: =C18+H18+K18+L18 -> 574 | C18: =SUM(C19:C36) -> 263 | D18: =SUM(D19:D36) -> 56 | E18: =SUM(E19:E36) -> 144 | F18: =SUM(F19:F36) -> 15 | G18: =SUM(G19:G36) -> 48 | H18: =SUM(I18:J18) -> 78 | I18: =SUM(I19:I36) -> 16 | J18: =SUM(J19:J36) -> 62 | K18: =SUM(K19:K36) -> 56 | L18: 177 | M18: =SUM(M19:M36) -> 90 | N18: =SUM(N19:N36) -> 87
A19: Artigas | B19: 23 | C19: =SUM(D19:G19) -> 11 | D19: 3 | E19: 7 | F19: 0 | G19: 1 | H19: =SUM(I19:J19) -> 1 | I19: 0 | J19: 1 | K19: 3 | L19: 8 | M19: 4 | N19: 4
A20: Canelones | B20: 132 | C20: 64 | D20: 12 | E20: 31 | F20: 6 | G20: 15 | H20: =SUM(I20:J20) -> 29 | I20: 6 | J20: 23 | K20: 0 | L20: 39 | M20: 17 | N20: 22
A21: Cerro Largo | B21: 29 | C21: 11 | D21: 1 | E21: 7 | F21: 1 | G21: 2 | H21: 3 | I21: 0 | J21: 3 | K21: 4 | L21: 11 | M21: 5 | N21: 6
A22: Colonia* | B22: 35 | C22: 17 | D22: 3 | E22: 9 | F22: 0 | G22: 5 | H22: 1 | I22: 0 | J22: 1 | K22: 6 | L22: 11 | M22: 9 | N22: 2
A23: Durazno | B23: 20 | C23: 9 | D23: 2 | E23: 5 | F23: 1 | G23: 1 | H23: 2 | I23: 0 | J23: 2 | K23: 1 | L23: 8 | M23: 3 | N23: 5
A24: Flores | B24: 11 | C24: 4 | D24: 1 | E24: 2 | F24: 0 | G24: 1 | H24: 2 | I24: 0 | J24: 2 | K24: 1 | L24: 4 | M24: 2 | N24: 2
A25: Florida | B25: 27 | C25: 12 | D25: 2 | E25: 9 | F25: 0 | G25: 1 | H25: 6 | I25: 4 | J25: 2 | K25: 2 | L25: 7 | M25: 1 | N25: 6
A26: Lavalleja | B26: 19 | C26: 9 | D26: 2 | E26: 6 | F26: 1 | G26: 0 | H26: 2 | I26: 2 | J26: 0 | K26: 2 | L26: 6 | M26: 2 | N26: 4
A27: Maldonado | B27: 40 | C27: 17 | D27: 3 | E27: 9 | F27: 1 | G27: 4 | H27: 12 | I27: 1 | J27: 11 | K27: 1 | L27: 10 | M27: 8 | N27: 2
A28: Paysandú | B28: 35 | C28: 13 | D28: 5 | E28: 7 | F28: 0 | G28: 1 | H28: 3 | I28: 1 | J28: 2 | K28: 9 | L28: 10 | M28: 4 | N28: 6
A29: Río Negro | B29: 22 | C29: 9 | D29: 2 | E29: 5 | F29: 0 | G29: 2 | H29: 1 | I29: 0 | J29: 1 | K29: 5 | L29: 7 | M29: 3 | N29: 4
A30: Rivera | B30: 33 | C30: 14 | D30: 4 | E30: 7 | F30: 1 | G30: 2 | H30: 4 | I30: 0 | J30: 4 | K30: 4 | L30: 11 | M30: 5 | N30: 6
A31: Rocha | B31: 23 | C31: 13 | D31: 3 | E31: 7 | F31: 0 | G31: 3 | H31: 2 | I31: 1 | J31: 1 | K31: 3 | L31: 5 | M31: 5 | N31: 0
A32: Salto | B32: 25 | C32: 13 | D32: 1 | E32: 9 | F32: 2 | G32: 1 | H32: 3 | I32: 0 | J32: 3 | K32: 0 | L32: 9 | M32: 4 | N32: 5
A33: San José | B33: 29 | C33: 13 | D33: 2 | E33: 6 | F33: 1 | G33: 4 | H33: 2 | I33: 0 | J33: 2 | K33: 7 | L33: 7 | M33: 6 | N33: 1
A34: Soriano | B34: 21 | C34: 12 | D34: 4 | E34: 5 | F34: 0 | G34: 3 | H34: 1 | I34: 0 | J34: 1 | K34: 1 | L34: 7 | M34: 6 | N34: 1
A35: Tacuarembó | B35: 32 | C35: 14 | D35: 3 | E35: 9 | F35: 0 | G35: 2 | H35: 3 | I35: 1 | J35: 2 | K35: 5 | L35: 10 | M35: 2 | N35: 8
A36: Treinta y Tres | B36: 18 | C36: 8 | D36: 3 | E36: 4 | F36: 1 | G36: 0 | H36: 1 | I36: 0 | J36: 1 | K36: 2 | L36: 7 | M36: 4 | N36: 3
A37: Fuente: D.E.- C.E.S .
A38: Notas: 1- Los establecimientos considerados en el Tipo de Educación Escuelas con Ciclo Básico Rural ya fueron considerados en los totales de establecimientos de Educación Primaria por lo cual, si bien se presentan en la columna correspondiente, no participan en el “Total” del presente cuadro. 2- En un mismo establecimiento de UTU coexisten ofertas educativas de diferentes niveles. Los establecimientos que se consideraron en este cuadro son aquellos en los que se dictan cursos clasificados como de EDUCACIÓN MEDIA BÁSICA.

Sheet II-3.1.2
A1: CONSEJO DE EDUCACIÓN INICIAL Y PRIMARIA (CEIP), | G1: ESTABLECIMIENTOS
A2: CONSEJO DE EDUCACIÓN SECUNDARIA (CES) Y CONSEJO DE EDUCACIÓN TÉCNICO PROFESIONAL (UTU)
A3: Cuadro Nº II-3.1.2
A5: ESTABLECIMIENTOS FÍSICOS DE EDUCACIÓN MEDIA POR FORMA DE ADMINISTRACIÓN SEGÚN DEPARTAMENTO (Todo el país, 2017)
A6: DEPARTAMENTO | C6: MODALIDAD
B7: TOTAL GENERAL | C7: CES | E7: CEIP | F7: CETP
C9: LICEOS PÚBLICOS | D9: LICEOS PRIVADOS | E9: Escuelas con Ciclo Básico Rural | F9: Escuelas de CBT y Técnica.
A10: TOTAL | B10: =B11+B12 -> 813 | C10: =C11+C12 -> 301 | D10: =D11+D12 -> 196 | E10: =E11+E12 -> 56 | F10: =F11+F12 -> 260
A11: MONTEVIDEO | B11: =SUM(C11:F11) -> 246 | C11: 75 | D11: 110 | E11: 0 | F11: 61
A12: RESTO DEL PAÍS | B12: =SUM(C12:F12) -> 567 | C12: =SUM(C13:C30) -> 226 | D12: =SUM(D13:D30) -> 86 | E12: =SUM(E13:E30) -> 56 | F12: =SUM(F13:F30) -> 199
A13: Artigas | B13: =C13+D13+E13+F13 -> 24 | C13: 12 | D13: 1 | E13: 3 | F13: 8
A14: Canelones | B14: 123 | C14: 51 | D14: 30 | E14: 0 | F14: 42
A15: Cerro Largo | B15: 26 | C15: 8 | D15: 3 | E15: 4 | F15: 11
A16: Colonia | B16: 36 | C16: 14 | D16: 1 | E16: 6 | F16: 15
A17: Durazno | B17: 20 | C17: 8 | D17: 2 | E17: 1 | F17: 9
A18: Flores | B18: 10 | C18: 3 | D18: 2 | E18: 1 | F18: 4
A19: Florida | B19: 24 | C19: 12 | D19: 2 | E19: 2 | F19: 8
A20: Lavalleja | B20: 19 | C20: 8 | D20: 2 | E20: 2 | F20: 7
A21: Maldonado | B21: 41 | C21: 13 | D21: 14 | E21: 1 | F21: 13
A22: Paysandú | B22: 41 | C22: 14 | D22: 4 | E22: 9 | F22: 14
A23: Río Negro | B23: 22 | C23: 8 | D23: 2 | E23: 5 | F23: 7
A24: Rivera | B24: 35 | C24: 13 | D24: 6 | E24: 4 | F24: 12
A25: Rocha | B25: 21 | C25: 11 | D25: 2 | E25: 3 | F25: 5
A26: Salto | B26: 26 | C26: 11 | D26: 5 | E26: 0 | F26: 10
A27: San José | B27: 27 | C27: 9 | D27: 3 | E27: 7 | F27: 8
A28: Soriano | B28: 19 | C28: 10 | D28: 1 | E28: 1 | F28: 7
A29: Tacuarembó | B29: 34 | C29: 13 | D29: 4 | E29: 5 | F29: 12
A30: Treinta y Tres | B30: 19 | C30: 8 | D30: 2 | E30: 2 | F30: 7
A31: Fuente: C.E.S - CETP- CEIP
A32: Nota: 1- A diferencia del cuadro anterior II-3.1.1, el presente consolida la cantidad de establecimientos físicos con independencia del nivel educativo al cual son dirigidos los programas de estudios impartidos. En el caso del CETP debe considerarse que además de Educación Media se dictan programas dirigidos a Educación Terciaria No Universitaria y Educación de Jóvenes y Adultos.
A33: 2- Dentro de la cantidad de establecimientos declarados por UTU en este apartado se encuentran 120 reparticiones (Montevideo=26; Resto del País=94). Son localizaciones en las cuales se imparten cursos administrados por el CETP-UTU. Estos locales no forman parte de los activos de ANEP.

Sheet II-3.2.1
A1: CONSEJO DE EDUCACIÓN SECUNDARIA | D1: ESTUDIANTES MATRICULADOS
A3: Cuadro Nº II-3.2.1
A5: ESTUDIANTES MATRICULADOS EN EDUCACION MEDIA BÁSICA GENERAL POR GRADO SEGÚN GRANDES ÁREAS Y FORMA DE ADMINISTRACIÓN (Todo el país, 2017)
A6: GRANDES ÁREAS Y FORMA DE ADMINISTRACIÓN | C6: GRADO
B7: TOTAL
C8: PRIMERO | D8: SEGUNDO | E8: TERCERO
A9: TOTAL DEL PAÍS | B9: =C9+D9+E9 -> 147808 | C9: =C14+C19 -> 50861 | D9: =D14+D19 -> 48155 | E9: 48792
A10: MEDIA BÁSICA PÚBLICA | B10: =C10+D10+E10 -> 123292 | C10: 42497 | D10: 39817 | E10: 40978
A11: Diurna | B11: 107463 | C11: 38701 | D11: 35393 | E11: 33369
A12: Nocturna | B12: 15829 | C12: 3796 | D12: 4424 | E12: 7609
A13: MEDIA BÁSICA PRIVADA | B13: 24516 | C13: 8364 | D13: 8338 | E13: 7814
A14: TOTAL MONTEVIDEO | B14: 54674 | C14: =C15+C18 -> 18861 | D14: =D15+D18 -> 18070 | E14: =E15+E18 -> 17743
A15: MEDIA BÁSICA PÚBLICA | B15: 38291 | C15: =C16+C17 -> 13217 | D15: =D16+D17 -> 12479 | E15: =E16+E17 -> 12595
A16: Diurna | B16: 32906 | C16: 11995 | D16: 10966 | E16: 9945
A17: Nocturna | B17: 5385 | C17: 1222 | D17: 1513 | E17: 2650
A18: MEDIA BÁSICA PRIVADA | B18: 16383 | C18: 5644 | D18: 5591 | E18: 5148
A19: TOTAL RESTO DEL PAÍS | B19: 93134 | C19: =C20+C23 -> 32000 | D19: =D20+D23 -> 30085 | E19: =E20+E23 -> 31049
A20: MEDIA BÁSICA PÚBLICA | B20: 85001 | C20: =C21+C22 -> 29280 | D20: =D21+D22 -> 27338 | E20: =E21+E22 -> 28383
A21: Diurna | B21: 74557 | C21: 26706 | D21: 24427 | E21: 23424
A22: Nocturna | B22: 10444 | C22: 2574 | D22: 2911 | E22: 4959
A23: MEDIA BÁSICA PRIVADA | B23: 8133 | C23: 2720 | D23: 2747 | E23: 2666
A24: Fuente: D.E. — C.E.S.
A25: Nota: La referencia "Privada", (incluye los Habilitados "Liceo Naval" y "Liceo Militar"), se corresponde con la de "Liceos Habilitados" presente en ediciones anteriores del Anuario Estadístico del MEC.

Sheet II-3.2.2
A1: CONSEJO DE EDUCACIÓN TÉCNICO PROFESIONAL (U.T.U.) | H1: ESTUDIANTES MATRICULADOS
A5: Cuadro Nº II-3.2.2.
A6: ESTUDIANTES MATRICULADOS EN EL CETP EN EDUCACIÓN MEDIA BÁSICA TECNOLÓGICA POR TIPO DE CURSO SEGÚN GRANDES ÁREAS, DEPARTAMENTO Y SEXO (Todo el país, 2017)
A9: GRANDES ÁREAS,DEPARTAMENTO Y SEXO | B9: TOTAL | D9: EDUCACIÓN MEDIA BÁSICA TECNOLÓGICA
C10: TOTAL | D10: Vinculación INTERCICLOS | F10: TOTAL | G10: C. B. T. Agrario | I10: TOTAL | J10: Ciclo Básico Tecnológico | L10: TOTAL | M10: Formación Profesional Básica 2007 | O10: TOTAL | P10: Programa Rumbo | R10: TOTAL | S10: Programa Centros Educ.Comunitarios
D11: Sexo | G11: Sexo | J11: Sexo | M11: Sexo | P11: Sexo | S11: Sexo
D12: V | E12: M | G12: V | H12: M | J12: V | K12: M | M12: V | N12: M | P12: V | Q12: M | S12: V | T12: M
A14: TOTAL | B14: =C14+F14+I14+L14+O14+R14 -> 35907 | C14: =SUM(C15:C16) -> 4 | D14: 2 | E14: 2 | F14: 2040 | G14: =G15+G16 -> 1432 | H14: =H15+H16 -> 608 | I14: 17359 | J14: 10065 | K14: 7294 | L14: 14670 | M14: 9164 | N14: 5506 | O14: =P14+Q14 -> 1152 | P14: 510 | Q14: 642 | R14: =S14+T14 -> 682 | S14: 439 | T14: 243
A15: Montevideo | B15: =C15+F15+I15+L15+O15+R15 -> 8348 | C15: =+D15+E15 -> 1 | D15: 1 | E15: 0 | F15: =+G15+H15 -> 151 | G15: 107 | H15: 44 | I15: =+J15+K15 -> 3349 | J15: 1958 | K15: 1391 | L15: =+M15+N15 -> 3949 | M15: 2375 | N15: 1574 | O15: =P15+Q15 -> 352 | P15: 189 | Q15: 163 | R15: =S15+T15 -> 546 | S15: 346 | T15: 200
A16: Resto del País | B16: 27559 | C16: =SUM(C17:C34) -> 3 | D16: 1 | E16: 2 | F16: 1889 | G16: 1325 | H16: 564 | I16: 14010 | J16: 8107 | K16: 5903 | L16: 10721 | M16: 6789 | N16: 3932 | O16: =P16+Q16 -> 800 | P16: =SUM(P17:P34) -> 321 | Q16: =SUM(Q17:Q34) -> 479 | R16: 136 | S16: =SUM(S17:S34) -> 93 | T16: =SUM(T17:T34) -> 43
A17: Artigas | B17: 1364 | C17: =+D17+E17 -> 0 | D17: 0 | E17: 0 | F17: =+G17+H17 -> 70 | G17: 47 | H17: 23 | I17: =+J17+K17 -> 791 | J17: 479 | K17: 312 | L17: =+M17+N17 -> 447 | M17: 223 | N17: 224 | O17: 56 | P17: 23 | Q17: 33 | R17: 0 | S17: 0 | T17: 0
A18: Canelones | B18: 6329 | C18: 0 | D18: 0 | E18: 0 | F18: 71 | G18: 48 | H18: 23 | I18: 2682 | J18: 1547 | K18: 1135 | L18: 3313 | M18: 1992 | N18: 1321 | O18: 263 | P18: 84 | Q18: 179 | R18: 0 | S18: 0 | T18: 0
A19: Cerro Largo | B19: 1605 | C19: 0 | D19: 0 | E19: 0 | F19: 112 | G19: 83 | H19: 29 | I19: 898 | J19: 515 | K19: 383 | L19: 537 | M19: 319 | N19: 218 | O19: 58 | P19: 25 | Q19: 33 | R19: 0 | S19: 0 | T19: 0
A20: Colonia | B20: 1645 | C20: 0 | D20: 0 | E20: 0 | F20: 140 | G20: 102 | H20: 38 | I20: 1053 | J20: 586 | K20: 467 | L20: 427 | M20: 300 | N20: 127 | O20: 25 | P20: 10 | Q20: 15 | R20: 0 | S20: 0 | T20: 0
A21: Durazno | B21: 1264 | C21: 0 | D21: 0 | E21: 0 | F21: 142 | G21: 85 | H21: 57 | I21: 781 | J21: 451 | K21: 330 | L21: 341 | M21: 216 | N21: 125 | O21: 0 | P21: 0 | Q21: 0 | R21: 0 | S21: 0 | T21: 0
A22: Flores | B22: 322 | C22: 0 | D22: 0 | E22: 0 | F22: 0 | G22: 0 | H22: 0 | I22: 164 | J22: 93 | K22: 71 | L22: 158 | M22: 105 | N22: 53 | O22: 0 | P22: 0 | Q22: 0 | R22: 0 | S22: 0 | T22: 0
A23: Florida | B23: 744 | C23: 0 | D23: 0 | E23: 0 | F23: 0 | G23: 0 | H23: 0 | I23: 304 | J23: 177 | K23: 127 | L23: 404 | M23: 251 | N23: 153 | O23: 36 | P23: 21 | Q23: 15 | R23: 0 | S23: 0 | T23: 0
A24: Lavalleja | B24: 662 | C24: 0 | D24: 0 | E24: 0 | F24: 94 | G24: 65 | H24: 29 | I24: 182 | J24: 97 | K24: 85 | L24: 361 | M24: 253 | N24: 108 | O24: 25 | P24: 11 | Q24: 14 | R24: 0 | S24: 0 | T24: 0
A25: Maldonado | B25: 1907 | C25: 0 | D25: 0 | E25: 0 | F25: 72 | G25: 44 | H25: 28 | I25: 1064 | J25: 591 | K25: 473 | L25: 580 | M25: 394 | N25: 186 | O25: 55 | P25: 33 | Q25: 22 | R25: 136 | S25: 93 | T25: 43
A26: Paysandú | B26: 2033 | C26: 1 | D26: 1 | E26: 0 | F26: 359 | G26: 234 | H26: 125 | I26: 861 | J26: 529 | K26: 332 | L26: 751 | M26: 528 | N26: 223 | O26: 61 | P26: 29 | Q26: 32 | R26: 0 | S26: 0 | T26: 0
A27: Rio Negro | B27: 868 | C27: 0 | D27: 0 | E27: 0 | F27: 27 | G27: 23 | H27: 4 | I27: 508 | J27: 313 | K27: 195 | L27: 333 | M27: 214 | N27: 119 | O27: 0 | P27: 0 | Q27: 0 | R27: 0 | S27: 0 | T27: 0
A28: Rivera | B28: 1466 | C28: 0 | D28: 0 | E28: 0 | F28: 279 | G28: 228 | H28: 51 | I28: 681 | J28: 440 | K28: 241 | L28: 472 | M28: 330 | N28: 142 | O28: 34 | P28: 20 | Q28: 14 | R28: 0 | S28: 0 | T28: 0
A29: Rocha | B29: 830 | C29: 0 | D29: 0 | E29: 0 | F29: 40 | G29: 30 | H29: 10 | I29: 413 | J29: 216 | K29: 197 | L29: 352 | M29: 237 | N29: 115 | O29: 25 | P29: 8 | Q29: 17 | R29: 0 | S29: 0 | T29: 0
A30: Salto | B30: 1575 | C30: 2 | D30: 0 | E30: 2 | F30: 193 | G30: 121 | H30: 72 | I30: 769 | J30: 428 | K30: 341 | L30: 585 | M30: 369 | N30: 216 | O30: 26 | P30: 9 | Q30: 17 | R30: 0 | S30: 0 | T30: 0
A31: San José | B31: 1797 | C31: 0 | D31: 0 | E31: 0 | F31: 96 | G31: 66 | H31: 30 | I31: 1221 | J31: 697 | K31: 524 | L31: 426 | M31: 274 | N31: 152 | O31: 54 | P31: 20 | Q31: 34 | R31: 0 | S31: 0 | T31: 0
A32: Soriano | B32: 1494 | C32: 0 | D32: 0 | E32: 0 | F32: 105 | G32: 86 | H32: 19 | I32: 869 | J32: 490 | K32: 379 | L32: 464 | M32: 305 | N32: 159 | O32: 56 | P32: 18 | Q32: 38 | R32: 0 | S32: 0 | T32: 0
A33: Tacuarembó | B33: 1087 | C33: 0 | D33: 0 | E33: 0 | F33: 13 | G33: 8 | H33: 5 | I33: 541 | J33: 332 | K33: 209 | L33: 507 | M33: 301 | N33: 206 | O33: 26 | P33: 10 | Q33: 16 | R33: 0 | S33: 0 | T33: 0
A34: Treinta y Tres | B34: 567 | C34: 0 | D34: 0 | E34: 0 | F34: 76 | G34: 55 | H34: 21 | I34: 228 | J34: 126 | K34: 102 | L34: 263 | M34: 178 | N34: 85 | O34: 0 | P34: 0 | Q34: 0 | R34: 0 | S34: 0 | T34: 0
A35: Fuente: Procesamiento propio en base a datos proporcionados por el D.E. - CETP (U.T.U) .

Sheet II-3.2.3
A1: CONSEJO DE EDUCACIÓN PRIMARIA | I1: ESTUDIANTES MATRICULADOS
A3: Cuadro Nº II-3.2.3
A6: ESTUDIANTES MATRICULADOS EN SÉPTIMO, OCTAVO Y NOVENO GRADO DE CICLO BÁSICO RURAL POR SEXO SEGÚN DEPARTAMENTO (Todo el país, 2017)
A7: DEPARTAMENTO | B7: TOTAL | E7: CICLO BÁSICO RURAL
E8: GRADO
E9: SÉPTIMO | H9: OCTAVO | K9: NOVENO
E10: SEXO | H10: SEXO | K10: SEXO
B11: TOTAL | C11: V | D11: M | E11: T | F11: V | G11: M | H11: T | I11: V | J11: M | K11: T | L11: V | M11: M
A13: TOTAL | B13: =B14+B15 -> 1470 | C13: =F13+I13+L13 -> 789 | D13: 681 | E13: =F13+G13 -> 534 | F13: =F14+F15 -> 285 | G13: =G14+G15 -> 249 | H13: =I13+J13 -> 502 | I13: =I14+I15 -> 282 | J13: =J14+J15 -> 220 | K13: =L13+M13 -> 434 | L13: =L14+L15 -> 222 | M13: =M14+M15 -> 212
A14: MONTEVIDEO | B14: 0 | C14: 0 | D14: 0 | E14: =F14+G14 -> 0 | F14: 0 | G14: 0 | H14: =I14+J14 -> 0 | I14: 0 | J14: 0 | K14: =L14+M14 -> 0 | L14: 0 | M14: 0
A15: RESTO DEL PAÍS | B15: =E15+H15+K15 -> 1470 | C15: 789 | D15: =G15+J15+M15 -> 681 | E15: =F15+G15 -> 534 | F15: =SUM(F16:F33) -> 285 | G15: =SUM(G16:G33) -> 249 | H15: =I15+J15 -> 502 | I15: =SUM(I16:I33) -> 282 | J15: =SUM(J16:J33) -> 220 | K15: =L15+M15 -> 434 | L15: =SUM(L16:L33) -> 222 | M15: =SUM(M16:M33) -> 212
A16: Artigas | B16: 98 | C16: 49 | D16: 49 | E16: =F16+G16 -> 36 | F16: 17 | G16: 19 | H16: 37 | I16: 22 | J16: 15 | K16: 25 | L16: 10 | M16: 15
A17: Canelones | B17: =E17+H17+K17 -> 0 | C17: =F17+I17+L17 -> 0 | D17: =G17+J17+M17 -> 0 | E17: 0 | F17: 0 | G17: 0 | H17: 0 | I17: 0 | J17: 0 | K17: 0 | L17: 0 | M17: 0
A18: Cerro Largo | B18: 105 | C18: 58 | D18: 47 | E18: 42 | F18: 25 | G18: 17 | H18: 41 | I18: 21 | J18: 20 | K18: 22 | L18: 12 | M18: 10
A19: Colonia | B19: 158 | C19: 98 | D19: 60 | E19: 34 | F19: 20 | G19: 14 | H19: 65 | I19: 40 | J19: 25 | K19: 59 | L19: 38 | M19: 21
A20: Durazno | B20: 23 | C20: 13 | D20: 10 | E20: 7 | F20: 5 | G20: 2 | H20: 13 | I20: 7 | J20: 6 | K20: 3 | L20: 1 | M20: 2
A21: Flores | B21: 17 | C21: 9 | D21: 8 | E21: 7 | F21: 4 | G21: 3 | H21: 5 | I21: 3 | J21: 2 | K21: 5 | L21: 2 | M21: 3
A22: Florida | B22: 44 | C22: 32 | D22: 26 | E22: 25 | F22: 14 | G22: 11 | H22: 19 | I22: 12 | J22: 7 | L22: 6 | M22: 8
A23: Lavalleja | B23: 63 | C23: 38 | D23: 25 | E23: 26 | F23: 17 | G23: 9 | H23: 21 | I23: 15 | J23: 6 | K23: 16 | L23: 6 | M23: 10
A24: Maldonado | B24: 31 | C24: 18 | D24: 13 | E24: 12 | F24: 7 | G24: 5 | H24: 13 | I24: 7 | J24: 6 | K24: 6 | L24: 4 | M24: 2
A25: Paysandú | B25: 224 | C25: 105 | D25: 119 | E25: 62 | F25: 21 | G25: 41 | H25: 77 | I25: 42 | J25: 35 | K25: 85 | L25: 42 | M25: 43
A26: Río Negro | B26: 81 | C26: 38 | D26: 43 | E26: 37 | F26: 20 | G26: 17 | H26: 27 | I26: 12 | J26: 15 | K26: 17 | L26: 6 | M26: 11
A27: Rivera | B27: 90 | C27: 40 | D27: 50 | E27: 34 | F27: 16 | G27: 18 | H27: 26 | I27: 11 | J27: 15 | K27: 30 | L27: 13 | M27: 17
A28: Rocha | B28: 76 | C28: 40 | D28: 36 | E28: 28 | F28: 11 | G28: 17 | H28: 25 | I28: 14 | J28: 11 | K28: 23 | L28: 15 | M28: 8
A29: Salto | B29: 0 | C29: 0 | D29: 0 | E29: 0 | F29: 0 | G29: 0 | H29: 0 | I29: 0 | J29: 0 | K29: 0 | L29: 0 | M29: 0
A30: San José | B30: 229 | C30: 123 | D30: 106 | E30: 97 | F30: 49 | G30: 48 | H30: 67 | I30: 41 | J30: 26 | K30: 65 | L30: 33 | M30: 32
A31: Soriano | B31: 28 | C31: 16 | D31: 12 | E31: 11 | F31: 9 | G31: 2 | H31: 8 | I31: 3 | J31: 5 | K31: 9 | L31: 4 | M31: 5
A32: Tacuarembó | B32: 142 | C32: 90 | D32: 52 | E32: 58 | F32: 41 | G32: 17 | H32: 42 | I32: 24 | J32: 18 | K32: 42 | L32: 25 | M32: 17
A33: Treinta y Tres | B33: 47 | C33: 22 | D33: 25 | E33: 18 | F33: 9 | G33: 9 | H33: 16 | I33: 8 | J33: 8 | K33: 13 | L33: 5 | M33: 8
A34: Fuente: DE — CES
A36: Nota: No se tienen datos por sexo

Sheet II-3.2.4
A1: CONSEJO DE EDUCACIÓN SECUNDARIA | D1: ESTUDIANTES MATRICULADOS
A3: Cuadro Nº II-3.2.4
A5: ESTUDIANTES MATRICULADOS DE EDUCACIÓN MEDIA BÁSICA GENERAL POR GRADO Y FORMA DE ADMINISTRACIÓN SEGÚN DEPARTAMENTO (Todo el país, 2017)
A7: DEPARTAMENTO | B7: GRADO
B8: PRIMERO | D8: SEGUNDO | F8: TERCERO
B9: FORMA DE ADMINISTRACIÓN
B10: Públicos | C10: Privados | D10: Públicos | E10: Privados | F10: Públicos | G10: Privados
A11: TOTAL | B11: =B12+B13 -> 42497 | C11: 8364 | D11: 39817 | E11: 8338 | F11: =F12+F13 -> 40978 | G11: 7814
A12: MONTEVIDEO | B12: 13217 | C12: 5644 | D12: 12479 | E12: 5591 | F12: 12595 | G12: 5148
A13: RESTO DEL PAÍS | B13: =SUM(B14:B31) -> 29280 | C13: 2720 | D13: 27338 | E13: 2747 | F13: 28383 | G13: 2666
A14: Artigas | B14: 1035 | C14: 20 | D14: 1125 | E14: 28 | F14: 1186 | G14: 17
A15: Canelones | B15: 7596 | C15: 1118 | D15: 7123 | E15: 1123 | F15: 7451 | G15: 1079
A16: Cerro Largo | B16: 1238 | C16: 109 | D16: 1105 | E16: 126 | F16: 1197 | G16: 129
A17: Colonia | B17: 1607 | C17: 32 | D17: 1584 | E17: 23 | F17: 1641 | G17: 18
A18: Durazno | B18: 826 | C18: 97 | D18: 730 | E18: 99 | F18: 804 | G18: 82
A19: Flores | B19: 352 | C19: 47 | D19: 357 | E19: 67 | F19: 390 | G19: 54
A20: Florida | B20: 911 | C20: 67 | D20: 815 | E20: 62 | F20: 879 | G20: 63
A21: Lavalleja | B21: 856 | C21: 54 | D21: 799 | E21: 38 | F21: 756 | G21: 38
A22: Maldonado | B22: 2329 | C22: 458 | D22: 2299 | E22: 403 | F22: 2371 | G22: 467
A23: Paysandú | B23: 1439 | C23: 192 | D23: 1412 | E23: 206 | F23: 1424 | G23: 176
A24: Río Negro | B24: 746 | C24: 21 | D24: 731 | E24: 11 | F24: 786 | G24: 10
A25: Rivera | B25: 2031 | C25: 77 | D25: 1806 | E25: 66 | F25: 1777 | G25: 63
A26: Rocha | B26: 1202 | C26: 60 | D26: 1147 | E26: 46 | F26: 1163 | G26: 44
A27: Salto | B27: 1835 | C27: 128 | D27: 1556 | E27: 146 | F27: 1800 | G27: 138
A28: San José | B28: 1545 | C28: 47 | D28: 1386 | E28: 74 | F28: 1404 | G28: 96
A29: Soriano | B29: 1409 | C29: 70 | D29: 1110 | E29: 72 | F29: 1128 | G29: 65
A30: Tacuarembó | B30: 1563 | C30: 89 | D30: 1492 | E30: 115 | F30: 1491 | G30: 85
A31: Treinta y Tres | B31: 760 | C31: 34 | D31: 761 | E31: 42 | F31: 735 | G31: 42
A32: Fuente: DE — CES

Sheet II-3.2.5
A1: CONSEJO DE EDUCACIÓN SECUNDARIA
A2: Cuadro Nº II-3.2.5
A4: ESTUDIANTES MATRICULADOS DE EDUCACIÓN MEDIA BÁSICA PRIVADA POR GRADO Y SEXO SEGÚN DEPARTAMENTO (Todo el país, 2017)
A6: DEPARTAMENTO | B6: GRADO
B7: PRIMERO | D7: SEGUNDO | F7: TERCERO
B8: SEXO
B9: Mujer | C9: Varón | D9: Mujer | E9: Varón | F9: Mujer | G9: Varón
A10: TOTAL | B10: =B11+B12 -> 4108 | C10: 4130 | D10: 4115 | E10: 4107 | F10: 3832 | G10: 3762
A11: MONTEVIDEO | B11: 2773 | C11: 2772 | D11: 2758 | E11: 2736 | F11: 2510 | G11: 2550
A12: RESTO DEL PAÍS | B12: =SUM(B13:B30) -> 1335 | C12: 1358 | D12: 1357 | E12: 1371 | F12: 1322 | G12: 1212
A13: Artigas | B13: 9 | C13: 11 | D13: 15 | E13: 13 | F13: 9 | G13: 8
A14: Canelones | B14: 546 | C14: 572 | D14: 574 | E14: 549 | F14: 565 | G14: 514
A15: Cerro Largo | B15: 62 | C15: 47 | D15: 53 | E15: 73 | F15: 22 | G15: 27
A16: Colonia | B16: 16 | C16: 16 | D16: 9 | E16: 14 | F16: 8 | G16: 10
A17: Durazno | B17: 46 | C17: 51 | D17: 47 | E17: 52 | F17: 45 | G17: 37
A18: Flores | B18: 28 | C18: 19 | D18: 27 | E18: 40 | F18: 35 | G18: 19
A19: Florida | B19: 34 | C19: 33 | D19: 32 | E19: 30 | F19: 37 | G19: 26
A20: Lavalleja | B20: 11 | C20: 16 | D20: 10 | E20: 9 | F20: 7 | G20: 12
A21: Maldonado | B21: 231 | C21: 227 | D21: 191 | E21: 212 | F21: 231 | G21: 236
A22: Paysandú | B22: 92 | C22: 100 | D22: 99 | E22: 107 | F22: 85 | G22: 91
A23: Río Negro | B23: 13 | C23: 8 | D23: 2 | E23: 9 | F23: 5 | G23: 5
A24: Rivera | B24: 37 | C24: 40 | D24: 28 | E24: 38 | F24: 25 | G24: 38
A25: Rocha | B25: 30 | C25: 30 | D25: 26 | E25: 20 | F25: 26 | G25: 18
A26: Salto | B26: 65 | C26: 63 | D26: 79 | E26: 67 | F26: 83 | G26: 55
A27: San José | B27: 27 | C27: 20 | D27: 41 | E27: 33 | F27: 39 | G27: 27
A28: Soriano | B28: 33 | C28: 37 | D28: 32 | E28: 40 | F28: 36 | G28: 29
A29: Tacuarembó | B29: 42 | C29: 47 | D29: 67 | E29: 48 | F29: 40 | G29: 45
A30: Treinta y Tres | B30: 13 | C30: 21 | D30: 25 | E30: 17 | F30: 24 | G30: 15
A31: Fuente: DE — CES
A32: Nota: Las diferencias con la matrícula de otros cuadros se debe a la ausencia de información sobre sexo en algunos colegios.

Sheet II-3.2.6
A1: CONSEJO DE EDUCACIÓN SECUNDARIA
A2: Cuadro Nº II-3.2.6
A4: ESTUDIANTES MATRICULADOS DE EDUCACIÓN MEDIA BÁSICA PÚBLICA POR GRADO Y SEXO SEGÚN DEPARTAMENTO (Todo el país, 2017)
A6: DEPARTAMENTO | B6: GRADO
B7: PRIMERO | D7: SEGUNDO | F7: TERCERO
B8: SEXO
B9: Mujer | C9: Varón | D9: Mujer | E9: Varón | F9: Mujer | G9: Varón
A10: TOTAL | B10: =B11+B12 -> 21323 | C10: 21174 | D10: 21052 | E10: 18765 | F10: 21792 | G10: 19186
A11: MONTEVIDEO | B11: 6560 | C11: 6657 | D11: 6593 | E11: 5886 | F11: 6595 | G11: 6000
A12: RESTO DEL PAÍS | B12: =SUM(B13:B30) -> 14763 | C12: =SUM(C13:C30) -> 14517 | D12: 14459 | E12: 12879 | F12: 15197 | G12: 13186
A13: Artigas | B13: 503 | C13: 532 | D13: 556 | E13: 569 | F13: 626 | G13: 560
A14: Canelones | B14: 3771 | C14: 3825 | D14: 3725 | E14: 3398 | F14: 3926 | G14: 3525
A15: Cerro Largo | B15: 691 | C15: 547 | D15: 587 | E15: 518 | F15: 642 | G15: 555
A16: Colonia | B16: 850 | C16: 757 | D16: 890 | E16: 694 | F16: 881 | G16: 760
A17: Durazno | B17: 456 | C17: 370 | D17: 390 | E17: 340 | F17: 451 | G17: 353
A18: Flores | B18: 186 | C18: 166 | D18: 215 | E18: 142 | F18: 227 | G18: 163
A19: Florida | B19: 464 | C19: 447 | D19: 418 | E19: 397 | F19: 467 | G19: 412
A20: Lavalleja | B20: 432 | C20: 424 | D20: 428 | E20: 371 | F20: 414 | G20: 342
A21: Maldonado | B21: 1153 | C21: 1176 | D21: 1207 | E21: 1092 | F21: 1189 | G21: 1182
A22: Paysandú | B22: 729 | C22: 710 | D22: 755 | E22: 657 | F22: 787 | G22: 637
A23: Río Negro | B23: 406 | C23: 340 | D23: 382 | E23: 349 | F23: 438 | G23: 348
A24: Rivera | B24: 999 | C24: 1032 | D24: 956 | E24: 850 | F24: 930 | G24: 847
A25: Rocha | B25: 593 | C25: 609 | D25: 612 | E25: 535 | F25: 604 | G25: 559
A26: Salto | B26: 913 | C26: 922 | D26: 789 | E26: 767 | F26: 933 | G26: 867
A27: San José | B27: 760 | C27: 785 | D27: 751 | E27: 635 | F27: 807 | G27: 597
A28: Soriano | B28: 719 | C28: 690 | D28: 616 | E28: 494 | F28: 636 | G28: 492
A29: Tacuarembó | B29: 739 | C29: 824 | D29: 782 | E29: 710 | F29: 814 | G29: 677
A30: Treinta y Tres | B30: 399 | C30: 361 | D30: 400 | E30: 361 | F30: 425 | G30: 310
A31: Fuente: DE — CES

Sheet II-3.2.7
A1: CONSEJO DE EDUCACIÓN TÉCNICO PROFESIONAL (U.T.U.) | E1: MATRICULADOS
A3: Cuadro Nº II-3.2.7
A5: ESTUDIANTES MATRICULADOS EN EDUCACIÓN TÉCNICA MEDIA BÁSICA POR TIPO DE CURSO SEGÚN EDAD (Todo el país, 2017)
A7: EDAD | B7: TOTAL | C7: TIPO DE CURSO
C8: Articulación Educación Media Básica | D8: C.T.B Agrario | E8: Ciclo Básico Tecnológico | F8: Formación Profesional Básica Plan 2007 | G8: Articulación Otras | H8: Programas Centros educ. comunitarios
A9: TOTAL | B9: =C9+D9+E9+F9+G9+H9 -> 35907 | C9: =SUM(C10:C20) -> 4 | D9: 2040 | E9: 17359 | F9: 14670 | G9: 1152 | H9: 682
A10: 11 y 12 años | B10: =C10+D10+E10+F10+G10+H10 -> 4977 | C10: 0 | D10: 470 | E10: 3973 | F10: 509 | G10: 0 | H10: 25
A11: 13 años | B11: 6667 | C11: 0 | D11: 609 | E11: 4926 | F11: 1050 | G11: 0 | H11: 82
A12: 14 años | B12: 7552 | C12: 1 | D12: 604 | E12: 4913 | F12: 1854 | G12: 1 | H12: 179
A13: 15 años | B13: 5477 | C13: 0 | D13: 217 | E13: 2196 | F13: 2852 | G13: 24 | H13: 188
A14: 16 años | B14: 4576 | C14: 0 | D14: 97 | E14: 930 | F14: 3365 | G14: 38 | H14: 146
A15: 17 años | B15: 3132 | C15: 1 | D15: 31 | E15: 324 | F15: 2672 | G15: 45 | H15: 59
A16: 18 años | B16: 1240 | C16: 0 | D16: 7 | E16: 56 | F16: 1078 | G16: 97 | H16: 2
A17: 19 años | B17: 571 | C17: 0 | D17: 3 | E17: 19 | F17: 488 | G17: 60 | H17: 1
A18: 20 a 24 años | B18: 787 | C18: 0 | D18: 2 | E18: 20 | F18: 518 | G18: 247 | H18: 0
A19: 25 a 29 años | B19: 288 | C19: 0 | D19: 0 | E19: 2 | F19: 109 | G19: 177 | H19: 0
A20: 30 años y más | B20: 640 | C20: 2 | D20: 0 | E20: 0 | F20: 175 | G20: 463 | H20: 0
A21: Fuente : Procesamiento propio en base a datos proporcionados por el D.E.-CETP (U.T.U.)

Sheet II-3.2.8
A1: CONSEJO DE EDUCACIÓN TÉCNICO PROFESIONAL (U.T.U.) | C1: MATRICULADOS
A4: Cuadro Nº II-3.2.8.
A6: ESTUDIANTES MATRICULADOS EN EL CETP EN EDUCACIÓN MEDIA BÁSICA POR TIPO DE CURSO SEGÚN SECTORES DE ESTUDIO (Todo el país, 2017)
A7: SECTORES DE ESTUDIO | B7: TOTAL | C7: TIPO DE CURSO
C8: Vinculación INTERCICLOS | D8: C. B. T. Agrario | E8: Ciclo Básico Tecnológico | F8: Formación Profesional Básica Plan 2007 | G8: Programa Rumbo | H8: Programas Centros educ. Comuniotarios
A10: Prog. Ciclo Básico. Educación Media | B10: =SUM(C10:H10) -> 35907 | C10: =SUM(C11:C34) -> 4 | D10: =SUM(D11:D34) -> 2040 | E10: 17359 | F10: 14670 | G10: 1152 | H10: 682
A11: Agropecuario | B11: =SUM(C11:H11) -> 278 | C11: 0 | D11: 0 | E11: 0 | F11: 278 | G11: 0 | H11: 0
A12: Artes Escénicas | B12: 396 | C12: 0 | D12: 0 | E12: 0 | F12: 396 | G12: 0 | H12: 0
A13: Artes y artesanías | B13: 39 | C13: 0 | D13: 0 | E13: 0 | F13: 39 | G13: 0 | H13: 0
A14: Comunicación | B14: 521 | C14: 0 | D14: 0 | E14: 0 | F14: 521 | G14: 0 | H14: 0
A15: Construcción y Arquitectura | B15: 446 | C15: 0 | D15: 0 | E15: 0 | F15: 446 | G15: 0 | H15: 0
A16: Deporte y afines | B16: 1595 | C16: 0 | D16: 0 | E16: 0 | F16: 1595 | G16: 0 | H16: 0
A17: Electricidad y Electrónica | B17: 1589 | C17: 0 | D17: 0 | E17: 0 | F17: 1582 | G17: 7 | H17: 0
A18: Gastronomía | B18: 2137 | C18: 0 | D18: 0 | E18: 0 | F18: 2126 | G18: 11 | H18: 0
A19: Gráficos | B19: 73 | C19: 0 | D19: 0 | E19: 0 | F19: 73 | G19: 0 | H19: 0
A20: Hipica | B20: 64 | C20: 0 | D20: 0 | E20: 0 | F20: 64 | G20: 0 | H20: 0
A21: Hortifruticultura y Jardinería | B21: 194 | C21: 0 | D21: 0 | E21: 0 | F21: 194 | G21: 0 | H21: 0
A22: Informática | B22: 1441 | C22: 0 | D22: 0 | E22: 0 | F22: 1441 | G22: 0 | H22: 0
A23: Madera y Muebles | B23: 1261 | C23: 0 | D23: 0 | E23: 0 | F23: 1255 | G23: 6 | H23: 0
A24: Mantenimiento y Rep. de Vehículos | B24: 1416 | C24: 0 | D24: 0 | E24: 0 | F24: 1416 | G24: 0 | H24: 0
A25: Metal - Mecánica | B25: 642 | C25: 0 | D25: 0 | E25: 0 | F25: 625 | G25: 17 | H25: 0
A26: Producción de Alimentos | B26: 479 | C26: 0 | D26: 0 | E26: 0 | F26: 479 | G26: 0 | H26: 0
A27: Programa Articulación Rumbo y Otras | B27: 1386 | C27: 0 | D27: 0 | E27: 0 | F27: 281 | G27: 1105 | H27: 0
A28: Programa C.B.T. Aula Tecnológica | B28: 4 | C28: 4 | D28: 0 | E28: 0 | F28: 0 | G28: 0 | H28: 0
A29: Programa Ciclo Básico Agrario | B29: 2040 | C29: 0 | D29: 2040 | E29: 0 | F29: 0 | G29: 0 | H29: 0
A30: Programa Educación Media Básica | B30: 17375 | C30: 0 | D30: 0 | E30: 17359 | F30: 0 | G30: 0 | H30: 16
A31: Química, Termodinámica y Agroener. | B31: 72 | C31: 0 | D31: 0 | E31: 0 | F31: 72 | G31: 0 | H31: 0
A32: Sector no especificado | B32: 666 | C32: 0 | D32: 0 | E32: 0 | F32: 0 | G32: 0 | H32: 666
A33: Servicios Personales | B33: 1536 | C33: 0 | D33: 0 | E33: 0 | F33: 1536 | G33: 0 | H33: 0
A34: Textil y Confección de Vestimenta | B34: 257 | C34: 0 | D34: 0 | E34: 0 | F34: 251 | G34: 6 | H34: 0
A36: Fuente : Procesamiento propio en base a datos proporcionados por el D.E.-CETP (U.T.U.)

Sheet II-3.3.1
A1: CONSEJO DE EDUCACIÓN SECUNDARIA | F1: PERSONAL DOCENTE
A3: Cuadro Nº II-3.3.1.
A5: PERSONAL DOCENTE Y HORAS DOCENTES DEL CES EN EDUCACIÓN MEDIA BÁSICA GENERAL POR TITULACIÓN SEGÚN ASIGNATURAS (Todo el país, 2017)
A7: ASIGNATURAS | B7: TOTAL DOCENTES | C7: PERSONAL DOCENTE | E7: TOTAL HORAS | F7: HORAS DOCENTES
C8: Titulados | D8: No Titulados | F8: Titulados | G8: No Titulados
A9: TOTAL | B9: =SUM(C9:D9) -> 13198 | C9: =SUM(C10:C39) -> 8104 | D9: =SUM(D10:D39) -> 5094 | E9: =SUM(F9:G9) -> 156154 | F9: =SUM(F10:F39) -> 93966 | G9: =SUM(G10:G39) -> 62188
A10: ACTIVIDADES ADAPTADAS AL MEDIO | B10: =SUM(C10:D10) -> 67 | C10: 15 | D10: 52 | E10: =SUM(F10:G10) -> 618 | F10: 87 | G10: 531
A11: ASTRONOMÍA | B11: =SUM(C11:D11) -> 0 | C11: 0 | D11: 0 | E11: =SUM(F11:G11) -> 0 | F11: 0 | G11: 0
A12: BIOLOGÍA | B12: =SUM(C12:D12) -> 1115 | C12: 867 | D12: 248 | E12: 12162 | F12: 9948 | G12: 2214
A13: CIENCIAS FÍSICAS | B13: =SUM(C13:D13) -> 838 | C13: 442 | D13: 396 | E13: 8358 | F13: 4614 | G13: 3744
A14: COMUNICACIÓN VISUAL - DIBUJO | B14: 686 | C14: 451 | D14: 235 | E14: 8022 | F14: 5454 | G14: 2568
A15: CONTABILIDAD | B15: =SUM(C15:D15) -> 0 | C15: 0 | D15: 0 | E15: =SUM(F15:G15) -> 0 | F15: 0 | G15: 0
A16: CURRÍCULO ABIERTO | B16: 571 | C16: 246 | D16: 325 | E16: =SUM(F16:G16) -> 4922 | F16: 1732 | G16: 3190
A17: ECONOMÍA | B17: 0 | C17: 0 | D17: 0 | E17: 0 | F17: 0 | G17: 0
A18: EDUCACIÓN FÍSICA | B18: =SUM(C18:D18) -> 967 | C18: 924 | D18: 43 | E18: 11995 | F18: 11087 | G18: 908
A19: EDUCACIÓN SOCIAL Y CÍVICA | B19: =SUM(C19:D19) -> 524 | C19: 482 | D19: 42 | E19: 3660 | F19: 3285 | G19: 375
A20: ESTUDIOS ECONÓMICOS | B20: 0 | C20: 0 | D20: 0 | E20: 0 | F20: 0 | G20: 0
A21: EXP.CORPORAL Y DANZA | B21: 0 | C21: 0 | D21: 0 | E21: 0 | F21: 0 | G21: 0
A22: EXP.CORPORAL Y TEATRO | B22: 0 | C22: 0 | D22: 0 | E22: 0 | F22: 0 | G22: 0
A23: FILOSOFÍA | B23: 0 | C23: 0 | D23: 0 | E23: 0 | F23: 0 | G23: 0
A24: FÍSICA | B24: 446 | C24: 168 | D24: 278 | E24: 3570 | F24: 1242 | G24: 2328
A25: GEOGRAFÍA | B25: 890 | C25: 702 | D25: 188 | E25: =SUM(F25:G25) -> 10897 | F25: 8744 | G25: 2153
A26: GEOLOGÍA | B26: 0 | C26: 0 | D26: 0 | E26: 0 | F26: 0 | G26: 0
A27: HISTORIA | B27: 1153 | C27: 987 | D27: 166 | E27: 12192 | F27: 10497 | G27: 1695
A28: IDIOMA ESPAÑOL | B28: 1115 | C28: 807 | D28: 308 | E28: 16413 | F28: 11931 | G28: 4482
A29: INFORMÁTICA | B29: 863 | C29: 166 | D29: 697 | E29: =SUM(F29:G29) -> 11128 | F29: 1764 | G29: 9364
A30: INGLÉS | B30: 1110 | C30: 450 | D30: 660 | E30: 15996 | F30: 7040 | G30: 8956
A31: ITALIANO | B31: 0 | C31: 0 | D31: 0 | E31: 0 | F31: 0 | G31: 0
A32: LENG.COMUNIC.Y MEDIOS AUDIOV. | B32: 0 | C32: 0 | D32: 0 | E32: 0 | F32: 0 | G32: 0
A33: LENGUAJE DE SEÑAS | B33: 2 | C33: 2 | D33: 0 | E33: 20 | F33: 20 | G33: 0
A34: LITERATURA | B34: 533 | C34: 420 | D34: 113 | E34: 4864 | F34: 3876 | G34: 988
A35: MATEMATICA | B35: 1240 | C35: 480 | D35: 760 | E35: =SUM(F35:G35) -> 19865 | F35: 8001 | G35: 11864
A36: MÚSICA | B36: 557 | C36: 160 | D36: 397 | E36: 7884 | F36: 2130 | G36: 5754
A37: QUÍMICA | B37: 521 | C37: 335 | D37: 186 | E37: =SUM(F37:G37) -> 3588 | F37: 2514 | G37: 1074
A38: REC.NATURALES Y PAIS.AGRARIO | B38: 0 | C38: 0 | D38: 0 | E38: 0 | F38: 0 | G38: 0
A39: TEATRO | B39: 0 | C39: 0 | D39: 0 | E39: =SUM(F39:G39) -> 0 | F39: 0 | G39: 0
A40: Fuente: Departamento de Estadística — C.E.S.
A41: Nota: Los docentes que dictan más de una asignatura son considerados como personas distintas en cada asignatura.
A42: El cuadro muestra la cantidad de docentes titulados según la asignatura que dicta y no según la asignatura en la cual se tituló.
A43: Se consideran los docentes activos y las horas de coordinación no están consideradas.

Sheet II-3.3.2
A1: CONSEJO DE EDUCACIÓN TÉCNICO PROFESIONAL (U.T.U.) | E1: PERSONAL DOCENTE
A3: Cuadro Nº II-3.3.2.
A5: PERSONAL DOCENTE DEL CETP EN EDUCACIÓN MEDIA BÁSICA TECNOLÓGICA POR TIPO DE CURSO (Todo el país, 2017)
A6: EDUCACIÓN MEDIA BÁSICA | B6: TOTAL
A9: TOTAL | B9: =SUM(B10:B13) -> 7412
A10: Ciclo Básico Tecnológico | B10: 3980
A11: Ciclo Básico Tecnológico Agrario | B11: S/D
A12: Formación Profesional Básica Plan 2007 | B12: 2990
A13: Articulación Educ.Media Básica | B13: 442
A14: Fuente: U.T.U. División Informática.

Sheet II-3.4.1
A1: CONSEJO DE EDUCACIÓN SECUNDARIA | D1: GRUPOS
A3: Cuadro Nº II-3.4.1.
A5: GRUPOS DEL CES EN EDUCACIÓN MEDIA BÁSICA GENERAL COMPARADOS CON EL TOTAL DE GRUPOS EN EDUCACIÓN MEDIA GENERAL SEGÚN GRANDES ÁREAS Y FORMA DE ADMINISTRACIÓN (Todo el país, 2017)
A6: GRANDES ÁREAS Y FORMA DE ADMINISTRACIÓN | B6: FORMA DE ADMINISTRACIÓN
B8: Grupos en Educación Media Básica General | C8: Total de grupos en Educación Media General | D8: Promedio alumnos por grupo de Media Básica
A10: TOTAL DEL PAÍS | B10: =B15+B20 -> 5601 | C10: =C15+C20 -> 10211 | D10: ='II-3.2.1 '!B9/'II-3.4.1'!B10 -> 26.38957329
A11: MEDIA BÁSICA PÚBLICA | B11: =B12+B13 -> 4541 | C11: =C12+C13 -> 7982 | D11: ='II-3.2.1 '!B10/'II-3.4.1'!B11 -> 27.15084783
A12: Diurna | B12: =B17+B22 -> 4069 | C12: =C17+C22 -> 6893 | D12: ='II-3.2.1 '!B11/'II-3.4.1'!B12 -> 26.41017449
A13: Cuarto Turno | B13: 472 | C13: =C18+C23 -> 1089 | D13: ='II-3.2.1 '!B12/'II-3.4.1'!B13 -> 33.53601695
A14: MEDIA BÁSICA PRIVADA | B14: 1060 | C14: 2229 | D14: ='II-3.2.1 '!B13/'II-3.4.1'!B14 -> 23.12830189
A15: TOTAL MONTEVIDEO | B15: =B16+B19 -> 1999 | C15: =C16+C19 -> 3746 | D15: ='II-3.2.1 '!B14/'II-3.4.1'!B15 -> 27.35067534
A16: MEDIA BÁSICA PÚBLICA | B16: =B17+B18 -> 1323 | C16: =C17+C18 -> 2228 | D16: ='II-3.2.1 '!B15/'II-3.4.1'!B16 -> 28.9425548
A17: Diurna | B17: 1166 | C17: 1852 | D17: ='II-3.2.1 '!B16/'II-3.4.1'!B17 -> 28.2212693
A18: Cuarto Turno | B18: 157 | C18: 376 | D18: ='II-3.2.1 '!B17/'II-3.4.1'!B18 -> 34.29936306
A19: MEDIA BÁSICA PRIVADA | B19: 676 | C19: 1518 | D19: ='II-3.2.1 '!B18/'II-3.4.1'!B19 -> 24.2352071
A20: TOTAL RESTO DEL PAÍS | B20: =B21+B24 -> 3602 | C20: =C21+C24 -> 6465 | D20: ='II-3.2.1 '!B19/'II-3.4.1'!B20 -> 25.856191
A21: MEDIA BÁSICA PÚBLICA | B21: =B22+B23 -> 3218 | C21: =C22+C23 -> 5754 | D21: ='II-3.2.1 '!B20/'II-3.4.1'!B21 -> 26.41423244
A22: Diurna | B22: 2903 | C22: 5041 | D22: ='II-3.2.1 '!B21/'II-3.4.1'!B22 -> 25.68274199
A23: Cuarto Turno | B23: 315 | C23: 713 | D23: ='II-3.2.1 '!B22/'II-3.4.1'!B23 -> 33.15555556
A24: MEDIA BÁSICA PRIVADA | B24: 384 | C24: 711 | D24: ='II-3.2.1 '!B23/'II-3.4.1'!B24 -> 21.1796875
A26: Fuente: D.E. — C.E.S.

Sheet MEDIA SUPERIOR
A8: Cuadro Nº II-4.1.1 | B8: ESTABLECIMIENTOS DE EDUCACIÓN MEDIA SUPERIOR POR MODALIDAD Y FORMA DE ADMINISTRACIÓN SEGÚN DEPARTAMENTO. (Todo el país, 2017).
A11: Cuadro Nº II-4.2.1 | B11: ESTUDIANTES MATRICULADOS DEL CES EN EDUCACIÓN MEDIA SUPERIOR GENERAL POR GRADO SEGÚN GRANDES ÁREAS Y FORMA DE ADMINISTRACIÓN. (Todo el país, 2017).
A13: Cuadro Nº II-4.2.2 | B13: ESTUDIANTES MATRICULADOS EN EL CETP EN EDUCACIÓN MEDIA SUPERIOR TECNOLÓGICA POR TIPO DE CURSO SEGÚN GRANDES ÁREAS, DEPARTAMENTO Y SEXO. (Todo el país, 2017).
A15: Cuadro Nº II-4.2.3 | B15: ESTUDIANTES MATRICULADOS EN EL CETP EN EDUCACIÓN MEDIA SUPERIOR POR TIPO DE CURSO SEGÚN EDAD. (Todo el país, 2017).
A17: Cuadro Nº II-4.2.4 | B17: ESTUDIANTES MATRICULADOS EN EL CETP EN EDUCACIÓN MEDIA SUPERIOR TECNOLÓGICA POR TIPO DE CURSO SEGÚN SECTORES DE ESTUDIO. (Todo el país, 2017).
A19: Cuadro Nº II-4.2.5 | B19: ESTUDIANTES MATRICULADOS EN EL CES EN EDUCACIÓN MEDIA SUPERIOR GENERAL POR GRADO Y FORMA DE ADMINISTRACIÓN SEGÚN DEPARTAMENTO. (Todo el país, 2017).
A21: Cuadro Nº II-4.2.6 | B21: ESTUDIANTES MATRICULADOS EN EL CES EN QUINTO GRADO DE EDUCACIÓN MEDIA GENERAL PÚBLICA POR PLAN Y ORIENTACIÓN SEGÚN DEPARTAMENTO. (Todo el país, 2017).
A23: Cuadro Nº II-4.2.7 | B23: ESTUDIANTES MATRICULADOS EN EL CES EN QUINTO GRADO DE EDUCACIÓN MEDIA SUPERIOR DE EDUCACIÓN SECUNDARIA PRIVADA POR ORIENTACIÓN SEGÚN DEPARTAMENTO. (Todo el país, 2017).
A25: Cuadro Nº II-4.2.8 | B25: ESTUDIANTES MATRICULADOS EN EL CES EN SEXTO GRADO DE EDUCACIÓN MEDIA GENERAL PÚBLICA POR PLAN Y OPCIÓN SEGÚN DEPARTAMENTO. (Todo el país, 2017).
A27: Cuadro Nº II-4.2.9 | B27: ESTUDIANTES MATRICULADOS EN EL CES EN SEXTO GRADO DE EDUCACIÓN MEDIA GENERAL PRIVADA POR OPCIÓN SEGÚN DEPARTAMENTO. (Todo el país, 2017).
A29: Cuadro Nº II-4.2.10 | B29: ESTUDIANTES MATRICULADOS DE EDUCACIÓN MEDIA SUPERIOR PRIVADA POR GRADO Y SEXO SEGÚN DEPARTAMENTO. (Todo el país, 2017).
A31: Cuadro Nº II-4.2.11 | B31: ESTUDIANTES MATRICULADOS DE EDUCACIÓN MEDIA SUPERIOR PÚBLICA POR GRADO Y SEXO SEGÚN DEPARTAMENTO. (Todo el país, 2017).
A34: Cuadro Nº II-4.3.1 | B34: PERSONAL DOCENTE Y HORAS DOCENTES DEL CES EN EDUCACIÓN MEDIA SUPERIOR GENERAL PÚBLICA POR CONDICIÓN DE TITULACIÓN. (Todo el país, 2017).
A36: Cuadro Nº II-4.3.2 | B36: PERSONAL DOCENTE DEL CETP EN EDUCACIÓN MEDIA SUPERIOR TECNOLÓGICA POR TIPO DE CURSO. (Todo el país, 2017).
A39: Cuadro Nº II-4.4.1 | B39: GRUPOS DE EDUCACIÓN MEDIA SUPERIOR GENERAL COMPARADOS CON EL TOTAL DE AMBOS CICLOS SEGÚN GRANDES ÁREAS Y FORMA DE ADMINISTRACIÓN. (Todo el país, 2017).
A107: =MID(B70,1,20) -> 

Sheet II-4.1.1
A1: CONSEJO DE EDUCACIÓN SECUNDARIA (CES) Y CONSEJO DE EDUCACIÓN TÉCNICO PROFESIONAL (UTU) | H1: ESTABLECIMIENTOS
A3: Cuadro Nº II-4.1.1
A5: ESTABLECIMIENTOS DE EDUCACIÓN MEDIA SUPERIOR POR MODALIDAD Y FORMA DE ADMINISTRACIÓN SEGÚN DEPARTAMENTO (Todo el país, 2017)
A6: DEPARTAMENTO | C6: MODALIDAD
B7: TOTAL GENERAL | D7: CES | K7: CETP
D8: FORMA DE ADMINISTRACIÓN
C9: TOTAL LICEOS PÚBLICOS | D9: LICEOS PÚBLICOS | H9: TOTAL LICEOS PRIVADOS | I9: Liceos Privados | K9: TOTAL ESCUELAS DE CBT Y TÉCNICA
L10: Escuelas de CBT y Técnica.
D11: Diurnos Oficiales | F11: Extra Edad Oficiales (Nocturno Y Diurno)
D14: Bachillerato | E14: C.Básico y Bachillerato | F14: Bachillerato | G14: C.Básico y Bachillerato | I14: Bachillerato | J14: C.Básico y Bachillerato | L14: Escuelas de CBT y Técnica. | M14: Reparticiones
A15: TOTAL | B15: =C15+H15+K15 -> 617 | C15: =SUM(D15:G15) -> 303 | D15: =D16+D17 -> 43 | E15: =E16+E17 -> 157 | F15: =F16+F17 -> 39 | G15: =G16+G17 -> 64 | H15: =SUM(I15:J15) -> 157 | I15: =I16+I17 -> 6 | J15: =J16+J17 -> 151 | K15: =L15+M15 -> 157 | L15: =L16+L17 -> 131 | M15: =M16+M17 -> 26
A16: MONTEVIDEO | B16: =C16+H16+K16 -> 191 | C16: =SUM(D16:G16) -> 61 | D16: 17 | E16: 13 | F16: 15 | G16: 16 | H16: 94 | I16: 5 | J16: 89 | K16: =L16+M16 -> 36 | L16: 30 | M16: 6
A17: RESTO DEL PAÍS | B17: 426 | C17: =SUM(C18:C35) -> 242 | D17: =SUM(D18:D35) -> 26 | E17: =SUM(E18:E35) -> 144 | F17: =SUM(F18:F35) -> 24 | G17: =SUM(G18:G35) -> 48 | H17: 63 | I17: =SUM(I18:I35) -> 1 | J17: =SUM(J18:J35) -> 62 | K17: 121 | L17: =SUM(L18:L35) -> 101 | M17: =SUM(M18:M35) -> 20
A18: Artigas | B18: 17 | C18: =SUM(D18:G18) -> 11 | D18: 2 | E18: 7 | F18: 1 | G18: 1 | H18: 1 | I18: 0 | J18: 1 | K18: 5 | L18: 4 | M18: 1
A19: Canelones | B19: 106 | C19: 58 | D19: 8 | E19: 31 | F19: 4 | G19: 15 | H19: 24 | I19: 1 | J19: 23 | K19: 24 | L19: 20 | M19: 4
A20: Cerro Largo | B20: 18 | C20: 9 | D20: 0 | E20: 7 | F20: 0 | G20: 2 | H20: 3 | I20: 0 | J20: 3 | K20: 6 | L20: 5 | M20: 1
A21: Colonia | B21: 33 | C21: 19 | D21: 2 | E21: 9 | F21: 3 | G21: 5 | H21: 1 | I21: 0 | J21: 1 | K21: 13 | L21: 10 | M21: 3
A22: Durazno | B22: 11 | C22: 9 | D22: 1 | E22: 5 | F22: 2 | G22: 1 | H22: 2 | I22: 0 | J22: 2 | L22: 4 | M22: 1
A23: Flores | B23: 8 | C23: 4 | D23: 0 | E23: 2 | F23: 1 | G23: 1 | H23: 2 | I23: 0 | J23: 2 | K23: 2 | L23: 2 | M23: 0
A24: Florida | B24: 18 | C24: 13 | D24: 1 | E24: 9 | F24: 2 | G24: 1 | H24: 2 | I24: 0 | J24: 2 | K24: 3 | L24: 2 | M24: 1
A25: Lavalleja | B25: 11 | C25: 7 | D25: 0 | E25: 6 | F25: 1 | G25: 0 | H25: 0 | I25: 0 | J25: 0 | K25: 4 | L25: 3 | M25: 1
A26: Maldonado | B26: 34 | C26: 15 | D26: 1 | E26: 9 | F26: 1 | G26: 4 | H26: 11 | I26: 0 | J26: 11 | K26: 8 | L26: 7 | M26: 1
A27: Paysandú | B27: 22 | C27: 11 | D27: 2 | E27: 7 | F27: 1 | G27: 1 | H27: 2 | I27: 0 | J27: 2 | K27: 9 | L27: 6 | M27: 3
A28: Río Negro | B28: 13 | C28: 9 | D28: 1 | E28: 5 | F28: 1 | G28: 2 | H28: 1 | I28: 0 | J28: 1 | K28: 3 | L28: 3 | M28: 0
A29: Rivera | B29: 22 | C29: 12 | D29: 2 | E29: 7 | F29: 1 | G29: 2 | H29: 4 | I29: 0 | J29: 4 | K29: 6 | L29: 5 | M29: 1
A30: Rocha | B30: 18 | C30: 12 | D30: 1 | E30: 7 | F30: 1 | G30: 3 | H30: 1 | I30: 0 | J30: 1 | K30: 5 | L30: 5 | M30: 0
A31: Salto | B31: 21 | C31: 12 | D31: 1 | E31: 9 | F31: 1 | G31: 1 | H31: 3 | I31: 0 | J31: 3 | K31: 6 | L31: 4 | M31: 2
A32: San José | B32: 22 | C32: 12 | D32: 1 | E32: 6 | F32: 1 | G32: 4 | H32: 2 | I32: 0 | J32: 2 | K32: 8 | L32: 7 | M32: 1
A33: Soriano | B33: 18 | C33: 11 | D33: 1 | E33: 5 | F33: 2 | G33: 3 | H33: 1 | I33: 0 | J33: 1 | K33: 6 | L33: 6 | M33: 0
A34: Tacuarembó | B34: 18 | C34: 12 | D34: 1 | E34: 9 | F34: 0 | G34: 2 | H34: 2 | I34: 0 | J34: 2 | K34: 4 | L34: 4 | M34: 0
A35: Treinta y Tres | B35: 11 | C35: 6 | D35: 1 | E35: 4 | F35: 1 | G35: 0 | H35: 1 | I35: 0 | J35: 1 | K35: 4 | L35: 4 | M35: 0
A37: Fuente: D.E.- C.E.S .
A38: Nota: 1- Los establecimientos considerados en el Tipo de Educación Escuelas con "Ciclo Básico Rural” ya fueron considerados en los totales de establecimientos de Educación Primaria por lo cual, si bien se presentan en la columna correspondiente, no participan en el “Total” del presente cuadro.
A39: 2- En un mismo establecimiento del CETP coexisten cursos de distintos nivel edcuativo. En este cuadro se exponen las escuelas que dictan cursos de EDUCACIÓN MEDIA SUPERIOR. Se incluyeron reparticiones (localizaciones) que no son establecimientos de activos de ANEP.

Sheet II-4.2.1
A1: CONSEJO DE EDUCACIÓN SECUNDARIA | C1: MATRICULADOS
A3: Cuadro Nº II-4.2.1
A5: ESTUDIANTES MATRICULADOS DEL CES EN EDUCACIÓN MEDIA SUPERIOR GENERAL POR GRADO SEGÚN GRANDES ÁREAS Y FORMA DE ADMINISTRACIÓN (Todo el país, 2017)
A6: GRANDES ÁREAS Y FORMA DE ADMINISTRACIÓN | B6: TOTAL | C6: GRADO
C8: CUARTO | D8: QUINTO | E8: SEXTO
A9: TOTAL DEL PAÍS | B9: =C9+D9+E9 -> 124544 | C9: =C10+C13 -> 45883 | D9: =D10+D13 -> 44088 | E9: =E10+E13 -> 34573
A10: MEDIA SUPERIOR PÚBLICA | B10: =C10+D10+E10 -> 107968 | C10: =C11+C12 -> 39346 | D10: =D11+D12 -> 38815 | E10: =E11+E12 -> 29807
A11: Diurna | B11: =C11+D11+E11 -> 71625 | C11: =C16+C21 -> 28438 | D11: 24388 | E11: 18799
A12: Cuarto Turno | B12: 36343 | C12: 10908 | D12: 14427 | E12: 11008
A13: MEDIA SUPERIOR PRIVADA | B13: 16576 | C13: 6537 | D13: 5273 | E13: 4766
A14: TOTAL MONTEVIDEO | B14: 48252 | C14: =C15+C18 -> 17261 | D14: =D15+D18 -> 17197 | E14: =E15+E18 -> 13794
A15: MEDIA SUPERIOR PÚBLICA | B15: 36114 | C15: =C16+C17 -> 12697 | D15: =D16+D17 -> 13240 | E15: =E16+E17 -> 10177
A16: Diurna | B16: 21343 | C16: 8493 | D16: 7384 | E16: 5466
A17: Cuarto Turno | B17: 14771 | C17: 4204 | D17: 5856 | E17: 4711
A18: MEDIA SUPERIOR PRIVADA | B18: 12138 | C18: 4564 | D18: 3957 | E18: 3617
A19: TOTAL RESTO DEL PAÍS | B19: 76292 | C19: =C20+C23 -> 28622 | D19: =D20+D23 -> 26891 | E19: =E20+E23 -> 20779
A20: MEDIA SUPERIOR PÚBLICA | B20: 71854 | C20: =C21+C22 -> 26649 | D20: =D21+D22 -> 25575 | E20: =E21+E22 -> 19630
A21: Diurna | B21: 50282 | C21: 19945 | D21: 17004 | E21: 13333
A22: Cuarto Turno | B22: 21572 | C22: 6704 | D22: 8571 | E22: 6297
A23: MEDIA SUPERIOR PRIVADA | B23: 4438 | C23: 1973 | D23: 1316 | E23: 1149
A24: Fuente: DE — CES
A25: Nota: La referencia "Privada" (incluye los Habilitados "Liceo Naval" y "Liceo Militar"), se corresponde con la de "Liceos Habilitados" presente en ediciones anteriores del Anuario Estadístico del MEC

Sheet II-4.2.2
A1: CONSEJO DE EDUCACIÓN TÉCNICO PROFESIONAL (U.T.U.) | K1: MATRICULADOS
A3: Cuadro Nº II-4.2.2
A5: ESTUDIANTES MATRICULADOS EN EL CETP EN EDUCACIÓN MEDIA SUPERIOR TECNOLÓGICA POR TIPO DE CURSO SEGÚN GRANDES ÁREAS, DEPARTAMENTO Y SEXO (Todo el país, 2017)
A6: GRANDES ÁREAS,DEPARTAMENTO Y SEXO | B6: TOTAL | C6: TOTAL | E6: Tipo de curso
E7: EDUACIÓN VEDIA SUPERIOR TECONOLOGICA
E8: TOTAL | F8: Bachillerato Migari | H8: TOTAL | I8: Bachillerato ProMesional Trayectos | K8: TOTAL | L8: Curso Técnico | O8: E. V. P. Especialización | Q8: TOTAL | R8: Educación Vedia ProMesional | T8: TOTAL | U8: Educación Vedia Tecnológica | W8: TOTAL | X8: Tecnologica Minest
F9: Sexo | L9: Sexo | O9: Sexo | R9: Sexo | U9: Sexo | X9: Sexo
C10: MUJER | D10: VARÓN | F10: M | G10: V | I10: M | J10: V | L10: M | M10: V | O10: M | P10: V | R10: M | S10: V | U10: M | V10: V
I11: Count | J11: Count | L11: Count | M11: Count | R11: Count | S11: Count | U11: Count | V11: Count
A12: TOTAL | B12: =C12+D12 -> 47535 | C12: =F12+I12+L12+O12+R12+U12+X12 -> 19483 | D12: =G12+J12+M12+P12+S12+V12+Y12 -> 28052 | E12: =F12+G12 -> 425 | F12: =F13+F14 -> 256 | G12: =G13+G14 -> 169 | H12: =I12+J12 -> 1604 | I12: =I13+I14 -> 426 | J12: =J13+J14 -> 1178 | K12: =L12+M12 -> 354 | L12: =L13+L14 -> 335 | M12: =M13+M14 -> 19 | N12: =O12+P12 -> 19 | O12: =O13+O14 -> 10 | P12: =P13+P14 -> 9 | Q12: =R12+S12 -> 14663 | R12: =R13+R14 -> 6528 | S12: =S13+S14 -> 8135 | T12: =U12+V12 -> 30440 | U12: =U13+U14 -> 11923 | V12: =V13+V14 -> 18517 | W12: =X12+Y12 -> 30 | X12: =X13+X14 -> 5 | Y12: =Y13+Y14 -> 25
A13: Montevideo | B13: =C13+D13 -> 18843 | C13: 7142 | D13: 11701 | E13: 338 | F13: 201 | G13: 137 | H13: =I13+J13 -> 661 | I13: 146 | J13: 515 | K13: =L13+M13 -> 354 | L13: 335 | M13: 19 | N13: =O13+P13 -> 19 | O13: 10 | P13: 9 | Q13: =R13+S13 -> 6040 | R13: 2603 | S13: 3437 | T13: =U13+V13 -> 11421 | U13: 3845 | V13: 7576 | W13: =X13+Y13 -> 10 | X13: 2 | Y13: 8
A14: RESTO DEL PAÍS | B14: 28692 | C14: =F14+I14+L14+O14+R14+U14+X14 -> 12341 | D14: 16351 | E14: =F14+G14 -> 87 | F14: =SUM(F15:F32) -> 55 | G14: =SUM(G15:G32) -> 32 | H14: 943 | I14: =SUM(I15:I32) -> 280 | J14: =SUM(J15:J32) -> 663 | K14: 0 | L14: =SUM(L15:L32) -> 0 | M14: =SUM(M15:M32) -> 0 | N14: 0 | O14: =SUM(O15:O32) -> 0 | P14: =SUM(P15:P32) -> 0 | Q14: 8623 | R14: =SUM(R15:R32) -> 3925 | S14: =SUM(S15:S32) -> 4698 | T14: 19019 | U14: =SUM(U15:U32) -> 8078 | V14: =SUM(V15:V32) -> 10941 | W14: 20 | X14: =SUM(X15:X32) -> 3 | Y14: =SUM(Y15:Y32) -> 17
A15: Artigas | B15: 1858 | C15: 951 | D15: 907 | E15: =F15+G15 -> 35 | F15: 20 | G15: 15 | H15: =I15+J15 -> 55 | I15: 16 | J15: 39 | K15: =L15+M15 -> 0 | L15: 0 | M15: 0 | N15: =O15+P15 -> 0 | O15: 0 | P15: 0 | Q15: =R15+S15 -> 752 | R15: 380 | S15: 372 | T15: =U15+V15 -> 1016 | U15: 535 | V15: 481 | W15: =X15+Y15 -> 0 | X15: 0 | Y15: 0
A16: Canelones | B16: 5966 | C16: 2664 | D16: 3302 | E16: =F16+G16 -> 0 | F16: 0 | G16: 0 | H16: =I16+J16 -> 227 | I16: 77 | J16: 150 | K16: =L16+M16 -> 0 | L16: 0 | M16: 0 | N16: =O16+P16 -> 0 | O16: 0 | P16: 0 | Q16: =R16+S16 -> 1825 | R16: 930 | S16: 895 | T16: =U16+V16 -> 3906 | U16: 1656 | V16: 2250 | W16: =X16+Y16 -> 8 | X16: 1 | Y16: 7
A17: Cerro Largo | B17: 1269 | C17: 582 | D17: 687 | E17: 0 | F17: 0 | G17: 0 | H17: 6 | I17: 0 | J17: 6 | K17: 0 | L17: 0 | M17: 0 | N17: 0 | O17: 0 | P17: 0 | Q17: 354 | R17: 170 | S17: 184 | T17: 909 | U17: 412 | V17: 497 | W17: 0 | X17: 0 | Y17: 0
A18: Colonia | B18: 1808 | C18: 717 | D18: 1091 | E18: 0 | F18: 0 | G18: 0 | H18: 44 | I18: 11 | J18: 33 | K18: 0 | L18: 0 | M18: 0 | N18: 0 | O18: 0 | P18: 0 | Q18: 628 | R18: 264 | S18: 364 | T18: 1136 | U18: 442 | V18: 694 | W18: 0 | X18: 0 | Y18: 0
A19: Durazno | B19: 741 | C19: 315 | D19: 426 | E19: 0 | F19: 0 | G19: 0 | H19: 0 | I19: 0 | J19: 0 | K19: 0 | L19: 0 | M19: 0 | N19: 0 | O19: 0 | P19: 0 | Q19: 89 | R19: 35 | S19: 54 | T19: 652 | U19: 280 | V19: 372 | W19: 0 | X19: 0 | Y19: 0
A20: Flores | B20: 256 | C20: 111 | D20: 145 | E20: 0 | F20: 0 | G20: 0 | H20: 0 | I20: 0 | J20: 0 | K20: 0 | L20: 0 | M20: 0 | N20: 0 | O20: 0 | P20: 0 | Q20: 0 | R20: 0 | S20: 0 | T20: 256 | U20: 111 | V20: 145 | W20: 0 | X20: 0 | Y20: 0
A21: Florida | B21: 767 | C21: 333 | D21: 434 | E21: 0 | F21: 0 | G21: 0 | H21: 0 | I21: 0 | J21: 0 | K21: 0 | L21: 0 | M21: 0 | N21: 0 | O21: 0 | P21: 0 | Q21: 154 | R21: 93 | S21: 61 | T21: 601 | U21: 238 | V21: 363 | W21: 12 | X21: 2 | Y21: 10
A22: Lavalleja | B22: 709 | C22: 324 | D22: 385 | E22: 0 | F22: 0 | G22: 0 | H22: 28 | I22: 3 | J22: 25 | L22: 0 | M22: 0 | N22: 0 | O22: 0 | P22: 0 | Q22: 328 | R22: 157 | S22: 171 | T22: 353 | U22: 164 | V22: 189 | W22: 0 | X22: 0 | Y22: 0
A23: Maldonado | B23: 2477 | C23: 938 | D23: 1539 | E23: 0 | F23: 0 | G23: 0 | H23: 142 | I23: 50 | J23: 92 | K23: 0 | L23: 0 | M23: 0 | N23: 0 | O23: 0 | P23: 0 | Q23: 962 | R23: 403 | S23: 559 | T23: 1373 | U23: 485 | V23: 888 | W23: 0 | X23: 0 | Y23: 0
A24: Paysandú | B24: 2066 | C24: 790 | D24: 1276 | E24: 0 | F24: 0 | G24: 0 | H24: 47 | I24: 15 | J24: 32 | K24: 0 | L24: 0 | M24: 0 | N24: 0 | O24: 0 | P24: 0 | Q24: 260 | R24: 94 | S24: 166 | T24: 1759 | U24: 681 | V24: 1078 | W24: 0 | X24: 0 | Y24: 0
A25: Rio Negro | B25: 881 | C25: 313 | D25: 568 | E25: 0 | F25: 0 | G25: 0 | H25: 19 | I25: 0 | J25: 19 | K25: 0 | L25: 0 | M25: 0 | N25: 0 | O25: 0 | P25: 0 | Q25: 182 | R25: 41 | S25: 141 | T25: 680 | U25: 272 | V25: 408 | W25: 0 | X25: 0 | Y25: 0
A26: Rivera | B26: 1488 | C26: 662 | D26: 826 | E26: 52 | F26: 35 | G26: 17 | H26: 21 | I26: 9 | J26: 12 | K26: 0 | L26: 0 | M26: 0 | N26: 0 | O26: 0 | P26: 0 | Q26: 216 | R26: 133 | S26: 83 | T26: 1199 | U26: 485 | V26: 714 | W26: 0 | X26: 0 | Y26: 0
A27: Rocha | B27: 777 | C27: 356 | D27: 421 | E27: 0 | F27: 0 | G27: 0 | H27: 32 | I27: 9 | J27: 23 | K27: 0 | L27: 0 | M27: 0 | N27: 0 | O27: 0 | P27: 0 | Q27: 336 | R27: 136 | S27: 200 | T27: 409 | U27: 211 | V27: 198 | W27: 0 | X27: 0 | Y27: 0
A28: Salto | B28: 2413 | C28: =F28+I28+L28+O28+R28+U28+X28 -> 990 | D28: 1423 | E28: 0 | F28: 0 | G28: 0 | H28: 113 | I28: 24 | J28: 89 | K28: 0 | L28: 0 | M28: 0 | N28: 0 | O28: 0 | P28: 0 | Q28: 841 | R28: 367 | S28: 474 | T28: 1459 | U28: 599 | V28: 860 | W28: 0 | X28: 0 | Y28: 0
A29: San José | B29: 1340 | C29: 638 | D29: 702 | E29: 0 | F29: 0 | G29: 0 | H29: 51 | I29: 12 | J29: 39 | K29: 0 | L29: 0 | M29: 0 | N29: 0 | O29: 0 | P29: 0 | Q29: 607 | R29: 292 | S29: 315 | T29: 682 | U29: 334 | V29: 348 | W29: 0 | X29: 0 | Y29: 0
A30: Soriano | B30: 1570 | C30: 696 | D30: 874 | E30: 0 | F30: 0 | G30: 0 | H30: 48 | I30: 28 | J30: 20 | K30: 0 | L30: 0 | M30: 0 | N30: 0 | O30: 0 | P30: 0 | Q30: 436 | R30: 187 | S30: 249 | T30: 1086 | U30: 481 | V30: 605 | W30: 0 | X30: 0 | Y30: 0
A31: Tacuarembó | B31: 1591 | C31: 646 | D31: 945 | E31: 0 | F31: 0 | G31: 0 | H31: 89 | I31: 24 | J31: 65 | K31: 0 | L31: 0 | M31: 0 | N31: 0 | O31: 0 | P31: 0 | Q31: 499 | R31: 176 | S31: 323 | T31: 1003 | U31: 446 | V31: 557 | W31: 0 | X31: 0 | Y31: 0
A32: Treinta y Tres | B32: 715 | C32: 315 | D32: 400 | E32: 0 | F32: 0 | G32: 0 | H32: 21 | I32: 2 | J32: 19 | K32: 0 | L32: 0 | M32: 0 | N32: 0 | O32: 0 | P32: 0 | Q32: 154 | R32: 67 | S32: 87 | T32: 540 | U32: 246 | V32: 294 | W32: 0 | X32: 0 | Y32: 0
A33: Fuente : Procesamiento propio en base a datos proporcionados por el D.E. _ CETP (U.T.U. )
A34: Nota: Los matriculados en Formación Profesional Superior, potencialmente son estudiantes de Educación Media Superior, ya que con el curso de Articulación correspondiente adquieren continuidad educativa a nivel tericiario.

Sheet II-4.2.3
A1: CONSEJO DE EDUCACIÓN TÉCNICO PROFESIONAL (U.T.U.) | H1: MATRICULADOS
A3: Cuadro Nº II-4.2.3
A5: ESTUDIANTES MATRICULADOS EN EL CETP EN EDUCACIÓN MEDIA SUPERIOR POR TIPO DE CURSO SEGÚN EDAD (Todo el país, 2017)
A6: EDAD | B6: TOTAL | C6: TIPO DE CURSO
C8: EDUCACIÓN MEDIA SUPERIOR TECNOLÓGICA
C9: Curso Técnico | D9: E. M. P. Especialización | E9: Educación Media Profesional | F9: Educación Media Tecnológica | G9: Bachillerato Profesional | H9: Bachillerato Figari | I9: Tecnológica Finest
A10: TOTAL | B10: =C10+D10+E10++F10+G10+H10+I10 -> 47535 | C10: =SUM(C11:C21) -> 354 | D10: =SUM(D11:D21) -> 19 | E10: 14663 | F10: 30440 | G10: 1604 | H10: 425 | I10: 30
A11: 11 y 12 años | B11: =C11+D11+E11++F11+G11+H11+I11 -> 3 | C11: 0 | D11: 0 | E11: 0 | F11: 3 | G11: 0 | H11: 0 | I11: 0
A12: 13 años | B12: 0 | C12: 0 | D12: 0 | E12: 0 | F12: 0 | G12: 0 | H12: 0 | I12: 0
A13: 14 años | B13: 56 | C13: 0 | D13: 0 | E13: 8 | F13: 47 | G13: 0 | H13: 1 | I13: 0
A14: 15 años | B14: 4161 | C14: 5 | D14: 4 | E14: 741 | F14: 3388 | G14: 0 | H14: 23 | I14: 0
A15: 16 años | B15: 6735 | C15: 26 | D15: 1 | E15: 1686 | F15: 4977 | G15: 1 | H15: 44 | I15: 0
A16: 17 años | B16: 8080 | C16: 38 | D16: 3 | E16: 1929 | F16: 5831 | G16: 232 | H16: 47 | I16: 0
A17: 18años | B17: 5998 | C17: 32 | D17: 3 | E17: 1659 | F17: 4007 | G17: 224 | H17: 69 | I17: 4
A18: 19años | B18: 4433 | C18: 43 | D18: 1 | E18: 1438 | F18: 2719 | G18: 211 | H18: 21 | I18: 0
A19: 20 a 24 años | B19: 9847 | C19: 128 | D19: 5 | E19: 3451 | F19: 5680 | G19: 477 | H19: 100 | I19: 6
A20: 25 a 29 años | B20: 3936 | C20: 51 | D20: 0 | E20: 1609 | F20: 2053 | G20: 178 | H20: 39 | I20: 6
A21: 30 años y más | B21: 4286 | C21: 31 | D21: 2 | E21: 2142 | F21: 1735 | G21: 281 | H21: 81 | I21: 14
A23: Fuente: Procesamiento propio en base a datos proporcionados por el D.E. - CETP (U.T.U)

Sheet II-4.2.4
A1: CONSEJO DE EDUCACIÓN TÉCNICO PROFESIONAL (U.T.U.) | H1: MATRICULADOS
A3: Cuadro Nº II-4.2.4.
A5: ESTUDIANTES MATRICULADOS EN EL CETP EN EDUCACIÓN MEDIA SUPERIOR TECNOLÓGICA POR TIPO DE CURSO SEGÚN SECTORES DE ESTUDIO (Todo el país, 2017)
A6: SECTORES DE ESTUDIO | B6: TOTAL | C6: EDUCACIÓN MEDIA SUPERIOR TECNOLÓGICA
C7: Curso Técnico | D7: E. M. P. Especialización | E7: Educación Media Profesional | F7: Educación Media Tecnológica | G7: Bachillerato Profesional | H7: Bachillerato Figari | I7: Tecnológica Finest
A8: TOTAL | B8: =SUM(B9:B32) -> 47535 | C8: =SUM(C9:C32) -> 354 | D8: =SUM(D9:D32) -> 19 | E8: 14663 | F8: 30440 | G8: 1604 | H8: 425 | I8: 30
A9: Agropecuario | B9: =SUM(C9:I9) -> 2538 | C9: 0 | D9: 0 | E9: 250 | F9: 2251 | G9: 37 | H9: 0 | I9: 0
A10: Artes y Artesanías | B10: =SUM(C10:I10) -> 387 | C10: 0 | D10: 0 | E10: 0 | F10: 0 | G10: 0 | H10: 387 | I10: 0
A11: Cerámica | B11: 38 | C11: 0 | D11: 0 | E11: 0 | F11: 0 | G11: 0 | H11: 38 | I11: 0
A12: Comercio y Administración | B12: 11587 | C12: 0 | D12: 0 | E12: 3305 | F12: 8260 | G12: 22 | H12: 0 | I12: 0
A13: Comunicación | B13: 348 | C13: 0 | D13: 0 | E13: 0 | F13: 348 | G13: 0 | H13: 0 | I13: 0
A14: Construcción y Arquitectura | B14: 2043 | C14: 0 | D14: 19 | E14: 416 | F14: 1524 | G14: 84 | H14: 0 | I14: 0
A15: Deporte y Afines | B15: 6567 | C15: 0 | D15: 0 | E15: 226 | F15: 6336 | G15: 0 | H15: 0 | I15: 5
A16: Electricidad y Electrónica | B16: 5739 | C16: 0 | D16: 0 | E16: 2248 | F16: 3047 | G16: 444 | H16: 0 | I16: 0
A17: Forestal | B17: 58 | C17: 0 | D17: 0 | E17: 58 | F17: 0 | G17: 0 | H17: 0 | I17: 0
A18: Gastronomía | B18: 3254 | C18: 0 | D18: 0 | E18: 2752 | F18: 0 | G18: 502 | H18: 0 | I18: 0
A19: Gráficos | B19: 156 | C19: 0 | D19: 0 | E19: 12 | F19: 144 | G19: 0 | H19: 0 | I19: 0
A20: Hortifruticultura y Jardinería | B20: 64 | C20: 0 | D20: 0 | E20: 52 | F20: 0 | G20: 12 | H20: 0 | I20: 0
A21: Hotelería | B21: 99 | C21: 0 | D21: 0 | E21: 99 | F21: 0 | G21: 0 | H21: 0 | I21: 0
A22: Informática | B22: 5812 | C22: 0 | D22: 0 | E22: 281 | F22: 5497 | G22: 34 | H22: 0 | I22: 0
A23: Madera y Muebles | B23: 833 | C23: 0 | D23: 0 | E23: 757 | F23: 0 | G23: 76 | H23: 0 | I23: 0
A24: Mant. Rep. y Serv. a la Producción | B24: 106 | C24: 0 | D24: 0 | E24: 84 | F24: 0 | G24: 22 | H24: 0 | I24: 0
A25: Mantenimiento y Rep. de Vehículos | B25: 2158 | C25: 0 | D25: 0 | E25: 1562 | F25: 377 | G25: 219 | H25: 0 | I25: 0
A26: Metal - Mecánica | B26: 1069 | C26: 0 | D26: 0 | E26: 475 | F26: 563 | G26: 31 | H26: 0 | I26: 0
A27: Nautica y Pesca | B27: 137 | C27: 0 | D27: 0 | E27: 118 | F27: 0 | G27: 19 | H27: 0 | I27: 0
A28: Protección al Medio Ambiente | B28: 86 | C28: 0 | D28: 0 | E28: 61 | F28: 0 | G28: 25 | H28: 0 | I28: 0
A29: Química, Termodinámica y Agroener. | B29: 1004 | C29: 0 | D29: 0 | E29: 148 | F29: 831 | G29: 0 | H29: 0 | I29: 25
A30: Servicios Personales | B30: 1835 | C30: 154 | D30: 0 | E30: 1627 | F30: 0 | G30: 54 | H30: 0 | I30: 0
A31: Textil y Confección de Vestimenta | B31: 355 | C31: 200 | D31: 0 | E31: 132 | F31: 0 | G31: 23 | H31: 0 | I31: 0
A32: Turismo | B32: 1262 | C32: 0 | D32: 0 | E32: 0 | F32: 1262 | G32: 0 | H32: 0 | I32: 0
A33: Fuente: D.E.- CETP (U.T.U.)
A34: Nota: Los cursos de Articulación no corresponden estrictamente a Educación Media Superior. El curso de Articulación brinda la posibilidad de adquirir el nivel educativo para Terciario. De esta manera se entiende que su inclusión en Educación Media Superior parece más apropiada que su inclusión en nivel terciario dentro de la oferta educativa del CETP.
A35: En Educación Media Tecnológica se sumaron 17 estudiantes que corresponden al curso Educación Media Tecnológica Finest y sector de estudio Química, Termodinámica y Agroenergía

Sheet II-4.2.5
A1: CONSEJO DE EDUCACIÓN SECUNDARIA | E1: MATRICULADOS
A3: Cuadro Nº II-4.2.5.
A5: ESTUDIANTES MATRICULADOS EN EL CES EN EDUCACIÓN MEDIA SUPERIOR GENERAL POR GRADO Y FORMA DE ADMINISTRACIÓN SEGÚN DEPARTAMENTO (Todo el país, 2017)
A6: DEPARTAMENTO | B6: GRADO
B7: CUARTO | D7: QUINTO | F7: SEXTO
B8: FORMA DE ADMINISTRACIÓN
B9: Públicos | C9: Privados | D9: Públicos | E9: Privados | F9: Públicos | G9: Privados
A10: TOTAL | B10: =SUM(B11:B12) -> 39346 | C10: 6537 | D10: 38815 | E10: 5273 | F10: =SUM(F11:F12) -> 29807 | G10: 4766
A11: MONTEVIDEO | B11: 12697 | C11: 4564 | D11: 13240 | E11: 3957 | F11: 10177 | G11: 3617
A12: RESTO DEL PAÍS | B12: =SUM(B13:B30) -> 26649 | C12: 1973 | D12: 25575 | E12: 1316 | F12: =SUM(F13:F30) -> 19630 | G12: 1149
A13: Artigas | B13: 1071 | C13: 18 | D13: 1002 | E13: 14 | F13: 774 | G13: 0
A14: Canelones | B14: 6882 | C14: 775 | D14: 6289 | E14: 545 | F14: 4717 | G14: 537
A15: Cerro Largo | B15: 1131 | C15: 99 | D15: 1112 | E15: 46 | F15: 938 | G15: 56
A16: Colonia | B16: 1393 | C16: 12 | D16: 1401 | E16: 0 | F16: 1128 | G16: 0
A17: Durazno | B17: 756 | C17: 60 | D17: 663 | E17: 0 | F17: 558 | G17: 0
A18: Flores | B18: 338 | C18: 35 | D18: 396 | E18: 0 | F18: 266 | G18: 0
A19: Florida | B19: 879 | C19: 64 | D19: 871 | E19: 65 | F19: 582 | G19: 34
A20: Lavalleja | B20: 698 | C20: 0 | D20: 752 | E20: 0 | F20: 632 | G20: 0
A21: Maldonado | B21: 2493 | C21: 407 | D21: 2647 | E21: 355 | F21: 2003 | G21: 311
A22: Paysandú | B22: 1291 | C22: 163 | D22: 1312 | E22: 115 | F22: 1018 | G22: 84
A23: Río Negro | B23: 686 | C23: 13 | D23: 607 | E23: 0 | F23: 504 | G23: 0
A24: Rivera | B24: 1712 | C24: 62 | D24: 1545 | E24: 29 | F24: 1159 | G24: 18
A25: Rocha | B25: 1361 | C25: 0 | D25: 1090 | E25: 3 | F25: 845 | G25: 0
A26: Salto | B26: 1424 | C26: 84 | D26: 1518 | E26: 90 | F26: 1265 | G26: 57
A27: San José | B27: 1394 | C27: 34 | D27: 1520 | E27: 0 | F27: 916 | G27: 0
A28: Soriano | B28: 1015 | C28: 52 | D28: 1011 | E28: 0 | F28: 882 | G28: 0
A29: Tacuarembó | B29: 1344 | C29: 78 | D29: 1216 | E29: 54 | F29: 919 | G29: 52
A30: Treinta y Tres | B30: 781 | C30: 17 | D30: 623 | E30: 0 | F30: 524 | G30: 0
A31: Fuente: DE — CES
A32: Nota: La referencia "Privados" (incluye los Habilitados "Liceo Naval" y "Liceo Militar"), se corresponde con la de "Liceos Habilitados" presente en ediciones anteriores del Anuario Estadístico del MEC

Sheet II-4.2.6
A1: CONSEJO DE EDUCACIÓN SECUNDARIA | H1: MATRICULADOS
A3: Cuadro Nº II-4.2.6
A5: ESTUDIANTES MATRICULADOS EN EL CES EN QUINTO GRADO DE EDUCACIÓN MEDIA GENERAL PÚBLICA POR PLAN Y ORIENTACIÓN SEGÚN DEPARTAMENTO (Todo el país, 2017)
A6: DEPARTAMENTO | B6: TOTAL GENERAL
C7: TOTAL PLAN 94 | D7: ORIENTACIÓN PLAN / 94 | G7: TOTAL PLAN 06 | H7: ORIENTACIÓN PLAN / REFORMULACIÓN 2006
D8: 2º H | E8: 2º B | F8: 2º C
H9: DivHum | I9: DivBiol | J9: DivCient | K9: DivArt
A11: TOTAL | B11: =SUM(C11+G11) -> 38815 | C11: =SUM(D11:F11) -> 14427 | D11: =SUM(D12:D13) -> 8220 | E11: 5349 | F11: 858 | G11: =SUM(H11:K11) -> 24388 | H11: =SUM(H12:H13) -> 9635 | I11: =SUM(I12:I13) -> 8973 | J11: =SUM(J12:J13) -> 3423 | K11: =SUM(K12:K13) -> 2357
A12: MONTEVIDEO | B12: =SUM(C12+G12) -> 13240 | C12: 5856 | D12: 3347 | E12: 1988 | F12: 521 | G12: 7384 | H12: 2874 | I12: 2366 | J12: 1200 | K12: 944
A13: RESTO DEL PAÍS | B13: 25575 | C13: 8571 | D13: =SUM(D14:D31) -> 4873 | E13: 3361 | F13: 337 | G13: 17004 | H13: =SUM(H14:H31) -> 6761 | I13: =SUM(I14:I31) -> 6607 | J13: =SUM(J14:J31) -> 2223 | K13: =SUM(K14:K31) -> 1413
A14: Artigas | B14: 1002 | C14: 251 | D14: 164 | E14: 79 | F14: 8 | G14: 751 | H14: 361 | I14: 297 | J14: 56 | K14: 37
A15: Canelones | B15: 6289 | C15: 2379 | D15: 1357 | E15: 870 | F15: 152 | G15: 3910 | H15: 1508 | I15: 1389 | J15: 605 | K15: 408
A16: Cerro Largo | B16: 1112 | C16: 324 | D16: 204 | E16: 120 | F16: 0 | G16: 788 | H16: 369 | I16: 292 | J16: 70 | K16: 57
A17: Colonia | B17: 1401 | C17: 530 | D17: 322 | E17: 208 | F17: 0 | G17: 871 | H17: 259 | I17: 308 | J17: 195 | K17: 109
A18: Durazno | B18: 663 | C18: 185 | D18: 103 | E18: 82 | F18: 0 | G18: 478 | H18: 214 | I18: 153 | J18: 73 | K18: 38
A19: Flores | B19: 396 | C19: 148 | D19: 75 | E19: 73 | F19: 0 | G19: 248 | H19: 50 | I19: 116 | J19: 54 | K19: 28
A20: Florida | B20: 871 | C20: 283 | D20: 190 | E20: 93 | F20: 0 | G20: 588 | H20: 235 | I20: 241 | J20: 73 | K20: 39
A21: Lavalleja | B21: 752 | C21: 123 | D21: 68 | E21: 55 | F21: 0 | G21: 629 | H21: 315 | I21: 215 | J21: 64 | K21: 35
A22: Maldonado | B22: 2647 | C22: 960 | D22: 481 | E22: 403 | F22: 76 | G22: 1687 | H22: 638 | I22: 626 | J22: 229 | K22: 194
A23: Paysandú | B23: 1312 | C23: 389 | D23: 168 | E23: 193 | F23: 28 | G23: 923 | H23: 313 | I23: 470 | J23: 102 | K23: 38
A24: Río Negro | B24: 607 | C24: 245 | D24: 149 | E24: 96 | F24: 0 | G24: 362 | H24: 136 | I24: 162 | J24: 37 | K24: 27
A25: Rivera | B25: 1545 | C25: 427 | D25: 303 | E25: 111 | F25: 13 | G25: 1118 | H25: 571 | I25: 390 | J25: 112 | K25: 45
A26: Rocha | B26: 1090 | C26: 390 | D26: 211 | E26: 179 | F26: 0 | G26: 700 | H26: 280 | I26: 244 | J26: 83 | K26: 93
A27: Salto | B27: 1518 | C27: 333 | D27: 180 | E27: 131 | F27: 22 | G27: 1185 | H27: 476 | I27: 534 | J27: 121 | K27: 54
A28: San José | B28: 1520 | C28: 687 | D28: 355 | E28: 294 | F28: 38 | G28: 833 | H28: 294 | I28: 347 | J28: 133 | K28: 59
A29: Soriano | B29: 1011 | C29: 388 | D29: 260 | E29: 128 | F29: 0 | G29: 623 | H29: 204 | I29: 268 | J29: 93 | K29: 58
A30: Tacuarembó | B30: 1216 | C30: 308 | D30: 173 | E30: 135 | F30: 0 | G30: 908 | H30: 377 | I30: 368 | J30: 94 | K30: 69
A31: Treinta y Tres | B31: 623 | C31: 221 | D31: 110 | E31: 111 | F31: 0 | G31: 402 | H31: 161 | I31: 187 | J31: 29 | K31: 25
A32: Fuente: DE — CES

Sheet II-4.2.7
A1: CONSEJO DE EDUCACIÓN SECUNDARIA | F1: MATRICULADOS
A3: Cuadro Nº II-4.2.7
A7: ESTUDIANTES MATRICULADOS EN EL CES EN QUINTO GRADO DE EDUCACIÓN MEDIA SUPERIOR DE EDUCACIÓN SECUNDARIA PRIVADA POR ORIENTACIÓN SEGÚN DEPARTAMENTO (Todo el país, 2017)
A9: DEPARTAMENTO | B9: TOTAL | C9: QUINTO GRADO DE EDUCACIÓN MEDIA GENERAL
C10: ORIENTACIÓN Planes 86+93+2006 | G10: OTROS (*)
C11: Humanística | D11: Biológica | E11: Científica | F11: Artístico | G11: BINT y/o BICUL
A13: TOTAL | B13: =C13+D13+E13+F13+G13 -> 5273 | C13: =C14+C15 -> 1662 | D13: =D14+D15 -> 1558 | E13: =E14+E15 -> 1647 | F13: =F14+F15 -> 292 | G13: =G14+G15 -> 114
A14: MONTEVIDEO | B14: =C14+D14+E14+F14+G14 -> 3957 | C14: 1281 | D14: 1068 | E14: 1244 | F14: 250 | G14: 114
A15: RESTO DEL PAÍS | B15: 1316 | C15: =SUM(C16:C33) -> 381 | D15: =SUM(D16:D33) -> 490 | E15: =SUM(E16:E33) -> 403 | F15: =SUM(F16:F33) -> 42 | G15: =SUM(G16:G33) -> 0
A16: Artigas | B16: 14 | C16: 0 | D16: 7 | E16: 7 | F16: 0 | G16: 0
A17: Canelones | B17: 545 | C17: 179 | D17: 179 | E17: 166 | F17: 21 | G17: 0
A18: Cerro Largo | B18: 46 | C18: 6 | D18: 23 | E18: 17 | F18: 0 | G18: 0
A19: Colonia | B19: 0 | C19: 0 | D19: 0 | E19: 0 | F19: 0 | G19: 0
A20: Durazno | B20: 0 | C20: 0 | D20: 0 | E20: 0 | F20: 0 | G20: 0
A21: Flores | B21: 0 | C21: 0 | D21: 0 | E21: 0 | F21: 0 | G21: 0
A22: Florida | B22: 65 | C22: 19 | D22: 28 | E22: 18 | F22: 0 | G22: 0
A23: Lavalleja | B23: 0 | C23: 0 | D23: 0 | E23: 0 | F23: 0 | G23: 0
A24: Maldonado | B24: 355 | C24: 94 | D24: 140 | E24: 105 | F24: 16 | G24: 0
A25: Paysandú | B25: 115 | C25: 31 | D25: 42 | E25: 42 | F25: 0 | G25: 0
A26: Río Negro | B26: 0 | C26: 0 | D26: 0 | E26: 0 | F26: 0 | G26: 0
A27: Rivera | B27: 29 | C27: 11 | D27: 12 | E27: 6 | F27: 0 | G27: 0
A28: Rocha | B28: 3 | C28: 3 | D28: 0 | E28: 0 | F28: 0 | G28: 0
A29: Salto | B29: 90 | C29: 28 | D29: 30 | E29: 27 | F29: 5 | G29: 0
A30: San José | B30: 0 | C30: 0 | D30: 0 | E30: 0 | F30: 0 | G30: 0
A31: Soriano | B31: 0 | C31: 0 | D31: 0 | E31: 0 | F31: 0 | G31: 0
A32: Tacuarembó | B32: 54 | C32: 10 | D32: 29 | E32: 15 | F32: 0 | G32: 0
A33: Treinta y Tres | B33: 0 | C33: 0 | D33: 0 | E33: 0 | F33: 0 | G33: 0
A34: Fuente: DE — CES
A35: Nota: Otros (*) Corresponde a los cursos de Bachillerato Internacional y
A36: Bachillerato Bicultural

Sheet II-4.2.8
A1: CONSEJO DE EDUCACIÓN SECUNDARIA | D1: MATRICULADOS
A3: Cuadro Nº II-4.2.8 | C3: VOLVER
A5: ESTUDIANTES MATRICULADOS EN EL CES EN SEXTO GRADO DE EDUCACIÓN MEDIA GENERAL PÚBLICA POR PLAN Y OPCIÓN SEGÚN DEPARTAMENTO (Todo el país, 2017)
C6: SEXTO GRADO
A7: DEPARTAMENTO | B7: TOTAL GENERAL | C7: TOTAL Plan 94 | D7: O P C I Ó N P L A N / 94 | J7: Total Plan Ref. 06 | K7: O P C I Ó N P L A N / R E F O R M U L A C I Ó N 2006
D9: 3º DER | E9: 3º ECO | F9: 3º AGR | G9: 3º MED | H9: 3º ARQ | I9: 3º ING | K9: Social Humanístico | L9: Social Economía | M9: Ciencias Agrarias | N9: Ciencias Biológicas | O9: Física Matemática | P9: Matemática Diseño | Q9: Arte y Expresión
A12: TOTAL | B12: =SUM(C12+J12) -> 29807 | C12: =SUM(D12:I12) -> 11008 | D12: =D13+D14 -> 5471 | E12: 738 | F12: 74 | G12: 4071 | H12: 143 | I12: 511 | J12: =SUM(K12:Q12) -> 18799 | K12: =K13+K14 -> 6318 | L12: =L13+L14 -> 1826 | M12: 475 | N12: 6453 | O12: 1486 | P12: 730 | Q12: 1511
A13: MONTEVIDEO | B13: =SUM(C13+J13) -> 774 | C13: 166 | D13: 107 | E13: 0 | F13: 0 | G13: 59 | H13: 0 | I13: 0 | J13: =SUM(K13:Q13) -> 608 | K13: 243 | L13: 42 | M13: 11 | N13: 231 | O13: 47 | P13: 13 | Q13: 21
A14: RESTO DEL PAÍS | B14: 29033 | C14: 10842 | D14: =SUM(D15:D32) -> 5364 | E14: 738 | F14: 74 | G14: 4012 | H14: 143 | I14: 511 | J14: =SUM(J15:J32) -> 18191 | K14: =SUM(K15:K32) -> 6075 | L14: =SUM(L15:L32) -> 1784 | M14: 464 | N14: 6222 | O14: 1439 | P14: 717 | Q14: 1490
A15: Artigas | B15: 4717 | C15: 1800 | D15: 920 | E15: 121 | F15: 11 | G15: 644 | H15: 22 | I15: 82 | J15: =SUM(K15:Q15) -> 2917 | K15: 924 | L15: 313 | M15: 61 | N15: 931 | O15: 282 | P15: 150 | Q15: 256
A16: Canelones | B16: 938 | C16: 287 | D16: 164 | E16: 0 | F16: 0 | G16: 123 | H16: 0 | I16: 0 | J16: 651 | K16: 270 | L16: 43 | M16: 14 | N16: 225 | O16: 29 | P16: 16 | Q16: 54
A17: Cerro Largo | B17: 1128 | C17: 396 | D17: 191 | E17: 27 | F17: 0 | G17: 178 | H17: 0 | I17: 0 | J17: 732 | K17: 214 | L17: 87 | M17: 51 | N17: 207 | O17: 86 | P17: 39 | Q17: 48
A18: Colonia | B18: 558 | C18: 158 | D18: 80 | E18: 0 | F18: 0 | G18: 78 | H18: 0 | I18: 0 | J18: 400 | K18: 147 | L18: 35 | M18: 19 | N18: 135 | O18: 27 | P18: 16 | Q18: 21
A19: Durazno | B19: 266 | C19: 81 | D19: 36 | E19: 0 | F19: 0 | G19: 45 | H19: 0 | I19: 0 | J19: 185 | K19: 49 | L19: 23 | M19: 8 | N19: 68 | O19: 22 | P19: 8 | Q19: 7
A20: Flores | B20: 582 | C20: 179 | D20: 95 | E20: 0 | F20: 0 | G20: 84 | H20: 0 | I20: 0 | J20: 403 | K20: 133 | L20: 25 | M20: 11 | N20: 163 | O20: 35 | P20: 10 | Q20: 26
A21: Florida | B21: 632 | C21: 106 | D21: 67 | E21: 0 | F21: 0 | G21: 39 | H21: 0 | I21: 0 | J21: 526 | K21: 228 | L21: 44 | M21: 14 | N21: 173 | O21: 32 | P21: 16 | Q21: 19
A22: Lavalleja | B22: 2003 | C22: 631 | D22: 289 | E22: 51 | F22: 18 | G22: 227 | H22: 15 | I22: 31 | J22: 1372 | K22: 494 | L22: 110 | M22: 33 | N22: 473 | O22: 92 | P22: 49 | Q22: 121
A23: Maldonado | B23: 10177 | C23: 4711 | D23: 2257 | E23: 477 | F23: 21 | G23: 1542 | H23: 102 | I23: 312 | J23: 5466 | K23: 1707 | L23: 684 | M23: 68 | N23: 1613 | O23: 475 | P23: 249 | Q23: 670
A24: Paysandú | B24: 1018 | C24: 328 | D24: 117 | E24: 31 | F24: 13 | G24: 145 | H24: 4 | I24: 18 | J24: 690 | K24: 223 | L24: 61 | M24: 30 | N24: 302 | O24: 25 | P24: 23 | Q24: 26
A25: Río Negro | B25: 504 | C25: 181 | D25: 101 | E25: 3 | F25: 0 | G25: 77 | H25: 0 | I25: 0 | J25: 323 | K25: 107 | L25: 16 | M25: 18 | N25: 126 | O25: 29 | P25: 0 | Q25: 27
A26: Rivera | B26: 1159 | C26: 291 | D26: 194 | E26: 0 | F26: 0 | G26: 84 | H26: 0 | I26: 13 | J26: 868 | K26: 369 | L26: 46 | M26: 28 | N26: 324 | O26: 55 | P26: 18 | Q26: 28
A27: Rocha | B27: 845 | C27: 265 | D27: 128 | E27: 0 | F27: 0 | G27: 137 | H27: 0 | I27: 0 | J27: 580 | K27: 183 | L27: 62 | M27: 8 | N27: 224 | O27: 26 | P27: 23 | Q27: 54
A28: Salto | B28: 1265 | C28: 293 | D28: 131 | E28: 6 | F28: 11 | G28: 124 | H28: 0 | I28: 21 | J28: 972 | K28: 366 | L28: 55 | M28: 17 | N28: 434 | O28: 41 | P28: 25 | Q28: 34
A29: San José | B29: 916 | C29: 440 | D29: 186 | E29: 9 | F29: 0 | G29: 218 | H29: 0 | I29: 27 | J29: 476 | K29: 139 | L29: 31 | M29: 16 | N29: 191 | O29: 59 | P29: 15 | Q29: 25
A30: Soriano | B30: 882 | C30: 317 | D30: 185 | E30: 13 | F30: 0 | G30: 112 | H30: 0 | I30: 7 | J30: 565 | K30: 150 | L30: 51 | M30: 36 | N30: 210 | O30: 56 | P30: 27 | Q30: 35
A31: Tacuarembó | B31: 919 | C31: 201 | D31: 119 | E31: 0 | F31: 0 | G31: 82 | H31: 0 | I31: 0 | J31: 718 | K31: 243 | L31: 72 | M31: 29 | N31: 284 | O31: 42 | P31: 20 | Q31: 28
A32: Treinta y Tres | B32: 524 | C32: 177 | D32: 104 | E32: 0 | F32: 0 | G32: 73 | H32: 0 | I32: 0 | J32: 347 | K32: 129 | L32: 26 | M32: 3 | N32: 139 | O32: 26 | P32: 13 | Q32: 11
A33: Fuente: DE — CES

Sheet II-4.2.9
A1: CONSEJO DE EDUCACIÓN SECUNDARIA | E1: MATRICULADOS
A3: Cuadro Nº II-4.2.9
A5: ESTUDIANTES MATRICULADOS EN EL CES EN SEXTO GRADO DE EDUCACIÓN MEDIA GENERAL PRIVADA POR OPCIÓN SEGÚN DEPARTAMENTO (Todo el país, 2017)
A6: DEPARTAMENTO | B6: TOTAL | C6: TODOS LOS PLANES OPCIÓN SEXTO GRADO | J6: Otros (*)
C7: Social Humanístico | D7: Social Economía | E7: Ciencias Agrarias | F7: Ciencias Biológicas | G7: Física Matemática | H7: Matemática Diseño | I7: Arte y Expresión | J7: B.INT.y/o BICUL.
A8: TOTAL | B8: =SUM(C8:J8) -> 4766 | C8: =C9+C10 -> 1021 | D8: =D9+D10 -> 928 | E8: 125 | F8: 1165 | G8: 855 | H8: 331 | I8: 225 | J8: 116
A9: MONTEVIDEO | B9: =SUM(C9:J9) -> 3617 | C9: 753 | D9: 734 | E9: 83 | F9: 800 | G9: 689 | H9: 262 | I9: 180 | J9: 116
A10: RESTO DEL PAÍS | B10: 1149 | C10: =SUM(C11:C28) -> 268 | D10: =SUM(D11:D28) -> 194 | E10: 42 | F10: 365 | G10: 166 | H10: 69 | I10: 45 | J10: 0
A11: Artigas | B11: 0 | C11: 0 | D11: 0 | E11: 0 | F11: 0 | G11: 0 | H11: 0 | I11: 0 | J11: 0
A12: Canelones | B12: 537 | C12: 130 | D12: 90 | E12: 22 | F12: 169 | G12: 65 | H12: 29 | I12: 32 | J12: 0
A13: Cerro Largo | B13: 56 | C13: 11 | D13: 7 | E13: 0 | F13: 22 | G13: 7 | H13: 9 | I13: 0 | J13: 0
A14: Colonia | B14: 0 | C14: 0 | D14: 0 | E14: 0 | F14: 0 | G14: 0 | H14: 0 | I14: 0 | J14: 0
A15: Durazno | B15: 0 | C15: 0 | D15: 0 | E15: 0 | F15: 0 | G15: 0 | H15: 0 | I15: 0 | J15: 0
A16: Flores | B16: 0 | C16: 0 | D16: 0 | E16: 0 | F16: 0 | G16: 0 | H16: 0 | I16: 0 | J16: 0
A17: Florida | B17: 34 | C17: 7 | D17: 7 | E17: 0 | F17: 11 | G17: 9 | H17: 0 | I17: 0 | J17: 0
A18: Lavalleja | B18: 0 | C18: 0 | D18: 0 | E18: 0 | F18: 0 | G18: 0 | H18: 0 | I18: 0 | J18: 0
A19: Maldonado | B19: 311 | C19: 73 | D19: 61 | E19: 9 | F19: 86 | G19: 41 | H19: 28 | I19: 13 | J19: 0
A20: Paysandú | B20: 84 | C20: 21 | D20: 13 | E20: 5 | F20: 34 | G20: 11 | H20: 0 | I20: 0 | J20: 0
A21: Río Negro | B21: 0 | C21: 0 | D21: 0 | E21: 0 | F21: 0 | G21: 0 | H21: 0 | I21: 0 | J21: 0
A22: Rivera | B22: 18 | C22: 4 | D22: 3 | E22: 0 | F22: 6 | G22: 4 | H22: 1 | I22: 0 | J22: 0
A23: Rocha | B23: 0 | C23: 0 | D23: 0 | E23: 0 | F23: 0 | G23: 0 | H23: 0 | I23: 0 | J23: 0
A24: Salto | B24: 57 | C24: 10 | D24: 10 | E24: 6 | F24: 18 | G24: 13 | H24: 0 | I24: 0 | J24: 0
A25: San José | B25: 0 | C25: 0 | D25: 0 | E25: 0 | F25: 0 | G25: 0 | H25: 0 | I25: 0 | J25: 0
A26: Soriano | B26: 0 | C26: 0 | D26: 0 | E26: 0 | F26: 0 | G26: 0 | H26: 0 | I26: 0 | J26: 0
A27: Tacuarembó | B27: 52 | C27: 12 | D27: 3 | E27: 0 | F27: 19 | G27: 16 | H27: 2 | I27: 0 | J27: 0
A28: Treinta y Tres | B28: 0 | C28: 0 | D28: 0 | E28: 0 | F28: 0 | G28: 0 | H28: 0 | I28: 0 | J28: 0
A29: Fuente D.E - CES
A30: Nota: Otros (*) Corresponde a los cursos de Bachillerato Internacional y Bachillerato Bicultural.

Sheet II-4.2.10
A1: CONSEJO DE EDUCACIÓN SECUNDARIA
A3: Cuadro Nº II-4.2.10
A5: ESTUDIANTES MATRICULADOS DE EDUCACIÓN MEDIA SUPERIOR PRIVADA POR GRADO Y SEXO SEGÚN DEPARTAMENTO (Todo el país, 2017)
A7: DEPARTAMENTO | B7: GRADO
B8: CUARTO | D8: QUINTO | F8: SEXTO
B9: SEXO
B10: Mujer | C10: Varón | D10: Mujer | E10: Varón | F10: Mujer | G10: Varón
A11: TOTAL | B11: =B12+B13 -> 3251 | C11: 3254 | D11: 2704 | E11: 2569 | F11: 2495 | G11: 2271
A12: MONTEVIDEO | B12: 2259 | C12: 2273 | D12: 2050 | E12: 1907 | F12: 1873 | G12: 1744
A13: RESTO DEL PAÍS | B13: =SUM(B14:B31) -> 992 | C13: 981 | D13: 654 | E13: 662 | F13: 622 | G13: 527
A14: Artigas | B14: 8 | C14: 10 | D14: 6 | E14: 8 | F14: 0 | G14: 0
A15: Canelones | B15: 408 | C15: 367 | D15: 271 | E15: 274 | F15: 288 | G15: 249
A16: Cerro Largo | B16: 49 | C16: 50 | D16: 19 | E16: 27 | F16: 24 | G16: 32
A17: Colonia | B17: 6 | C17: 6 | D17: 0 | E17: 0 | F17: 0 | G17: 0
A18: Durazno | B18: 24 | C18: 36 | D18: 0 | E18: 0 | F18: 0 | G18: 0
A19: Flores | B19: 17 | C19: 18 | D19: 0 | E19: 0 | F19: 0 | G19: 0
A20: Florida | B20: 31 | C20: 33 | D20: 39 | E20: 26 | F20: 18 | G20: 16
A21: Lavalleja | B21: 0 | C21: 0 | D21: 0 | E21: 0 | F21: 0 | G21: 0
A22: Maldonado | B22: 188 | C22: 219 | D22: 169 | E22: 186 | F22: 165 | G22: 146
A23: Paysandú | B23: 74 | C23: 89 | D23: 65 | E23: 50 | F23: 50 | G23: 34
A24: Río Negro | B24: 9 | C24: 4 | D24: 0 | E24: 0 | F24: 0 | G24: 0
A25: Rivera | B25: 32 | C25: 30 | D25: 18 | E25: 11 | F25: 10 | G25: 8
A26: Rocha | B26: 0 | C26: 0 | D26: 3 | E26: 0 | F26: 0 | G26: 0
A27: Salto | B27: 44 | C27: 40 | D27: 42 | E27: 48 | F27: 34 | G27: 23
A28: San José | B28: 16 | C28: 18 | D28: 0 | E28: 0 | F28: 0 | G28: 0
A29: Soriano | B29: 34 | C29: 18 | D29: 0 | E29: 0 | F29: 0 | G29: 0
A30: Tacuarembó | B30: 43 | C30: 35 | D30: 22 | E30: 32 | F30: 33 | G30: 19
A31: Treinta y Tres | B31: 9 | C31: 8 | D31: 0 | E31: 0 | F31: 0 | G31: 0
A32: Fuente: DE — CES
A33: Nota: Las diferencias con la matrícula de otros cuadros se debe a la ausencia de información sobre sexo en algunos colegios.

Sheet II-4.2.11
A1: CONSEJO DE EDUCACIÓN SECUNDARIA
A3: Cuadro Nº II-4.2.11
A5: ESTUDIANTES MATRICULADOS DE EDUCACIÓN MEDIA SUPERIOR PÚBLICA POR GRADO Y SEXO SEGÚN DEPARTAMENTO (Todo el país, 2017)
A7: DEPARTAMENTO | B7: GRADO
B8: CUARTO | D8: QUINTO | F8: SEXTO
B9: SEXO
B10: Mujeres | C10: Varones | D10: Mujeres | E10: Varones | F10: Mujeres | G10: Varones
A11: TOTAL | B11: =B12+B13 -> 22853 | C11: 16493 | D11: 23556 | E11: 15259 | F11: 18422 | G11: 11385
A12: MONTEVIDEO | B12: 7390 | C12: 5307 | D12: 7915 | E12: 5325 | F12: 6104 | G12: 4073
A13: RESTO DEL PAÍS | B13: =SUM(B14:B31) -> 15463 | C13: 11186 | D13: 15641 | E13: 9934 | F13: 12318 | G13: 7312
A14: Artigas | B14: 622 | C14: 449 | D14: 628 | E14: 374 | F14: 500 | G14: 274
A15: Canelones | B15: 3952 | C15: 2930 | D15: 3831 | E15: 2458 | F15: 2899 | G15: 1818
A16: Cerro Largo | B16: 655 | C16: 476 | D16: 633 | E16: 479 | F16: 596 | G16: 342
A17: Colonia | B17: 820 | C17: 573 | D17: 853 | E17: 548 | F17: 708 | G17: 420
A18: Durazno | B18: 447 | C18: 309 | D18: 392 | E18: 271 | F18: 336 | G18: 222
A19: Flores | B19: 194 | C19: 144 | D19: 224 | E19: 172 | F19: 143 | G19: 123
A20: Florida | B20: 494 | C20: 385 | D20: 546 | E20: 325 | F20: 373 | G20: 209
A21: Lavalleja | B21: 391 | C21: 307 | D21: 464 | E21: 288 | F21: 393 | G21: 239
A22: Maldonado | B22: 1429 | C22: 1064 | D22: 1564 | E22: 1083 | F22: 1221 | G22: 782
A23: Paysandú | B23: 807 | C23: 484 | D23: 851 | E23: 461 | F23: 665 | G23: 353
A24: Río Negro | B24: 439 | C24: 247 | D24: 385 | E24: 222 | F24: 333 | G24: 171
A25: Rivera | B25: 977 | C25: 735 | D25: 934 | E25: 611 | F25: 728 | G25: 431
A26: Rocha | B26: 730 | C26: 631 | D26: 629 | E26: 461 | F26: 480 | G26: 365
A27: Salto | B27: 813 | C27: 611 | D27: 995 | E27: 523 | F27: 831 | G27: 434
A28: San José | B28: 802 | C28: 592 | D28: 924 | E28: 596 | F28: 613 | G28: 303
A29: Soriano | B29: 638 | C29: 377 | D29: 636 | E29: 375 | F29: 570 | G29: 312
A30: Tacuarembó | B30: 814 | C30: 530 | D30: 762 | E30: 454 | F30: 578 | G30: 341
A31: Treinta y Tres | B31: 439 | C31: 342 | D31: 390 | E31: 233 | F31: 351 | G31: 173
A32: Fuente: DE — CES

Sheet II-4.3.1
A1: CONSEJO DE EDUCACIÓN SECUNDARIA | F1: PERSONAL DOCENTE
A3: Cuadro Nº II-4.3.1
A5: PERSONAL DOCENTE Y HORAS DOCENTES DEL CES EN EDUCACIÓN MEDIA SUPERIOR GENERAL PÚBLICA POR CONDICIÓN DE TITULACIÓN (Todo el país, 2017)
A7: ASIGNATURAS | B7: TOTAL DOCENTES | C7: PERSONAL DOCENTE | E7: TOTAL HORAS | F7: HORAS DOCENTES
C8: Titulados | D8: No Titulados | F8: Titulados | G8: No Titulados
A9: TOTAL | B9: =SUM(C9:D9) -> 9818 | C9: =SUM(C10:C39) -> 6695 | D9: =SUM(D10:D39) -> 3123 | E9: =SUM(F9:G9) -> 9818 | F9: =SUM(F10:F39) -> 7024 | G9: =SUM(G10:G39) -> 2794
A10: ACTIVIDADES ADAPTADAS AL MEDIO | B10: =+C10+D10 -> 0 | C10: 0 | D10: 0 | E10: =+F10+G10 -> 0 | F10: 0 | G10: 0
A11: ASTRONOMÍA | B11: =+C11+D11 -> 183 | C11: 56 | D11: 127 | E11: =+F11+G11 -> 183 | F11: 62 | G11: 121
A12: BIOLOGÍA | B12: 879 | C12: 698 | D12: 181 | E12: 879 | F12: 721 | G12: 158
A13: CIENCIAS FÍSICAS | B13: 0 | C13: 0 | D13: 0 | E13: 0 | F13: 0 | G13: 0
A14: COMUNICACIÓN VISUAL - DIBUJO | B14: 528 | C14: 343 | D14: 185 | E14: 528 | F14: 367 | G14: 161
A15: CONTABILIDAD | B15: 157 | C15: 15 | D15: 142 | E15: 157 | F15: 19 | G15: 138
A16: CURRÍCULO ABIERTO | B16: 0 | C16: 0 | D16: 0 | E16: 0 | F16: 0 | G16: 0
A17: ECONOMÍA | B17: 138 | C17: 72 | D17: 66 | E17: 138 | F17: 76 | G17: 62
A18: EDUCACIÓN FÍSICA | B18: 342 | C18: 305 | D18: 37 | E18: 342 | F18: 322 | G18: 20
A19: EDUCACIÓN SOCIAL Y CÍVICA | B19: 693 | C19: 575 | D19: 118 | E19: 693 | F19: 611 | G19: 82
A20: ESTUDIOS ECONÓMICOS | B20: 215 | C20: 192 | D20: 23 | E20: 215 | F20: 199 | G20: 16
A21: EXP.CORPORAL Y DANZA | B21: 44 | C21: 5 | D21: 39 | E21: 44 | F21: 5 | G21: 39
A22: EXP.CORPORAL Y TEATRO | B22: 55 | C22: 11 | D22: 44 | E22: 55 | F22: 13 | G22: 42
A23: FILOSOFÍA | B23: 760 | C23: 573 | D23: 187 | E23: 760 | F23: 606 | G23: 154
A24: FÍSICA | B24: 733 | C24: 427 | D24: 306 | E24: 733 | F24: 444 | G24: 289
A25: GEOGRAFÍA | B25: 200 | C25: 153 | D25: 47 | E25: 200 | F25: 161 | G25: 39
A26: GEOLOGÍA | B26: 6 | C26: 0 | D26: 6 | E26: 6 | F26: 0 | G26: 6
A27: HISTORIA | B27: 969 | C27: 824 | D27: 145 | E27: 969 | F27: 869 | G27: 100
A28: IDIOMA ESPAÑOL | B28: 0 | C28: 0 | D28: 0 | E28: 0 | F28: 0 | G28: 0
A29: INFORMÁTICA | B29: 0 | C29: 0 | D29: 0 | E29: 0 | F29: 0 | G29: 0
A30: INGLÉS | B30: 766 | C30: 348 | D30: 418 | E30: 766 | F30: 368 | G30: 398
A31: ITALIANO | B31: 75 | C31: 30 | D31: 45 | E31: 75 | F31: 31 | G31: 44
A32: LENG.COMUNIC.Y MEDIOS AUDIOV. | B32: 46 | C32: 10 | D32: 36 | E32: 46 | F32: 12 | G32: 34
A33: LENGUAJE DE SEÑAS | B33: 1 | C33: 1 | D33: 0 | E33: 1 | F33: 1 | G33: 0
A34: LITERATURA | B34: 896 | C34: 697 | D34: 199 | E34: 896 | F34: 739 | G34: 157
A35: MATEMATICA | B35: 1182 | C35: 728 | D35: 454 | E35: 1182 | F35: 750 | G35: 432
A36: MÚSICA | B36: 85 | C36: 43 | D36: 42 | E36: 85 | F36: 45 | G36: 40
A37: QUÍMICA | B37: 771 | C37: 546 | D37: 225 | E37: 771 | F37: 558 | G37: 213
A38: REC.NATURALES Y PAIS.AGRARIO | B38: 43 | C38: 31 | D38: 12 | E38: 43 | F38: 31 | G38: 12
A39: TEATRO | B39: 51 | C39: 12 | D39: 39 | E39: 51 | F39: 14 | G39: 37
A40: Fuente: Departamento de Estadística — CES
A41: Nota: Los docentes que dictan más de una asignatura son considerados como personas distintas en cada asignatura.
A42: El cuadro muestra la cantidad de docentes titulados según la asignatura que dicta y no según la asignatura en la cual se tituló.
A43: Se consideran los docentes activos y las horas de coordinación no están consideradas.

Sheet II-4.3.2
A1: CONSEJO DE EDUCACIÓN TÉCNICO PROFESIONAL (U.T.U.) | E1: PERSONAL DOCENTE
A3: Cuadro Nº II-4.3.2
A5: PERSONAL DOCENTE DEL CETP EN EDUCACIÓN MEDIA SUPERIOR TECNOLÓGICA POR TIPO DE CURSO (Todo el país, 2017)
A6: EDUCACIÓN MEDIA SUPERIOR TECNOLÓGICA | B6: TOTAL
A8: TOTAL | B8: =SUM(B9:B18) -> 15085
A9: Bachillerato Figari | B9: 57
A10: Bachillerato Profesional | B10: 874
A11: Educación Media Profesional | B11: 2809
A12: Educación Media Prof. De Especialización | B12: 1
A13: Educación Media Tecnológica | B13: 4924
A14: Educación Media Superior | B14: 6307
A15: Articulación a Nivel Terciario | B15: 0
A16: Curso Técnico | B16: 92
A17: Tutorías | B17: 2
A18: Educación Media Tecnológica Fin. | B18: 19
A19: Fuente: U.T.U. División Informática.

Sheet II-4.4.1
A1: CONSEJO DE EDUCACIÓN SECUNDARIA | C1: GRUPOS
A3: Cuadro Nº II-4.4.1
A5: GRUPOS DE EDUCACIÓN MEDIA SUPERIOR GENERAL COMPARADOS CON EL TOTAL DE AMBOS CICLOS SEGÚN GRANDES ÁREAS Y FORMA DE ADMINISTRACIÓN (Todo el país, 2017)
B6: FORMA DE ADMINISTRACIÓN
B7: Grupos en Educación Media Superior General | C7: Total de Grupos en Educación Media General | D7: Promedio de alumnos por grupo de Media Superior
A8: TOTAL DEL PAÍS | B8: =B9+B12 -> 4610 | C8: =C9+C12 -> 10211 | D8: ='II-4.2.1 '!B9/'II-4.4.1'!B8 -> 27.01605206
A9: EDUCACIÓN MEDIA SUPERIOR PÚBLICA | B9: =B10+B11 -> 3441 | C9: =C10+C11 -> 7982 | D9: ='II-4.2.1 '!B10/'II-4.4.1'!B9 -> 31.37692531
A10: Diurna | B10: =B15+B20 -> 2824 | C10: 6893 | D10: ='II-4.2.1 '!B11/'II-4.4.1'!B10 -> 25.36296034
A11: Nocturna | B11: 617 | C11: 1089 | D11: ='II-4.2.1 '!B12/'II-4.4.1'!B11 -> 58.90275527
A12: EDUCACIÓN MEDIA SUPERIOR PRIVADA | B12: 1169 | C12: 2229 | D12: ='II-4.2.1 '!B13/'II-4.4.1'!B12 -> 14.17964072
A13: TOTAL MONTEVIDEO | B13: =B14+B17 -> 1747 | C13: =C14+C17 -> 3746 | D13: ='II-4.2.1 '!B14/'II-4.4.1'!B13 -> 27.61991986
A14: EDUCACIÓN MEDIA SUPERIOR PÚBLICA | B14: =B15+B16 -> 905 | C14: =C15+C16 -> 2228 | D14: ='II-4.2.1 '!B15/'II-4.4.1'!B14 -> 39.90497238
A15: Diurna | B15: 686 | C15: 1852 | D15: ='II-4.2.1 '!B16/'II-4.4.1'!B15 -> 31.1122449
A16: Nocturna | B16: 219 | C16: 376 | D16: ='II-4.2.1 '!B17/'II-4.4.1'!B16 -> 67.44748858
A17: EDUCACIÓN MEDIA SUPERIOR PRIVADA | B17: 842 | C17: 1518 | D17: ='II-4.2.1 '!B18/'II-4.4.1'!B17 -> 14.41567696
A18: TOTAL RESTO DEL PAÍS | B18: =B19+B22 -> 2863 | C18: =C19+C22 -> 6465 | D18: ='II-4.2.1 '!B19/'II-4.4.1'!B18 -> 26.64757248
A19: EDUCACIÓN MEDIA SUPERIOR PÚBLICA | B19: =B20+B21 -> 2536 | C19: =C20+C21 -> 5754 | D19: ='II-4.2.1 '!B20/'II-4.4.1'!B19 -> 28.33359621
A20: Diurna | B20: 2138 | C20: 5041 | D20: ='II-4.2.1 '!B21/'II-4.4.1'!B20 -> 23.51824135
A21: Nocturna | B21: 398 | C21: 713 | D21: ='II-4.2.1 '!B22/'II-4.4.1'!B21 -> 54.20100503
A22: EDUCACIÓN MEDIA SUPERIOR PRIVADA | B22: 327 | C22: 711 | D22: ='II-4.2.1 '!B23/'II-4.4.1'!B22 -> 13.57186544
A23: Fuente: DE — CES
A24: Nota: El “Total de ambos Ciclos” presenta de manera agregada la cantidad total de grupos con que cuente Educación Secundaria y es el resultado de adicionar al total de Grupos del presente cuadro (Ciclo Superior de Educación Secundaria), el total de los grupos presentados en el Cuadro II-3.4.1 (Ciclo Básico de Educación Secundaria)

Sheet TERCIARIA NO UNIVERSITARIA
A8: Cuadro II-5.1.1 | B8: MATRÍCULA Y PERSONAL DOCENTE POR SEXO SEGÚN GRANDES ÁREAS, DEPARTAMENTOS E INSTITUCIONES. (Todo el país, 2017).
A11: Cuadro II-5.2.1 | B11: ESTUDIANTES INGRESADOS, MATRICULADOS Y EGRESADOS EN NIVEL TERCIARIO NO UNIVERSITARIO DEL ÁREA SEGURIDAD Y DEFENSA POR SEXO SEGÚN INSTITUCIÓN Y CARRERA. (Todo el país, 2017).
A13: Cuadro II-5.2.2 | B13: ESTUDIANTES INGRESADOS, MATRICULADOS Y EGRESADOS EN OTRAS OFERTAS DE NIVEL TERCIARIO NO UNIVERSITARIO POR SEXO SEGÚN INSTITUCIÓN Y CARRERA. (Todo el país, 2017).
A16: Cuadro II-5.3.1 | B16: PERSONAL ACADÉMICO DE NIVEL TERCIARIO NO UNIVERSITARIO DEL ÁREA SEGURIDAD Y DEFENSA POR CARGA HORARIA, SEXO, SEGÚN INSTITUCIÓN Y FORMACIÓN. (Todo el país, 2017).
A18: Cuadro II-5.3.2 | B18: PERSONAL ACADÉMICO DE NIVEL TERCIARIO NO UNIVERSITARIO POR CARGA HORARIA SEMANAL, SEXO, SEGÚN INSTITUCIÓN Y FORMACIÓN . (Todo el país, 2017).
A31: =MID(B19,1,20) -> 
A85: =MID(B73,1,20) -> 

Sheet II-5.1.1
A1: OFERTAS TERCIARIAS NO UNIVERSITARIAS | D1: INSTITUCIONES
A3: Cuadro Nº II-5.1.1
A5: MATRÍCULA Y PERSONAL DOCENTE POR SEXO SEGÚN GRANDES ÁREAS, DEPARTAMENTOS E INSTITUCIONES (Todo el país, 2017)
A6: GRANDES ÁREAS / DEPARTAMENTO / INSTITUCIÓN | B6: TOTAL | C6: MATRICULA | E6: DOCENTES
C7: SEXO
C9: VARÓN | D9: MUJER
A11: TOTAL | B11: =+B13+B22 -> 10798 | C11: =+C13+C22 -> 6379 | D11: =+D13+D22 -> 4419 | E11: =+E13+E22 -> 1676
A13: MONTEVIDEO | B13: =+C13+D13 -> 6820 | C13: =SUM(C15:C20) -> 4071 | D13: =SUM(D15:D20) -> 2749 | E13: =SUM(E15:E20) -> 970
A15: ESCUELA NAVAL | B15: =C15+D15 -> 123 | C15: 98 | D15: 25 | E15: 132 | G15: =F13:I18 -> 0
A16: ESCUELA NACIONAL DE POLICÍA | B16: =C16+D16 -> 213 | C16: 162 | D16: 51 | E16: 56
A17: ESCUELA MILITAR | B17: 165 | C17: 145 | D17: 20 | E17: 25
A18: ESCUELA MILITAR DE AERONÁUTICA | B18: 65 | C18: 53 | D18: 12 | E18: 52
A19: EMAD | B19: 207 | C19: 61 | D19: 146 | E19: 49
A20: UTU | B20: =C20+D20 -> 6047 | C20: 3552 | D20: 2495 | E20: 656
A22: RESTO DEL PAÍS | B22: =SUM(B24:B41) -> 3978 | C22: =SUM(C24:C41) -> 2308 | D22: =SUM(D24:D41) -> 1670 | E22: =SUM(E24:E41) -> 706
A24: Artigas | B24: =C24+D24 -> 84 | C24: 34 | D24: 50 | E24: 31
A25: Canelones | B25: =C25+D25 -> 382 | C25: 132 | D25: 250 | E25: 90
A26: Cerro Largo | B26: 142 | C26: 79 | D26: 63 | E26: 33
A27: Colonia | B27: 205 | C27: 82 | D27: 123 | E27: 52
A28: Durazno | B28: 63 | C28: 24 | D28: 39 | E28: 15
A29: Flores | B29: 153 | C29: 98 | D29: 55 | E29: 14
A30: Florida | B30: 127 | C30: 78 | D30: 49 | E30: 20
A31: Lavalleja | B31: 22 | C31: 18 | D31: 4 | E31: 7
A32: Maldonado | B32: 284 | C32: 172 | D32: 112 | E32: 62
A33: Paysandú | B33: 855 | C33: 578 | D33: 277 | E33: 113
A34: Río Negro | B34: 96 | C34: 46 | D34: 50 | E34: 27
A35: Rivera | B35: =C35+D35 -> 576 | C35: 309 | D35: 267 | E35: 73
A36: Rocha | B36: 0 | C36: 0 | D36: 0 | E36: 96
A37: Salto | B37: 486 | C37: 373 | D37: 113 | E37: 6
A38: San José | B38: 83 | C38: 54 | D38: 29 | E38: 44
A39: Soriano | B39: 189 | C39: 116 | D39: 73 | E39: 19
A40: Tacuarembó | B40: 213 | C40: 102 | D40: 111 | E40: 4
A41: Treinta y Tres | B41: 18 | C41: 13 | D41: 5
A42: Fuente:
A43: D.E - UTU-
A44: Secretaría General EMAD
A45: Escuela Nacional de Policía
A46: Dirección de Formación. Ministerio de Defensa Nacional

Sheet II-5.2.1
A1: OFERTAS TERCIARIAS NO UNIVERSITARIAS DEL ÁREA SEGURIDAD Y DEFENSA | G1: ALUMNOS MATRICULADOS
A3: Cuadro Nº II-5.2.1
A5: ESTUDIANTES INGRESADOS, MATRICULADOS Y EGRESADOS EN NIVEL TERCIARIO NO UNIVERSITARIO DEL ÁREA SEGURIDAD Y DEFENSA POR SEXO SEGÚN INSTITUCIÓN Y CARRERA (Todo el país, 2017)
A7: INSTITUCION / CARRERA | B7: TOTAL | C7: INGRESADOS | E7: TOTAL | F7: MATRICULADOS | H7: TOTAL | I7: EGRESADOS
C8: SEXO | F8: SEXO | I8: SEXO
C9: V | D9: M | F9: V | G9: M | I9: V | J9: M
A10: TOTAL | B10: =D10+C10 -> 353 | C10: =+C12+C16+C19+C23 -> 274 | D10: =+D12+D16+D19+D23 -> 79 | E10: =G10+F10 -> 566 | F10: =+F12+F16+F19+F23 -> 458 | G10: =+G12+G16+G19+G23 -> 108 | H10: =J10+I10 -> 201 | I10: =+I12+I16+I19+I23 -> 167 | J10: =+J12+J16+J19+J23 -> 34
A12: ESCUELA NAVAL | B12: =SUM(B13:B14) -> 52 | C12: 36 | D12: 16 | E12: 123 | F12: 98 | G12: 25 | H12: 16 | I12: 16 | J12: 0
A13: Marina de Guerra | B13: =SUM(C13:D13) -> 38 | C13: 24 | D13: 14 | E13: =SUM(F13:G13) -> 74 | F13: 53 | G13: 21 | H13: =SUM(I13:J13) -> 9 | I13: 9 | J13: 0
A14: Marina Mercante | B14: =SUM(C14:D14) -> 14 | C14: 12 | D14: 2 | E14: =SUM(F14:G14) -> 49 | F14: 45 | G14: 4 | H14: =SUM(I14:J14) -> 7 | I14: 7 | J14: 0
A16: ESCUELA NACIONAL DE POLICÍA | B16: =+C16+D16 -> 137 | C16: =+C17 -> 104 | D16: =+D17 -> 33 | E16: =+F16+G16 -> 213 | F16: =+F17 -> 162 | G16: =+G17 -> 51 | H16: =+I16+J16 -> 90 | I16: =+I17 -> 69 | J16: =+J17 -> 21
A17: Curso de Cadetes (1º,2º y 3er.año) | B17: =SUM(C17:D17) -> 137 | C17: 104 | D17: 33 | E17: =SUM(F17:G17) -> 213 | F17: 162 | G17: 51 | H17: =SUM(I17:J17) -> 90 | I17: 69 | J17: 21
A19: ESCUELA MILITAR | B19: =SUM(C19:D19) -> 99 | C19: =C20+C21 -> 81 | D19: =D20+D21 -> 18 | E19: =SUM(F19:G19) -> 165 | F19: =F20+F21 -> 145 | G19: =G20+G21 -> 20 | H19: =SUM(I19:J19) -> 49 | I19: =I20+I21 -> 45 | J19: =J20+J21 -> 4
A20: Alférez de Cuerpo de Comando | B20: =+C20+D20 -> 94 | C20: 78 | D20: 16 | E20: =+F20+G20 -> 158 | F20: 140 | G20: 18 | H20: =SUM(I20:J20) -> 49 | I20: 45 | J20: 4
A21: Alférez de Apoyo de Servicios y Combate | B21: =+C21+D21 -> 5 | C21: 3 | D21: 2 | E21: =+F21+G21 -> 7 | F21: 5 | G21: 2 | H21: =SUM(I21:J21) -> 0 | I21: 0 | J21: 0
A23: ESCUELA MILITAR DE AERONÁUTICA | B23: =SUM(C23:D23) -> 65 | C23: =SUM(C24:C27) -> 53 | D23: =SUM(D24:D27) -> 12 | E23: =SUM(F23:G23) -> 65 | F23: =SUM(F24:F27) -> 53 | G23: =SUM(G24:G27) -> 12 | H23: =SUM(I23:J23) -> 46 | I23: =SUM(I24:I27) -> 37 | J23: =SUM(J24:J27) -> 9
A24: Licenciatura en Defensa Militar Aeroespacial | B24: =+C24+D24 -> 19 | C24: 16 | D24: 3 | E24: =+F24+G24 -> 19 | F24: 16 | G24: 3 | H24: =SUM(I24:J24) -> 0 | I24: 0 | J24: 0
A25: Cadetes de 1º | B25: =+C25+D25 -> 18 | C25: 13 | D25: 5 | E25: =+F25+G25 -> 18 | F25: 13 | G25: 5 | H25: 18 | I25: 13 | J25: 5
A26: Cadetes de 2º | B26: 12 | C26: 9 | D26: 3 | E26: 12 | F26: 9 | G26: 3 | H26: 12 | I26: 9 | J26: 3
A27: Cadetes de 3º Profesional | B27: 16 | C27: 15 | D27: 1 | E27: 16 | F27: 15 | G27: 1 | H27: 16 | I27: 15 | J27: 1
A30: Fuentes: Escuela Nacional de Policía
A31: Dirección de Formación. Ministerio de Defensa Nacional

Sheet II-5.2.2
A1: OTRAS OFERTAS TERCIARIAS NO UNIVERSITARIAS | G1: MATRICULADOS
A3: Cuadro Nº II-5.2.2
A5: ESTUDIANTES INGRESADOS, MATRICULADOS Y EGRESADOS EN OTRAS OFERTAS DE NIVEL TERCIARIO NO UNIVERSITARIO POR SEXO SEGÚN INSTITUCIÓN Y CARRERA (Todo el país, 2017)
A6: INSTITUCION / CARRERA | B6: TOTAL | C6: INGRESADOS | E6: TOTAL | F6: MATRICULADOS | H6: TOTAL | I6: EGRESADOS
C7: SEXO | F7: SEXO | I7: SEXO
C8: V | D8: M | F8: V | G8: M | I8: V | J8: M
A10: EMAD Margarita Xirgu | B10: =C10+D10 -> 45 | C10: =C11+C12 -> 13 | D10: =D11+D12 -> 32 | E10: =F10+G10 -> 207 | F10: =F11+F12 -> 61 | G10: =G11+G12 -> 146 | H10: =I10+J10 -> 28 | I10: =I11+I12 -> 4 | J10: =J11+J12 -> 24
A11: Carrera de actuación | B11: =C11+D11 -> 24 | C11: 10 | D11: 14 | E11: =F11+G11 -> 106 | F11: 39 | G11: 67 | H11: =I11+J11 -> 12 | I11: 0 | J11: 12
A12: Carrera de diseño teatral | B12: =C12+D12 -> 21 | C12: 3 | D12: 18 | E12: =F12+G12 -> 101 | F12: 22 | G12: 79 | H12: =I12+J12 -> 16 | I12: 4 | J12: 12
A14: CETP (UTU) | B14: - | C14: - | D14: - | E14: =+F14+G14 -> 10025 | F14: =SUM(F15:F94) -> 5860 | G14: =SUM(G15:G94) -> 4165 | H14: - | I14: - | J14: -
A15: ADMINISTRACIÓN | B15: - | C15: - | D15: - | E15: =+F15+G15 -> 576 | F15: 149 | G15: 427 | H15: - | I15: - | J15: -
A16: AERONÁUTICA | B16: - | C16: - | D16: - | E16: 41 | F16: 38 | G16: 3 | H16: - | I16: - | J16: -
A17: AGRÓNICA ÉNFASIS AGRÍCOLA | B17: - | C17: - | D17: - | E17: 31 | F17: 30 | G17: 1 | H17: - | I17: - | J17: -
A18: AGRÓNICA ÉNFASIS FORESTAL | B18: - | C18: - | D18: - | E18: 20 | F18: 19 | G18: 1 | H18: - | I18: - | J18: -
A19: ANALISTA EN MARKETING | B19: - | C19: - | D19: - | E19: 101 | F19: 46 | G19: 55 | H19: - | I19: - | J19: -
A20: ÁREA ELECTROTECNIA ELECTRÓNICA | B20: - | C20: - | D20: - | E20: 196 | F20: 184 | G20: 12 | H20: - | I20: - | J20: -
A21: ÁREA OPTATIVA D. GRAFICO COM.VISUAL | B21: - | C21: - | D21: - | E21: 278 | F21: 103 | G21: 175 | H21: - | I21: - | J21: -
A22: ARTICULACIÓN TECNÓLOGO QUÍMICO | B22: - | C22: - | D22: - | E22: 77 | F22: 25 | G22: 52 | H22: - | I22: - | J22: -
A23: AUDIOVISUALES | B23: - | C23: - | D23: - | E23: 106 | F23: 64 | G23: 42 | H23: - | I23: - | J23: -
A24: AUTO TRÓNICA LAB. S. DE CONTROL | B24: - | C24: - | D24: - | E24: 51 | F24: 51 | G24: 0 | H24: - | I24: - | J24: -
A25: BIOTECNOLOGÍA INDUSTRIAL | B25: - | C25: - | D25: - | E25: 88 | F25: 30 | G25: 58 | H25: - | I25: - | J25: -
A26: COM. SOCIAL OP. PRENSA | B26: - | C26: - | D26: - | E26: 43 | F26: 16 | G26: 27 | H26: - | I26: - | J26: -
A27: COM. SOCIAL OP. RADIODIFUSIÓN | B27: - | C27: - | D27: - | E27: 77 | F27: 35 | G27: 42 | H27: - | I27: - | J27: -
A28: COM. SOCIAL OP. RR.PP. | B28: - | C28: - | D28: - | E28: 37 | F28: 13 | G28: 24 | H28: - | I28: - | J28: -
A29: COM. SOCIAL OP.TELEVISION | B29: - | C29: - | D29: - | E29: 38 | F29: 15 | G29: 23 | H29: - | I29: - | J29: -
A30: COM.SOCIAL OP. PUBLICIDAD | B30: - | C30: - | D30: - | E30: 40 | F30: 20 | G30: 20 | H30: - | I30: - | J30: -
A31: COMPONENTE OPCIONAL CTT LOGÍSTICA | B31: - | C31: - | D31: - | E31: 125 | F31: 43 | G31: 82 | H31: - | I31: - | J31: -
A32: CONSERV. GESTIÓN ÁREAS NATUR | B32: - | C32: - | D32: - | E32: 22 | F32: 6 | G32: 16 | H32: - | I32: - | J32: -
A33: CONSTRUCCIÓN | B33: - | C33: - | D33: - | E33: 85 | F33: 70 | G33: 15 | H33: - | I33: - | J33: -
A34: CONSTRUCCIÓN CICLO COMÚN | B34: - | C34: - | D34: - | E34: 143 | F34: 110 | G34: 33 | H34: - | I34: - | J34: -
A35: CONSTRUCCIÓN DE OBRA CIVIL | B35: - | C35: - | D35: - | E35: 36 | F35: 20 | G35: 16 | H35: - | I35: - | J35: -
A36: CONTROL AMBIENTAL | B36: - | C36: - | D36: - | E36: 298 | F36: 102 | G36: 196 | H36: - | I36: - | J36: -
A37: CORREDOR DE SEGUROS | B37: - | C37: - | D37: - | E37: 57 | F37: 33 | G37: 24 | H37: - | I37: - | J37: -
A38: D. I. T. CULTURALES S. | B38: - | C38: - | D38: - | E38: 14 | F38: 4 | G38: 10 | H38: - | I38: - | J38: -
A39: D. I. T. S. DE LA NATURALEZA | B39: - | C39: - | D39: - | E39: 9 | F39: 3 | G39: 6 | H39: - | I39: - | J39: -
A40: D. ITINERARIO TURÍSTICO SOSTENIBLE | B40: - | C40: - | D40: - | E40: 91 | F40: 29 | G40: 62 | H40: - | I40: - | J40: -
A41: DEPORTES NÁUTICOS | B41: - | C41: - | D41: - | E41: 42 | F41: 29 | G41: 13 | H41: - | I41: - | J41: -
A42: DISEÑO GRÁFICO EN COM. VISUAL | B42: - | C42: - | D42: - | E42: 352 | F42: 129 | G42: 223 | H42: - | I42: - | J42: -
A43: ELECTRÓNICA | B43: - | C43: - | D43: - | E43: 213 | F43: 205 | G43: 8 | H43: - | I43: - | J43: -
A44: ELECTROTECNIA | B44: - | C44: - | D44: - | E44: 764 | F44: 742 | G44: 22 | H44: - | I44: - | J44: -
A45: ENERGÍA EÓLICA | B45: - | C45: - | D45: - | E45: 8 | F45: 8 | G45: 0 | H45: - | I45: - | J45: -
A46: ENERGÍA SOLAR FOTOVOLTAICA | B46: - | C46: - | D46: - | E46: 7 | F46: 7 | G46: 0 | H46: - | I46: - | J46: -
A47: ENOLOGÍA MÓDULO ENOLÓGICO II | B47: - | C47: - | D47: - | E47: 3 | F47: 2 | G47: 1 | H47: - | I47: - | J47: -
A48: ENOLOGÍA MÓDULO VITIVINÍCOLA | B48: - | C48: - | D48: - | E48: 9 | F48: 5 | G48: 4 | H48: - | I48: - | J48: -
A49: FORESTAL | B49: - | C49: - | D49: - | E49: 25 | F49: 17 | G49: 8 | H49: - | I49: - | J49: -
A50: FORESTAL - BINACIONAL | B50: - | C50: - | D50: - | E50: 19 | F50: 11 | G50: 8 | H50: - | I50: - | J50: -
A51: GASTRONOMÍA - BINACIONAL | B51: - | C51: - | D51: - | E51: 45 | F51: 15 | G51: 30 | H51: - | I51: - | J51: -
A52: GESTIÓN DE ALOJAMIENTO | B52: - | C52: - | D52: - | E52: 31 | F52: 10 | G52: 21 | H52: - | I52: - | J52: -
A53: GESTIÓN EMPRESAS TURÍSTICAS | B53: - | C53: - | D53: - | E53: 58 | F53: 16 | G53: 42 | H53: - | I53: - | J53: -
A54: GESTIÓN EN DEPORTE Y RECREACIÓN | B54: - | C54: - | D54: - | E54: 26 | F54: 14 | G54: 12 | H54: - | I54: - | J54: -
A55: GESTIÓN HUMANA | B55: - | C55: - | D55: - | E55: 270 | F55: 68 | G55: 202 | H55: - | I55: - | J55: -
A56: INDUSTRIAS LÁCTEAS | B56: - | C56: - | D56: - | E56: 53 | F56: 34 | G56: 19 | H56: - | I56: - | J56: -
A57: INFOGRAFÍA DE ARQUITECTURA | B57: - | C57: - | D57: - | E57: 79 | F57: 37 | G57: 42 | H57: - | I57: - | J57: -
A58: INFORMÁTICA PARA INTERNET | B58: - | C58: - | D58: - | E58: 86 | F58: 61 | G58: 25 | H58: - | I58: - | J58: -
A59: INSTALACIONES ELÉCTRICAS | B59: - | C59: - | D59: - | E59: 95 | F59: 94 | G59: 1 | H59: - | I59: - | J59: -
A60: INSTALACIONES SANITARIAS | B60: - | C60: - | D60: - | E60: 14 | F60: 13 | G60: 1 | H60: - | I60: - | J60: -
A61: INSTRUMENTACIÓN Y CONTROL | B61: - | C61: - | D61: - | E61: 34 | F61: 34 | G61: 0 | H61: - | I61: - | J61: -
A62: LOGÍSTICA | B62: - | C62: - | D62: - | E62: 466 | F62: 234 | G62: 232 | H62: - | I62: - | J62: -
A63: LOGÍSTICA - BINACIONAL | B63: - | C63: - | D63: - | E63: 45 | F63: 13 | G63: 32 | H63: - | I63: - | J63: -
A64: MANTENIMIENTO MECÁNICO INDUSTRIAL | B64: - | C64: - | D64: - | E64: 87 | F64: 82 | G64: 5 | H64: - | I64: - | J64: -
A65: MAQUINISTA NAVAL | B65: - | C65: - | D65: - | E65: 164 | F65: 163 | G65: 1 | H65: - | I65: - | J65: -
A66: MECATRÓNICA | B66: - | C66: - | D66: - | E66: 32 | F66: 23 | G66: 9 | H66: - | I66: - | J66: -
A67: MECATRÓNICA - AUTOM. Y CONTROL | B67: - | C67: - | D67: - | E67: 9 | F67: 9 | G67: 0 | H67: - | I67: - | J67: -
A68: MECATRÓNICA - INT. AUT. Y CONTROL | B68: - | C68: - | D68: - | E68: 4 | F68: 4 | G68: 0 | H68: - | I68: - | J68: -
A69: MECATRÓNICA - MANT. ELECTROMECÁNICO | B69: - | C69: - | D69: - | E69: 7 | F69: 7 | G69: 0 | H69: - | I69: - | J69: -
A70: MOTORES DE COMBUSTIÓN INTERNA | B70: - | C70: - | D70: - | E70: 39 | F70: 39 | G70: 0 | H70: - | I70: - | J70: -
A71: OPERADOR INMOBILIARIO | B71: - | C71: - | D71: - | E71: 89 | F71: 57 | G71: 32 | H71: - | I71: - | J71: -
A72: ÓPTICO | B72: - | C72: - | D72: - | E72: 97 | F72: 45 | G72: 52 | H72: - | I72: - | J72: -
A73: ORGANIZACIÓN DE EVENTOS | B73: - | C73: - | D73: - | E73: 77 | F73: 17 | G73: 60 | H73: - | I73: - | J73: -
A74: PREVENCIONISTA | B74: - | C74: - | D74: - | E74: 1230 | F74: 660 | G74: 570 | H74: - | I74: - | J74: -
A75: PREVENCIONISTA SEMIPRESENCIAL | B75: - | C75: - | D75: - | E75: 344 | F75: 155 | G75: 189 | H75: - | I75: - | J75: -
A76: PREVENCIONISTA EN SEG.INDUSTRIAL | B76: - | C76: - | D76: - | E76: 155 | F76: 85 | G76: 70 | H76: - | I76: - | J76: -
A77: PRODUCCIÓN AGRÍCOLA GANADERA | B77: - | C77: - | D77: - | E77: 310 | F77: 221 | G77: 89 | H77: - | I77: - | J77: -
A78: PRODUCCIÓN AGROPECUARIA FAMILIAR | B78: - | C78: - | D78: - | E78: 18 | F78: 5 | G78: 13 | H78: - | I78: - | J78: -
A79: PRODUCTOS EN GEMAS | B79: - | C79: - | D79: - | E79: =+F79+G79 -> 8 | F79: 1 | G79: 7 | H79: - | I79: - | J79: -
A80: RECREACIÓN | B80: - | C80: - | D80: - | E80: 273 | F80: 108 | G80: 165 | H80: - | I80: - | J80: -
A81: REDES Y COMUNICACIONES ÓPTICAS | B81: - | C81: - | D81: - | E81: 46 | F81: 37 | G81: 9 | H81: - | I81: - | J81: -
A82: REDES Y SOFTWARE | B82: - | C82: - | D82: - | E82: 205 | F82: 185 | G82: 20 | H82: - | I82: - | J82: -
A83: REMATADOR | B83: - | C83: - | D83: - | E83: 81 | F83: 49 | G83: 32 | H83: - | I83: - | J83: -
A84: REMATADOR - OP. INMOBILIARIO | B84: - | C84: - | D84: - | E84: 139 | F84: 86 | G84: 53 | H84: - | I84: - | J84: -
A85: S. P. ARROZ PASTURAS - BINACIONAL | B85: - | C85: - | D85: - | E85: 16 | F85: 7 | G85: 9 | H85: - | I85: - | J85: -
A86: SECRETARIADO BILINGÜE - INGLES | B86: - | C86: - | D86: - | E86: 31 | F86: 7 | G86: 24 | H86: - | I86: - | J86: -
A87: SISTEMAS ENERGÍAS RENOVABLES | B87: - | C87: - | D87: - | E87: 73 | F87: 39 | G87: 34 | H87: - | I87: - | J87: -
A88: TÉCNICO EN COMUNICACIÓN SOCIAL | B88: - | C88: - | D88: - | E88: 311 | F88: 138 | G88: 173 | H88: - | I88: - | J88: -
A89: TECNÓLOGO CÁRNICO | B89: - | C89: - | D89: - | E89: 45 | F89: 28 | G89: 17 | H89: - | I89: - | J89: -
A90: TECNÓLOGO EN INFORMÁTICA | B90: - | C90: - | D90: - | E90: 428 | F90: 371 | G90: 57 | H90: - | I90: - | J90: -
A91: TECNÓLOGO MADERA | E91: 59 | F91: 39 | G91: 20
A92: TECNÓLOGO MECÁNICO | E92: 57 | F92: 55 | G92: 2
A93: TECNÓLOGO QUÍMICO | E93: 118 | F93: 36 | G93: 82
A94: TELECOMUNICACIONES | E94: 49 | F94: 46 | G94: 3
A95: Secretaría General EMAD | E95: 0

Sheet II-5.3.1
A1: OFERTAS TERCIARIAS NO UNIVERSITARIAS DEL ÁREA SEGURIDAD Y DEFENSA | E1: PERSONAL ACADÉMICO
A3: Cuadro Nº II-5.3.1
A5: PERSONAL ACADÉMICO DE NIVEL TERCIARIO NO UNIVERSITARIO DEL ÁREA SEGURIDAD Y DEFENSA POR CARGA HORARIA, SEXO, SEGÚN INSTITUCIÓN Y FORMACIÓN (Todo el país, 2017)
A6: INSTITUCIONES / FORMACIÓN | B6: TOTAL | C6: HORAS SEMANALES
C7: Total | D7: 20 horas o menos | F7: Total | G7: Entre 21 y 30 horas | I7: Total | J7: 31 horas y más
D8: SEXO | G8: SEXO | J8: SEXO
D9: V | E9: M | G9: V | H9: M | J9: V | K9: M
A10: TOTAL | B10: =C10+F10+I10 -> 265 | C10: =D10+E10 -> 261 | D10: =D12+D18+D24+D30 -> 206 | E10: =E12+E18+E24+E30 -> 55 | F10: =G10+H10 -> 4 | G10: =G12+G18+G24+G30 -> 0 | H10: =H12+H18+H24+H30 -> 4 | I10: =J10+K10 -> 0 | J10: =J12+J18+J24+J30 -> 0 | K10: =K12+K18+K24+K30 -> 0
A12: ESCUELA NAVAL | B12: =C12+F12+I12 -> 132 | C12: =D12+E12 -> 132 | D12: =SUM(D13:D16) -> 115 | E12: =SUM(E13:E16) -> 17 | F12: =G12+H12 -> 0 | G12: =SUM(G13:G16) -> 0 | H12: =SUM(H13:H16) -> 0 | I12: =J12+K12 -> 0 | J12: =SUM(J13:J16) -> 0 | K12: =SUM(K13:K16) -> 0
A13: Sin formación de grado completa | B13: =C13+F13+I13 -> 0 | C13: =D13+E13 -> 0 | D13: 0 | E13: 0 | F13: =G13+H13 -> 0 | G13: 0 | H13: 0 | I13: =J13+K13 -> 0 | J13: 0 | K13: 0
A14: Con formación de grado | B14: 122 | C14: =D14+E14 -> 122 | D14: 112 | E14: 10 | F14: =G14+H14 -> 0 | G14: 0 | H14: 0 | I14: =J14+K14 -> 0 | J14: 0 | K14: 0
A15: Con postgrado de especialización o maestría | B15: 1 | C15: =D15+E15 -> 1 | D15: 1 | E15: 0 | F15: 0 | G15: 0 | H15: 0 | I15: =J15+K15 -> 0 | J15: 0 | K15: 0
A16: Con doctorado | B16: 9 | C16: =D16+E16 -> 9 | D16: 2 | E16: 7 | F16: =G16+H16 -> 0 | G16: 0 | H16: 0 | I16: =J16+K16 -> 0 | J16: 0 | K16: 0
A18: ESCUELA NACIONAL DE POLICÍA | B18: =C18+F18+I18 -> 56 | C18: =D18+E18 -> 56 | D18: =SUM(D19:D22) -> 44 | E18: =SUM(E19:E22) -> 12 | F18: =G18+H18 -> 0 | G18: =SUM(G19:G22) -> 0 | H18: =SUM(H19:H22) -> 0 | I18: =J18+K18 -> 0 | J18: =SUM(J19:J22) -> 0 | K18: =SUM(K19:K22) -> 0
A19: Sin formación de grado completa | B19: =C19+F19+I19 -> 0 | C19: =D19+E19 -> 0 | D19: 0 | E19: 0 | F19: =G19+H19 -> 0 | G19: 0 | H19: 0 | I19: =J19+K19 -> 0 | J19: 0 | K19: 0
A20: Con formación de grado | B20: =C20+F20+I20 -> 52 | C20: =D20+E20 -> 52 | D20: 40 | E20: 12 | F20: =G20+H20 -> 0 | G20: 0 | H20: 0 | I20: =J20+K20 -> 0 | J20: 0 | K20: 0
A21: Con postgrado de especialización o maestría | B21: =C21+F21+I21 -> 1 | C21: =D21+E21 -> 1 | D21: 1 | E21: 0 | F21: =G21+H21 -> 0 | G21: 0 | H21: 0 | I21: =J21+K21 -> 0 | J21: 0 | K21: 0
A22: Con doctorado | B22: =C22+F22+I22 -> 3 | C22: =D22+E22 -> 3 | D22: 3 | E22: 0 | F22: =G22+H22 -> 0 | G22: 0 | H22: 0 | I22: =J22+K22 -> 0 | J22: 0 | K22: 0
A24: ESCUELA MILITAR | B24: =C24+F24+I24 -> 25 | C24: =D24+E24 -> 21 | D24: =SUM(D25:D28) -> 9 | E24: =SUM(E25:E28) -> 12 | F24: =G24+H24 -> 4 | G24: =SUM(G25:G28) -> 0 | H24: =SUM(H25:H28) -> 4 | I24: =J24+K24 -> 0 | J24: =SUM(J25:J28) -> 0 | K24: =SUM(K25:K28) -> 0
A25: Sin formación de grado completa | B25: =C25+F25+I25 -> 3 | C25: =D25+E25 -> 3 | D25: 1 | E25: 2 | F25: =G25+H25 -> 0 | G25: 0 | H25: 0 | I25: =J25+K25 -> 0 | J25: 0 | K25: 0
A26: Con formación de grado | B26: =C26+F26+I26 -> 16 | C26: =D26+E26 -> 13 | D26: 5 | E26: 8 | F26: =G26+H26 -> 3 | G26: 0 | H26: 3 | I26: =J26+K26 -> 0 | J26: 0 | K26: 0
A27: Con postgrado de especialización o maestría | B27: 3 | C27: 2 | D27: 1 | E27: 1 | F27: =G27+H27 -> 1 | G27: 0 | H27: 1 | I27: =J27+K27 -> 0 | J27: 0 | K27: 0
A28: Con doctorado | B28: 3 | C28: 3 | D28: 2 | E28: 1 | F28: =G28+H28 -> 0 | G28: 0 | H28: 0 | I28: =J28+K28 -> 0 | J28: 0 | K28: 0
A30: ESCUELA MILITAR DE AERONÁUTICA | B30: =C30+F30+I30 -> 52 | C30: =D30+E30 -> 52 | D30: =SUM(D31:D34) -> 38 | E30: =SUM(E31:E34) -> 14 | F30: =G30+H30 -> 0 | G30: =SUM(G31:G34) -> 0 | H30: =SUM(H31:H34) -> 0 | I30: =J30+K30 -> 0 | J30: =SUM(J31:J34) -> 0 | K30: =SUM(K31:K34) -> 0
A31: Sin formación de grado completa | B31: =C31+F31+I31 -> 0 | C31: =D31+E31 -> 0 | D31: 0 | E31: 0 | F31: =G31+H31 -> 0 | G31: 0 | H31: 0 | I31: =J31+K31 -> 0 | J31: 0 | K31: 0
A32: Con formación de grado | B32: 45 | C32: 45 | D32: 33 | E32: 12 | F32: 0 | G32: 0 | H32: 0 | I32: 0 | J32: 0 | K32: 0
A33: Con postgrado de especialización o maestría | B33: 7 | C33: 7 | D33: 5 | E33: 2 | F33: 0 | G33: 0 | H33: 0 | I33: 0 | J33: 0 | K33: 0
A34: Con doctorado | B34: 0 | C34: 0 | D34: 0 | E34: 0 | F34: 0 | G34: 0 | H34: 0 | I34: 0 | J34: 0 | K34: 0
A37: Fuentes: Escuela Nacional de Policía
A38: Dirección de Formación. Ministerio de Defensa Nacional

Sheet II-5.3.2
A1: OTRAS OFERTAS TERCIARIAS NO UNIVERSITARIAS | C1: PERSONAL ACADÉMICO
A3: Cuadro Nº II-5.3.2
A5: PERSONAL ACADÉMICO DE NIVEL TERCIARIO NO UNIVERSITARIO POR CARGA HORARIA SEMANAL, SEXO, SEGÚN INSTITUCIÓN Y FORMACIÓN (Todo el país, 2017)
A6: INSTITUCIONES / FORMACIÓN | B6: TOTAL | C6: HORAS SEMANALES
C7: Total | D7: 20 horas o menos | F7: Total | G7: Entre 21 y 30 horas | I7: Total | J7: 31 horas y más
D8: SEXO | G8: SEXO | J8: SEXO
D9: V | E9: M | G9: V | H9: M | J9: V | K9: M
A10: EMAD Margarita Xirgu | B10: =C10+F10+I10 -> 49 | C10: =D10+E10 -> 49 | D10: =SUM(D11:D14) -> 25 | E10: =SUM(E11:E14) -> 24 | F10: =G10+H10 -> 0 | G10: =SUM(G11:G14) -> 0 | H10: =SUM(H11:H14) -> 0 | I10: =J10+K10 -> 0 | J10: =SUM(J11:J14) -> 0 | K10: =SUM(K11:K14) -> 0
A11: Sin formación de grado completa | B11: =C11+F11+I11 -> 26 | C11: =D11+E11 -> 26 | D11: 14 | E11: 12 | F11: =G11+H11 -> 0 | G11: 0 | H11: 0 | I11: =J11+K11 -> 0 | J11: 0 | K11: 0
A12: Con formación de grado | B12: =C12+F12+I12 -> 22 | C12: =D12+E12 -> 22 | D12: 11 | E12: 11 | F12: =G12+H12 -> 0 | G12: 0 | H12: 0 | I12: =J12+K12 -> 0 | J12: 0 | K12: 0
A13: Con postgrado de especialización o maestría | B13: =C13+F13+I13 -> 0 | C13: 0 | D13: 0 | E13: 0 | F13: =G13+H13 -> 0 | G13: 0 | H13: 0 | I13: =J13+K13 -> 0 | J13: 0 | K13: 0
A14: Con doctorado | B14: 1 | C14: 1 | D14: 0 | E14: 1 | F14: =G14+H14 -> 0 | G14: 0 | H14: 0 | I14: =J14+K14 -> 0 | J14: 0 | K14: 0
A15: Fuente:
A16: Secretaría General - EMAD

Sheet FORMACIÓN EN EDUCACIÓN
A9: Cuadro II-6.1.1 | B9: MATRÍCULA Y PERSONAL DOCENTE SEGÚN GRANDES ÁREAS, DEPARTAMENTOS E INSTITUCIONES. (Todo el país, 2017).
A12: Cuadro II-6.2.1 | B12: ESTUDIANTES INGRESADOS, MATRICULADOS Y EGRESADOS EN FORMACIÓN EN EDUCACIÓN POR CARRERA SEGÚN DEPARTAMENTO Y ESTABLECIMIENTO. (Todo el país, 2017).
A13: Cuadro II-6.2.2 | B13: ESTUDIANTES INGRESADOS, MATRICULADOS Y EGRESADOS EN FORMACIÓN EN EDUCACIÓN POR SEXO SEGÚN INSTITUCIÓN Y CARRERA TERCIARIA NO UNIVERSITARIA. (Todo el país, 2017).
A17: Cuadro II-6.3.1 | B17: PERSONAL DOCENTE DE LOS INSTITUTOS DE FORMACIÓN EN EDUCACIÓN Y CANTIDAD DE HORAS POR INSTITUCIÓN Y DEPARTAMENTO. (Todo el país, 2017).
A18: Cuadro II-6.3.2 | B18: PERSONAL DOCENTE DE FORMACIÓN EN EDUCACIÓN POR CARGA HORARIA SEMANAL, SEXO, SEGÚN INSTITUCIÓN Y FORMACIÓN TERCIARIA NO UNIVERSITARIA. (Todo el país, 2017).
A19: Cuadro II-6.3.3 | B19: ESTUDIANTES INGRESADOS Y MATRICULADOS EN FORMACIÓN EN EDUCACIÓN SEGÚN ORIGEN GEOGRÁFICO. (Todo el país, 2017).
A33: =MID(B22,1,20) -> 

Sheet II-6.1.1
A1: ANEP - CONSEJO DE FORMACIÓN EN EDUCACIÓN | C1: INSTITUCIONES
A3: Cuadro Nº II-6.1.1
A5: MATRÍCULA Y PERSONAL DOCENTE SEGÚN GRANDES ÁREAS, DEPARTAMENTOS E INSTITUCIONES (Todo el país, 2017)
A6: GRANDES ÁREAS / DEPARTAMENTO / INSTITUCIÓN | B6: TOTAL | C6: DOCENTES
A11: TOTAL | B11: =+B13+B20 -> 24150 | C11: =+C13+C20 -> 2361
A13: MONTEVIDEO | B13: =SUM(B15:B18) -> 9181 | C13: =SUM(C15:C18) -> 697
A15: IINN | B15: 2141 | C15: 180
A16: IPA | B16: 5058 | C16: 318
A17: INET | B17: 1211 | C17: 139
A18: IFES | B18: 771 | C18: 60
A20: RESTO DEL PAÍS | B20: =SUM(B22:B39) -> 14969 | C20: =SUM(C22:C39) -> 1664
A22: Artigas | B22: 615 | C22: 50
A23: Canelones | B23: 2868 | C23: 277
A24: Cerro Largo | B24: 841 | C24: 59
A25: Colonia | B25: 1009 | C25: 146
A26: Durazno | B26: 407 | C26: 43
A27: Flores | B27: 197 | C27: 34
A28: Florida | B28: 746 | C28: 143
A29: Lavalleja | B29: 338 | C29: 41
A30: Maldonado | B30: 1266 | C30: 136
A31: Paysandú | B31: 888 | C31: 106
A32: Río Negro | B32: 228 | C32: 28
A33: Rivera | B33: 1411 | C33: 143
A34: Rocha | B34: 516 | C34: 44
A35: Salto | B35: 1426 | C35: 199
A36: San José | B36: 368 | C36: 39
A37: Soriano | B37: 343 | C37: 42
A38: Tacuarembó | B38: 927 | C38: 73
A39: Treinta y Tres | B39: 575 | C39: 61
A40: Fuente: División Estudiantil del CFE
A41: Notas: 1) Matrícula considerada como el número de personas inscriptas para cursar al menos una materia de las carreras que se ofrecen en el CFE. 2) A partir del año 2016, los estudiantes de Educador Social del IPA, pasan al nuevo Instutito de Formación en Educación Social (IFES)
A48: 3) Como docente se contabilizó a aquellos con horas de clase asignadas

Sheet II-6.2.1
A1: ANEP - CONSEJO DE FORMACIÓN EN EDUCACIÓN | I1: MATRICULADOS
A3: Cuadro Nº II-6.2.1
A5: ESTUDIANTES INGRESADOS, MATRICULADOS Y EGRESADOS EN FORMACIÓN EN EDUCACIÓN POR CARRERA SEGÚN DEPARTAMENTO Y ESTABLECIMIENTO (Todo el país, 2017)
A6: DEPARTAMENTO / ESTABLECIMIENTO | C6: TOTAL | F6: CARRERA
F7: Magisterio | I7: Profesorado | L7: Educador Social | O7: Asistente técnico en Primera Infancia
C9: Ingr. | D9: Matr. | E9: Egr. | F9: Ingr. | G9: Matr. | H9: Egr. | I9: Ingr. | J9: Matr. | K9: Egr. | L9: Ingr. | M9: Matr. | N9: Egr. | O9: Ingr. | P9: Matr. | Q9: Egr.
A11: TOTAL | C11: =SUM(C14:C19) -> 8165 | D11: =G11+J11+M11+P11 -> 24150 | E11: =E13+E19 -> 1773 | F11: =+F13+F19 -> 2737 | G11: =+G13+G19 -> 7579 | H11: =H13+H19 -> 712 | I11: =+I13+I19 -> 4915 | J11: =+J13+J19 -> 14521 | K11: =K13+K19 -> 786 | L11: =+L13+L19 -> 513 | M11: =+M13+M19 -> 1516 | N11: =N13+N19 -> 18 | O11: =+O13+O19 -> 0 | P11: =+P13+P19 -> 534 | Q11: =Q13+Q19 -> 257
A13: MONTEVIDEO | C13: =F13+I13+L13+O13 -> 2978 | D13: =G13+J13+M13+P13 -> 9181 | E13: =H13+K13+N13+Q13 -> 462 | F13: =SUM(F14:F18) -> 648 | G13: 2024 | H13: =SUM(H14:H18) -> 91 | I13: 2061 | J13: 6269 | K13: =SUM(K14:K18) -> 306 | L13: 269 | M13: 771 | N13: =SUM(N14:N18) -> 4 | O13: =SUM(O14:O17) -> 0 | P13: =SUM(P14:P18) -> 117 | Q13: 61
A14: IINN | C14: =F14+I14+L14 -> 648 | D14: =G14+J14+M14+P14 -> 2141 | E14: =H14+K14+N14+Q13 -> 159 | F14: 648 | G14: 2024 | H14: 78 | I14: N/C | J14: N/C | K14: 20 | L14: N/C | M14: N/C | N14: N/C | O14: N/C | P14: 117 | Q14: 61
A15: IPA | C15: =F15+I15+L15 -> 1636 | D15: 5058 | E15: =H15+K15+N15+Q15 -> 243 | F15: N/C | G15: N/C | H15: N/C | I15: 1636 | J15: 5058 | K15: 243 | L15: N/C | M15: N/C | N15: N/C | O15: N/C | P15: N/C | Q15: N/C
A16: UM | C16: =F16+I16+L16 -> 0 | D16: 0 | E16: 25 | F16: S/D | G16: S/D | H16: 12 | I16: S/D | J16: S/D | K16: 13 | L16: N/C | M16: N/C | N16: N/C | O16: N/C | P16: N/C | Q16: N/C
A17: INET | C17: =F17+I17+L17 -> 425 | D17: 1211 | E17: 30 | F17: N/C | G17: N/C | H17: N/C | I17: 425 | J17: 1211 | K17: 30 | L17: N/C | M17: N/C | N17: N/C | O17: N/C | P17: N/C | Q17: N/C
A18: IFES | C18: =F18+I18+L18 -> 269 | D18: 771 | E18: 5 | F18: N/C | G18: N/C | H18: 1 | I18: N/C | J18: N/C | K18: 0 | L18: 269 | M18: 771 | N18: 4 | O18: N/C | P18: N/C | Q18: N/C
A19: RESTO DEL PAÍS | C19: =C20+C21+C28+C29+C34+C33+C35+C38+C39+C42+C43+C44+C47+C48+C51+C52+C53+C54 -> 5187 | D19: =D20+D21+D28+D29+D34+D33+D35+D38+D39+D42+D43+D44+D47+D48+D51+D52+D53+D54 -> 14969 | E19: =H19+K19+N19+Q19 -> 1311 | F19: =F20+F21+F28+F29+F34+F33+F35+F38+F39+F42+F43+F44+F47+F48+F51+F52+F53+F54 -> 2089 | G19: 5555 | H19: 621 | I19: 2854 | J19: 8252 | K19: 480 | L19: 244 | M19: 745 | N19: 14 | O19: 0 | P19: 417 | Q19: 196
A20: Artigas Artigas | C20: =F20+I20+L20+O20 -> 266 | D20: =G20+J20+M20+P20 -> 615 | E20: 49 | F20: 159 | G20: 406 | H20: 34 | I20: 107 | J20: 209 | K20: 7 | L20: S/D | M20: S/D | N20: 8 | O20: S/D | P20: S/D | Q20: S/D
A21: Canelones | C21: =F21+I21+L21+O21 -> 934 | D21: 2868 | F21: =SUM(F22:F27) -> 428 | G21: =SUM(G22:G27) -> 1095 | H21: =SUM(H22:H27) -> 121 | I21: =SUM(I22:I27) -> 458 | J21: =SUM(J22:J27) -> 1460 | K21: =K22+K23+K24+K25+K26+K27 -> 71 | L21: =L22+L23+L24+L25+L26+L27 -> 48 | M21: =M22 -> 153 | N21: =N22 -> 1 | O21: S/D | P21: =SUM(P22:P27) -> 160 | Q21: =SUM(Q22:Q27) -> 40
A22: Canelones | C22: =F22+I22+L22+O22 -> 223 | D22: 699 | E22: =H22+K22+N22+Q22 -> 49 | F22: 74 | G22: 247 | H22: 36 | I22: 101 | J22: 299 | K22: 12 | L22: 48 | M22: 153 | N22: 1 | O22: S/D | P22: S/D | Q22: S/D
A23: De la Costa | C23: 247 | D23: 764 | E23: =H23+K23+N23+Q23 -> 42 | F23: 169 | G23: 356 | H23: 22 | I23: 78 | J23: 294 | K23: 7 | L23: S/D | M23: S/D | N23: S/D | O23: S/D | P23: 114 | Q23: 13
A24: Pando | C24: 258 | D24: 673 | E24: =H24+K24+N24+Q24 -> 67 | F24: 161 | G24: 378 | H24: 35 | I24: 97 | J24: 249 | K24: 9 | L24: S/D | M24: S/D | N24: S/D | O24: S/D | P24: 46 | Q24: 23
A25: San Ramón | C25: 52 | D25: 216 | E25: =H25+K25+N25+Q25 -> 19 | F25: 24 | G25: 114 | H25: 19 | I25: 28 | J25: 102 | K25: 0 | L25: S/D | M25: S/D | N25: S/D | O25: S/D | P25: S/D | Q25: S/D
A26: María Auxiliadora | C26: 0 | D26: 0 | E26: S/D | H26: 9 | K26: 0 | Q26: 4
A27: Cerp Sur- Atlántida | C27: 154 | D27: 516 | E27: 43 | F27: N/C | G27: N/C | H27: N/C | I27: 154 | J27: 516 | K27: 43 | L27: S/D | M27: S/D | N27: S/D | O27: S/D | P27: S/D | Q27: S/D
A28: Cerro Largo Melo | C28: 288 | D28: 841 | E28: =H28+K28+N28+Q28 -> 56 | F28: 80 | G28: 283 | H28: 40 | I28: 208 | J28: 558 | K28: 16 | L28: S/D | M28: S/D | N28: S/D | O28: S/D | P28: S/D | Q28: S/D
A29: Colonia | C29: =F29+I29+L29+O29 -> 362 | D29: 1009 | E29: N/C | F29: =SUM(F30:F32) -> 143 | G29: =SUM(G30:G32) -> 302 | H29: =H30+H31+H32 -> 27 | I29: =I30+I31+I32 -> 219 | J29: =SUM(J30:J32) -> 707 | K29: =K30+K31+K32 -> 35 | L29: S/D | M29: S/D | N29: S/D | O29: S/D | P29: S/D | Q29: S/D
A30: Colonia | C30: =F30+I30+L30+O30 -> 123 | D30: 392 | E30: =H30+K30+M30+N30+Q30 -> 28 | F30: N/C | G30: N/C | H30: N/C | I30: 123 | J30: 392 | K30: 28 | L30: S/D | M30: S/D | N30: S/D | O30: S/D | P30: S/D | Q30: S/D
A31: Carmelo | C31: 79 | D31: 338 | E31: =H31+K31+N31+Q31 -> 16 | F31: 23 | G31: 111 | H31: 12 | I31: 56 | J31: 227 | K31: 4 | L31: S/D | M31: S/D | N31: S/D | O31: S/D | P31: S/D | Q31: S/D
A32: Rosario | C32: 160 | D32: 279 | E32: =H32+K32+N32+Q32 -> 18 | F32: 120 | G32: 191 | H32: 15 | I32: 40 | J32: 88 | K32: 3 | L32: S/D | M32: S/D | N32: S/D | O32: S/D | P32: S/D | Q32: S/D
A33: Durazno Durazno | C33: 136 | D33: 407 | E33: =H33+K33+N33+Q33 -> 25 | F33: 61 | G33: 203 | H33: 20 | I33: 75 | J33: 204 | K33: 5 | L33: S/D | M33: S/D | N33: S/D | O33: S/D | P33: S/D | Q33: S/D
A34: Flores Trinidad | C34: 80 | D34: 197 | E34: 10 | F34: 26 | G34: 70 | H34: 9 | I34: 54 | J34: 127 | K34: 1 | L34: S/D | M34: S/D | N34: S/D | O34: S/D | P34: S/D | Q34: S/D
A35: Florida | C35: =F35+I35+L35+O35 -> 263 | D35: 746 | E35: N/C | F35: =SUM(F36:F37) -> 109 | G35: =SUM(G36:G37) -> 276 | H35: =SUM(H36:H37) -> 37 | I35: =I36+I37 -> 154 | J35: =J36+J37 -> 437 | K35: =K36+K37 -> 49 | L35: S/D | M35: S/D | N35: S/D | O35: S/D | P35: =P36+P37 -> 33 | Q35: =Q36+Q37 -> 33
A36: Florida | C36: 109 | D36: 321 | E36: 77 | F36: 109 | G36: 276 | H36: 37 | I36: S/D | J36: 12 | K36: 7 | L36: S/D | M36: S/D | N36: S/D | O36: S/D | P36: 33 | Q36: 33
A37: Cerp Centro - Florida | C37: 154 | D37: 425 | E37: 42 | F37: N/C | G37: N/C | H37: N/C | I37: 154 | J37: 425 | K37: 42 | L37: S/D | M37: S/D | N37: S/D | O37: S/D | P37: S/D | Q37: S/D
A38: Lavalleja Minas | C38: 103 | D38: 338 | E38: 41 | F38: 59 | G38: 170 | H38: 35 | I38: 44 | J38: 168 | K38: 6 | L38: S/D | M38: S/D | N38: S/D | O38: S/D | P38: S/D | Q38: S/D
A39: Maldonado | C39: =F39+I39+L39+O39 -> 421 | D39: 1266 | E39: N/C | F39: =SUM(F40:F41) -> 103 | G39: =SUM(G40:G41) -> 366 | H39: =SUM(H40:H41) -> 52 | I39: =SUM(I40:I41) -> 265 | J39: =J40+J41 -> 722 | K39: =K40+K41 -> 60 | L39: =L40+L41 -> 53 | M39: =M41 -> 178 | N39: =N40+N41 -> 2 | O39: S/D | P39: S/D | Q39: S/D
A40: Maldonado | C40: 110 | D40: 385 | E40: =H40+K40+M40+Q40 -> 54 | F40: 103 | G40: 366 | H40: 52 | I40: 7 | J40: 19 | K40: 2 | L40: S/D | M40: S/D | N40: 0 | O40: S/D | P40: S/D | Q40: S/D
A41: Cerp Este | C41: 311 | D41: 881 | E41: =H41+K41+N41+Q41 -> 60 | F41: N/C | G41: N/C | H41: N/C | I41: 258 | J41: 703 | K41: 58 | L41: 53 | M41: 178 | N41: 2 | O41: S/D | P41: S/D | Q41: S/D
A42: Paysandú Paysandú | C42: 337 | D42: 888 | E42: 105 | F42: 205 | G42: 447 | H42: 44 | I42: 93 | J42: 241 | K42: 20 | L42: 39 | M42: 134 | N42: 3 | O42: S/D | P42: 66 | Q42: 38
A43: Río Negro Fray Bentos | C43: 77 | D43: 228 | E43: 17 | F43: 24 | G43: 79 | H43: 13 | I43: 53 | J43: 149 | K43: 4 | L43: S/D | M43: S/D | N43: S/D | O43: S/D | P43: S/D | Q43: S/D
A44: Rivera | C44: 486 | D44: 1411 | E44: N/C | F44: =SUM(F45:F46) -> 94 | G44: =SUM(G45:G46) -> 332 | H44: =SUM(H45:H46) -> 47 | I44: =SUM(I45:I46) -> 288 | J44: =J45+J46 -> 848 | K44: =K45+K46 -> 75 | L44: =L45+L46 -> 104 | M44: =M45+M46 -> 231 | N44: S/D | O44: S/D | P44: S/D | Q44: S/D
A45: Rivera | C45: 251 | D45: 702 | E45: 53 | F45: 94 | G45: 332 | H45: 47 | I45: 53 | J45: 139 | K45: 6 | L45: 104 | M45: 231 | N45: S/D | O45: S/D | P45: S/D | Q45: S/D
A46: Cerp Norte | C46: 235 | D46: 709 | E46: 69 | F46: N/C | G46: N/C | H46: N/C | I46: 235 | J46: 709 | K46: 69 | L46: S/D | M46: S/D | N46: S/D | O46: S/D | P46: S/D | Q46: S/D
A47: Rocha Rocha | C47: 182 | D47: 516 | E47: 56 | F47: 96 | G47: 194 | H47: 12 | I47: 86 | J47: 264 | K47: 10 | L47: S/D | M47: S/D | N47: S/D | O47: S/D | P47: 58 | Q47: 34
A48: Salto | C48: 536 | D48: 1426 | E48: N/C | F48: =SUM(F49:F50) -> 180 | G48: =SUM(G49:G50) -> 516 | H48: =SUM(H49:H50) -> 44 | I48: =I49+I50 -> 356 | J48: =J49+J50 -> 910 | K48: =K49+K50 -> 61 | L48: S/D | M48: S/D | N48: S/D | O48: S/D | P48: S/D | Q48: S/D
A49: Salto | C49: 181 | D49: 517 | E49: =H49+K49+N49+Q49 -> 49 | F49: 180 | G49: 516 | H49: 44 | I49: 1 | J49: 1 | K49: 5 | L49: S/D | M49: S/D | N49: S/D | O49: S/D | P49: S/D | Q49: S/D
A50: Cerp Salto | C50: 355 | D50: 909 | E50: =H50+K50+N50+Q50 -> 56 | F50: N/C | G50: N/C | H50: N/C | I50: 355 | J50: 909 | K50: 56 | L50: S/D | M50: S/D | N50: S/D | O50: S/D | P50: S/D | Q50: S/D
A51: San José San José | C51: 135 | D51: 368 | E51: =H51+K51+N51+Q51 -> 32 | F51: 53 | G51: 136 | H51: 21 | I51: 82 | J51: 232 | K51: 11 | L51: S/D | M51: S/D | N51: S/D | O51: S/D | P51: S/D | Q51: S/D
A52: Soriano Mercedes | C52: 134 | D52: 343 | E52: =H52+K52+N52+Q52 -> 29 | F52: 37 | G52: 149 | H52: 22 | I52: 97 | J52: 194 | K52: 7 | L52: S/D | M52: S/D | N52: S/D | O52: S/D | P52: S/D | Q52: S/D
A53: Tacuarembó Tacuarembó | C53: 304 | D53: 927 | E53: 99 | F53: 184 | G53: 337 | H53: 24 | I53: 120 | J53: 490 | K53: 24 | L53: S/D | M53: S/D | N53: S/D | O53: S/D | P53: 100 | Q53: 51
A54: Treinta y Tres Treinta y Tres | C54: 143 | D54: 575 | E54: =H54+K54+N54+Q54 -> 37 | F54: 48 | G54: 194 | H54: 19 | I54: 95 | J54: 332 | K54: 18 | L54: S/D | M54: 49 | N54: S/D | O54: S/D | P54: S/D | Q54: S/D
A55: Fuente: Informática - DFPD
A56: Nota: No se dispone de datos de ingreso.
A57: Matrícula considerada como el número de personas inscriptas para cursar al menos una materia de las carreras que se ofrecen en el CFE.
A58: Los matriculados en Profesorado del INET corresponden tanto al profesorado de Informática como a Maestros Técnicos.
A59: La categoría profesora incluye a los maestros y profesores técnicos y a las certificaciones en lenguas extranejeras
A60: El I.F.E.S. es el Instituto de Formación en Educación Social

Sheet II-6.2.2
A1: OTRAS TERCIARIAS NO UNIVERSITARIAS | G1: MATRICULADOS
A3: Cuadro Nº II-6.2.2
A5: ESTUDIANTES INGRESADOS, MATRICULADOS Y EGRESADOS EN FORMACIÓN EN EDUCACIÓN POR SEXO SEGÚN INSTITUCIÓN Y CARRERA (Todo el país, 2017)
A6: INSTITUCION / CARRERA | B6: TOTAL | C6: INGRESADOS | E6: TOTAL | F6: MATRICULADOS | H6: TOTAL | I6: EGRESADOS
C7: SEXO | F7: SEXO | I7: SEXO
C8: V | D8: M | F8: V | G8: M | I8: V | J8: M
A10: INAU – CENFORES | B10: =SUM(C10:D10) -> 110 | C10: =+C11 -> 1 | D10: =+D11 -> 109 | E10: 228 | F10: 2 | G10: 226 | H10: 18 | I10: 0 | J10: 18
A11: Educador en Primera Infancia (0 a 3 años) | B11: =SUM(C11:D11) -> 110 | C11: 1 | D11: 109 | E11: =SUM(F11:G11) -> 228 | F11: 2 | G11: 226 | H11: =SUM(I11:J11) -> 18 | I11: 0 | J11: 18
A12: Fuente:
A13: CEN.FOR.ES - I.N.A.U.
A14: Nota: Se quitó C.I.E.P ya que no dictó cursos de Educación Terciaria

Sheet II-6.3.1
A1: ANEP - CONSEJO DE FORMACIÓN EN EDUCACIÓN | D1: FUNCIONARIOS
A3: Cuadro Nº II-6.3.1
A5: PERSONAL DOCENTE DE LOS INSTITUTOS DE FORMACIÓN EN EDUCACIÓN Y CANTIDAD DE HORAS POR INSTITUCIÓN Y DEPARTAMENTO (Todo el país, 2017)
A6: DEPARTAMENTO / ESTABLECIMIENTO
B8: Cantidad de Docentes | C8: Cantidad de Horas
A9: TOTAL | B9: =B11+B17 -> 2361 | C9: =C11+C17 -> 0
A11: MONTEVIDEO | B11: =B12+B13+B14+B15 -> 697 | C11: 0
A12: IINN | B12: 180 | C12: s/d
A13: IPA | B13: 318 | C13: s/d
A14: INET | B14: 139 | C14: s/d
A15: IFES | B15: 60 | C15: s/d
A17: RESTO DEL PAÍS | B17: =B18+B19+B25+B26+B30+B31+B32+B35+B36+B39+B40+B41+B44+B45+B48+B49+B50+B51 -> 1664 | C17: 0
A18: Artigas | B18: 50 | C18: s/d
A19: Canelones | B19: =SUM(B20:B24) -> 277 | C19: s/d
A20: IFD Canelones | B20: 62 | C20: s/d
A21: IFD de la Costa | B21: 45 | C21: s/d
A22: IFD Pando | B22: 65 | C22: s/d
A23: IFD San Ramón | B23: 30 | C23: s/d
A24: CERP del Sur | B24: 75 | C24: s/d
A25: Cerro Largo | B25: 59 | C25: s/d
A26: Colonia | B26: =SUM(B27:B29) -> 146 | C26: s/d
A27: IFD Carmelo | B27: 33 | C27: s/d
A28: IFD Rosario | B28: 35 | C28: s/d
A29: CERP del Suroeste | B29: 78 | C29: s/d
A30: Durazno | B30: 43 | C30: s/d
A31: Flores | B31: 34 | C31: s/d
A32: Florida | B32: =B33+B34 -> 143 | C32: s/d
A33: IFD Florida | B33: 53 | C33: s/d
A34: CERP del Centro | B34: 90 | C34: s/d
A35: Lavalleja | B35: 41 | C35: s/d
A36: Maldonado | B36: =B37+B38 -> 136 | C36: s/d
A37: IFD Maldonado | B37: 44 | C37: s/d
A38: CERP del Centro | B38: 92 | C38: s/d
A39: Paysandú | B39: 106 | C39: s/d
A40: Río Negro | B40: 28 | C40: s/d
A41: Rivera | B41: =B42+B43 -> 143 | C41: s/d
A42: IFD Rivera | B42: 64 | C42: s/d
A43: CERP del Norte | B43: 79 | C43: s/d
A44: Rocha | B44: 44 | C44: s/d
A45: Salto | B45: =B46+B47 -> 199 | C45: s/d
A46: IFD Salto | B46: 53 | C46: s/d
A47: CERP del Litoral | B47: 146 | C47: s/d
A48: San José | B48: 39 | C48: s/d
A49: Soriano | B49: 42 | C49: s/d
A50: Tacuarembó | B50: 73 | C50: s/d
A51: Treinta y Tres | B51: 61 | C51: s/d
A52: Fuente: Contralor Docente - CFE.
A53: Nota: Como docente se contabilizó a aquellos con horas de clase asignadas

Sheet II-6.3.2
A1: OTRAS TERCIARIAS NO UNIVERSITARIAS | C1: PERSONAL ACADÉMICO
A3: Cuadro Nº II-6.3.2
A5: PERSONAL DOCENTE DE FORMACIÓN EN EDUCACIÓN POR CARGA HORARIA SEMANAL, SEXO, SEGÚN INSTITUCIÓN Y FORMACIÓN (Todo el país, 2017)
A6: INSTITUCIONES / FORMACIÓN | B6: TOTAL | C6: HORAS SEMANALES
C7: Total | D7: 20 horas o menos | F7: Total | G7: Entre 21 y 30 horas | I7: Total | J7: 31 horas y más
D8: SEXO | G8: SEXO | J8: SEXO
D9: M | E9: F | G9: M | H9: F | J9: M | K9: F
A10: CENFORES -INAU | B10: =C10+F10+I10 -> 48 | C10: =D10+E10 -> 48 | D10: =SUM(D11:D14) -> 6 | E10: =SUM(E11:E14) -> 42 | F10: =G10+H10 -> 0 | G10: =SUM(G11:G14) -> 0 | H10: =SUM(H11:H14) -> 0 | I10: =J10+K10 -> 0 | J10: =SUM(J11:J14) -> 0 | K10: =SUM(K11:K14) -> 0
A11: Sin formación de grado completa | B11: =C11+F11+I11 -> 0 | C11: =D11+E11 -> 0 | D11: 0 | E11: 0 | F11: =G11+H11 -> 0 | G11: 0 | H11: 0 | I11: =J11+K11 -> 0 | J11: 0 | K11: 0
A12: Con formación de grado (incluye formación docente) | B12: 48 | C12: =D12+E12 -> 48 | D12: 6 | E12: 42 | F12: =G12+H12 -> 0 | G12: 0 | H12: 0 | I12: =J12+K12 -> 0 | J12: 0 | K12: 0
A13: Con posgrado de especialización o maestría | B13: 0 | C13: =D13+E13 -> 0 | D13: 0 | E13: 0 | F13: =G13+H13 -> 0 | G13: 0 | H13: 0 | I13: =J13+K13 -> 0 | J13: 0 | K13: 0
A14: Con doctorado | B14: 0 | C14: =D14+E14 -> 0 | D14: 0 | E14: 0 | F14: =G14+H14 -> 0 | G14: 0 | H14: 0 | I14: =J14+K14 -> 0 | J14: 0 | K14: 0
A15: Fuente: CENFORES - INAU
A16: Nota: Se quitó C.I.E.P ya que no dictó cursos de Educación Terciaria

Sheet II-6.3.3
A1: ANEP - CONSEJO DE FORMACIÓN EN EDUCACIÓN | D1: MATRICULADOS
A3: Cuadro Nº II-6.3.3
A5: ESTUDIANTES INGRESADOS Y MATRICULADOS EN FORMACIÓN EN EDUCACIÓN SEGÚN ORIGEN GEOGRÁFICO (Todo el país, 2017)
A6: DEPARTAMENTO DONDE CURSÓ EL ÚLTIMO AÑO LICEAL | B6: ESTUDIANTES INGRESADOS | C6: ESTUDIANTES MATRICULADOS
A8: TOTAL | B8: =SUM(B9:B27) -> 8165 | C8: =SUM(C9:C27) -> 24150
A9: Montevideo | B9: 2978 | C9: 9181
A10: Artigas | B10: 266 | C10: 615
A11: Canelones | B11: 934 | C11: 2868
A12: Cerro Largo | B12: 288 | C12: 841
A13: Colonia | B13: 362 | C13: 1009
A14: Durazno | B14: 136 | C14: 407
A15: Flores | B15: 80 | C15: 197
A16: Florida | B16: 263 | C16: 746
A17: Lavalleja | B17: 103 | C17: 338
A18: Maldonado | B18: 421 | C18: 1266
A19: Paysandú | B19: 337 | C19: 888
A20: Río Negro | B20: 77 | C20: 228
A21: Rivera | B21: 486 | C21: 1411
A22: Rocha | B22: 182 | C22: 516
A23: Salto | B23: 536 | C23: 1426
A24: San José | B24: 135 | C24: 368
A25: Soriano | B25: 134 | C25: 343
A26: Tacuarembó | B26: 304 | C26: 927
A27: Treinta y Tres | B27: 143 | C27: 575
A28: Fuente: Institutos de Formación Docente

Sheet EDUCACIÓN UNIVERSITARIA
A8: Cuadro II-7.1.1 | B8: ESTUDIANTES INGRESADOS, MATRICULADOS Y EGRESADOS EN PROGRAMAS DE GRADO POR SEXO SEGÚN GRANDES ÁREAS, DEPARTAMENTO E INSTITUCIÓN. (Todo el país, 2017).
A9: Cuadro II-7.1.2 | B9: ESTUDIANTES INGRESADOS, MATRICULADOS Y EGRESADOS EN PROGRAMAS DE POSTGRADO POR SEXO SEGÚN INSTITUCIÓN (Todo el país, 2017).
A12: Cuadro II-7.2.1 | B12: UNIVERSIDADES PÚBLICAS: ESTUDIANTES INGRESADOS A CARRERAS 2017 Y EGRESADOS PRELIMINARES 2017 EN PROGRAMAS DE GRADO POR SEXO, SEGÚN SERVICIO UNIVERSITARIO Y CARRERA. (Todo el país, 2017).
A13: Cuadro II-7.2.2 | B13: ESTUDIANTES INGRESADOS, MATRICULADOS Y EGRESADOS EN PROGRAMAS DE GRADO EN UNIVERSIDADES PRIVADAS POR SEXO SEGÚN UNIVERSIDAD Y CARRERA (Todo el país, 2017).
A14: Cuadro II-7.2.3 | B14: ESTUDIANTES INGRESADOS, MATRICULADOS Y EGRESADOS EN PROGRAMAS DE GRADO DE INSTITUTOS UNIVERSITARIOS Y OFERTAS UNIVERSITARIAS DEL ÁREA SEGURIDAD Y DEFENSA POR SEXO SEGÚN INSTITUCIÓN Y CARRERA (Todo el país, 2017).
A15: Cuadro II-7.2.4 | B15: ESTUDIANTES INGRESADOS Y MATRICULADOS DE GRADO EN UNIVERSIDADES E INSTITUTOS UNIVERSITARIOS, SEGÚN INSTITUCIÓN Y LUGAR DE ORIGEN (Todo el país, 2017).
A16: Cuadro II-7.2.5 | B16: ESTUDIANTES INGRESADOS 2017 Y EGRESADOS PRELIMINARES 2017 EN PROGRAMAS DE POSTGRADO DE LA UNIVERSIDAD DE LA REPÚBLICA POR SEXO SEGÚN SERVICIO UNIVERSITARIO Y ACREDITACIÓN (Todo el país, 2017).
A17: Cuadro II-7.2.6 | B17: ESTUDIANTES INGRESADOS, MATRICULADOS Y EGRESADOS EN PROGRAMAS DE POSTGRADO DE UNIVERSIDADES PRIVADAS POR SEXO SEGÚN UNIVERSIDAD Y ACREDITACIÓN (Todo el país, 2017).
A18: Cuadro II-7.2.7 | B18: ESTUDIANTES INGRESADOS, MATRICULADOS Y EGRESADOS EN PROGRAMAS DE POSTGRADO DE INSTITUTOS UNIVERSITARIOS POR SEXO SEGÚN INSTITUTO UNIVERSITARIO Y ACREDITACIÓN (Todo el país, 2017).
A19: Cuadro II-7.2.8 | B19: EVOLUCIÓN DE LA MATRÍCULA DE LAS INSTITUCIONES UNIVERSITARIAS (Todo el país, 2000 – 2017).
A21: Cuadro II-7.3.1 | B21: PERSONAL DOCENTE Y NO DOCENTE DE INSTITUCIONES UNIVERSITARIAS PÚBLICAS Y PRIVADAS EXPRESADAS EN POSICIONES FUNCIONALES POR CARGA HORARIA SEMANAL SEGÚN INSTITUCIÓN, ACTIVIDAD Y SEXO (Todo el país, 2017).
A62: =MID(B50,1,20) -> 

Sheet II-7.1.1
A1: OFERTA UNIVERSITARIA DE GRADO | D1: INSTITUCIONES
A3: Cuadro Nº II-7.1.1
A5: ESTUDIANTES INGRESADOS, MATRICULADOS Y EGRESADOS EN PROGRAMAS DE GRADO POR SEXO SEGÚN GRANDES ÁREAS, DEPARTAMENTO E INSTITUCIÓN (Todo el país, 2017)
A6: GRANDES ÁREAS / DEPARTAMENTO / INSTITUCIÓN | B6: TOTAL | C6: INGRESO | E6: TOTAL | F6: MATRÍCULA | H6: TOTAL | I6: EGRESADOS
C7: SEXO | F7: SEXO | I7: SEXO
C8: V | D8: M | F8: V | G8: M | I8: V | J8: M
A9: TOTAL PAÍS | B9: =+C9+D9 -> 32665 | C9: =+C13+C28 -> 13029 | D9: =+D13+D28 -> 19636 | E9: =+F9+G9 -> 22912 | F9: =+F13+F28 -> 11668 | G9: =+G13+G28 -> 11244 | H9: =+I9+J9 -> 8825 | I9: =+I13+I28 -> 3201 | J9: =+J13+J28 -> 5624
A10: PÚBLICO | B10: =+C10+D10 -> 28926 | C10: =C14+C29 -> 11148 | D10: =D14+D29 -> 17778 | E10: =+F10+G10 -> 721 | F10: =F14+F29 -> 498 | G10: =G14+G29 -> 223 | H10: =+I10+J10 -> 6392 | I10: =I14+I29 -> 2113 | J10: =J14+J29 -> 4279
A11: PRIVADO | B11: 3739 | C11: =C15+C30 -> 1881 | D11: =D15+D30 -> 1858 | E11: 22191 | F11: =F15+F30 -> 11170 | G11: =G15+G30 -> 11021 | H11: 2433 | I11: =I15+I30 -> 1088 | J11: =J15+J30 -> 1345
A13: MONTEVIDEO | B13: =SUM(C13:D13) -> 28678 | C13: =C14+C15 -> 11295 | D13: =D14+D15 -> 17383 | E13: =SUM(F13:G13) -> 20324 | F13: =F14+F15 -> 10393 | G13: =G14+G15 -> 9931 | H13: =SUM(I13:J13) -> 8096 | I13: =I14+I15 -> 2952 | J13: =J14+J15 -> 5144
A14: PÚBLICO | B14: 25273 | C14: =C16 -> 9561 | D14: =D16 -> 15712 | E14: =SUM(F14:G14) -> 0 | F14: =F16 -> - | G14: =G16 -> - | H14: 5843 | I14: =I16 -> 1924 | J14: =J16 -> 3919
A15: PRIVADO | B15: 3405 | C15: =SUM(C17:C27) -> 1734 | D15: =SUM(D17:D27) -> 1671 | E15: 20324 | F15: =SUM(F17:F27) -> 10393 | G15: =SUM(G17:G27) -> 9931 | H15: 2253 | I15: =SUM(I17:I27) -> 1028 | J15: =SUM(J17:J27) -> 1225
A16: UdelaR * | B16: =SUM(C16:D16) -> 25273 | C16: 9561 | D16: 15712 | E16: - | F16: - | G16: - | H16: 5843 | I16: 1924 | J16: 3919
A17: UCUDAL | B17: 1143 | C17: 504 | D17: 639 | E17: =SUM(F17:G17) -> 6175 | F17: 2625 | G17: 3550 | H17: 722 | I17: 262 | J17: 460
A18: Universidad ORT Uruguay | B18: 1057 | C18: 579 | D18: 478 | E18: 7121 | F18: 4097 | G18: 3024 | H18: 607 | I18: 328 | J18: 279
A19: Universidad de Montevideo | B19: 369 | C19: 177 | D19: 192 | E19: 2800 | F19: 1313 | G19: 1487 | H19: 290 | I19: 121 | J19: 169
A20: Universidad de la Empresa | B20: 508 | C20: 326 | D20: 182 | E20: 3225 | F20: 1801 | G20: 1424 | H20: 384 | I20: 186 | J20: 198
A21: Inst Univ Asociación Cristiana de Jóvenes | B21: 157 | C21: 96 | D21: 61 | E21: 511 | F21: 359 | G21: 152 | H21: 185 | I21: 124 | J21: 61
A22: Inst Metodista Univ Crandon | B22: 1 | C22: 1 | D22: 0 | E22: 36 | F22: 4 | G22: 32 | H22: 0 | I22: 0 | J22: 0
A23: Inst Univ Monseñor Mariano Soler | B23: 13 | C23: 6 | D23: 7 | E23: 59 | F23: 50 | G23: 9 | H23: 4 | I23: 4 | J23: 0
A24: Inst Univ CEDIIAP | B24: 43 | C24: 3 | D24: 40 | E24: 100 | F24: 8 | G24: 92 | H24: 32 | I24: 0 | J24: 32
A25: Inst Univ CLAEH | B25: 11 | C25: 2 | D25: 9 | E25: 58 | F25: 17 | G25: 41 | H25: 6 | I25: 1 | J25: 5
A26: Inst Univ Elbio Fernández | B26: 37 | C26: 0 | D26: 37 | E26: 64 | F26: 0 | G26: 64 | H26: 21 | I26: 0 | J26: 21
A27: Escuela de Formación Profesional en Comercio Exterior y Aduana | B27: 66 | C27: 40 | D27: 26 | E27: 175 | F27: 119 | G27: 56 | H27: 2 | I27: 2 | J27: 0
A28: RESTO DEL PAÍS | B28: =+C28+D28 -> 3987 | C28: =C29+C30 -> 1734 | D28: =D29+D30 -> 2253 | E28: =+F28+G28 -> 2588 | F28: =F29+F30 -> 1275 | G28: =G29+G30 -> 1313 | H28: =+I28+J28 -> 729 | I28: =I29+I30 -> 249 | J28: =J29+J30 -> 480
A29: PÚBLICO | B29: =C29+D29 -> 3653 | C29: =C33+C35+C37+C44+C45+C47+C49+C50+C52+C54+C57+C59+C61 -> 1587 | D29: =D33+D35+D37+D44+D45+D47+D49+D50+D52+D54+D57+D59+D61 -> 2066 | E29: =F29+G29 -> 721 | F29: =F33+F35+F37+F44+F45+F47+F49+F50+F52+F54+F57+F59+F61 -> 498 | G29: =G33+G35+G37+G44+G45+G47+G49+G50+G52+G54+G57+G59+G61 -> 223 | H29: =I29+J29 -> 549 | I29: =I33+I35+I37+I44+I45+I47+I49+I50+I52+I54+I57+I59+I61 -> 189 | J29: =J33+J35+J37+J44+J45+J47+J49+J50+J52+J54+J57+J59+J61 -> 360
A30: PRIVADO | B30: =C30+D30 -> 334 | C30: =C32+C38+C39+C40+C41+C42+C55 -> 147 | D30: =D32+D38+D39+D40+D41+D42+D55 -> 187 | E30: =F30+G30 -> 1867 | F30: =F32+F38+F39+F40+F41+F42+F55 -> 777 | G30: =G32+G38+G39+G40+G41+G42+G55 -> 1090 | H30: =I30+J30 -> 180 | I30: =I32+I38+I39+I40+I41+I42+I55 -> 60 | J30: =J32+J38+J39+J40+J41+J42+J55 -> 120
A31: Colonia | B31: =SUM(C31:D31) -> 84 | C31: =C32+C33 -> 34 | D31: =D32+D33 -> 50 | E31: =SUM(F31:G31) -> 302 | F31: =F32+F33 -> 111 | G31: =G32+G33 -> 191 | H31: =SUM(I31:J31) -> 27 | I31: =I32+I33 -> 13 | J31: =J32+J33 -> 14
A32: Universidad de la Empresa | B32: 62 | C32: 26 | D32: 36 | E32: 254 | F32: 88 | G32: 166 | H32: 15 | I32: 4 | J32: 11
A33: UTEC | B33: 22 | C33: 8 | D33: 14 | E33: 48 | F33: 23 | G33: 25 | H33: 12 | I33: 9 | J33: 3
A34: Durazno
A35: UTEC | B35: 163 | C35: 119 | D35: 44 | E35: 330 | F35: 252 | G35: 78 | H35: 16 | I35: 15 | J35: 1
A36: Maldonado | B36: =SUM(C36:D36) -> 883 | C36: =SUM(C37:C42) -> 480 | D36: =SUM(D37:D42) -> 403 | E36: 1112 | F36: =SUM(F37:F42) -> 448 | G36: =SUM(G37:G42) -> 664 | H36: 198 | I36: =SUM(I37:I42) -> 69 | J36: =SUM(J37:J42) -> 129
A37: UdelaR | B37: 711 | C37: 403 | D37: 308 | E37: - | F37: - | G37: - | H37: 94 | I37: 41 | J37: 53
A38: UCUDAL | B38: 43 | C38: 27 | D38: 16 | E38: 215 | F38: 115 | G38: 100 | H38: 11 | I38: 5 | J38: 6
A39: Inst Univ CLAEH | B39: 82 | C39: 30 | D39: 52 | E39: 389 | F39: 140 | G39: 249 | H39: 73 | I39: 22 | J39: 51
A40: Fundación Politécnico de Punta del Este | B40: 0 | C40: 0 | D40: 0 | E40: 35 | F40: 12 | G40: 23 | H40: 9 | I40: 0 | J40: 9
A41: Inst Univ Francisco de Asís | B41: 37 | C41: 10 | D41: 27 | E41: 434 | F41: 150 | G41: 284 | H41: 11 | I41: 1 | J41: 10
A42: Inst Univ Asociación Cristiana de Jóvenes | B42: 10 | C42: 10 | D42: 0 | E42: 39 | F42: 31 | G42: 8 | H42: 0 | I42: 0 | J42: 0
A43: Paysandú | B43: 841 | C43: =C44+C45 -> 336 | D43: =D44+D45 -> 505 | E43: 68 | F43: =F44+F45 -> 14 | G43: =G44+G45 -> 54 | H43: 159 | I43: =I44+I45 -> 51 | J43: =J44+J45 -> 108
A44: UdelaR | B44: 813 | C44: 327 | D44: 486 | E44: 0 | F44: - | G44: - | H44: 155 | I44: 49 | J44: 106
A45: UTEC | B45: 28 | C45: 9 | D45: 19 | E45: 68 | F45: 14 | G45: 54 | H45: 4 | I45: 2 | J45: 2
A46: Río Negro
A47: UTEC | B47: =SUM(C47:D47) -> 136 | C47: 106 | D47: 30 | E47: 222 | F47: 174 | G47: 48 | H47: 0 | I47: 0 | J47: 0
A48: Rivera | B48: 483 | C48: =C49+C50 -> 182 | D48: =D49+D50 -> 301 | E48: 53 | F48: =F49+F50 -> 35 | G48: =G49+G50 -> 18 | H48: 41 | I48: =I49+I50 -> 8 | J48: =J49+J50 -> 33
A49: UdelaR | B49: 206 | C49: 103 | D49: 103 | E49: - | F49: - | G49: - | H49: 41 | I49: 8 | J49: 33
A50: UTEC | B50: 277 | C50: =C51+C52 -> 79 | D50: =D51+D52 -> 198 | E50: 53 | F50: 35 | G50: 18 | H50: 0 | I50: 0 | J50: 0
A51: Rocha
A52: UdelaR | B52: 277 | C52: 79 | D52: 198 | E52: - | F52: - | G52: - | H52: 12 | I52: 6 | J52: 6
A53: Salto | B53: =SUM(C53:D53) -> 875 | C53: =C54+C55 -> 289 | D53: =D54+D55 -> 586 | E53: 501 | F53: =F54+F55 -> 241 | G53: =G54+G55 -> 260 | H53: 246 | I53: =I54+I55 -> 76 | J53: =J54+J55 -> 170
A54: UdelaR | B54: 775 | C54: 245 | D54: 530 | E54: - | F54: - | G54: - | H54: 185 | I54: 48 | J54: 137
A55: UCUDAL | B55: 100 | C55: 44 | D55: 56 | E55: 501 | F55: 241 | G55: 260 | H55: 61 | I55: 28 | J55: 33
A56: San José
A57: UdelaR | B57: 22 | C57: 16 | D57: 6 | E57: - | G57: - | H57: 4 | I57: 3 | J57: 1
A58: Tacuarembó
A59: UdelaR | B59: 183 | C59: 74 | D59: 109 | E59: - | F59: - | G59: - | H59: 25 | I59: 7 | J59: 18
A60: Treinta y Tres
A61: UdelaR | B61: 40 | C61: 19 | D61: 21 | E61: - | F61: - | G61: - | H61: 1 | I61: 1 | J61: 0
A63: Fuente: Oficinas Productoras de cada una de las Instituciones.
A64: Nota:
A65: La expresión “Estudiantes” hace referencia a relaciones entre personas e instituciones y no al conteo de personas físicas. De manera que una persona puede ser estudiante de más de una institución o región, ostentando en cualquiera de ambas categorías inserciones múltiples y en cada caso será contada como personas diferentes.
A66: Para UdelaR:
A67: Según Res. N°15 del CDC de fecha 23/10/12, se entiende por Generación de Ingreso a Carrera a todos los estudiantes que ingresan por primera vez a una carrera terciaria y/o de grado, en un año dado. No se consideran los estudiantes que ingresan a la carrera a través de un CIO o de un ciclo básico común en años anteriores. No se incluyen los estudiantes provisorios por previas, ni los de intercambio. Se incluyen los estudiantes de cortesía diplomática.
A68: * La matrícula de UdelaR corresponde al dato del VII Censo de estudiantes de grado 2012. Son 124.200 estudiantes en Montevideo (43.748 hombres y 80.452 mujeres ) y 6.741 en el Interior del país (2.272 hombres y 4.469 mujeres).
A69: El dato de egreso 2017 de UdelaR es PRELIMINAR

Sheet II-7.1.2
A1: OFERTA UNIVERSITARIA DE POSTGRADO | C1: INSTITUCIONES
A3: Cuadro Nº II-7.1.2
A5: ESTUDIANTES INGRESADOS, MATRICULADOS Y EGRESADOS EN PROGRAMAS DE POSTGRADO POR SEXO SEGÚN INSTITUCIÓN (Todo el país, 2017)
A6: INSTITUCIÓN | B6: TOTAL | C6: INGRESADOS | E6: TOTAL | F6: MATRICULADOS | H6: TOTAL | I6: EGRESADOS
C7: SEXO | F7: SEXO | I7: SEXO
C8: V | D8: M | F8: V | G8: M | I8: V | J8: M
A9: TOTAL PAIS | B9: =C9+D9 -> 5610 | C9: =C10+C11 -> 2118 | D9: =D10+D11 -> 3492 | E9: =F9+G9 -> 13204 | F9: =F10+F11 -> 5198 | G9: =G10+G11 -> 8006 | H9: =I9+J9 -> 2749 | I9: =I10+I11 -> 1127 | J9: =J10+J11 -> 1622
A10: PÚBLICO | B10: =C10+D10 -> 3954 | C10: =C14+C31 -> 1513 | D10: =D14+D31 -> 2441 | E10: =F10+G10 -> 7667 | F10: =F14+F31 -> 3084 | G10: =G14+G31 -> 4583 | H10: =I10+J10 -> 1943 | I10: =I14+I31 -> 853 | J10: =J14+J31 -> 1090
A11: PRIVADO | B11: 1656 | C11: =C15+C32 -> 605 | D11: =D15+D32 -> 1051 | E11: 5537 | F11: =F15+F32 -> 2114 | G11: =G15+G32 -> 3423 | H11: 806 | I11: =I15+I32 -> 274 | J11: =J15+J32 -> 532
A13: Montevideo | B13: 5564 | C13: =C14+C15 -> 2112 | D13: =D14+D15 -> 3452 | E13: 13112 | F13: =F14+F15 -> 5140 | G13: =G14+G15 -> 7972 | H13: 2744 | I13: =I14+I15 -> 1124 | J13: =J14+J15 -> 1620
A14: PÚBLICO | B14: 3931 | C14: =C16+SUM(C25:C28) -> 1512 | D14: =D16+SUM(D25:D28) -> 2419 | E14: 7639 | F14: =F16+SUM(F25:F28) -> 3069 | G14: =G16+SUM(G25:G28) -> 4570 | H14: 1941 | I14: =I16+SUM(I25:I28) -> 852 | J14: =J16+SUM(J25:J28) -> 1089
A15: PRIVADO | B15: 1633 | C15: =SUM(C17:C24) -> 600 | D15: =SUM(D17:D24) -> 1033 | E15: 5473 | F15: =SUM(F17:F24) -> 2071 | G15: =SUM(G17:G24) -> 3402 | H15: 803 | I15: =SUM(I17:I24) -> 272 | J15: =SUM(J17:J24) -> 531
A16: UdelaR * | B16: 3156 | C16: 1043 | D16: 2113 | E16: 6839 | F16: 2593 | G16: 4246 | H16: 1565 | I16: 508 | J16: 1057
A17: UCUDAL | B17: 616 | C17: 158 | D17: 458 | E17: 1596 | F17: 395 | G17: 1201 | H17: 280 | I17: 52 | J17: 228
A18: Universidad ORT Uruguay | B18: 213 | C18: 102 | D18: 111 | E18: 716 | F18: 292 | G18: 424 | H18: 214 | I18: 74 | J18: 140
A19: Universidad de Montevideo | B19: 245 | C19: 115 | D19: 130 | E19: 1368 | F19: 648 | G19: 720 | H19: 208 | I19: 106 | J19: 102
A20: Universidad de la Empresa | B20: 422 | C20: 184 | D20: 238 | E20: 1491 | F20: 635 | G20: 856 | H20: 44 | I20: 24 | J20: 20
A21: Inst Univ CLAEH | B21: 102 | C21: 32 | D21: 70 | E21: 223 | F21: 75 | G21: 148 | H21: 49 | I21: 14 | J21: 35
A22: Inst Univ de Postgrado en Psicoanálisis | B22: 9 | C22: 1 | D22: 8 | E22: 32 | F22: 7 | G22: 25 | H22: 4 | I22: 1 | J22: 3
A23: Instituto Universitario Centro de Estudio y Diagnóstico de las Disgnancias del Uruguay (IUCEDDU) | B23: 8 | C23: 0 | D23: 8 | E23: 29 | F23: 9 | G23: 20 | H23: 4 | I23: 1 | J23: 3
A24: Inst Univ Asociación Cristiana de Jóvenes | B24: 18 | C24: 8 | D24: 10 | E24: 18 | F24: 10 | G24: 8 | H24: 0 | I24: 0 | J24: 0
A25: Centro de Altos Estudios Nacionales | B25: 40 | C25: 27 | D25: 13 | E25: 40 | F25: 27 | G25: 13 | H25: 24 | I25: 15 | J25: 9
A26: Escuela de Guerra Naval (ESGUE) | B26: 118 | C26: 107 | D26: 11 | E26: 118 | F26: 107 | G26: 11 | H26: 63 | I26: 57 | J26: 6
A27: IPES | B27: 339 | C27: 66 | D27: 273 | E27: 364 | F27: 73 | G27: 291 | H27: 11 | I27: 3 | J27: 8
A28: Escuela Naval | B28: 278 | C28: 269 | D28: 9 | E28: 278 | F28: 269 | G28: 9 | H28: 278 | I28: 269 | J28: 9
A30: Resto del país | B30: 46 | C30: =C31+C32 -> 6 | D30: =D31+D32 -> 40 | E30: 92 | F30: =F31+F32 -> 58 | G30: =G31+G32 -> 34 | H30: 5 | I30: =I31+I32 -> 3 | J30: =J31+J32 -> 2
A31: PÚBLICO | B31: 23 | C31: =C34+C37 -> 1 | D31: =D34+D37 -> 22 | E31: 28 | F31: =F34+F37 -> 15 | G31: =G34+G37 -> 13 | H31: 2 | I31: =I34+I37 -> 1 | J31: =J34+J37 -> 1
A32: PRIVADO | B32: 23 | C32: =C35+C38 -> 5 | D32: =D35+D38 -> 18 | E32: 64 | F32: =F35+F38 -> 43 | G32: =G35+G38 -> 21 | H32: 3 | I32: =I35+I38 -> 2 | J32: =J35+J38 -> 1
A33: Maldonado | B33: 0 | C33: =C34+C35 -> 0 | D33: =D34+D35 -> 0 | E33: 65 | F33: =F34+F35 -> 50 | G33: =G34+G35 -> 15 | H33: 2 | I33: =I34+I35 -> 1 | J33: =J34+J35 -> 1
A34: UdelaR | B34: 0 | C34: 0 | D34: 0 | E34: 24 | F34: 12 | G34: 12 | H34: 2 | I34: 1 | J34: 1
A35: Inst Univ Asociación Cristiana de Jóvenes | B35: 0 | C35: 0 | D35: 0 | E35: 41 | F35: 38 | G35: 3 | H35: 0 | I35: 0 | J35: 0
A36: Salto | B36: 46 | C36: =C37+C38 -> 6 | D36: =D37+D38 -> 40 | E36: 27 | F36: =F37+F38 -> 8 | G36: =G37+G38 -> 19 | H36: 3 | I36: =I37+I38 -> 2 | J36: =J37+J38 -> 1
A37: UdelaR | B37: 23 | C37: 1 | D37: 22 | E37: 4 | F37: 3 | G37: 1 | H37: 0 | I37: 0 | J37: 0
A38: UCUDAL | B38: 23 | C38: 5 | D38: 18 | E38: 23 | F38: 5 | G38: 18 | H38: 3 | I38: 2 | J38: 1
A39: Fuente: Bedelías de los Servicios Universitarios y Sistema de Gestión de Bedelías-SeCIU
A40: UdelaR:
A41: El dato de Egresos de Posgrado 2017 es PRELIMINAR
A42: * La matrícula de UdelaR corresponde al dato del VII Censo de estudiantes de grado 2012.

Sheet II-7.2.1
A1: UNIVERSIDADES PÚBLICAS: OFERTA DE GRADO | E1: ESTUDIANTES
A3: Cuadro Nº II-7.2.1
A5: UNIVERSIDADES PÚBLICAS: ESTUDIANTES INGRESADOS A CARRERAS 2017 Y EGRESADOS PRELIMINARES 2017 EN PROGRAMAS DE GRADO POR SEXO, SEGÚN SERVICIO UNIVERSITARIO Y CARRERA. (Todo el país, 2017)
B6: TOTAL | C6: INGRESADOS | E6: TOTAL | F6: EGRESADOS (datos preliminares) (3) | H6: TOTAL (4) | I6: MATRICULADOS
A7: SERVICIO UNIVERSITARIO / CARRERA | C7: SEXO | F7: SEXO | I7: SEXO
C8: V | D8: M | F8: V | G8: M | I8: V | J8: M
I9: V | J9: M
A10: TOTAL UNIVERSIDADES PÚBLICAS | B10: =C10+D10 -> 29770 | C10: =C12+C31 -> 11465 | D10: =D12+D31 -> 18305 | E10: =F10+G10 -> 6392 | F10: =F12+F31 -> 2113 | G10: =G12+G31 -> 4279
A12: UNIVERSIDAD TECNOLÓGICA -UTEC | B12: =C12+D12 -> 389 | C12: =C13+C16+C21+C22+C27 -> 269 | D12: =D13+D16+D21+D22+D27 -> 120 | E12: =F12+G12 -> 32 | F12: =F13+F16+F21+F22+F27 -> 26 | G12: =G13+G16+G21+G22+G27 -> 6 | H12: =I12+J12 -> 721 | I12: =I13+I16+I21+I22+I27 -> 498 | J12: =J13+J16+J21+J22+J27 -> 223
A13: Colonia | B13: =C13+D13 -> 22 | C13: =C14+C15 -> 8 | D13: =D14+D15 -> 14 | E13: =F13+G13 -> 12 | F13: =F14+F15 -> 9 | G13: =G14+G15 -> 3 | H13: =I13+J13 -> 48 | I13: =I14+I15 -> 23 | J13: =J14+J15 -> 25
A14: Licenciatura en Ciencia y Tecnología de Lácteos | B14: 12 | C14: 4 | D14: 8 | E14: 4 | F14: 4 | G14: 0 | H14: 33 | I14: 16 | J14: 17
A15: Tecnólogo en Manejo en Sistemas de Producción Lechera | B15: 10 | C15: 4 | D15: 6 | E15: 8 | F15: 5 | G15: 3 | H15: 15 | I15: 7 | J15: 8
A16: Durazno | B16: 163 | C16: =C17+C18+C19 -> 119 | D16: =D17+D18+D19 -> 44 | E16: 16 | F16: =F17+F18+F19 -> 15 | G16: =G17+G18+G19 -> 1 | H16: 330 | I16: =I17+I18+I19 -> 252 | J16: =J17+J18+J19 -> 78
A17: Ingeniería en Sistemas de Riego y Manejo de Efluentes | B17: 22 | C17: 13 | D17: 9 | E17: 0 | F17: 0 | G17: 0 | H17: 54 | I17: 44 | J17: 10
A18: Tecnicatura en Tecnologías de la Información | B18: 96 | C18: 71 | D18: 25 | E18: 16 | F18: 15 | G18: 1 | H18: 190 | I18: 138 | J18: 52
A19: Tecnólogo en Energías Renovables | B19: 45 | C19: 35 | D19: 10 | E19: 0 | F19: 0 | G19: 0 | H19: 86 | I19: 70 | J19: 16
A20: Paysandú
A21: Licenciatura en Análisis Alimentario | B21: 28 | C21: 9 | D21: 19 | E21: 4 | F21: 2 | G21: 2 | H21: =I21+J21 -> 68 | I21: 14 | J21: 54
A22: Río Negro | B22: 136 | C22: =SUM(C23:C26) -> 106 | D22: =SUM(D23:D26) -> 30 | E22: 0 | F22: =SUM(F23:F26) -> 0 | G22: =SUM(G23:G26) -> 0 | H22: 222 | I22: =SUM(I23:I26) -> 174 | J22: =SUM(J23:J26) -> 48
A23: Tecnicatura en Tecnologías de la Información | B23: 81 | C23: 60 | D23: 21 | E23: 0 | F23: 0 | G23: 0 | H23: 106 | I23: 79 | J23: 27
A24: Tecnólogo en Ingeniería Biomédica | B24: 14 | C24: 7 | D24: 7 | E24: 0 | F24: 0 | G24: 0 | H24: 25 | I24: 14 | J24: 11
A25: Tecnólogo en Jazz y Musica Creativa | B25: 7 | C25: 7 | D25: 0 | E25: 0 | F25: 0 | G25: 0 | H25: 10 | I25: 10 | J25: 0
A26: Tecnólogo en Mecatrónica | B26: 34 | C26: 32 | D26: 2 | E26: 0 | F26: 0 | G26: 0 | H26: 81 | I26: 71 | J26: 10
A27: Rivera | B27: 40 | C27: =C28+C29 -> 27 | D27: =D28+D29 -> 13 | E27: 0 | F27: =F28+F29 -> 0 | G27: =G28+G29 -> 0 | H27: 53 | I27: =I28+I29 -> 35 | J27: =J28+J29 -> 18
A28: Ingeniería en Logística | B28: 15 | C28: 9 | D28: 6 | E28: 0 | F28: 0 | G28: 0 | H28: 21 | I28: 12 | J28: 9
A29: Tecnólogo en Mecatrónica Industrial | B29: 25 | C29: 18 | D29: 7 | E29: 0 | F29: 0 | G29: 0 | H29: 32 | I29: 23 | J29: 9
A31: TOTAL UDELAR | B31: =SUM(C31:D31) -> 29381 | C31: =C33+C56+C62+C71+C91+C105+C131+C139+C151+C166+C175+C185+C202+C212+C219+C228+C234+C242+C275+C293+C307+C327+C331+C338+C362+C366+C372+C375+C381++C394+C398+C402+C406+C409+C412+C416 -> 11196 | D31: =D33+D56+D62+D71+D91+D105+D131+D139+D151+D166+D175+D185+D202+D212+D219+D228+D234+D242+D275+D293+D307+D327+D331+D338+D362+D366+D372+D375+D381++D394+D398+D402+D406+D409+D412+D416 -> 18185 | E31: =SUM(F31:G31) -> 6360 | F31: =F33+F56+F62+F71+F91+F105+F131+F139+F151+F166+F175+F185+F202+F212+F219+F228+F234+F242+F275+F293+F307+F327+F331+F338+F362+F366+F372+F375+F381++F394+F398+F402+F406+F409+F412+F416 -> 2087 | G31: =G33+G56+G62+G71+G91+G105+G131+G139+G151+G166+G175+G185+G202+G212+G219+G228+G234+G242+G275+G293+G307+G327+G331+G338+G362+G366+G372+G375+G381++G394+G398+G402+G406+G409+G412+G416 -> 4273 | H31: s/d | I31: s/d | J31: s/d
A33: FACULTAD DE HUMANIDADES Y CIENCIAS DE LA EDUCACIÓN | B33: =SUM(C33:D33) -> 1458 | C33: =C34+C46+C48+C50+C53 -> 474 | D33: =D34+D46+D48+D50+D53 -> 984 | E33: =SUM(F33:G33) -> 96 | F33: =F34+F46+F48+F50+F53 -> 27 | G33: =G34+G46+G48+G50+G53 -> 69
A34: Montevideo | B34: =SUM(C34:D34) -> 1373 | C34: =SUM(C35:C45) -> 448 | D34: =SUM(D35:D45) -> 925 | E34: 69 | F34: =SUM(F35:F45) -> 20 | G34: =SUM(G35:G45) -> 49 | H34: s/d | I34: s/d | J34: s/d
A35: Licenciado en Ciencias Antropológicas | B35: 186 | C35: 61 | D35: 125 | E35: 6 | F35: 2 | G35: 4 | H35: s/d | I35: s/d | J35: s/d
A36: Licenciado en Ciencias de la Educación | B36: 208 | C36: 53 | D36: 155 | E36: 22 | F36: 5 | G36: 17 | H36: s/d | I36: s/d | J36: s/d
A37: Licenciado en Historia | B37: 154 | C37: 78 | D37: 76 | E37: 0 | F37: 0 | G37: 0 | H37: s/d | I37: s/d | J37: s/d
A38: Licenciado en Filosofía | B38: 168 | C38: 94 | D38: 74 | E38: 5 | F38: 1 | G38: 4 | H38: s/d | I38: s/d | J38: s/d
A39: Licenciado en Letras | B39: 228 | C39: 70 | D39: 158 | E39: 4 | F39: 3 | G39: 1 | H39: s/d | I39: s/d | J39: s/d
A40: Licenciado en Lingüística | B40: 103 | C40: 25 | D40: 78 | E40: 2 | F40: 1 | G40: 1 | H40: s/d | I40: s/d | J40: s/d
A41: Técnico Universitario en Corrección de Estilo (Lengua Española) | B41: 309 | C41: 58 | D41: 251 | E41: 11 | F41: 2 | G41: 9 | H41: s/d | I41: s/d | J41: s/d
A42: Técnico Universitario en Interpretación LSU-ESP-LSU | B42: 0 | C42: 0 | D42: 0 | E42: 4 | F42: 0 | G42: 4 | H42: s/d | I42: s/d | J42: s/d
A43: Técnico Universitario en Museología | B43: 0 | C43: 0 | D43: 0 | E43: 10 | F43: 3 | G43: 7 | H43: s/d | I43: s/d | J43: s/d
A44: Técnico Universitario en Dramaturgia (1) | B44: 17 | C44: 9 | D44: 8 | E44: 0 | F44: 0 | G44: 0 | H44: s/d | I44: s/d | J44: s/d
A45: Licenciado en Ciencias Históricas | B45: 0 | C45: 0 | D45: 0 | E45: 5 | F45: 3 | G45: 2 | H45: s/d | I45: s/d | J45: s/d
A46: Maldonado | B46: 0 | C46: =C47 -> 0 | D46: =D47 -> 0 | E46: 13 | F46: =F47 -> 3 | G46: =G47 -> 10 | H46: s/d | I46: s/d | J46: s/d
A47: Licenciado en Turismo | B47: 0 | C47: 0 | D47: 0 | E47: =SUM(F47:G47) -> 13 | F47: 3 | G47: 10 | H47: s/d | I47: s/d | J47: s/d
A48: Paysandú | B48: 28 | C48: =C49 -> 5 | D48: =D49 -> 23 | E48: 0 | F48: =F49 -> 0 | G48: =G49 -> 0 | H48: s/d | I48: s/d | J48: s/d
A49: Técnico Universitario en Bienes Culturales | B49: =SUM(C49:D49) -> 28 | C49: 5 | D49: 23 | E49: 0 | F49: 0 | G49: 0 | H49: s/d | I49: s/d | J49: s/d
A50: Salto | B50: 43 | C50: =C51+C52 -> 14 | D50: =D51+D52 -> 29 | E50: 14 | F50: =F51+F52 -> 4 | G50: =G51+G52 -> 10 | H50: s/d | I50: s/d | J50: s/d
A51: Licenciado en Turismo | B51: 43 | C51: 14 | D51: 29 | E51: 6 | F51: 2 | G51: 4 | H51: s/d | I51: s/d | J51: s/d
A52: Técnico Binacional en Turismo | B52: 0 | C52: 0 | D52: 0 | E52: 8 | F52: 2 | G52: 6 | H52: s/d | I52: s/d | J52: s/d
A53: Tacuarembó | B53: 14 | C53: =C54 -> 7 | D53: =D54 -> 7 | E53: 0 | F53: =F54 -> 0 | G53: =G54 -> 0 | H53: s/d | I53: s/d | J53: s/d
A54: Técnico Universitario en Bienes Culturales | B54: =SUM(C54:D54) -> 14 | C54: 7 | D54: 7 | E54: 0 | F54: 0 | G54: 0 | H54: s/d | I54: s/d | J54: s/d
A56: FACULTAD DE AGRONOMÍA | B56: =SUM(C56:D56) -> 406 | C56: =C57+C59 -> 258 | D56: =D57+D59 -> 148 | E56: =SUM(F56:G56) -> 158 | F56: =F57+F59 -> 107 | G56: =G57+G59 -> 51 | H56: s/d | I56: s/d | J56: s/d
A57: Montevideo | B57: =SUM(C57:D57) -> 331 | C57: =C58 -> 212 | D57: =D58 -> 119 | E57: =SUM(F57:G57) -> 158 | F57: =F58 -> 107 | G57: =G58 -> 51 | H57: s/d | I57: s/d | J57: s/d
A58: Ingeniero Agrónomo | B58: =SUM(C58:D58) -> 331 | C58: 212 | D58: 119 | E58: =SUM(F58:G58) -> 158 | F58: 107 | G58: 51 | H58: s/d | I58: s/d | J58: s/d
A59: Salto | B59: 75 | C59: =C60 -> 46 | D59: =D60 -> 29 | E59: 0 | F59: =F60 -> 0 | G59: =G60 -> 0 | H59: s/d | I59: s/d | J59: s/d
A60: Ingeniero Agrónomo | B60: 75 | C60: 46 | D60: 29 | E60: 0 | F60: 0 | G60: 0 | H60: s/d | I60: s/d | J60: s/d
A62: FACULTAD DE ARQUITECTURA, DISEÑO Y URBANISMO | B62: =SUM(C62:D62) -> 986 | C62: =C63+C68 -> 383 | D62: =D63+D68 -> 603 | E62: =SUM(F62:G62) -> 577 | F62: =F63+F68 -> 236 | G62: =G63+G68 -> 341 | H62: s/d | I62: s/d | J62: s/d
A63: Montevideo | B63: =SUM(C63:D63) -> 964 | C63: =C64+C65+C66+C67 -> 373 | D63: =D64+D65+D66+D67 -> 591 | E63: =SUM(F63:G63) -> 577 | F63: =F64+F65+F66+F67 -> 236 | G63: =G64+G65+G66+G67 -> 341 | H63: s/d | I63: s/d | J63: s/d
A64: Arquitecto | B64: 710 | C64: 313 | D64: 397 | E64: 548 | F64: 232 | G64: 316 | H64: s/d | I64: s/d | J64: s/d
A65: Licenciado en Diseño Industrial | B65: 254 | C65: 60 | D65: 194 | E65: 0 | F65: 0 | G65: 0 | H65: s/d | I65: s/d | J65: s/d
A66: Licenciado en Diseño Industrial perfil Producto | B66: 0 | C66: 0 | D66: 0 | E66: 15 | F66: 4 | G66: 11 | H66: s/d | I66: s/d | J66: s/d
A67: Licenciado en Diseño Industrial perfil Textil-Indumentaria | B67: 0 | C67: 0 | D67: 0 | E67: 14 | F67: 0 | G67: 14 | H67: s/d | I67: s/d | J67: s/d
A68: Salto | B68: 22 | C68: =C69 -> 10 | D68: =D69 -> 12 | E68: 0 | F68: =F69 -> 0 | G68: =G69 -> 0 | H68: s/d | I68: s/d | J68: s/d
